Workbook

Sheet Title Page
C3: CONTRACT SANRAL N.017-024-2019/1: FOR THE OPERATIONS AND MAINTENANCE OF TOLL PLAZAS ON THE N17 TOLL ROAD
C5: Schedule of Payments / Cost Matrices for the Design-Build and Operation Service Periods
C8: Base Date:
C9: =DATE(2024,4,5)-28 -> 2024-03-08
C10: First Month of Contract:
C11: =C9+164 -> 2024-08-19
C12: First Month of Operation Service:
C13: =C11+42 -> 2024-09-30

Sheet ETOC to Model
B2: Control Centre | D2: Vehicle Class | E2: Est Period | G2: Operation Service Period - Year 1 | S2: =+G2+1 -> Operation Service Period - Year 2 | AE2: =+S2+1 -> Operation Service Period - Year 3 | AQ2: =+AE2+1 -> Operation Service Period - Year 4 | BC2: =+AQ2+1 -> Operation Service Period - Year 5 | BO2: =+BC2+1 -> Operation Service Period - Year 6
E3: =+'Title Page'!C11 -> 2024-08-19 | F3: =DATE(YEAR(E3),MONTH(E3)+2,1)-1 -> 2024-09-30 | G3: =DATE(YEAR(F3),MONTH(F3)+2,1)-1 -> 2024-10-31 | H3: =DATE(YEAR(G3),MONTH(G3)+2,1)-1 -> 2024-11-30 | I3: 2024-12-31 | J3: 2025-01-31 | K3: 2025-02-28 | L3: 2025-03-31 | M3: 2025-04-30 | N3: 2025-05-31 | O3: 2025-06-30 | P3: 2025-07-31 | Q3: 2025-08-31 | R3: 2025-09-30 | S3: 2025-10-31 | T3: 2025-11-30 | U3: 2025-12-31 | V3: 2026-01-31 | W3: 2026-02-28 | X3: 2026-03-31 | Y3: 2026-04-30 | Z3: 2026-05-31 | AA3: 2026-06-30 | AB3: 2026-07-31 | AC3: 2026-08-31 | AD3: 2026-09-30 | AE3: 2026-10-31 | AF3: 2026-11-30 | AG3: 2026-12-31 | AH3: 2027-01-31 | AI3: 2027-02-28 | AJ3: 2027-03-31 | AK3: 2027-04-30 | AL3: 2027-05-31 | AM3: 2027-06-30 | AN3: 2027-07-31 | AO3: 2027-08-31 | AP3: 2027-09-30 | AQ3: 2027-10-31 | AR3: 2027-11-30 | AS3: 2027-12-31 | AT3: 2028-01-31 | AU3: 2028-02-29 | AV3: 2028-03-31 | AW3: 2028-04-30 | AX3: 2028-05-31 | AY3: 2028-06-30 | AZ3: 2028-07-31 | BA3: 2028-08-31 | BB3: 2028-09-30 | BC3: 2028-10-31 | BD3: 2028-11-30 | BE3: 2028-12-31 | BF3: 2029-01-31 | BG3: 2029-02-28 | BH3: 2029-03-31 | BI3: 2029-04-30 | BJ3: 2029-05-31 | BK3: 2029-06-30 | BL3: 2029-07-31 | BM3: 2029-08-31 | BN3: 2029-09-30 | BO3: 2029-10-31 | BP3: 2029-11-30 | BQ3: 2029-12-31 | BR3: 2030-01-31 | BS3: 2030-02-28 | BT3: =DATE(YEAR(BS3),MONTH(BS3)+2,1)-1 -> 2030-03-31 | BU3: 2030-04-30 | BV3: 2030-05-31 | BW3: 2030-06-30 | BX3: 2030-07-31 | BY3: 2030-08-31 | BZ3: 2030-09-30
B4: Gosforth | D4: Class 1 | E4: =Gosforth!H16 -> 0.00 | F4: =Gosforth!I16 -> 0.00 | G4: =Gosforth!J16 -> 0.00 | H4: =Gosforth!K16 -> 0.00 | I4: =Gosforth!L16 -> 0.00 | J4: =Gosforth!M16 -> 0.00 | K4: =Gosforth!N16 -> 0.00 | L4: =Gosforth!O16 -> 0.00 | M4: =Gosforth!P16 -> 0.00 | N4: =Gosforth!Q16 -> 0.00 | O4: =Gosforth!R16 -> 0.00 | P4: =Gosforth!S16 -> 0.00 | Q4: =Gosforth!T16 -> 0.00 | R4: =Gosforth!U16 -> 0.00 | S4: =Gosforth!V16 -> 0.00 | T4: =Gosforth!W16 -> 0.00 | U4: =Gosforth!X16 -> 0.00 | V4: =Gosforth!Y16 -> 0.00 | W4: =Gosforth!Z16 -> 0.00 | X4: =Gosforth!AA16 -> 0.00 | Y4: =Gosforth!AB16 -> 0.00 | Z4: =Gosforth!AC16 -> 0.00 | AA4: =Gosforth!AD16 -> 0.00 | AB4: =Gosforth!AE16 -> 0.00 | AC4: =Gosforth!AF16 -> 0.00 | AD4: =Gosforth!AG16 -> 0.00 | AE4: =Gosforth!AH16 -> 0.00 | AF4: =Gosforth!AI16 -> 0.00 | AG4: =Gosforth!AJ16 -> 0.00 | AH4: =Gosforth!AK16 -> 0.00 | AI4: =Gosforth!AL16 -> 0.00 | AJ4: =Gosforth!AM16 -> 0.00 | AK4: =Gosforth!AN16 -> 0.00 | AL4: =Gosforth!AO16 -> 0.00 | AM4: =Gosforth!AP16 -> 0.00 | AN4: =Gosforth!AQ16 -> 0.00 | AO4: =Gosforth!AR16 -> 0.00 | AP4: =Gosforth!AS16 -> 0.00 | AQ4: =Gosforth!AT16 -> 0.00 | AR4: =Gosforth!AU16 -> 0.00 | AS4: =Gosforth!AV16 -> 0.00 | AT4: =Gosforth!AW16 -> 0.00 | AU4: =Gosforth!AX16 -> 0.00 | AV4: =Gosforth!AY16 -> 0.00 | AW4: =Gosforth!AZ16 -> 0.00 | AX4: =Gosforth!BA16 -> 0.00 | AY4: =Gosforth!BB16 -> 0.00 | AZ4: =Gosforth!BC16 -> 0.00 | BA4: =Gosforth!BD16 -> 0.00 | BB4: =Gosforth!BE16 -> 0.00 | BC4: =Gosforth!BF16 -> 0.00 | BD4: =Gosforth!BG16 -> 0.00 | BE4: =Gosforth!BH16 -> 0.00 | BF4: =Gosforth!BI16 -> 0.00 | BG4: =Gosforth!BJ16 -> 0.00 | BH4: =Gosforth!BK16 -> 0.00 | BI4: =Gosforth!BL16 -> 0.00 | BJ4: =Gosforth!BM16 -> 0.00 | BK4: =Gosforth!BN16 -> 0.00 | BL4: =Gosforth!BO16 -> 0.00 | BM4: =Gosforth!BP16 -> 0.00 | BN4: =Gosforth!BQ16 -> 0.00 | BO4: =Gosforth!BR16 -> 0.00 | BP4: =Gosforth!BS16 -> 0.00 | BQ4: =Gosforth!BT16 -> 0.00 | BR4: =Gosforth!BU16 -> 0.00 | BS4: =Gosforth!BV16 -> 0.00 | BT4: =Gosforth!BW16 -> 0.00 | BU4: =Gosforth!BX16 -> 0.00 | BV4: =Gosforth!BY16 -> 0.00 | BW4: =Gosforth!BZ16 -> 0.00 | BX4: =Gosforth!CA16 -> 0.00 | BY4: =Gosforth!CB16 -> 0.00 | BZ4: =Gosforth!CC16 -> 0.00
D5: Class 2 | E5: =Gosforth!H17 -> 0.00 | F5: =Gosforth!I17 -> 0.00 | G5: =Gosforth!J17 -> 0.00 | H5: =Gosforth!K17 -> 0.00 | I5: =Gosforth!L17 -> 0.00 | J5: =Gosforth!M17 -> 0.00 | K5: =Gosforth!N17 -> 0.00 | L5: =Gosforth!O17 -> 0.00 | M5: =Gosforth!P17 -> 0.00 | N5: =Gosforth!Q17 -> 0.00 | O5: =Gosforth!R17 -> 0.00 | P5: =Gosforth!S17 -> 0.00 | Q5: =Gosforth!T17 -> 0.00 | R5: =Gosforth!U17 -> 0.00 | S5: =Gosforth!V17 -> 0.00 | T5: =Gosforth!W17 -> 0.00 | U5: =Gosforth!X17 -> 0.00 | V5: =Gosforth!Y17 -> 0.00 | W5: =Gosforth!Z17 -> 0.00 | X5: =Gosforth!AA17 -> 0.00 | Y5: =Gosforth!AB17 -> 0.00 | Z5: =Gosforth!AC17 -> 0.00 | AA5: =Gosforth!AD17 -> 0.00 | AB5: =Gosforth!AE17 -> 0.00 | AC5: =Gosforth!AF17 -> 0.00 | AD5: =Gosforth!AG17 -> 0.00 | AE5: =Gosforth!AH17 -> 0.00 | AF5: =Gosforth!AI17 -> 0.00 | AG5: =Gosforth!AJ17 -> 0.00 | AH5: =Gosforth!AK17 -> 0.00 | AI5: =Gosforth!AL17 -> 0.00 | AJ5: =Gosforth!AM17 -> 0.00 | AK5: =Gosforth!AN17 -> 0.00 | AL5: =Gosforth!AO17 -> 0.00 | AM5: =Gosforth!AP17 -> 0.00 | AN5: =Gosforth!AQ17 -> 0.00 | AO5: =Gosforth!AR17 -> 0.00 | AP5: =Gosforth!AS17 -> 0.00 | AQ5: =Gosforth!AT17 -> 0.00 | AR5: =Gosforth!AU17 -> 0.00 | AS5: =Gosforth!AV17 -> 0.00 | AT5: =Gosforth!AW17 -> 0.00 | AU5: =Gosforth!AX17 -> 0.00 | AV5: =Gosforth!AY17 -> 0.00 | AW5: =Gosforth!AZ17 -> 0.00 | AX5: =Gosforth!BA17 -> 0.00 | AY5: =Gosforth!BB17 -> 0.00 | AZ5: =Gosforth!BC17 -> 0.00 | BA5: =Gosforth!BD17 -> 0.00 | BB5: =Gosforth!BE17 -> 0.00 | BC5: =Gosforth!BF17 -> 0.00 | BD5: =Gosforth!BG17 -> 0.00 | BE5: =Gosforth!BH17 -> 0.00 | BF5: =Gosforth!BI17 -> 0.00 | BG5: =Gosforth!BJ17 -> 0.00 | BH5: =Gosforth!BK17 -> 0.00 | BI5: =Gosforth!BL17 -> 0.00 | BJ5: =Gosforth!BM17 -> 0.00 | BK5: =Gosforth!BN17 -> 0.00 | BL5: =Gosforth!BO17 -> 0.00 | BM5: =Gosforth!BP17 -> 0.00 | BN5: =Gosforth!BQ17 -> 0.00 | BO5: =Gosforth!BR17 -> 0.00 | BP5: =Gosforth!BS17 -> 0.00 | BQ5: =Gosforth!BT17 -> 0.00 | BR5: =Gosforth!BU17 -> 0.00 | BS5: =Gosforth!BV17 -> 0.00 | BT5: =Gosforth!BW17 -> 0.00 | BU5: =Gosforth!BX17 -> 0.00 | BV5: =Gosforth!BY17 -> 0.00 | BW5: =Gosforth!BZ17 -> 0.00 | BX5: =Gosforth!CA17 -> 0.00 | BY5: =Gosforth!CB17 -> 0.00 | BZ5: =Gosforth!CC17 -> 0.00
D6: Class 3 | E6: =Gosforth!H18 -> 0.00 | F6: =Gosforth!I18 -> 0.00 | G6: =Gosforth!J18 -> 0.00 | H6: =Gosforth!K18 -> 0.00 | I6: =Gosforth!L18 -> 0.00 | J6: =Gosforth!M18 -> 0.00 | K6: =Gosforth!N18 -> 0.00 | L6: =Gosforth!O18 -> 0.00 | M6: =Gosforth!P18 -> 0.00 | N6: =Gosforth!Q18 -> 0.00 | O6: =Gosforth!R18 -> 0.00 | P6: =Gosforth!S18 -> 0.00 | Q6: =Gosforth!T18 -> 0.00 | R6: =Gosforth!U18 -> 0.00 | S6: =Gosforth!V18 -> 0.00 | T6: =Gosforth!W18 -> 0.00 | U6: =Gosforth!X18 -> 0.00 | V6: =Gosforth!Y18 -> 0.00 | W6: =Gosforth!Z18 -> 0.00 | X6: =Gosforth!AA18 -> 0.00 | Y6: =Gosforth!AB18 -> 0.00 | Z6: =Gosforth!AC18 -> 0.00 | AA6: =Gosforth!AD18 -> 0.00 | AB6: =Gosforth!AE18 -> 0.00 | AC6: =Gosforth!AF18 -> 0.00 | AD6: =Gosforth!AG18 -> 0.00 | AE6: =Gosforth!AH18 -> 0.00 | AF6: =Gosforth!AI18 -> 0.00 | AG6: =Gosforth!AJ18 -> 0.00 | AH6: =Gosforth!AK18 -> 0.00 | AI6: =Gosforth!AL18 -> 0.00 | AJ6: =Gosforth!AM18 -> 0.00 | AK6: =Gosforth!AN18 -> 0.00 | AL6: =Gosforth!AO18 -> 0.00 | AM6: =Gosforth!AP18 -> 0.00 | AN6: =Gosforth!AQ18 -> 0.00 | AO6: =Gosforth!AR18 -> 0.00 | AP6: =Gosforth!AS18 -> 0.00 | AQ6: =Gosforth!AT18 -> 0.00 | AR6: =Gosforth!AU18 -> 0.00 | AS6: =Gosforth!AV18 -> 0.00 | AT6: =Gosforth!AW18 -> 0.00 | AU6: =Gosforth!AX18 -> 0.00 | AV6: =Gosforth!AY18 -> 0.00 | AW6: =Gosforth!AZ18 -> 0.00 | AX6: =Gosforth!BA18 -> 0.00 | AY6: =Gosforth!BB18 -> 0.00 | AZ6: =Gosforth!BC18 -> 0.00 | BA6: =Gosforth!BD18 -> 0.00 | BB6: =Gosforth!BE18 -> 0.00 | BC6: =Gosforth!BF18 -> 0.00 | BD6: =Gosforth!BG18 -> 0.00 | BE6: =Gosforth!BH18 -> 0.00 | BF6: =Gosforth!BI18 -> 0.00 | BG6: =Gosforth!BJ18 -> 0.00 | BH6: =Gosforth!BK18 -> 0.00 | BI6: =Gosforth!BL18 -> 0.00 | BJ6: =Gosforth!BM18 -> 0.00 | BK6: =Gosforth!BN18 -> 0.00 | BL6: =Gosforth!BO18 -> 0.00 | BM6: =Gosforth!BP18 -> 0.00 | BN6: =Gosforth!BQ18 -> 0.00 | BO6: =Gosforth!BR18 -> 0.00 | BP6: =Gosforth!BS18 -> 0.00 | BQ6: =Gosforth!BT18 -> 0.00 | BR6: =Gosforth!BU18 -> 0.00 | BS6: =Gosforth!BV18 -> 0.00 | BT6: =Gosforth!BW18 -> 0.00 | BU6: =Gosforth!BX18 -> 0.00 | BV6: =Gosforth!BY18 -> 0.00 | BW6: =Gosforth!BZ18 -> 0.00 | BX6: =Gosforth!CA18 -> 0.00 | BY6: =Gosforth!CB18 -> 0.00 | BZ6: =Gosforth!CC18 -> 0.00
D7: Class 4 | E7: =Gosforth!H19 -> 0.00 | F7: =Gosforth!I19 -> 0.00 | G7: =Gosforth!J19 -> 0.00 | H7: =Gosforth!K19 -> 0.00 | I7: =Gosforth!L19 -> 0.00 | J7: =Gosforth!M19 -> 0.00 | K7: =Gosforth!N19 -> 0.00 | L7: =Gosforth!O19 -> 0.00 | M7: =Gosforth!P19 -> 0.00 | N7: =Gosforth!Q19 -> 0.00 | O7: =Gosforth!R19 -> 0.00 | P7: =Gosforth!S19 -> 0.00 | Q7: =Gosforth!T19 -> 0.00 | R7: =Gosforth!U19 -> 0.00 | S7: =Gosforth!V19 -> 0.00 | T7: =Gosforth!W19 -> 0.00 | U7: =Gosforth!X19 -> 0.00 | V7: =Gosforth!Y19 -> 0.00 | W7: =Gosforth!Z19 -> 0.00 | X7: =Gosforth!AA19 -> 0.00 | Y7: =Gosforth!AB19 -> 0.00 | Z7: =Gosforth!AC19 -> 0.00 | AA7: =Gosforth!AD19 -> 0.00 | AB7: =Gosforth!AE19 -> 0.00 | AC7: =Gosforth!AF19 -> 0.00 | AD7: =Gosforth!AG19 -> 0.00 | AE7: =Gosforth!AH19 -> 0.00 | AF7: =Gosforth!AI19 -> 0.00 | AG7: =Gosforth!AJ19 -> 0.00 | AH7: =Gosforth!AK19 -> 0.00 | AI7: =Gosforth!AL19 -> 0.00 | AJ7: =Gosforth!AM19 -> 0.00 | AK7: =Gosforth!AN19 -> 0.00 | AL7: =Gosforth!AO19 -> 0.00 | AM7: =Gosforth!AP19 -> 0.00 | AN7: =Gosforth!AQ19 -> 0.00 | AO7: =Gosforth!AR19 -> 0.00 | AP7: =Gosforth!AS19 -> 0.00 | AQ7: =Gosforth!AT19 -> 0.00 | AR7: =Gosforth!AU19 -> 0.00 | AS7: =Gosforth!AV19 -> 0.00 | AT7: =Gosforth!AW19 -> 0.00 | AU7: =Gosforth!AX19 -> 0.00 | AV7: =Gosforth!AY19 -> 0.00 | AW7: =Gosforth!AZ19 -> 0.00 | AX7: =Gosforth!BA19 -> 0.00 | AY7: =Gosforth!BB19 -> 0.00 | AZ7: =Gosforth!BC19 -> 0.00 | BA7: =Gosforth!BD19 -> 0.00 | BB7: =Gosforth!BE19 -> 0.00 | BC7: =Gosforth!BF19 -> 0.00 | BD7: =Gosforth!BG19 -> 0.00 | BE7: =Gosforth!BH19 -> 0.00 | BF7: =Gosforth!BI19 -> 0.00 | BG7: =Gosforth!BJ19 -> 0.00 | BH7: =Gosforth!BK19 -> 0.00 | BI7: =Gosforth!BL19 -> 0.00 | BJ7: =Gosforth!BM19 -> 0.00 | BK7: =Gosforth!BN19 -> 0.00 | BL7: =Gosforth!BO19 -> 0.00 | BM7: =Gosforth!BP19 -> 0.00 | BN7: =Gosforth!BQ19 -> 0.00 | BO7: =Gosforth!BR19 -> 0.00 | BP7: =Gosforth!BS19 -> 0.00 | BQ7: =Gosforth!BT19 -> 0.00 | BR7: =Gosforth!BU19 -> 0.00 | BS7: =Gosforth!BV19 -> 0.00 | BT7: =Gosforth!BW19 -> 0.00 | BU7: =Gosforth!BX19 -> 0.00 | BV7: =Gosforth!BY19 -> 0.00 | BW7: =Gosforth!BZ19 -> 0.00 | BX7: =Gosforth!CA19 -> 0.00 | BY7: =Gosforth!CB19 -> 0.00 | BZ7: =Gosforth!CC19 -> 0.00
B8: Dalpark | D8: Class 1 | E8: =Dalpark!H16 -> 0.00 | F8: =Dalpark!I16 -> 0.00 | G8: =Dalpark!J16 -> 0.00 | H8: =Dalpark!K16 -> 0.00 | I8: =Dalpark!L16 -> 0.00 | J8: =Dalpark!M16 -> 0.00 | K8: =Dalpark!N16 -> 0.00 | L8: =Dalpark!O16 -> 0.00 | M8: =Dalpark!P16 -> 0.00 | N8: =Dalpark!Q16 -> 0.00 | O8: =Dalpark!R16 -> 0.00 | P8: =Dalpark!S16 -> 0.00 | Q8: =Dalpark!T16 -> 0.00 | R8: =Dalpark!U16 -> 0.00 | S8: =Dalpark!V16 -> 0.00 | T8: =Dalpark!W16 -> 0.00 | U8: =Dalpark!X16 -> 0.00 | V8: =Dalpark!Y16 -> 0.00 | W8: =Dalpark!Z16 -> 0.00 | X8: =Dalpark!AA16 -> 0.00 | Y8: =Dalpark!AB16 -> 0.00 | Z8: =Dalpark!AC16 -> 0.00 | AA8: =Dalpark!AD16 -> 0.00 | AB8: =Dalpark!AE16 -> 0.00 | AC8: =Dalpark!AF16 -> 0.00 | AD8: =Dalpark!AG16 -> 0.00 | AE8: =Dalpark!AH16 -> 0.00 | AF8: =Dalpark!AI16 -> 0.00 | AG8: =Dalpark!AJ16 -> 0.00 | AH8: =Dalpark!AK16 -> 0.00 | AI8: =Dalpark!AL16 -> 0.00 | AJ8: =Dalpark!AM16 -> 0.00 | AK8: =Dalpark!AN16 -> 0.00 | AL8: =Dalpark!AO16 -> 0.00 | AM8: =Dalpark!AP16 -> 0.00 | AN8: =Dalpark!AQ16 -> 0.00 | AO8: =Dalpark!AR16 -> 0.00 | AP8: =Dalpark!AS16 -> 0.00 | AQ8: =Dalpark!AT16 -> 0.00 | AR8: =Dalpark!AU16 -> 0.00 | AS8: =Dalpark!AV16 -> 0.00 | AT8: =Dalpark!AW16 -> 0.00 | AU8: =Dalpark!AX16 -> 0.00 | AV8: =Dalpark!AY16 -> 0.00 | AW8: =Dalpark!AZ16 -> 0.00 | AX8: =Dalpark!BA16 -> 0.00 | AY8: =Dalpark!BB16 -> 0.00 | AZ8: =Dalpark!BC16 -> 0.00 | BA8: =Dalpark!BD16 -> 0.00 | BB8: =Dalpark!BE16 -> 0.00 | BC8: =Dalpark!BF16 -> 0.00 | BD8: =Dalpark!BG16 -> 0.00 | BE8: =Dalpark!BH16 -> 0.00 | BF8: =Dalpark!BI16 -> 0.00 | BG8: =Dalpark!BJ16 -> 0.00 | BH8: =Dalpark!BK16 -> 0.00 | BI8: =Dalpark!BL16 -> 0.00 | BJ8: =Dalpark!BM16 -> 0.00 | BK8: =Dalpark!BN16 -> 0.00 | BL8: =Dalpark!BO16 -> 0.00 | BM8: =Dalpark!BP16 -> 0.00 | BN8: =Dalpark!BQ16 -> 0.00 | BO8: =Dalpark!BR16 -> 0.00 | BP8: =Dalpark!BS16 -> 0.00 | BQ8: =Dalpark!BT16 -> 0.00 | BR8: =Dalpark!BU16 -> 0.00 | BS8: =Dalpark!BV16 -> 0.00 | BT8: =Dalpark!BW16 -> 0.00 | BU8: =Dalpark!BX16 -> 0.00 | BV8: =Dalpark!BY16 -> 0.00 | BW8: =Dalpark!BZ16 -> 0.00 | BX8: =Dalpark!CA16 -> 0.00 | BY8: =Dalpark!CB16 -> 0.00 | BZ8: =Dalpark!CC16 -> 0.00
D9: Class 2 | E9: =Dalpark!H17 -> 0.00 | F9: =Dalpark!I17 -> 0.00 | G9: =Dalpark!J17 -> 0.00 | H9: =Dalpark!K17 -> 0.00 | I9: =Dalpark!L17 -> 0.00 | J9: =Dalpark!M17 -> 0.00 | K9: =Dalpark!N17 -> 0.00 | L9: =Dalpark!O17 -> 0.00 | M9: =Dalpark!P17 -> 0.00 | N9: =Dalpark!Q17 -> 0.00 | O9: =Dalpark!R17 -> 0.00 | P9: =Dalpark!S17 -> 0.00 | Q9: =Dalpark!T17 -> 0.00 | R9: =Dalpark!U17 -> 0.00 | S9: =Dalpark!V17 -> 0.00 | T9: =Dalpark!W17 -> 0.00 | U9: =Dalpark!X17 -> 0.00 | V9: =Dalpark!Y17 -> 0.00 | W9: =Dalpark!Z17 -> 0.00 | X9: =Dalpark!AA17 -> 0.00 | Y9: =Dalpark!AB17 -> 0.00 | Z9: =Dalpark!AC17 -> 0.00 | AA9: =Dalpark!AD17 -> 0.00 | AB9: =Dalpark!AE17 -> 0.00 | AC9: =Dalpark!AF17 -> 0.00 | AD9: =Dalpark!AG17 -> 0.00 | AE9: =Dalpark!AH17 -> 0.00 | AF9: =Dalpark!AI17 -> 0.00 | AG9: =Dalpark!AJ17 -> 0.00 | AH9: =Dalpark!AK17 -> 0.00 | AI9: =Dalpark!AL17 -> 0.00 | AJ9: =Dalpark!AM17 -> 0.00 | AK9: =Dalpark!AN17 -> 0.00 | AL9: =Dalpark!AO17 -> 0.00 | AM9: =Dalpark!AP17 -> 0.00 | AN9: =Dalpark!AQ17 -> 0.00 | AO9: =Dalpark!AR17 -> 0.00 | AP9: =Dalpark!AS17 -> 0.00 | AQ9: =Dalpark!AT17 -> 0.00 | AR9: =Dalpark!AU17 -> 0.00 | AS9: =Dalpark!AV17 -> 0.00 | AT9: =Dalpark!AW17 -> 0.00 | AU9: =Dalpark!AX17 -> 0.00 | AV9: =Dalpark!AY17 -> 0.00 | AW9: =Dalpark!AZ17 -> 0.00 | AX9: =Dalpark!BA17 -> 0.00 | AY9: =Dalpark!BB17 -> 0.00 | AZ9: =Dalpark!BC17 -> 0.00 | BA9: =Dalpark!BD17 -> 0.00 | BB9: =Dalpark!BE17 -> 0.00 | BC9: =Dalpark!BF17 -> 0.00 | BD9: =Dalpark!BG17 -> 0.00 | BE9: =Dalpark!BH17 -> 0.00 | BF9: =Dalpark!BI17 -> 0.00 | BG9: =Dalpark!BJ17 -> 0.00 | BH9: =Dalpark!BK17 -> 0.00 | BI9: =Dalpark!BL17 -> 0.00 | BJ9: =Dalpark!BM17 -> 0.00 | BK9: =Dalpark!BN17 -> 0.00 | BL9: =Dalpark!BO17 -> 0.00 | BM9: =Dalpark!BP17 -> 0.00 | BN9: =Dalpark!BQ17 -> 0.00 | BO9: =Dalpark!BR17 -> 0.00 | BP9: =Dalpark!BS17 -> 0.00 | BQ9: =Dalpark!BT17 -> 0.00 | BR9: =Dalpark!BU17 -> 0.00 | BS9: =Dalpark!BV17 -> 0.00 | BT9: =Dalpark!BW17 -> 0.00 | BU9: =Dalpark!BX17 -> 0.00 | BV9: =Dalpark!BY17 -> 0.00 | BW9: =Dalpark!BZ17 -> 0.00 | BX9: =Dalpark!CA17 -> 0.00 | BY9: =Dalpark!CB17 -> 0.00 | BZ9: =Dalpark!CC17 -> 0.00
D10: Class 3 | E10: =Dalpark!H18 -> 0.00 | F10: =Dalpark!I18 -> 0.00 | G10: =Dalpark!J18 -> 0.00 | H10: =Dalpark!K18 -> 0.00 | I10: =Dalpark!L18 -> 0.00 | J10: =Dalpark!M18 -> 0.00 | K10: =Dalpark!N18 -> 0.00 | L10: =Dalpark!O18 -> 0.00 | M10: =Dalpark!P18 -> 0.00 | N10: =Dalpark!Q18 -> 0.00 | O10: =Dalpark!R18 -> 0.00 | P10: =Dalpark!S18 -> 0.00 | Q10: =Dalpark!T18 -> 0.00 | R10: =Dalpark!U18 -> 0.00 | S10: =Dalpark!V18 -> 0.00 | T10: =Dalpark!W18 -> 0.00 | U10: =Dalpark!X18 -> 0.00 | V10: =Dalpark!Y18 -> 0.00 | W10: =Dalpark!Z18 -> 0.00 | X10: =Dalpark!AA18 -> 0.00 | Y10: =Dalpark!AB18 -> 0.00 | Z10: =Dalpark!AC18 -> 0.00 | AA10: =Dalpark!AD18 -> 0.00 | AB10: =Dalpark!AE18 -> 0.00 | AC10: =Dalpark!AF18 -> 0.00 | AD10: =Dalpark!AG18 -> 0.00 | AE10: =Dalpark!AH18 -> 0.00 | AF10: =Dalpark!AI18 -> 0.00 | AG10: =Dalpark!AJ18 -> 0.00 | AH10: =Dalpark!AK18 -> 0.00 | AI10: =Dalpark!AL18 -> 0.00 | AJ10: =Dalpark!AM18 -> 0.00 | AK10: =Dalpark!AN18 -> 0.00 | AL10: =Dalpark!AO18 -> 0.00 | AM10: =Dalpark!AP18 -> 0.00 | AN10: =Dalpark!AQ18 -> 0.00 | AO10: =Dalpark!AR18 -> 0.00 | AP10: =Dalpark!AS18 -> 0.00 | AQ10: =Dalpark!AT18 -> 0.00 | AR10: =Dalpark!AU18 -> 0.00 | AS10: =Dalpark!AV18 -> 0.00 | AT10: =Dalpark!AW18 -> 0.00 | AU10: =Dalpark!AX18 -> 0.00 | AV10: =Dalpark!AY18 -> 0.00 | AW10: =Dalpark!AZ18 -> 0.00 | AX10: =Dalpark!BA18 -> 0.00 | AY10: =Dalpark!BB18 -> 0.00 | AZ10: =Dalpark!BC18 -> 0.00 | BA10: =Dalpark!BD18 -> 0.00 | BB10: =Dalpark!BE18 -> 0.00 | BC10: =Dalpark!BF18 -> 0.00 | BD10: =Dalpark!BG18 -> 0.00 | BE10: =Dalpark!BH18 -> 0.00 | BF10: =Dalpark!BI18 -> 0.00 | BG10: =Dalpark!BJ18 -> 0.00 | BH10: =Dalpark!BK18 -> 0.00 | BI10: =Dalpark!BL18 -> 0.00 | BJ10: =Dalpark!BM18 -> 0.00 | BK10: =Dalpark!BN18 -> 0.00 | BL10: =Dalpark!BO18 -> 0.00 | BM10: =Dalpark!BP18 -> 0.00 | BN10: =Dalpark!BQ18 -> 0.00 | BO10: =Dalpark!BR18 -> 0.00 | BP10: =Dalpark!BS18 -> 0.00 | BQ10: =Dalpark!BT18 -> 0.00 | BR10: =Dalpark!BU18 -> 0.00 | BS10: =Dalpark!BV18 -> 0.00 | BT10: =Dalpark!BW18 -> 0.00 | BU10: =Dalpark!BX18 -> 0.00 | BV10: =Dalpark!BY18 -> 0.00 | BW10: =Dalpark!BZ18 -> 0.00 | BX10: =Dalpark!CA18 -> 0.00 | BY10: =Dalpark!CB18 -> 0.00 | BZ10: =Dalpark!CC18 -> 0.00
D11: Class 4 | E11: =Dalpark!H19 -> 0.00 | F11: =Dalpark!I19 -> 0.00 | G11: =Dalpark!J19 -> 0.00 | H11: =Dalpark!K19 -> 0.00 | I11: =Dalpark!L19 -> 0.00 | J11: =Dalpark!M19 -> 0.00 | K11: =Dalpark!N19 -> 0.00 | L11: =Dalpark!O19 -> 0.00 | M11: =Dalpark!P19 -> 0.00 | N11: =Dalpark!Q19 -> 0.00 | O11: =Dalpark!R19 -> 0.00 | P11: =Dalpark!S19 -> 0.00 | Q11: =Dalpark!T19 -> 0.00 | R11: =Dalpark!U19 -> 0.00 | S11: =Dalpark!V19 -> 0.00 | T11: =Dalpark!W19 -> 0.00 | U11: =Dalpark!X19 -> 0.00 | V11: =Dalpark!Y19 -> 0.00 | W11: =Dalpark!Z19 -> 0.00 | X11: =Dalpark!AA19 -> 0.00 | Y11: =Dalpark!AB19 -> 0.00 | Z11: =Dalpark!AC19 -> 0.00 | AA11: =Dalpark!AD19 -> 0.00 | AB11: =Dalpark!AE19 -> 0.00 | AC11: =Dalpark!AF19 -> 0.00 | AD11: =Dalpark!AG19 -> 0.00 | AE11: =Dalpark!AH19 -> 0.00 | AF11: =Dalpark!AI19 -> 0.00 | AG11: =Dalpark!AJ19 -> 0.00 | AH11: =Dalpark!AK19 -> 0.00 | AI11: =Dalpark!AL19 -> 0.00 | AJ11: =Dalpark!AM19 -> 0.00 | AK11: =Dalpark!AN19 -> 0.00 | AL11: =Dalpark!AO19 -> 0.00 | AM11: =Dalpark!AP19 -> 0.00 | AN11: =Dalpark!AQ19 -> 0.00 | AO11: =Dalpark!AR19 -> 0.00 | AP11: =Dalpark!AS19 -> 0.00 | AQ11: =Dalpark!AT19 -> 0.00 | AR11: =Dalpark!AU19 -> 0.00 | AS11: =Dalpark!AV19 -> 0.00 | AT11: =Dalpark!AW19 -> 0.00 | AU11: =Dalpark!AX19 -> 0.00 | AV11: =Dalpark!AY19 -> 0.00 | AW11: =Dalpark!AZ19 -> 0.00 | AX11: =Dalpark!BA19 -> 0.00 | AY11: =Dalpark!BB19 -> 0.00 | AZ11: =Dalpark!BC19 -> 0.00 | BA11: =Dalpark!BD19 -> 0.00 | BB11: =Dalpark!BE19 -> 0.00 | BC11: =Dalpark!BF19 -> 0.00 | BD11: =Dalpark!BG19 -> 0.00 | BE11: =Dalpark!BH19 -> 0.00 | BF11: =Dalpark!BI19 -> 0.00 | BG11: =Dalpark!BJ19 -> 0.00 | BH11: =Dalpark!BK19 -> 0.00 | BI11: =Dalpark!BL19 -> 0.00 | BJ11: =Dalpark!BM19 -> 0.00 | BK11: =Dalpark!BN19 -> 0.00 | BL11: =Dalpark!BO19 -> 0.00 | BM11: =Dalpark!BP19 -> 0.00 | BN11: =Dalpark!BQ19 -> 0.00 | BO11: =Dalpark!BR19 -> 0.00 | BP11: =Dalpark!BS19 -> 0.00 | BQ11: =Dalpark!BT19 -> 0.00 | BR11: =Dalpark!BU19 -> 0.00 | BS11: =Dalpark!BV19 -> 0.00 | BT11: =Dalpark!BW19 -> 0.00 | BU11: =Dalpark!BX19 -> 0.00 | BV11: =Dalpark!BY19 -> 0.00 | BW11: =Dalpark!BZ19 -> 0.00 | BX11: =Dalpark!CA19 -> 0.00 | BY11: =Dalpark!CB19 -> 0.00 | BZ11: =Dalpark!CC19 -> 0.00
B12: Leandra | D12: Class 1 | E12: =Leandra!H16 -> 0.00 | F12: =Leandra!I16 -> 0.00 | G12: =Leandra!J16 -> 0.00 | H12: =Leandra!K16 -> 0.00 | I12: =Leandra!L16 -> 0.00 | J12: =Leandra!M16 -> 0.00 | K12: =Leandra!N16 -> 0.00 | L12: =Leandra!O16 -> 0.00 | M12: =Leandra!P16 -> 0.00 | N12: =Leandra!Q16 -> 0.00 | O12: =Leandra!R16 -> 0.00 | P12: =Leandra!S16 -> 0.00 | Q12: =Leandra!T16 -> 0.00 | R12: =Leandra!U16 -> 0.00 | S12: =Leandra!V16 -> 0.00 | T12: =Leandra!W16 -> 0.00 | U12: =Leandra!X16 -> 0.00 | V12: =Leandra!Y16 -> 0.00 | W12: =Leandra!Z16 -> 0.00 | X12: =Leandra!AA16 -> 0.00 | Y12: =Leandra!AB16 -> 0.00 | Z12: =Leandra!AC16 -> 0.00 | AA12: =Leandra!AD16 -> 0.00 | AB12: =Leandra!AE16 -> 0.00 | AC12: =Leandra!AF16 -> 0.00 | AD12: =Leandra!AG16 -> 0.00 | AE12: =Leandra!AH16 -> 0.00 | AF12: =Leandra!AI16 -> 0.00 | AG12: =Leandra!AJ16 -> 0.00 | AH12: =Leandra!AK16 -> 0.00 | AI12: =Leandra!AL16 -> 0.00 | AJ12: =Leandra!AM16 -> 0.00 | AK12: =Leandra!AN16 -> 0.00 | AL12: =Leandra!AO16 -> 0.00 | AM12: =Leandra!AP16 -> 0.00 | AN12: =Leandra!AQ16 -> 0.00 | AO12: =Leandra!AR16 -> 0.00 | AP12: =Leandra!AS16 -> 0.00 | AQ12: =Leandra!AT16 -> 0.00 | AR12: =Leandra!AU16 -> 0.00 | AS12: =Leandra!AV16 -> 0.00 | AT12: =Leandra!AW16 -> 0.00 | AU12: =Leandra!AX16 -> 0.00 | AV12: =Leandra!AY16 -> 0.00 | AW12: =Leandra!AZ16 -> 0.00 | AX12: =Leandra!BA16 -> 0.00 | AY12: =Leandra!BB16 -> 0.00 | AZ12: =Leandra!BC16 -> 0.00 | BA12: =Leandra!BD16 -> 0.00 | BB12: =Leandra!BE16 -> 0.00 | BC12: =Leandra!BF16 -> 0.00 | BD12: =Leandra!BG16 -> 0.00 | BE12: =Leandra!BH16 -> 0.00 | BF12: =Leandra!BI16 -> 0.00 | BG12: =Leandra!BJ16 -> 0.00 | BH12: =Leandra!BK16 -> 0.00 | BI12: =Leandra!BL16 -> 0.00 | BJ12: =Leandra!BM16 -> 0.00 | BK12: =Leandra!BN16 -> 0.00 | BL12: =Leandra!BO16 -> 0.00 | BM12: =Leandra!BP16 -> 0.00 | BN12: =Leandra!BQ16 -> 0.00 | BO12: =Leandra!BR16 -> 0.00 | BP12: =Leandra!BS16 -> 0.00 | BQ12: =Leandra!BT16 -> 0.00 | BR12: =Leandra!BU16 -> 0.00 | BS12: =Leandra!BV16 -> 0.00 | BT12: =Leandra!BW16 -> 0.00 | BU12: =Leandra!BX16 -> 0.00 | BV12: =Leandra!BY16 -> 0.00 | BW12: =Leandra!BZ16 -> 0.00 | BX12: =Leandra!CA16 -> 0.00 | BY12: =Leandra!CB16 -> 0.00 | BZ12: =Leandra!CC16 -> 0.00
D13: Class 2 | E13: =Leandra!H17 -> 0.00 | F13: =Leandra!I17 -> 0.00 | G13: =Leandra!J17 -> 0.00 | H13: =Leandra!K17 -> 0.00 | I13: =Leandra!L17 -> 0.00 | J13: =Leandra!M17 -> 0.00 | K13: =Leandra!N17 -> 0.00 | L13: =Leandra!O17 -> 0.00 | M13: =Leandra!P17 -> 0.00 | N13: =Leandra!Q17 -> 0.00 | O13: =Leandra!R17 -> 0.00 | P13: =Leandra!S17 -> 0.00 | Q13: =Leandra!T17 -> 0.00 | R13: =Leandra!U17 -> 0.00 | S13: =Leandra!V17 -> 0.00 | T13: =Leandra!W17 -> 0.00 | U13: =Leandra!X17 -> 0.00 | V13: =Leandra!Y17 -> 0.00 | W13: =Leandra!Z17 -> 0.00 | X13: =Leandra!AA17 -> 0.00 | Y13: =Leandra!AB17 -> 0.00 | Z13: =Leandra!AC17 -> 0.00 | AA13: =Leandra!AD17 -> 0.00 | AB13: =Leandra!AE17 -> 0.00 | AC13: =Leandra!AF17 -> 0.00 | AD13: =Leandra!AG17 -> 0.00 | AE13: =Leandra!AH17 -> 0.00 | AF13: =Leandra!AI17 -> 0.00 | AG13: =Leandra!AJ17 -> 0.00 | AH13: =Leandra!AK17 -> 0.00 | AI13: =Leandra!AL17 -> 0.00 | AJ13: =Leandra!AM17 -> 0.00 | AK13: =Leandra!AN17 -> 0.00 | AL13: =Leandra!AO17 -> 0.00 | AM13: =Leandra!AP17 -> 0.00 | AN13: =Leandra!AQ17 -> 0.00 | AO13: =Leandra!AR17 -> 0.00 | AP13: =Leandra!AS17 -> 0.00 | AQ13: =Leandra!AT17 -> 0.00 | AR13: =Leandra!AU17 -> 0.00 | AS13: =Leandra!AV17 -> 0.00 | AT13: =Leandra!AW17 -> 0.00 | AU13: =Leandra!AX17 -> 0.00 | AV13: =Leandra!AY17 -> 0.00 | AW13: =Leandra!AZ17 -> 0.00 | AX13: =Leandra!BA17 -> 0.00 | AY13: =Leandra!BB17 -> 0.00 | AZ13: =Leandra!BC17 -> 0.00 | BA13: =Leandra!BD17 -> 0.00 | BB13: =Leandra!BE17 -> 0.00 | BC13: =Leandra!BF17 -> 0.00 | BD13: =Leandra!BG17 -> 0.00 | BE13: =Leandra!BH17 -> 0.00 | BF13: =Leandra!BI17 -> 0.00 | BG13: =Leandra!BJ17 -> 0.00 | BH13: =Leandra!BK17 -> 0.00 | BI13: =Leandra!BL17 -> 0.00 | BJ13: =Leandra!BM17 -> 0.00 | BK13: =Leandra!BN17 -> 0.00 | BL13: =Leandra!BO17 -> 0.00 | BM13: =Leandra!BP17 -> 0.00 | BN13: =Leandra!BQ17 -> 0.00 | BO13: =Leandra!BR17 -> 0.00 | BP13: =Leandra!BS17 -> 0.00 | BQ13: =Leandra!BT17 -> 0.00 | BR13: =Leandra!BU17 -> 0.00 | BS13: =Leandra!BV17 -> 0.00 | BT13: =Leandra!BW17 -> 0.00 | BU13: =Leandra!BX17 -> 0.00 | BV13: =Leandra!BY17 -> 0.00 | BW13: =Leandra!BZ17 -> 0.00 | BX13: =Leandra!CA17 -> 0.00 | BY13: =Leandra!CB17 -> 0.00 | BZ13: =Leandra!CC17 -> 0.00
D14: Class 3 | E14: =Leandra!H18 -> 0.00 | F14: =Leandra!I18 -> 0.00 | G14: =Leandra!J18 -> 0.00 | H14: =Leandra!K18 -> 0.00 | I14: =Leandra!L18 -> 0.00 | J14: =Leandra!M18 -> 0.00 | K14: =Leandra!N18 -> 0.00 | L14: =Leandra!O18 -> 0.00 | M14: =Leandra!P18 -> 0.00 | N14: =Leandra!Q18 -> 0.00 | O14: =Leandra!R18 -> 0.00 | P14: =Leandra!S18 -> 0.00 | Q14: =Leandra!T18 -> 0.00 | R14: =Leandra!U18 -> 0.00 | S14: =Leandra!V18 -> 0.00 | T14: =Leandra!W18 -> 0.00 | U14: =Leandra!X18 -> 0.00 | V14: =Leandra!Y18 -> 0.00 | W14: =Leandra!Z18 -> 0.00 | X14: =Leandra!AA18 -> 0.00 | Y14: =Leandra!AB18 -> 0.00 | Z14: =Leandra!AC18 -> 0.00 | AA14: =Leandra!AD18 -> 0.00 | AB14: =Leandra!AE18 -> 0.00 | AC14: =Leandra!AF18 -> 0.00 | AD14: =Leandra!AG18 -> 0.00 | AE14: =Leandra!AH18 -> 0.00 | AF14: =Leandra!AI18 -> 0.00 | AG14: =Leandra!AJ18 -> 0.00 | AH14: =Leandra!AK18 -> 0.00 | AI14: =Leandra!AL18 -> 0.00 | AJ14: =Leandra!AM18 -> 0.00 | AK14: =Leandra!AN18 -> 0.00 | AL14: =Leandra!AO18 -> 0.00 | AM14: =Leandra!AP18 -> 0.00 | AN14: =Leandra!AQ18 -> 0.00 | AO14: =Leandra!AR18 -> 0.00 | AP14: =Leandra!AS18 -> 0.00 | AQ14: =Leandra!AT18 -> 0.00 | AR14: =Leandra!AU18 -> 0.00 | AS14: =Leandra!AV18 -> 0.00 | AT14: =Leandra!AW18 -> 0.00 | AU14: =Leandra!AX18 -> 0.00 | AV14: =Leandra!AY18 -> 0.00 | AW14: =Leandra!AZ18 -> 0.00 | AX14: =Leandra!BA18 -> 0.00 | AY14: =Leandra!BB18 -> 0.00 | AZ14: =Leandra!BC18 -> 0.00 | BA14: =Leandra!BD18 -> 0.00 | BB14: =Leandra!BE18 -> 0.00 | BC14: =Leandra!BF18 -> 0.00 | BD14: =Leandra!BG18 -> 0.00 | BE14: =Leandra!BH18 -> 0.00 | BF14: =Leandra!BI18 -> 0.00 | BG14: =Leandra!BJ18 -> 0.00 | BH14: =Leandra!BK18 -> 0.00 | BI14: =Leandra!BL18 -> 0.00 | BJ14: =Leandra!BM18 -> 0.00 | BK14: =Leandra!BN18 -> 0.00 | BL14: =Leandra!BO18 -> 0.00 | BM14: =Leandra!BP18 -> 0.00 | BN14: =Leandra!BQ18 -> 0.00 | BO14: =Leandra!BR18 -> 0.00 | BP14: =Leandra!BS18 -> 0.00 | BQ14: =Leandra!BT18 -> 0.00 | BR14: =Leandra!BU18 -> 0.00 | BS14: =Leandra!BV18 -> 0.00 | BT14: =Leandra!BW18 -> 0.00 | BU14: =Leandra!BX18 -> 0.00 | BV14: =Leandra!BY18 -> 0.00 | BW14: =Leandra!BZ18 -> 0.00 | BX14: =Leandra!CA18 -> 0.00 | BY14: =Leandra!CB18 -> 0.00 | BZ14: =Leandra!CC18 -> 0.00
D15: Class 4 | E15: =Leandra!H19 -> 0.00 | F15: =Leandra!I19 -> 0.00 | G15: =Leandra!J19 -> 0.00 | H15: =Leandra!K19 -> 0.00 | I15: =Leandra!L19 -> 0.00 | J15: =Leandra!M19 -> 0.00 | K15: =Leandra!N19 -> 0.00 | L15: =Leandra!O19 -> 0.00 | M15: =Leandra!P19 -> 0.00 | N15: =Leandra!Q19 -> 0.00 | O15: =Leandra!R19 -> 0.00 | P15: =Leandra!S19 -> 0.00 | Q15: =Leandra!T19 -> 0.00 | R15: =Leandra!U19 -> 0.00 | S15: =Leandra!V19 -> 0.00 | T15: =Leandra!W19 -> 0.00 | U15: =Leandra!X19 -> 0.00 | V15: =Leandra!Y19 -> 0.00 | W15: =Leandra!Z19 -> 0.00 | X15: =Leandra!AA19 -> 0.00 | Y15: =Leandra!AB19 -> 0.00 | Z15: =Leandra!AC19 -> 0.00 | AA15: =Leandra!AD19 -> 0.00 | AB15: =Leandra!AE19 -> 0.00 | AC15: =Leandra!AF19 -> 0.00 | AD15: =Leandra!AG19 -> 0.00 | AE15: =Leandra!AH19 -> 0.00 | AF15: =Leandra!AI19 -> 0.00 | AG15: =Leandra!AJ19 -> 0.00 | AH15: =Leandra!AK19 -> 0.00 | AI15: =Leandra!AL19 -> 0.00 | AJ15: =Leandra!AM19 -> 0.00 | AK15: =Leandra!AN19 -> 0.00 | AL15: =Leandra!AO19 -> 0.00 | AM15: =Leandra!AP19 -> 0.00 | AN15: =Leandra!AQ19 -> 0.00 | AO15: =Leandra!AR19 -> 0.00 | AP15: =Leandra!AS19 -> 0.00 | AQ15: =Leandra!AT19 -> 0.00 | AR15: =Leandra!AU19 -> 0.00 | AS15: =Leandra!AV19 -> 0.00 | AT15: =Leandra!AW19 -> 0.00 | AU15: =Leandra!AX19 -> 0.00 | AV15: =Leandra!AY19 -> 0.00 | AW15: =Leandra!AZ19 -> 0.00 | AX15: =Leandra!BA19 -> 0.00 | AY15: =Leandra!BB19 -> 0.00 | AZ15: =Leandra!BC19 -> 0.00 | BA15: =Leandra!BD19 -> 0.00 | BB15: =Leandra!BE19 -> 0.00 | BC15: =Leandra!BF19 -> 0.00 | BD15: =Leandra!BG19 -> 0.00 | BE15: =Leandra!BH19 -> 0.00 | BF15: =Leandra!BI19 -> 0.00 | BG15: =Leandra!BJ19 -> 0.00 | BH15: =Leandra!BK19 -> 0.00 | BI15: =Leandra!BL19 -> 0.00 | BJ15: =Leandra!BM19 -> 0.00 | BK15: =Leandra!BN19 -> 0.00 | BL15: =Leandra!BO19 -> 0.00 | BM15: =Leandra!BP19 -> 0.00 | BN15: =Leandra!BQ19 -> 0.00 | BO15: =Leandra!BR19 -> 0.00 | BP15: =Leandra!BS19 -> 0.00 | BQ15: =Leandra!BT19 -> 0.00 | BR15: =Leandra!BU19 -> 0.00 | BS15: =Leandra!BV19 -> 0.00 | BT15: =Leandra!BW19 -> 0.00 | BU15: =Leandra!BX19 -> 0.00 | BV15: =Leandra!BY19 -> 0.00 | BW15: =Leandra!BZ19 -> 0.00 | BX15: =Leandra!CA19 -> 0.00 | BY15: =Leandra!CB19 -> 0.00 | BZ15: =Leandra!CC19 -> 0.00
B16: Trichardt | D16: Class 1 | E16: =+Trichardt!H16 -> 0.00 | F16: =+Trichardt!I16 -> 0.00 | G16: =+Trichardt!J16 -> 0.00 | H16: =+Trichardt!K16 -> 0.00 | I16: =+Trichardt!L16 -> 0.00 | J16: =+Trichardt!M16 -> 0.00 | K16: =+Trichardt!N16 -> 0.00 | L16: =+Trichardt!O16 -> 0.00 | M16: =+Trichardt!P16 -> 0.00 | N16: =+Trichardt!Q16 -> 0.00 | O16: =+Trichardt!R16 -> 0.00 | P16: =+Trichardt!S16 -> 0.00 | Q16: =+Trichardt!T16 -> 0.00 | R16: =+Trichardt!U16 -> 0.00 | S16: =+Trichardt!V16 -> 0.00 | T16: =+Trichardt!W16 -> 0.00 | U16: =+Trichardt!X16 -> 0.00 | V16: =+Trichardt!Y16 -> 0.00 | W16: =+Trichardt!Z16 -> 0.00 | X16: =+Trichardt!AA16 -> 0.00 | Y16: =+Trichardt!AB16 -> 0.00 | Z16: =+Trichardt!AC16 -> 0.00 | AA16: =+Trichardt!AD16 -> 0.00 | AB16: =+Trichardt!AE16 -> 0.00 | AC16: =+Trichardt!AF16 -> 0.00 | AD16: =+Trichardt!AG16 -> 0.00 | AE16: =+Trichardt!AH16 -> 0.00 | AF16: =+Trichardt!AI16 -> 0.00 | AG16: =+Trichardt!AJ16 -> 0.00 | AH16: =+Trichardt!AK16 -> 0.00 | AI16: =+Trichardt!AL16 -> 0.00 | AJ16: =+Trichardt!AM16 -> 0.00 | AK16: =+Trichardt!AN16 -> 0.00 | AL16: =+Trichardt!AO16 -> 0.00 | AM16: =+Trichardt!AP16 -> 0.00 | AN16: =+Trichardt!AQ16 -> 0.00 | AO16: =+Trichardt!AR16 -> 0.00 | AP16: =+Trichardt!AS16 -> 0.00 | AQ16: =+Trichardt!AT16 -> 0.00 | AR16: =+Trichardt!AU16 -> 0.00 | AS16: =+Trichardt!AV16 -> 0.00 | AT16: =+Trichardt!AW16 -> 0.00 | AU16: =+Trichardt!AX16 -> 0.00 | AV16: =+Trichardt!AY16 -> 0.00 | AW16: =+Trichardt!AZ16 -> 0.00 | AX16: =+Trichardt!BA16 -> 0.00 | AY16: =+Trichardt!BB16 -> 0.00 | AZ16: =+Trichardt!BC16 -> 0.00 | BA16: =+Trichardt!BD16 -> 0.00 | BB16: =+Trichardt!BE16 -> 0.00 | BC16: =+Trichardt!BF16 -> 0.00 | BD16: =+Trichardt!BG16 -> 0.00 | BE16: =+Trichardt!BH16 -> 0.00 | BF16: =+Trichardt!BI16 -> 0.00 | BG16: =+Trichardt!BJ16 -> 0.00 | BH16: =+Trichardt!BK16 -> 0.00 | BI16: =+Trichardt!BL16 -> 0.00 | BJ16: =+Trichardt!BM16 -> 0.00 | BK16: =+Trichardt!BN16 -> 0.00 | BL16: =+Trichardt!BO16 -> 0.00 | BM16: =+Trichardt!BP16 -> 0.00 | BN16: =+Trichardt!BQ16 -> 0.00 | BO16: =+Trichardt!BR16 -> 0.00 | BP16: =+Trichardt!BS16 -> 0.00 | BQ16: =+Trichardt!BT16 -> 0.00 | BR16: =+Trichardt!BU16 -> 0.00 | BS16: =+Trichardt!BV16 -> 0.00 | BT16: =+Trichardt!BW16 -> 0.00 | BU16: =+Trichardt!BX16 -> 0.00 | BV16: =+Trichardt!BY16 -> 0.00 | BW16: =+Trichardt!BZ16 -> 0.00 | BX16: =+Trichardt!CA16 -> 0.00 | BY16: =+Trichardt!CB16 -> 0.00 | BZ16: =+Trichardt!CC16 -> 0.00
D17: Class 2 | E17: =+Trichardt!H17 -> 0.00 | F17: =+Trichardt!I17 -> 0.00 | G17: =+Trichardt!J17 -> 0.00 | H17: =+Trichardt!K17 -> 0.00 | I17: =+Trichardt!L17 -> 0.00 | J17: =+Trichardt!M17 -> 0.00 | K17: =+Trichardt!N17 -> 0.00 | L17: =+Trichardt!O17 -> 0.00 | M17: =+Trichardt!P17 -> 0.00 | N17: =+Trichardt!Q17 -> 0.00 | O17: =+Trichardt!R17 -> 0.00 | P17: =+Trichardt!S17 -> 0.00 | Q17: =+Trichardt!T17 -> 0.00 | R17: =+Trichardt!U17 -> 0.00 | S17: =+Trichardt!V17 -> 0.00 | T17: =+Trichardt!W17 -> 0.00 | U17: =+Trichardt!X17 -> 0.00 | V17: =+Trichardt!Y17 -> 0.00 | W17: =+Trichardt!Z17 -> 0.00 | X17: =+Trichardt!AA17 -> 0.00 | Y17: =+Trichardt!AB17 -> 0.00 | Z17: =+Trichardt!AC17 -> 0.00 | AA17: =+Trichardt!AD17 -> 0.00 | AB17: =+Trichardt!AE17 -> 0.00 | AC17: =+Trichardt!AF17 -> 0.00 | AD17: =+Trichardt!AG17 -> 0.00 | AE17: =+Trichardt!AH17 -> 0.00 | AF17: =+Trichardt!AI17 -> 0.00 | AG17: =+Trichardt!AJ17 -> 0.00 | AH17: =+Trichardt!AK17 -> 0.00 | AI17: =+Trichardt!AL17 -> 0.00 | AJ17: =+Trichardt!AM17 -> 0.00 | AK17: =+Trichardt!AN17 -> 0.00 | AL17: =+Trichardt!AO17 -> 0.00 | AM17: =+Trichardt!AP17 -> 0.00 | AN17: =+Trichardt!AQ17 -> 0.00 | AO17: =+Trichardt!AR17 -> 0.00 | AP17: =+Trichardt!AS17 -> 0.00 | AQ17: =+Trichardt!AT17 -> 0.00 | AR17: =+Trichardt!AU17 -> 0.00 | AS17: =+Trichardt!AV17 -> 0.00 | AT17: =+Trichardt!AW17 -> 0.00 | AU17: =+Trichardt!AX17 -> 0.00 | AV17: =+Trichardt!AY17 -> 0.00 | AW17: =+Trichardt!AZ17 -> 0.00 | AX17: =+Trichardt!BA17 -> 0.00 | AY17: =+Trichardt!BB17 -> 0.00 | AZ17: =+Trichardt!BC17 -> 0.00 | BA17: =+Trichardt!BD17 -> 0.00 | BB17: =+Trichardt!BE17 -> 0.00 | BC17: =+Trichardt!BF17 -> 0.00 | BD17: =+Trichardt!BG17 -> 0.00 | BE17: =+Trichardt!BH17 -> 0.00 | BF17: =+Trichardt!BI17 -> 0.00 | BG17: =+Trichardt!BJ17 -> 0.00 | BH17: =+Trichardt!BK17 -> 0.00 | BI17: =+Trichardt!BL17 -> 0.00 | BJ17: =+Trichardt!BM17 -> 0.00 | BK17: =+Trichardt!BN17 -> 0.00 | BL17: =+Trichardt!BO17 -> 0.00 | BM17: =+Trichardt!BP17 -> 0.00 | BN17: =+Trichardt!BQ17 -> 0.00 | BO17: =+Trichardt!BR17 -> 0.00 | BP17: =+Trichardt!BS17 -> 0.00 | BQ17: =+Trichardt!BT17 -> 0.00 | BR17: =+Trichardt!BU17 -> 0.00 | BS17: =+Trichardt!BV17 -> 0.00 | BT17: =+Trichardt!BW17 -> 0.00 | BU17: =+Trichardt!BX17 -> 0.00 | BV17: =+Trichardt!BY17 -> 0.00 | BW17: =+Trichardt!BZ17 -> 0.00 | BX17: =+Trichardt!CA17 -> 0.00 | BY17: =+Trichardt!CB17 -> 0.00 | BZ17: =+Trichardt!CC17 -> 0.00
D18: Class 3 | E18: =+Trichardt!H18 -> 0.00 | F18: =+Trichardt!I18 -> 0.00 | G18: =+Trichardt!J18 -> 0.00 | H18: =+Trichardt!K18 -> 0.00 | I18: =+Trichardt!L18 -> 0.00 | J18: =+Trichardt!M18 -> 0.00 | K18: =+Trichardt!N18 -> 0.00 | L18: =+Trichardt!O18 -> 0.00 | M18: =+Trichardt!P18 -> 0.00 | N18: =+Trichardt!Q18 -> 0.00 | O18: =+Trichardt!R18 -> 0.00 | P18: =+Trichardt!S18 -> 0.00 | Q18: =+Trichardt!T18 -> 0.00 | R18: =+Trichardt!U18 -> 0.00 | S18: =+Trichardt!V18 -> 0.00 | T18: =+Trichardt!W18 -> 0.00 | U18: =+Trichardt!X18 -> 0.00 | V18: =+Trichardt!Y18 -> 0.00 | W18: =+Trichardt!Z18 -> 0.00 | X18: =+Trichardt!AA18 -> 0.00 | Y18: =+Trichardt!AB18 -> 0.00 | Z18: =+Trichardt!AC18 -> 0.00 | AA18: =+Trichardt!AD18 -> 0.00 | AB18: =+Trichardt!AE18 -> 0.00 | AC18: =+Trichardt!AF18 -> 0.00 | AD18: =+Trichardt!AG18 -> 0.00 | AE18: =+Trichardt!AH18 -> 0.00 | AF18: =+Trichardt!AI18 -> 0.00 | AG18: =+Trichardt!AJ18 -> 0.00 | AH18: =+Trichardt!AK18 -> 0.00 | AI18: =+Trichardt!AL18 -> 0.00 | AJ18: =+Trichardt!AM18 -> 0.00 | AK18: =+Trichardt!AN18 -> 0.00 | AL18: =+Trichardt!AO18 -> 0.00 | AM18: =+Trichardt!AP18 -> 0.00 | AN18: =+Trichardt!AQ18 -> 0.00 | AO18: =+Trichardt!AR18 -> 0.00 | AP18: =+Trichardt!AS18 -> 0.00 | AQ18: =+Trichardt!AT18 -> 0.00 | AR18: =+Trichardt!AU18 -> 0.00 | AS18: =+Trichardt!AV18 -> 0.00 | AT18: =+Trichardt!AW18 -> 0.00 | AU18: =+Trichardt!AX18 -> 0.00 | AV18: =+Trichardt!AY18 -> 0.00 | AW18: =+Trichardt!AZ18 -> 0.00 | AX18: =+Trichardt!BA18 -> 0.00 | AY18: =+Trichardt!BB18 -> 0.00 | AZ18: =+Trichardt!BC18 -> 0.00 | BA18: =+Trichardt!BD18 -> 0.00 | BB18: =+Trichardt!BE18 -> 0.00 | BC18: =+Trichardt!BF18 -> 0.00 | BD18: =+Trichardt!BG18 -> 0.00 | BE18: =+Trichardt!BH18 -> 0.00 | BF18: =+Trichardt!BI18 -> 0.00 | BG18: =+Trichardt!BJ18 -> 0.00 | BH18: =+Trichardt!BK18 -> 0.00 | BI18: =+Trichardt!BL18 -> 0.00 | BJ18: =+Trichardt!BM18 -> 0.00 | BK18: =+Trichardt!BN18 -> 0.00 | BL18: =+Trichardt!BO18 -> 0.00 | BM18: =+Trichardt!BP18 -> 0.00 | BN18: =+Trichardt!BQ18 -> 0.00 | BO18: =+Trichardt!BR18 -> 0.00 | BP18: =+Trichardt!BS18 -> 0.00 | BQ18: =+Trichardt!BT18 -> 0.00 | BR18: =+Trichardt!BU18 -> 0.00 | BS18: =+Trichardt!BV18 -> 0.00 | BT18: =+Trichardt!BW18 -> 0.00 | BU18: =+Trichardt!BX18 -> 0.00 | BV18: =+Trichardt!BY18 -> 0.00 | BW18: =+Trichardt!BZ18 -> 0.00 | BX18: =+Trichardt!CA18 -> 0.00 | BY18: =+Trichardt!CB18 -> 0.00 | BZ18: =+Trichardt!CC18 -> 0.00
D19: Class 4 | E19: =+Trichardt!H19 -> 0.00 | F19: =+Trichardt!I19 -> 0.00 | G19: =+Trichardt!J19 -> 0.00 | H19: =+Trichardt!K19 -> 0.00 | I19: =+Trichardt!L19 -> 0.00 | J19: =+Trichardt!M19 -> 0.00 | K19: =+Trichardt!N19 -> 0.00 | L19: =+Trichardt!O19 -> 0.00 | M19: =+Trichardt!P19 -> 0.00 | N19: =+Trichardt!Q19 -> 0.00 | O19: =+Trichardt!R19 -> 0.00 | P19: =+Trichardt!S19 -> 0.00 | Q19: =+Trichardt!T19 -> 0.00 | R19: =+Trichardt!U19 -> 0.00 | S19: =+Trichardt!V19 -> 0.00 | T19: =+Trichardt!W19 -> 0.00 | U19: =+Trichardt!X19 -> 0.00 | V19: =+Trichardt!Y19 -> 0.00 | W19: =+Trichardt!Z19 -> 0.00 | X19: =+Trichardt!AA19 -> 0.00 | Y19: =+Trichardt!AB19 -> 0.00 | Z19: =+Trichardt!AC19 -> 0.00 | AA19: =+Trichardt!AD19 -> 0.00 | AB19: =+Trichardt!AE19 -> 0.00 | AC19: =+Trichardt!AF19 -> 0.00 | AD19: =+Trichardt!AG19 -> 0.00 | AE19: =+Trichardt!AH19 -> 0.00 | AF19: =+Trichardt!AI19 -> 0.00 | AG19: =+Trichardt!AJ19 -> 0.00 | AH19: =+Trichardt!AK19 -> 0.00 | AI19: =+Trichardt!AL19 -> 0.00 | AJ19: =+Trichardt!AM19 -> 0.00 | AK19: =+Trichardt!AN19 -> 0.00 | AL19: =+Trichardt!AO19 -> 0.00 | AM19: =+Trichardt!AP19 -> 0.00 | AN19: =+Trichardt!AQ19 -> 0.00 | AO19: =+Trichardt!AR19 -> 0.00 | AP19: =+Trichardt!AS19 -> 0.00 | AQ19: =+Trichardt!AT19 -> 0.00 | AR19: =+Trichardt!AU19 -> 0.00 | AS19: =+Trichardt!AV19 -> 0.00 | AT19: =+Trichardt!AW19 -> 0.00 | AU19: =+Trichardt!AX19 -> 0.00 | AV19: =+Trichardt!AY19 -> 0.00 | AW19: =+Trichardt!AZ19 -> 0.00 | AX19: =+Trichardt!BA19 -> 0.00 | AY19: =+Trichardt!BB19 -> 0.00 | AZ19: =+Trichardt!BC19 -> 0.00 | BA19: =+Trichardt!BD19 -> 0.00 | BB19: =+Trichardt!BE19 -> 0.00 | BC19: =+Trichardt!BF19 -> 0.00 | BD19: =+Trichardt!BG19 -> 0.00 | BE19: =+Trichardt!BH19 -> 0.00 | BF19: =+Trichardt!BI19 -> 0.00 | BG19: =+Trichardt!BJ19 -> 0.00 | BH19: =+Trichardt!BK19 -> 0.00 | BI19: =+Trichardt!BL19 -> 0.00 | BJ19: =+Trichardt!BM19 -> 0.00 | BK19: =+Trichardt!BN19 -> 0.00 | BL19: =+Trichardt!BO19 -> 0.00 | BM19: =+Trichardt!BP19 -> 0.00 | BN19: =+Trichardt!BQ19 -> 0.00 | BO19: =+Trichardt!BR19 -> 0.00 | BP19: =+Trichardt!BS19 -> 0.00 | BQ19: =+Trichardt!BT19 -> 0.00 | BR19: =+Trichardt!BU19 -> 0.00 | BS19: =+Trichardt!BV19 -> 0.00 | BT19: =+Trichardt!BW19 -> 0.00 | BU19: =+Trichardt!BX19 -> 0.00 | BV19: =+Trichardt!BY19 -> 0.00 | BW19: =+Trichardt!BZ19 -> 0.00 | BX19: =+Trichardt!CA19 -> 0.00 | BY19: =+Trichardt!CB19 -> 0.00 | BZ19: =+Trichardt!CC19 -> 0.00
B20: Ermelo | D20: Class 1 | E20: =+Ermelo!H16 -> 0.00 | F20: =+Ermelo!I16 -> 0.00 | G20: =+Ermelo!J16 -> 0.00 | H20: =+Ermelo!K16 -> 0.00 | I20: =+Ermelo!L16 -> 0.00 | J20: =+Ermelo!M16 -> 0.00 | K20: =+Ermelo!N16 -> 0.00 | L20: =+Ermelo!O16 -> 0.00 | M20: =+Ermelo!P16 -> 0.00 | N20: =+Ermelo!Q16 -> 0.00 | O20: =+Ermelo!R16 -> 0.00 | P20: =+Ermelo!S16 -> 0.00 | Q20: =+Ermelo!T16 -> 0.00 | R20: =+Ermelo!U16 -> 0.00 | S20: =+Ermelo!V16 -> 0.00 | T20: =+Ermelo!W16 -> 0.00 | U20: =+Ermelo!X16 -> 0.00 | V20: =+Ermelo!Y16 -> 0.00 | W20: =+Ermelo!Z16 -> 0.00 | X20: =+Ermelo!AA16 -> 0.00 | Y20: =+Ermelo!AB16 -> 0.00 | Z20: =+Ermelo!AC16 -> 0.00 | AA20: =+Ermelo!AD16 -> 0.00 | AB20: =+Ermelo!AE16 -> 0.00 | AC20: =+Ermelo!AF16 -> 0.00 | AD20: =+Ermelo!AG16 -> 0.00 | AE20: =+Ermelo!AH16 -> 0.00 | AF20: =+Ermelo!AI16 -> 0.00 | AG20: =+Ermelo!AJ16 -> 0.00 | AH20: =+Ermelo!AK16 -> 0.00 | AI20: =+Ermelo!AL16 -> 0.00 | AJ20: =+Ermelo!AM16 -> 0.00 | AK20: =+Ermelo!AN16 -> 0.00 | AL20: =+Ermelo!AO16 -> 0.00 | AM20: =+Ermelo!AP16 -> 0.00 | AN20: =+Ermelo!AQ16 -> 0.00 | AO20: =+Ermelo!AR16 -> 0.00 | AP20: =+Ermelo!AS16 -> 0.00 | AQ20: =+Ermelo!AT16 -> 0.00 | AR20: =+Ermelo!AU16 -> 0.00 | AS20: =+Ermelo!AV16 -> 0.00 | AT20: =+Ermelo!AW16 -> 0.00 | AU20: =+Ermelo!AX16 -> 0.00 | AV20: =+Ermelo!AY16 -> 0.00 | AW20: =+Ermelo!AZ16 -> 0.00 | AX20: =+Ermelo!BA16 -> 0.00 | AY20: =+Ermelo!BB16 -> 0.00 | AZ20: =+Ermelo!BC16 -> 0.00 | BA20: =+Ermelo!BD16 -> 0.00 | BB20: =+Ermelo!BE16 -> 0.00 | BC20: =+Ermelo!BF16 -> 0.00 | BD20: =+Ermelo!BG16 -> 0.00 | BE20: =+Ermelo!BH16 -> 0.00 | BF20: =+Ermelo!BI16 -> 0.00 | BG20: =+Ermelo!BJ16 -> 0.00 | BH20: =+Ermelo!BK16 -> 0.00 | BI20: =+Ermelo!BL16 -> 0.00 | BJ20: =+Ermelo!BM16 -> 0.00 | BK20: =+Ermelo!BN16 -> 0.00 | BL20: =+Ermelo!BO16 -> 0.00 | BM20: =+Ermelo!BP16 -> 0.00 | BN20: =+Ermelo!BQ16 -> 0.00 | BO20: =+Ermelo!BR16 -> 0.00 | BP20: =+Ermelo!BS16 -> 0.00 | BQ20: =+Ermelo!BT16 -> 0.00 | BR20: =+Ermelo!BU16 -> 0.00 | BS20: =+Ermelo!BV16 -> 0.00 | BT20: =+Ermelo!BW16 -> 0.00 | BU20: =+Ermelo!BX16 -> 0.00 | BV20: =+Ermelo!BY16 -> 0.00 | BW20: =+Ermelo!BZ16 -> 0.00 | BX20: =+Ermelo!CA16 -> 0.00 | BY20: =+Ermelo!CB16 -> 0.00 | BZ20: =+Ermelo!CC16 -> 0.00
D21: Class 2 | E21: =+Ermelo!H17 -> 0.00 | F21: =+Ermelo!I17 -> 0.00 | G21: =+Ermelo!J17 -> 0.00 | H21: =+Ermelo!K17 -> 0.00 | I21: =+Ermelo!L17 -> 0.00 | J21: =+Ermelo!M17 -> 0.00 | K21: =+Ermelo!N17 -> 0.00 | L21: =+Ermelo!O17 -> 0.00 | M21: =+Ermelo!P17 -> 0.00 | N21: =+Ermelo!Q17 -> 0.00 | O21: =+Ermelo!R17 -> 0.00 | P21: =+Ermelo!S17 -> 0.00 | Q21: =+Ermelo!T17 -> 0.00 | R21: =+Ermelo!U17 -> 0.00 | S21: =+Ermelo!V17 -> 0.00 | T21: =+Ermelo!W17 -> 0.00 | U21: =+Ermelo!X17 -> 0.00 | V21: =+Ermelo!Y17 -> 0.00 | W21: =+Ermelo!Z17 -> 0.00 | X21: =+Ermelo!AA17 -> 0.00 | Y21: =+Ermelo!AB17 -> 0.00 | Z21: =+Ermelo!AC17 -> 0.00 | AA21: =+Ermelo!AD17 -> 0.00 | AB21: =+Ermelo!AE17 -> 0.00 | AC21: =+Ermelo!AF17 -> 0.00 | AD21: =+Ermelo!AG17 -> 0.00 | AE21: =+Ermelo!AH17 -> 0.00 | AF21: =+Ermelo!AI17 -> 0.00 | AG21: =+Ermelo!AJ17 -> 0.00 | AH21: =+Ermelo!AK17 -> 0.00 | AI21: =+Ermelo!AL17 -> 0.00 | AJ21: =+Ermelo!AM17 -> 0.00 | AK21: =+Ermelo!AN17 -> 0.00 | AL21: =+Ermelo!AO17 -> 0.00 | AM21: =+Ermelo!AP17 -> 0.00 | AN21: =+Ermelo!AQ17 -> 0.00 | AO21: =+Ermelo!AR17 -> 0.00 | AP21: =+Ermelo!AS17 -> 0.00 | AQ21: =+Ermelo!AT17 -> 0.00 | AR21: =+Ermelo!AU17 -> 0.00 | AS21: =+Ermelo!AV17 -> 0.00 | AT21: =+Ermelo!AW17 -> 0.00 | AU21: =+Ermelo!AX17 -> 0.00 | AV21: =+Ermelo!AY17 -> 0.00 | AW21: =+Ermelo!AZ17 -> 0.00 | AX21: =+Ermelo!BA17 -> 0.00 | AY21: =+Ermelo!BB17 -> 0.00 | AZ21: =+Ermelo!BC17 -> 0.00 | BA21: =+Ermelo!BD17 -> 0.00 | BB21: =+Ermelo!BE17 -> 0.00 | BC21: =+Ermelo!BF17 -> 0.00 | BD21: =+Ermelo!BG17 -> 0.00 | BE21: =+Ermelo!BH17 -> 0.00 | BF21: =+Ermelo!BI17 -> 0.00 | BG21: =+Ermelo!BJ17 -> 0.00 | BH21: =+Ermelo!BK17 -> 0.00 | BI21: =+Ermelo!BL17 -> 0.00 | BJ21: =+Ermelo!BM17 -> 0.00 | BK21: =+Ermelo!BN17 -> 0.00 | BL21: =+Ermelo!BO17 -> 0.00 | BM21: =+Ermelo!BP17 -> 0.00 | BN21: =+Ermelo!BQ17 -> 0.00 | BO21: =+Ermelo!BR17 -> 0.00 | BP21: =+Ermelo!BS17 -> 0.00 | BQ21: =+Ermelo!BT17 -> 0.00 | BR21: =+Ermelo!BU17 -> 0.00 | BS21: =+Ermelo!BV17 -> 0.00 | BT21: =+Ermelo!BW17 -> 0.00 | BU21: =+Ermelo!BX17 -> 0.00 | BV21: =+Ermelo!BY17 -> 0.00 | BW21: =+Ermelo!BZ17 -> 0.00 | BX21: =+Ermelo!CA17 -> 0.00 | BY21: =+Ermelo!CB17 -> 0.00 | BZ21: =+Ermelo!CC17 -> 0.00
D22: Class 3 | E22: =+Ermelo!H18 -> 0.00 | F22: =+Ermelo!I18 -> 0.00 | G22: =+Ermelo!J18 -> 0.00 | H22: =+Ermelo!K18 -> 0.00 | I22: =+Ermelo!L18 -> 0.00 | J22: =+Ermelo!M18 -> 0.00 | K22: =+Ermelo!N18 -> 0.00 | L22: =+Ermelo!O18 -> 0.00 | M22: =+Ermelo!P18 -> 0.00 | N22: =+Ermelo!Q18 -> 0.00 | O22: =+Ermelo!R18 -> 0.00 | P22: =+Ermelo!S18 -> 0.00 | Q22: =+Ermelo!T18 -> 0.00 | R22: =+Ermelo!U18 -> 0.00 | S22: =+Ermelo!V18 -> 0.00 | T22: =+Ermelo!W18 -> 0.00 | U22: =+Ermelo!X18 -> 0.00 | V22: =+Ermelo!Y18 -> 0.00 | W22: =+Ermelo!Z18 -> 0.00 | X22: =+Ermelo!AA18 -> 0.00 | Y22: =+Ermelo!AB18 -> 0.00 | Z22: =+Ermelo!AC18 -> 0.00 | AA22: =+Ermelo!AD18 -> 0.00 | AB22: =+Ermelo!AE18 -> 0.00 | AC22: =+Ermelo!AF18 -> 0.00 | AD22: =+Ermelo!AG18 -> 0.00 | AE22: =+Ermelo!AH18 -> 0.00 | AF22: =+Ermelo!AI18 -> 0.00 | AG22: =+Ermelo!AJ18 -> 0.00 | AH22: =+Ermelo!AK18 -> 0.00 | AI22: =+Ermelo!AL18 -> 0.00 | AJ22: =+Ermelo!AM18 -> 0.00 | AK22: =+Ermelo!AN18 -> 0.00 | AL22: =+Ermelo!AO18 -> 0.00 | AM22: =+Ermelo!AP18 -> 0.00 | AN22: =+Ermelo!AQ18 -> 0.00 | AO22: =+Ermelo!AR18 -> 0.00 | AP22: =+Ermelo!AS18 -> 0.00 | AQ22: =+Ermelo!AT18 -> 0.00 | AR22: =+Ermelo!AU18 -> 0.00 | AS22: =+Ermelo!AV18 -> 0.00 | AT22: =+Ermelo!AW18 -> 0.00 | AU22: =+Ermelo!AX18 -> 0.00 | AV22: =+Ermelo!AY18 -> 0.00 | AW22: =+Ermelo!AZ18 -> 0.00 | AX22: =+Ermelo!BA18 -> 0.00 | AY22: =+Ermelo!BB18 -> 0.00 | AZ22: =+Ermelo!BC18 -> 0.00 | BA22: =+Ermelo!BD18 -> 0.00 | BB22: =+Ermelo!BE18 -> 0.00 | BC22: =+Ermelo!BF18 -> 0.00 | BD22: =+Ermelo!BG18 -> 0.00 | BE22: =+Ermelo!BH18 -> 0.00 | BF22: =+Ermelo!BI18 -> 0.00 | BG22: =+Ermelo!BJ18 -> 0.00 | BH22: =+Ermelo!BK18 -> 0.00 | BI22: =+Ermelo!BL18 -> 0.00 | BJ22: =+Ermelo!BM18 -> 0.00 | BK22: =+Ermelo!BN18 -> 0.00 | BL22: =+Ermelo!BO18 -> 0.00 | BM22: =+Ermelo!BP18 -> 0.00 | BN22: =+Ermelo!BQ18 -> 0.00 | BO22: =+Ermelo!BR18 -> 0.00 | BP22: =+Ermelo!BS18 -> 0.00 | BQ22: =+Ermelo!BT18 -> 0.00 | BR22: =+Ermelo!BU18 -> 0.00 | BS22: =+Ermelo!BV18 -> 0.00 | BT22: =+Ermelo!BW18 -> 0.00 | BU22: =+Ermelo!BX18 -> 0.00 | BV22: =+Ermelo!BY18 -> 0.00 | BW22: =+Ermelo!BZ18 -> 0.00 | BX22: =+Ermelo!CA18 -> 0.00 | BY22: =+Ermelo!CB18 -> 0.00 | BZ22: =+Ermelo!CC18 -> 0.00
D23: Class 4 | E23: =+Ermelo!H19 -> 0.00 | F23: =+Ermelo!I19 -> 0.00 | G23: =+Ermelo!J19 -> 0.00 | H23: =+Ermelo!K19 -> 0.00 | I23: =+Ermelo!L19 -> 0.00 | J23: =+Ermelo!M19 -> 0.00 | K23: =+Ermelo!N19 -> 0.00 | L23: =+Ermelo!O19 -> 0.00 | M23: =+Ermelo!P19 -> 0.00 | N23: =+Ermelo!Q19 -> 0.00 | O23: =+Ermelo!R19 -> 0.00 | P23: =+Ermelo!S19 -> 0.00 | Q23: =+Ermelo!T19 -> 0.00 | R23: =+Ermelo!U19 -> 0.00 | S23: =+Ermelo!V19 -> 0.00 | T23: =+Ermelo!W19 -> 0.00 | U23: =+Ermelo!X19 -> 0.00 | V23: =+Ermelo!Y19 -> 0.00 | W23: =+Ermelo!Z19 -> 0.00 | X23: =+Ermelo!AA19 -> 0.00 | Y23: =+Ermelo!AB19 -> 0.00 | Z23: =+Ermelo!AC19 -> 0.00 | AA23: =+Ermelo!AD19 -> 0.00 | AB23: =+Ermelo!AE19 -> 0.00 | AC23: =+Ermelo!AF19 -> 0.00 | AD23: =+Ermelo!AG19 -> 0.00 | AE23: =+Ermelo!AH19 -> 0.00 | AF23: =+Ermelo!AI19 -> 0.00 | AG23: =+Ermelo!AJ19 -> 0.00 | AH23: =+Ermelo!AK19 -> 0.00 | AI23: =+Ermelo!AL19 -> 0.00 | AJ23: =+Ermelo!AM19 -> 0.00 | AK23: =+Ermelo!AN19 -> 0.00 | AL23: =+Ermelo!AO19 -> 0.00 | AM23: =+Ermelo!AP19 -> 0.00 | AN23: =+Ermelo!AQ19 -> 0.00 | AO23: =+Ermelo!AR19 -> 0.00 | AP23: =+Ermelo!AS19 -> 0.00 | AQ23: =+Ermelo!AT19 -> 0.00 | AR23: =+Ermelo!AU19 -> 0.00 | AS23: =+Ermelo!AV19 -> 0.00 | AT23: =+Ermelo!AW19 -> 0.00 | AU23: =+Ermelo!AX19 -> 0.00 | AV23: =+Ermelo!AY19 -> 0.00 | AW23: =+Ermelo!AZ19 -> 0.00 | AX23: =+Ermelo!BA19 -> 0.00 | AY23: =+Ermelo!BB19 -> 0.00 | AZ23: =+Ermelo!BC19 -> 0.00 | BA23: =+Ermelo!BD19 -> 0.00 | BB23: =+Ermelo!BE19 -> 0.00 | BC23: =+Ermelo!BF19 -> 0.00 | BD23: =+Ermelo!BG19 -> 0.00 | BE23: =+Ermelo!BH19 -> 0.00 | BF23: =+Ermelo!BI19 -> 0.00 | BG23: =+Ermelo!BJ19 -> 0.00 | BH23: =+Ermelo!BK19 -> 0.00 | BI23: =+Ermelo!BL19 -> 0.00 | BJ23: =+Ermelo!BM19 -> 0.00 | BK23: =+Ermelo!BN19 -> 0.00 | BL23: =+Ermelo!BO19 -> 0.00 | BM23: =+Ermelo!BP19 -> 0.00 | BN23: =+Ermelo!BQ19 -> 0.00 | BO23: =+Ermelo!BR19 -> 0.00 | BP23: =+Ermelo!BS19 -> 0.00 | BQ23: =+Ermelo!BT19 -> 0.00 | BR23: =+Ermelo!BU19 -> 0.00 | BS23: =+Ermelo!BV19 -> 0.00 | BT23: =+Ermelo!BW19 -> 0.00 | BU23: =+Ermelo!BX19 -> 0.00 | BV23: =+Ermelo!BY19 -> 0.00 | BW23: =+Ermelo!BZ19 -> 0.00 | BX23: =+Ermelo!CA19 -> 0.00 | BY23: =+Ermelo!CB19 -> 0.00 | BZ23: =+Ermelo!CC19 -> 0.00
B24: Total | C24: =+B4 -> Gosforth | E24: =+SUM(E4:E7) -> 0.00 | F24: 0.00 | G24: 0.00 | H24: 0.00 | I24: 0.00 | J24: 0.00 | K24: 0.00 | L24: 0.00 | M24: 0.00 | N24: 0.00 | O24: =+SUM(O4:O7) -> 0.00 | P24: 0.00 | Q24: 0.00 | R24: 0.00 | S24: 0.00 | T24: 0.00 | U24: 0.00 | V24: 0.00 | W24: 0.00 | X24: 0.00 | Y24: 0.00 | Z24: 0.00 | AA24: 0.00 | AB24: 0.00 | AC24: 0.00 | AD24: 0.00 | AE24: 0.00 | AF24: 0.00 | AG24: 0.00 | AH24: 0.00 | AI24: 0.00 | AJ24: 0.00 | AK24: =+SUM(AK4:AK7) -> 0.00 | AL24: 0.00 | AM24: 0.00 | AN24: 0.00 | AO24: 0.00 | AP24: 0.00 | AQ24: 0.00 | AR24: 0.00 | AS24: 0.00 | AT24: 0.00 | AU24: 0.00 | AV24: 0.00 | AW24: 0.00 | AX24: 0.00 | AY24: 0.00 | AZ24: 0.00 | BA24: 0.00 | BB24: 0.00 | BC24: 0.00 | BD24: 0.00 | BE24: 0.00 | BF24: 0.00 | BG24: 0.00 | BH24: 0.00 | BI24: 0.00 | BJ24: 0.00 | BK24: 0.00 | BL24: 0.00 | BM24: 0.00 | BN24: 0.00 | BO24: 0.00 | BP24: 0.00 | BQ24: =+SUM(BQ4:BQ7) -> 0.00 | BR24: 0.00 | BS24: 0.00 | BT24: 0.00 | BU24: 0.00 | BV24: 0.00 | BW24: 0.00 | BX24: 0.00 | BY24: 0.00 | BZ24: 0.00
C25: =$B$8 -> Dalpark | E25: =+SUM(E8:E11) -> 0.00 | F25: =+SUM(F8:F11) -> 0.00 | G25: 0.00 | H25: 0.00 | I25: 0.00 | J25: 0.00 | K25: 0.00 | L25: 0.00 | M25: 0.00 | N25: 0.00 | O25: =+SUM(O8:O11) -> 0.00 | P25: 0.00 | Q25: 0.00 | R25: 0.00 | S25: 0.00 | T25: 0.00 | U25: 0.00 | V25: 0.00 | W25: 0.00 | X25: 0.00 | Y25: 0.00 | Z25: 0.00 | AA25: 0.00 | AB25: 0.00 | AC25: 0.00 | AD25: 0.00 | AE25: 0.00 | AF25: 0.00 | AG25: 0.00 | AH25: 0.00 | AI25: 0.00 | AJ25: 0.00 | AK25: 0.00 | AL25: 0.00 | AM25: 0.00 | AN25: 0.00 | AO25: 0.00 | AP25: 0.00 | AQ25: 0.00 | AR25: 0.00 | AS25: 0.00 | AT25: 0.00 | AU25: 0.00 | AV25: 0.00 | AW25: 0.00 | AX25: 0.00 | AY25: 0.00 | AZ25: 0.00 | BA25: 0.00 | BB25: 0.00 | BC25: 0.00 | BD25: 0.00 | BE25: 0.00 | BF25: 0.00 | BG25: 0.00 | BH25: 0.00 | BI25: 0.00 | BJ25: 0.00 | BK25: 0.00 | BL25: 0.00 | BM25: 0.00 | BN25: 0.00 | BO25: 0.00 | BP25: 0.00 | BQ25: 0.00 | BR25: =+SUM(BR8:BR11) -> 0.00 | BS25: 0.00 | BT25: 0.00 | BU25: 0.00 | BV25: 0.00 | BW25: 0.00 | BX25: 0.00 | BY25: 0.00 | BZ25: 0.00
C26: =$B$12 -> Leandra | E26: =+SUM(E12:E15) -> 0.00 | F26: =+SUM(F12:F15) -> 0.00 | G26: 0.00 | H26: 0.00 | I26: 0.00 | J26: 0.00 | K26: 0.00 | L26: 0.00 | M26: 0.00 | N26: 0.00 | O26: =+SUM(O12:O15) -> 0.00 | P26: 0.00 | Q26: 0.00 | R26: 0.00 | S26: 0.00 | T26: 0.00 | U26: 0.00 | V26: 0.00 | W26: 0.00 | X26: 0.00 | Y26: 0.00 | Z26: 0.00 | AA26: 0.00 | AB26: 0.00 | AC26: 0.00 | AD26: 0.00 | AE26: 0.00 | AF26: 0.00 | AG26: 0.00 | AH26: 0.00 | AI26: 0.00 | AJ26: 0.00 | AK26: 0.00 | AL26: 0.00 | AM26: 0.00 | AN26: 0.00 | AO26: 0.00 | AP26: 0.00 | AQ26: 0.00 | AR26: 0.00 | AS26: 0.00 | AT26: 0.00 | AU26: 0.00 | AV26: 0.00 | AW26: 0.00 | AX26: 0.00 | AY26: 0.00 | AZ26: 0.00 | BA26: 0.00 | BB26: 0.00 | BC26: 0.00 | BD26: 0.00 | BE26: 0.00 | BF26: 0.00 | BG26: 0.00 | BH26: 0.00 | BI26: 0.00 | BJ26: 0.00 | BK26: 0.00 | BL26: 0.00 | BM26: 0.00 | BN26: 0.00 | BO26: 0.00 | BP26: 0.00 | BQ26: 0.00 | BR26: =+SUM(BR12:BR15) -> 0.00 | BS26: 0.00 | BT26: 0.00 | BU26: 0.00 | BV26: 0.00 | BW26: 0.00 | BX26: 0.00 | BY26: 0.00 | BZ26: 0.00
C27: =+B16 -> Trichardt | E27: =+SUM(E16:E19) -> 0.00 | F27: 0.00 | G27: 0.00 | H27: 0.00 | I27: 0.00 | J27: 0.00 | K27: 0.00 | L27: 0.00 | M27: 0.00 | N27: 0.00 | O27: 0.00 | P27: 0.00 | Q27: 0.00 | R27: 0.00 | S27: 0.00 | T27: 0.00 | U27: 0.00 | V27: 0.00 | W27: 0.00 | X27: 0.00 | Y27: 0.00 | Z27: 0.00 | AA27: 0.00 | AB27: 0.00 | AC27: 0.00 | AD27: 0.00 | AE27: 0.00 | AF27: 0.00 | AG27: 0.00 | AH27: 0.00 | AI27: 0.00 | AJ27: 0.00 | AK27: 0.00 | AL27: 0.00 | AM27: 0.00 | AN27: 0.00 | AO27: 0.00 | AP27: 0.00 | AQ27: 0.00 | AR27: 0.00 | AS27: 0.00 | AT27: 0.00 | AU27: 0.00 | AV27: 0.00 | AW27: 0.00 | AX27: 0.00 | AY27: 0.00 | AZ27: 0.00 | BA27: 0.00 | BB27: 0.00 | BC27: 0.00 | BD27: 0.00 | BE27: 0.00 | BF27: 0.00 | BG27: 0.00 | BH27: 0.00 | BI27: 0.00 | BJ27: 0.00 | BK27: 0.00 | BL27: 0.00 | BM27: 0.00 | BN27: 0.00 | BO27: 0.00 | BP27: 0.00 | BQ27: =+SUM(BQ16:BQ19) -> 0.00 | BR27: 0.00 | BS27: 0.00 | BT27: 0.00 | BU27: 0.00 | BV27: 0.00 | BW27: 0.00 | BX27: 0.00 | BY27: 0.00 | BZ27: 0.00
C28: =+B20 -> Ermelo | E28: =+SUM(E20:E23) -> 0.00 | F28: 0.00 | G28: 0.00 | H28: 0.00 | I28: 0.00 | J28: 0.00 | K28: 0.00 | L28: 0.00 | M28: 0.00 | N28: 0.00 | O28: 0.00 | P28: 0.00 | Q28: 0.00 | R28: 0.00 | S28: 0.00 | T28: 0.00 | U28: 0.00 | V28: 0.00 | W28: 0.00 | X28: 0.00 | Y28: 0.00 | Z28: 0.00 | AA28: 0.00 | AB28: 0.00 | AC28: 0.00 | AD28: 0.00 | AE28: 0.00 | AF28: 0.00 | AG28: 0.00 | AH28: 0.00 | AI28: 0.00 | AJ28: 0.00 | AK28: 0.00 | AL28: 0.00 | AM28: 0.00 | AN28: 0.00 | AO28: 0.00 | AP28: 0.00 | AQ28: 0.00 | AR28: 0.00 | AS28: 0.00 | AT28: 0.00 | AU28: 0.00 | AV28: 0.00 | AW28: 0.00 | AX28: 0.00 | AY28: 0.00 | AZ28: 0.00 | BA28: 0.00 | BB28: 0.00 | BC28: 0.00 | BD28: 0.00 | BE28: 0.00 | BF28: 0.00 | BG28: 0.00 | BH28: 0.00 | BI28: 0.00 | BJ28: 0.00 | BK28: 0.00 | BL28: 0.00 | BM28: 0.00 | BN28: 0.00 | BO28: 0.00 | BP28: 0.00 | BQ28: =+SUM(BQ20:BQ23) -> 0.00 | BR28: 0.00 | BS28: 0.00 | BT28: 0.00 | BU28: 0.00 | BV28: 0.00 | BW28: 0.00 | BX28: 0.00 | BY28: 0.00 | BZ28: 0.00
B29: Total Variable OM Fees to Model | E29: =+SUM(E24:E28) -> 0.00 | F29: 0.00 | G29: 0.00 | H29: 0.00 | I29: 0.00 | J29: 0.00 | K29: 0.00 | L29: 0.00 | M29: 0.00 | N29: 0.00 | O29: 0.00 | P29: 0.00 | Q29: 0.00 | R29: 0.00 | S29: 0.00 | T29: 0.00 | U29: 0.00 | V29: 0.00 | W29: 0.00 | X29: 0.00 | Y29: 0.00 | Z29: 0.00 | AA29: 0.00 | AB29: 0.00 | AC29: 0.00 | AD29: 0.00 | AE29: 0.00 | AF29: 0.00 | AG29: 0.00 | AH29: 0.00 | AI29: 0.00 | AJ29: 0.00 | AK29: 0.00 | AL29: 0.00 | AM29: 0.00 | AN29: 0.00 | AO29: 0.00 | AP29: 0.00 | AQ29: 0.00 | AR29: 0.00 | AS29: 0.00 | AT29: 0.00 | AU29: 0.00 | AV29: 0.00 | AW29: 0.00 | AX29: 0.00 | AY29: 0.00 | AZ29: 0.00 | BA29: 0.00 | BB29: 0.00 | BC29: 0.00 | BD29: 0.00 | BE29: 0.00 | BF29: 0.00 | BG29: 0.00 | BH29: 0.00 | BI29: 0.00 | BJ29: 0.00 | BK29: 0.00 | BL29: 0.00 | BM29: 0.00 | BN29: 0.00 | BO29: 0.00 | BP29: 0.00 | BQ29: =+SUM(BQ24:BQ28) -> 0.00 | BR29: 0.00 | BS29: 0.00 | BT29: 0.00 | BU29: 0.00 | BV29: 0.00 | BW29: 0.00 | BX29: 0.00 | BY29: 0.00 | BZ29: 0.00
B31: Control Centre | E31: Est Period | G31: Operation Service Period - Year 1 | S31: =+G31+1 -> Operation Service Period - Year 2 | AE31: =+S31+1 -> Operation Service Period - Year 3 | AQ31: =+AE31+1 -> Operation Service Period - Year 4 | BC31: =+AQ31+1 -> Operation Service Period - Year 5 | BO31: =+BC31+1 -> Operation Service Period - Year 6
E32: =+E$3 -> 2024-08-19 | F32: =+F$3 -> 2024-09-30 | G32: 2024-10-31 | H32: 2024-11-30 | I32: 2024-12-31 | J32: 2025-01-31 | K32: 2025-02-28 | L32: 2025-03-31 | M32: 2025-04-30 | N32: 2025-05-31 | O32: 2025-06-30 | P32: 2025-07-31 | Q32: 2025-08-31 | R32: 2025-09-30 | S32: 2025-10-31 | T32: 2025-11-30 | U32: 2025-12-31 | V32: 2026-01-31 | W32: 2026-02-28 | X32: 2026-03-31 | Y32: 2026-04-30 | Z32: 2026-05-31 | AA32: 2026-06-30 | AB32: 2026-07-31 | AC32: 2026-08-31 | AD32: 2026-09-30 | AE32: 2026-10-31 | AF32: 2026-11-30 | AG32: 2026-12-31 | AH32: 2027-01-31 | AI32: 2027-02-28 | AJ32: 2027-03-31 | AK32: 2027-04-30 | AL32: 2027-05-31 | AM32: 2027-06-30 | AN32: 2027-07-31 | AO32: 2027-08-31 | AP32: 2027-09-30 | AQ32: 2027-10-31 | AR32: 2027-11-30 | AS32: 2027-12-31 | AT32: 2028-01-31 | AU32: 2028-02-29 | AV32: 2028-03-31 | AW32: 2028-04-30 | AX32: 2028-05-31 | AY32: 2028-06-30 | AZ32: 2028-07-31 | BA32: 2028-08-31 | BB32: 2028-09-30 | BC32: 2028-10-31 | BD32: 2028-11-30 | BE32: 2028-12-31 | BF32: 2029-01-31 | BG32: 2029-02-28 | BH32: 2029-03-31 | BI32: 2029-04-30 | BJ32: 2029-05-31 | BK32: 2029-06-30 | BL32: 2029-07-31 | BM32: 2029-08-31 | BN32: 2029-09-30 | BO32: 2029-10-31 | BP32: 2029-11-30 | BQ32: 2029-12-31 | BR32: =+BR$3 -> 2030-01-31 | BS32: 2030-02-28 | BT32: 2030-03-31 | BU32: 2030-04-30 | BV32: 2030-05-31 | BW32: 2030-06-30 | BX32: 2030-07-31 | BY32: 2030-08-31 | BZ32: 2030-09-30
C33: =+B4 -> Gosforth | E33: =+Gosforth!H13 -> 0.00 | F33: =+Gosforth!I13 -> 0.00 | G33: =+Gosforth!J13 -> 0.00 | H33: =+Gosforth!K13 -> 0.00 | I33: =+Gosforth!L13 -> 0.00 | J33: =+Gosforth!M13 -> 0.00 | K33: =+Gosforth!N13 -> 0.00 | L33: =+Gosforth!O13 -> 0.00 | M33: =+Gosforth!P13 -> 0.00 | N33: =+Gosforth!Q13 -> 0.00 | O33: =+Gosforth!R13 -> 0.00 | P33: =+Gosforth!S13 -> 0.00 | Q33: =+Gosforth!T13 -> 0.00 | R33: =+Gosforth!U13 -> 0.00 | S33: =+Gosforth!V13 -> 0.00 | T33: =+Gosforth!W13 -> 0.00 | U33: =+Gosforth!X13 -> 0.00 | V33: =+Gosforth!Y13 -> 0.00 | W33: =+Gosforth!Z13 -> 0.00 | X33: =+Gosforth!AA13 -> 0.00 | Y33: =+Gosforth!AB13 -> 0.00 | Z33: =+Gosforth!AC13 -> 0.00 | AA33: =+Gosforth!AD13 -> 0.00 | AB33: =+Gosforth!AE13 -> 0.00 | AC33: =+Gosforth!AF13 -> 0.00 | AD33: =+Gosforth!AG13 -> 0.00 | AE33: =+Gosforth!AH13 -> 0.00 | AF33: =+Gosforth!AI13 -> 0.00 | AG33: =+Gosforth!AJ13 -> 0.00 | AH33: =+Gosforth!AK13 -> 0.00 | AI33: =+Gosforth!AL13 -> 0.00 | AJ33: =+Gosforth!AM13 -> 0.00 | AK33: =+Gosforth!AN13 -> 0.00 | AL33: =+Gosforth!AO13 -> 0.00 | AM33: =+Gosforth!AP13 -> 0.00 | AN33: =+Gosforth!AQ13 -> 0.00 | AO33: =+Gosforth!AR13 -> 0.00 | AP33: =+Gosforth!AS13 -> 0.00 | AQ33: =+Gosforth!AT13 -> 0.00 | AR33: =+Gosforth!AU13 -> 0.00 | AS33: =+Gosforth!AV13 -> 0.00 | AT33: =+Gosforth!AW13 -> 0.00 | AU33: =+Gosforth!AX13 -> 0.00 | AV33: =+Gosforth!AY13 -> 0.00 | AW33: =+Gosforth!AZ13 -> 0.00 | AX33: =+Gosforth!BA13 -> 0.00 | AY33: =+Gosforth!BB13 -> 0.00 | AZ33: =+Gosforth!BC13 -> 0.00 | BA33: =+Gosforth!BD13 -> 0.00 | BB33: =+Gosforth!BE13 -> 0.00 | BC33: =+Gosforth!BF13 -> 0.00 | BD33: =+Gosforth!BG13 -> 0.00 | BE33: =+Gosforth!BH13 -> 0.00 | BF33: =+Gosforth!BI13 -> 0.00 | BG33: =+Gosforth!BJ13 -> 0.00 | BH33: =+Gosforth!BK13 -> 0.00 | BI33: =+Gosforth!BL13 -> 0.00 | BJ33: =+Gosforth!BM13 -> 0.00 | BK33: =+Gosforth!BN13 -> 0.00 | BL33: =+Gosforth!BO13 -> 0.00 | BM33: =+Gosforth!BP13 -> 0.00 | BN33: =+Gosforth!BQ13 -> 0.00 | BO33: =+Gosforth!BR13 -> 0.00 | BP33: =+Gosforth!BS13 -> 0.00 | BQ33: =+Gosforth!BT13 -> 0.00 | BR33: =+Gosforth!BU13 -> 0.00 | BS33: =+Gosforth!BV13 -> 0.00 | BT33: =+Gosforth!BW13 -> 0.00 | BU33: =+Gosforth!BX13 -> 0.00 | BV33: =+Gosforth!BY13 -> 0.00 | BW33: =+Gosforth!BZ13 -> 0.00 | BX33: =+Gosforth!CA13 -> 0.00 | BY33: =+Gosforth!CB13 -> 0.00 | BZ33: =+Gosforth!CC13 -> 0.00
C34: =$B$8 -> Dalpark | E34: =+Dalpark!H13 -> 0.00 | F34: =+Dalpark!I13 -> 0.00 | G34: =+Dalpark!J13 -> 0.00 | H34: =+Dalpark!K13 -> 0.00 | I34: =+Dalpark!L13 -> 0.00 | J34: =+Dalpark!M13 -> 0.00 | K34: =+Dalpark!N13 -> 0.00 | L34: =+Dalpark!O13 -> 0.00 | M34: =+Dalpark!P13 -> 0.00 | N34: =+Dalpark!Q13 -> 0.00 | O34: =+Dalpark!R13 -> 0.00 | P34: =+Dalpark!S13 -> 0.00 | Q34: =+Dalpark!T13 -> 0.00 | R34: =+Dalpark!U13 -> 0.00 | S34: =+Dalpark!V13 -> 0.00 | T34: =+Dalpark!W13 -> 0.00 | U34: =+Dalpark!X13 -> 0.00 | V34: =+Dalpark!Y13 -> 0.00 | W34: =+Dalpark!Z13 -> 0.00 | X34: =+Dalpark!AA13 -> 0.00 | Y34: =+Dalpark!AB13 -> 0.00 | Z34: =+Dalpark!AC13 -> 0.00 | AA34: =+Dalpark!AD13 -> 0.00 | AB34: =+Dalpark!AE13 -> 0.00 | AC34: =+Dalpark!AF13 -> 0.00 | AD34: =+Dalpark!AG13 -> 0.00 | AE34: =+Dalpark!AH13 -> 0.00 | AF34: =+Dalpark!AI13 -> 0.00 | AG34: =+Dalpark!AJ13 -> 0.00 | AH34: =+Dalpark!AK13 -> 0.00 | AI34: =+Dalpark!AL13 -> 0.00 | AJ34: =+Dalpark!AM13 -> 0.00 | AK34: =+Dalpark!AN13 -> 0.00 | AL34: =+Dalpark!AO13 -> 0.00 | AM34: =+Dalpark!AP13 -> 0.00 | AN34: =+Dalpark!AQ13 -> 0.00 | AO34: =+Dalpark!AR13 -> 0.00 | AP34: =+Dalpark!AS13 -> 0.00 | AQ34: =+Dalpark!AT13 -> 0.00 | AR34: =+Dalpark!AU13 -> 0.00 | AS34: =+Dalpark!AV13 -> 0.00 | AT34: =+Dalpark!AW13 -> 0.00 | AU34: =+Dalpark!AX13 -> 0.00 | AV34: =+Dalpark!AY13 -> 0.00 | AW34: =+Dalpark!AZ13 -> 0.00 | AX34: =+Dalpark!BA13 -> 0.00 | AY34: =+Dalpark!BB13 -> 0.00 | AZ34: =+Dalpark!BC13 -> 0.00 | BA34: =+Dalpark!BD13 -> 0.00 | BB34: =+Dalpark!BE13 -> 0.00 | BC34: =+Dalpark!BF13 -> 0.00 | BD34: =+Dalpark!BG13 -> 0.00 | BE34: =+Dalpark!BH13 -> 0.00 | BF34: =+Dalpark!BI13 -> 0.00 | BG34: =+Dalpark!BJ13 -> 0.00 | BH34: =+Dalpark!BK13 -> 0.00 | BI34: =+Dalpark!BL13 -> 0.00 | BJ34: =+Dalpark!BM13 -> 0.00 | BK34: =+Dalpark!BN13 -> 0.00 | BL34: =+Dalpark!BO13 -> 0.00 | BM34: =+Dalpark!BP13 -> 0.00 | BN34: =+Dalpark!BQ13 -> 0.00 | BO34: =+Dalpark!BR13 -> 0.00 | BP34: =+Dalpark!BS13 -> 0.00 | BQ34: =+Dalpark!BT13 -> 0.00 | BR34: =+Dalpark!BU13 -> 0.00 | BS34: =+Dalpark!BV13 -> 0.00 | BT34: =+Dalpark!BW13 -> 0.00 | BU34: =+Dalpark!BX13 -> 0.00 | BV34: =+Dalpark!BY13 -> 0.00 | BW34: =+Dalpark!BZ13 -> 0.00 | BX34: =+Dalpark!CA13 -> 0.00 | BY34: =+Dalpark!CB13 -> 0.00 | BZ34: =+Dalpark!CC13 -> 0.00
C35: =$B$12 -> Leandra | E35: =+Leandra!H13 -> 0.00 | F35: =+Leandra!I13 -> 0.00 | G35: =+Leandra!J13 -> 0.00 | H35: =+Leandra!K13 -> 0.00 | I35: =+Leandra!L13 -> 0.00 | J35: =+Leandra!M13 -> 0.00 | K35: =+Leandra!N13 -> 0.00 | L35: =+Leandra!O13 -> 0.00 | M35: =+Leandra!P13 -> 0.00 | N35: =+Leandra!Q13 -> 0.00 | O35: =+Leandra!R13 -> 0.00 | P35: =+Leandra!S13 -> 0.00 | Q35: =+Leandra!T13 -> 0.00 | R35: =+Leandra!U13 -> 0.00 | S35: =+Leandra!V13 -> 0.00 | T35: =+Leandra!W13 -> 0.00 | U35: =+Leandra!X13 -> 0.00 | V35: =+Leandra!Y13 -> 0.00 | W35: =+Leandra!Z13 -> 0.00 | X35: =+Leandra!AA13 -> 0.00 | Y35: =+Leandra!AB13 -> 0.00 | Z35: =+Leandra!AC13 -> 0.00 | AA35: =+Leandra!AD13 -> 0.00 | AB35: =+Leandra!AE13 -> 0.00 | AC35: =+Leandra!AF13 -> 0.00 | AD35: =+Leandra!AG13 -> 0.00 | AE35: =+Leandra!AH13 -> 0.00 | AF35: =+Leandra!AI13 -> 0.00 | AG35: =+Leandra!AJ13 -> 0.00 | AH35: =+Leandra!AK13 -> 0.00 | AI35: =+Leandra!AL13 -> 0.00 | AJ35: =+Leandra!AM13 -> 0.00 | AK35: =+Leandra!AN13 -> 0.00 | AL35: =+Leandra!AO13 -> 0.00 | AM35: =+Leandra!AP13 -> 0.00 | AN35: =+Leandra!AQ13 -> 0.00 | AO35: =+Leandra!AR13 -> 0.00 | AP35: =+Leandra!AS13 -> 0.00 | AQ35: =+Leandra!AT13 -> 0.00 | AR35: =+Leandra!AU13 -> 0.00 | AS35: =+Leandra!AV13 -> 0.00 | AT35: =+Leandra!AW13 -> 0.00 | AU35: =+Leandra!AX13 -> 0.00 | AV35: =+Leandra!AY13 -> 0.00 | AW35: =+Leandra!AZ13 -> 0.00 | AX35: =+Leandra!BA13 -> 0.00 | AY35: =+Leandra!BB13 -> 0.00 | AZ35: =+Leandra!BC13 -> 0.00 | BA35: =+Leandra!BD13 -> 0.00 | BB35: =+Leandra!BE13 -> 0.00 | BC35: =+Leandra!BF13 -> 0.00 | BD35: =+Leandra!BG13 -> 0.00 | BE35: =+Leandra!BH13 -> 0.00 | BF35: =+Leandra!BI13 -> 0.00 | BG35: =+Leandra!BJ13 -> 0.00 | BH35: =+Leandra!BK13 -> 0.00 | BI35: =+Leandra!BL13 -> 0.00 | BJ35: =+Leandra!BM13 -> 0.00 | BK35: =+Leandra!BN13 -> 0.00 | BL35: =+Leandra!BO13 -> 0.00 | BM35: =+Leandra!BP13 -> 0.00 | BN35: =+Leandra!BQ13 -> 0.00 | BO35: =+Leandra!BR13 -> 0.00 | BP35: =+Leandra!BS13 -> 0.00 | BQ35: =+Leandra!BT13 -> 0.00 | BR35: =+Leandra!BU13 -> 0.00 | BS35: =+Leandra!BV13 -> 0.00 | BT35: =+Leandra!BW13 -> 0.00 | BU35: =+Leandra!BX13 -> 0.00 | BV35: =+Leandra!BY13 -> 0.00 | BW35: =+Leandra!BZ13 -> 0.00 | BX35: =+Leandra!CA13 -> 0.00 | BY35: =+Leandra!CB13 -> 0.00 | BZ35: =+Leandra!CC13 -> 0.00
C36: =+B16 -> Trichardt | E36: =+Trichardt!H13 -> 0.00 | F36: =+Trichardt!I13 -> 0.00 | G36: =+Trichardt!J13 -> 0.00 | H36: =+Trichardt!K13 -> 0.00 | I36: =+Trichardt!L13 -> 0.00 | J36: =+Trichardt!M13 -> 0.00 | K36: =+Trichardt!N13 -> 0.00 | L36: =+Trichardt!O13 -> 0.00 | M36: =+Trichardt!P13 -> 0.00 | N36: =+Trichardt!Q13 -> 0.00 | O36: =+Trichardt!R13 -> 0.00 | P36: =+Trichardt!S13 -> 0.00 | Q36: =+Trichardt!T13 -> 0.00 | R36: =+Trichardt!U13 -> 0.00 | S36: =+Trichardt!V13 -> 0.00 | T36: =+Trichardt!W13 -> 0.00 | U36: =+Trichardt!X13 -> 0.00 | V36: =+Trichardt!Y13 -> 0.00 | W36: =+Trichardt!Z13 -> 0.00 | X36: =+Trichardt!AA13 -> 0.00 | Y36: =+Trichardt!AB13 -> 0.00 | Z36: =+Trichardt!AC13 -> 0.00 | AA36: =+Trichardt!AD13 -> 0.00 | AB36: =+Trichardt!AE13 -> 0.00 | AC36: =+Trichardt!AF13 -> 0.00 | AD36: =+Trichardt!AG13 -> 0.00 | AE36: =+Trichardt!AH13 -> 0.00 | AF36: =+Trichardt!AI13 -> 0.00 | AG36: =+Trichardt!AJ13 -> 0.00 | AH36: =+Trichardt!AK13 -> 0.00 | AI36: =+Trichardt!AL13 -> 0.00 | AJ36: =+Trichardt!AM13 -> 0.00 | AK36: =+Trichardt!AN13 -> 0.00 | AL36: =+Trichardt!AO13 -> 0.00 | AM36: =+Trichardt!AP13 -> 0.00 | AN36: =+Trichardt!AQ13 -> 0.00 | AO36: =+Trichardt!AR13 -> 0.00 | AP36: =+Trichardt!AS13 -> 0.00 | AQ36: =+Trichardt!AT13 -> 0.00 | AR36: =+Trichardt!AU13 -> 0.00 | AS36: =+Trichardt!AV13 -> 0.00 | AT36: =+Trichardt!AW13 -> 0.00 | AU36: =+Trichardt!AX13 -> 0.00 | AV36: =+Trichardt!AY13 -> 0.00 | AW36: =+Trichardt!AZ13 -> 0.00 | AX36: =+Trichardt!BA13 -> 0.00 | AY36: =+Trichardt!BB13 -> 0.00 | AZ36: =+Trichardt!BC13 -> 0.00 | BA36: =+Trichardt!BD13 -> 0.00 | BB36: =+Trichardt!BE13 -> 0.00 | BC36: =+Trichardt!BF13 -> 0.00 | BD36: =+Trichardt!BG13 -> 0.00 | BE36: =+Trichardt!BH13 -> 0.00 | BF36: =+Trichardt!BI13 -> 0.00 | BG36: =+Trichardt!BJ13 -> 0.00 | BH36: =+Trichardt!BK13 -> 0.00 | BI36: =+Trichardt!BL13 -> 0.00 | BJ36: =+Trichardt!BM13 -> 0.00 | BK36: =+Trichardt!BN13 -> 0.00 | BL36: =+Trichardt!BO13 -> 0.00 | BM36: =+Trichardt!BP13 -> 0.00 | BN36: =+Trichardt!BQ13 -> 0.00 | BO36: =+Trichardt!BR13 -> 0.00 | BP36: =+Trichardt!BS13 -> 0.00 | BQ36: =+Trichardt!BT13 -> 0.00 | BR36: =+Trichardt!BU13 -> 0.00 | BS36: =+Trichardt!BV13 -> 0.00 | BT36: =+Trichardt!BW13 -> 0.00 | BU36: =+Trichardt!BX13 -> 0.00 | BV36: =+Trichardt!BY13 -> 0.00 | BW36: =+Trichardt!BZ13 -> 0.00 | BX36: =+Trichardt!CA13 -> 0.00 | BY36: =+Trichardt!CB13 -> 0.00 | BZ36: =+Trichardt!CC13 -> 0.00
C37: =+B20 -> Ermelo | E37: =+Ermelo!H13 -> 0.00 | F37: =+Ermelo!I13 -> 0.00 | G37: =+Ermelo!J13 -> 0.00 | H37: =+Ermelo!K13 -> 0.00 | I37: =+Ermelo!L13 -> 0.00 | J37: =+Ermelo!M13 -> 0.00 | K37: =+Ermelo!N13 -> 0.00 | L37: =+Ermelo!O13 -> 0.00 | M37: =+Ermelo!P13 -> 0.00 | N37: =+Ermelo!Q13 -> 0.00 | O37: =+Ermelo!R13 -> 0.00 | P37: =+Ermelo!S13 -> 0.00 | Q37: =+Ermelo!T13 -> 0.00 | R37: =+Ermelo!U13 -> 0.00 | S37: =+Ermelo!V13 -> 0.00 | T37: =+Ermelo!W13 -> 0.00 | U37: =+Ermelo!X13 -> 0.00 | V37: =+Ermelo!Y13 -> 0.00 | W37: =+Ermelo!Z13 -> 0.00 | X37: =+Ermelo!AA13 -> 0.00 | Y37: =+Ermelo!AB13 -> 0.00 | Z37: =+Ermelo!AC13 -> 0.00 | AA37: =+Ermelo!AD13 -> 0.00 | AB37: =+Ermelo!AE13 -> 0.00 | AC37: =+Ermelo!AF13 -> 0.00 | AD37: =+Ermelo!AG13 -> 0.00 | AE37: =+Ermelo!AH13 -> 0.00 | AF37: =+Ermelo!AI13 -> 0.00 | AG37: =+Ermelo!AJ13 -> 0.00 | AH37: =+Ermelo!AK13 -> 0.00 | AI37: =+Ermelo!AL13 -> 0.00 | AJ37: =+Ermelo!AM13 -> 0.00 | AK37: =+Ermelo!AN13 -> 0.00 | AL37: =+Ermelo!AO13 -> 0.00 | AM37: =+Ermelo!AP13 -> 0.00 | AN37: =+Ermelo!AQ13 -> 0.00 | AO37: =+Ermelo!AR13 -> 0.00 | AP37: =+Ermelo!AS13 -> 0.00 | AQ37: =+Ermelo!AT13 -> 0.00 | AR37: =+Ermelo!AU13 -> 0.00 | AS37: =+Ermelo!AV13 -> 0.00 | AT37: =+Ermelo!AW13 -> 0.00 | AU37: =+Ermelo!AX13 -> 0.00 | AV37: =+Ermelo!AY13 -> 0.00 | AW37: =+Ermelo!AZ13 -> 0.00 | AX37: =+Ermelo!BA13 -> 0.00 | AY37: =+Ermelo!BB13 -> 0.00 | AZ37: =+Ermelo!BC13 -> 0.00 | BA37: =+Ermelo!BD13 -> 0.00 | BB37: =+Ermelo!BE13 -> 0.00 | BC37: =+Ermelo!BF13 -> 0.00 | BD37: =+Ermelo!BG13 -> 0.00 | BE37: =+Ermelo!BH13 -> 0.00 | BF37: =+Ermelo!BI13 -> 0.00 | BG37: =+Ermelo!BJ13 -> 0.00 | BH37: =+Ermelo!BK13 -> 0.00 | BI37: =+Ermelo!BL13 -> 0.00 | BJ37: =+Ermelo!BM13 -> 0.00 | BK37: =+Ermelo!BN13 -> 0.00 | BL37: =+Ermelo!BO13 -> 0.00 | BM37: =+Ermelo!BP13 -> 0.00 | BN37: =+Ermelo!BQ13 -> 0.00 | BO37: =+Ermelo!BR13 -> 0.00 | BP37: =+Ermelo!BS13 -> 0.00 | BQ37: =+Ermelo!BT13 -> 0.00 | BR37: =+Ermelo!BU13 -> 0.00 | BS37: =+Ermelo!BV13 -> 0.00 | BT37: =+Ermelo!BW13 -> 0.00 | BU37: =+Ermelo!BX13 -> 0.00 | BV37: =+Ermelo!BY13 -> 0.00 | BW37: =+Ermelo!BZ13 -> 0.00 | BX37: =+Ermelo!CA13 -> 0.00 | BY37: =+Ermelo!CB13 -> 0.00 | BZ37: =+Ermelo!CC13 -> 0.00
B38: Fixed OM Fees to Model (Subject to CPI) | E38: =+SUM(E33:E37) -> 0.00 | F38: 0.00 | G38: 0.00 | H38: 0.00 | I38: 0.00 | J38: 0.00 | K38: 0.00 | L38: 0.00 | M38: 0.00 | N38: 0.00 | O38: 0.00 | P38: 0.00 | Q38: 0.00 | R38: 0.00 | S38: 0.00 | T38: 0.00 | U38: 0.00 | V38: 0.00 | W38: 0.00 | X38: 0.00 | Y38: 0.00 | Z38: 0.00 | AA38: 0.00 | AB38: 0.00 | AC38: 0.00 | AD38: 0.00 | AE38: 0.00 | AF38: 0.00 | AG38: 0.00 | AH38: 0.00 | AI38: 0.00 | AJ38: 0.00 | AK38: 0.00 | AL38: 0.00 | AM38: 0.00 | AN38: 0.00 | AO38: 0.00 | AP38: 0.00 | AQ38: 0.00 | AR38: 0.00 | AS38: 0.00 | AT38: 0.00 | AU38: 0.00 | AV38: 0.00 | AW38: 0.00 | AX38: 0.00 | AY38: 0.00 | AZ38: 0.00 | BA38: 0.00 | BB38: 0.00 | BC38: 0.00 | BD38: 0.00 | BE38: 0.00 | BF38: 0.00 | BG38: 0.00 | BH38: 0.00 | BI38: 0.00 | BJ38: 0.00 | BK38: 0.00 | BL38: 0.00 | BM38: 0.00 | BN38: 0.00 | BO38: 0.00 | BP38: 0.00 | BQ38: =+SUM(BQ33:BQ37) -> 0.00 | BR38: 0.00 | BS38: 0.00 | BT38: 0.00 | BU38: 0.00 | BV38: 0.00 | BW38: 0.00 | BX38: 0.00 | BY38: 0.00 | BZ38: 0.00
B40: Control Centre | E40: Est Period | G40: Operation Service Period - Year 1 | S40: =+G40+1 -> Operation Service Period - Year 2 | AE40: =+S40+1 -> Operation Service Period - Year 3 | AQ40: =+AE40+1 -> Operation Service Period - Year 4 | BC40: =+AQ40+1 -> Operation Service Period - Year 5 | BO40: =+BC40+1 -> Operation Service Period - Year 6
E41: =+E$3 -> 2024-08-19 | F41: =+F$3 -> 2024-09-30 | G41: 2024-10-31 | H41: 2024-11-30 | I41: 2024-12-31 | J41: 2025-01-31 | K41: 2025-02-28 | L41: 2025-03-31 | M41: 2025-04-30 | N41: 2025-05-31 | O41: 2025-06-30 | P41: 2025-07-31 | Q41: 2025-08-31 | R41: 2025-09-30 | S41: 2025-10-31 | T41: 2025-11-30 | U41: 2025-12-31 | V41: 2026-01-31 | W41: 2026-02-28 | X41: 2026-03-31 | Y41: 2026-04-30 | Z41: 2026-05-31 | AA41: 2026-06-30 | AB41: 2026-07-31 | AC41: 2026-08-31 | AD41: 2026-09-30 | AE41: 2026-10-31 | AF41: 2026-11-30 | AG41: 2026-12-31 | AH41: 2027-01-31 | AI41: 2027-02-28 | AJ41: 2027-03-31 | AK41: 2027-04-30 | AL41: 2027-05-31 | AM41: 2027-06-30 | AN41: 2027-07-31 | AO41: 2027-08-31 | AP41: 2027-09-30 | AQ41: 2027-10-31 | AR41: 2027-11-30 | AS41: 2027-12-31 | AT41: 2028-01-31 | AU41: 2028-02-29 | AV41: 2028-03-31 | AW41: 2028-04-30 | AX41: 2028-05-31 | AY41: 2028-06-30 | AZ41: 2028-07-31 | BA41: 2028-08-31 | BB41: 2028-09-30 | BC41: 2028-10-31 | BD41: 2028-11-30 | BE41: 2028-12-31 | BF41: 2029-01-31 | BG41: 2029-02-28 | BH41: 2029-03-31 | BI41: 2029-04-30 | BJ41: 2029-05-31 | BK41: 2029-06-30 | BL41: 2029-07-31 | BM41: 2029-08-31 | BN41: 2029-09-30 | BO41: 2029-10-31 | BP41: 2029-11-30 | BQ41: 2029-12-31 | BR41: =+BR$3 -> 2030-01-31 | BS41: 2030-02-28 | BT41: 2030-03-31 | BU41: 2030-04-30 | BV41: 2030-05-31 | BW41: 2030-06-30 | BX41: 2030-07-31 | BY41: 2030-08-31 | BZ41: 2030-09-30
C42: =+B4 -> Gosforth | E42: =+Gosforth!H14 -> 0.00 | F42: =+Gosforth!I14 -> 0.00 | G42: =+Gosforth!J14 -> 0.00 | H42: =+Gosforth!K14 -> 0.00 | I42: =+Gosforth!L14 -> 0.00 | J42: =+Gosforth!M14 -> 0.00 | K42: =+Gosforth!N14 -> 0.00 | L42: =+Gosforth!O14 -> 0.00 | M42: =+Gosforth!P14 -> 0.00 | N42: =+Gosforth!Q14 -> 0.00 | O42: =+Gosforth!R14 -> 0.00 | P42: =+Gosforth!S14 -> 0.00 | Q42: =+Gosforth!T14 -> 0.00 | R42: =+Gosforth!U14 -> 11,946,666.68 | S42: =+Gosforth!V14 -> 0.00 | T42: =+Gosforth!W14 -> 0.00 | U42: =+Gosforth!X14 -> 0.00 | V42: =+Gosforth!Y14 -> 0.00 | W42: =+Gosforth!Z14 -> 0.00 | X42: =+Gosforth!AA14 -> 0.00 | Y42: =+Gosforth!AB14 -> 0.00 | Z42: =+Gosforth!AC14 -> 0.00 | AA42: =+Gosforth!AD14 -> 0.00 | AB42: =+Gosforth!AE14 -> 0.00 | AC42: =+Gosforth!AF14 -> 0.00 | AD42: =+Gosforth!AG14 -> 11,946,666.68 | AE42: =+Gosforth!AH14 -> 0.00 | AF42: =+Gosforth!AI14 -> 0.00 | AG42: =+Gosforth!AJ14 -> 0.00 | AH42: =+Gosforth!AK14 -> 0.00 | AI42: =+Gosforth!AL14 -> 0.00 | AJ42: =+Gosforth!AM14 -> 0.00 | AK42: =+Gosforth!AN14 -> 0.00 | AL42: =+Gosforth!AO14 -> 0.00 | AM42: =+Gosforth!AP14 -> 0.00 | AN42: =+Gosforth!AQ14 -> 0.00 | AO42: =+Gosforth!AR14 -> 0.00 | AP42: =+Gosforth!AS14 -> 11,946,666.68 | AQ42: =+Gosforth!AT14 -> 0.00 | AR42: =+Gosforth!AU14 -> 0.00 | AS42: =+Gosforth!AV14 -> 0.00 | AT42: =+Gosforth!AW14 -> 0.00 | AU42: =+Gosforth!AX14 -> 0.00 | AV42: =+Gosforth!AY14 -> 0.00 | AW42: =+Gosforth!AZ14 -> 0.00 | AX42: =+Gosforth!BA14 -> 0.00 | AY42: =+Gosforth!BB14 -> 0.00 | AZ42: =+Gosforth!BC14 -> 0.00 | BA42: =+Gosforth!BD14 -> 0.00 | BB42: =+Gosforth!BE14 -> 11,946,666.68 | BC42: =+Gosforth!BF14 -> 0.00 | BD42: =+Gosforth!BG14 -> 0.00 | BE42: =+Gosforth!BH14 -> 0.00 | BF42: =+Gosforth!BI14 -> 0.00 | BG42: =+Gosforth!BJ14 -> 0.00 | BH42: =+Gosforth!BK14 -> 0.00 | BI42: =+Gosforth!BL14 -> 0.00 | BJ42: =+Gosforth!BM14 -> 0.00 | BK42: =+Gosforth!BN14 -> 0.00 | BL42: =+Gosforth!BO14 -> 0.00 | BM42: =+Gosforth!BP14 -> 0.00 | BN42: =+Gosforth!BQ14 -> 11,946,666.68 | BO42: =+Gosforth!BR14 -> 0.00 | BP42: =+Gosforth!BS14 -> 0.00 | BQ42: =+Gosforth!BT14 -> 0.00 | BR42: =+Gosforth!BU14 -> 0.00 | BS42: =+Gosforth!BV14 -> 0.00 | BT42: =+Gosforth!BW14 -> 0.00 | BU42: =+Gosforth!BX14 -> 0.00 | BV42: =+Gosforth!BY14 -> 0.00 | BW42: =+Gosforth!BZ14 -> 0.00 | BX42: =+Gosforth!CA14 -> 0.00 | BY42: =+Gosforth!CB14 -> 0.00 | BZ42: =+Gosforth!CC14 -> 11,946,666.60
C43: =$B$8 -> Dalpark | E43: =+Dalpark!H14 -> 0.00 | F43: =+Dalpark!I14 -> 0.00 | G43: =+Dalpark!J14 -> 0.00 | H43: =+Dalpark!K14 -> 0.00 | I43: =+Dalpark!L14 -> 0.00 | J43: =+Dalpark!M14 -> 0.00 | K43: =+Dalpark!N14 -> 0.00 | L43: =+Dalpark!O14 -> 0.00 | M43: =+Dalpark!P14 -> 0.00 | N43: =+Dalpark!Q14 -> 0.00 | O43: =+Dalpark!R14 -> 0.00 | P43: =+Dalpark!S14 -> 0.00 | Q43: =+Dalpark!T14 -> 0.00 | R43: =+Dalpark!U14 -> 10,219,416.67 | S43: =+Dalpark!V14 -> 0.00 | T43: =+Dalpark!W14 -> 0.00 | U43: =+Dalpark!X14 -> 0.00 | V43: =+Dalpark!Y14 -> 0.00 | W43: =+Dalpark!Z14 -> 0.00 | X43: =+Dalpark!AA14 -> 0.00 | Y43: =+Dalpark!AB14 -> 0.00 | Z43: =+Dalpark!AC14 -> 0.00 | AA43: =+Dalpark!AD14 -> 0.00 | AB43: =+Dalpark!AE14 -> 0.00 | AC43: =+Dalpark!AF14 -> 0.00 | AD43: =+Dalpark!AG14 -> 10,219,416.67 | AE43: =+Dalpark!AH14 -> 0.00 | AF43: =+Dalpark!AI14 -> 0.00 | AG43: =+Dalpark!AJ14 -> 0.00 | AH43: =+Dalpark!AK14 -> 0.00 | AI43: =+Dalpark!AL14 -> 0.00 | AJ43: =+Dalpark!AM14 -> 0.00 | AK43: =+Dalpark!AN14 -> 0.00 | AL43: =+Dalpark!AO14 -> 0.00 | AM43: =+Dalpark!AP14 -> 0.00 | AN43: =+Dalpark!AQ14 -> 0.00 | AO43: =+Dalpark!AR14 -> 0.00 | AP43: =+Dalpark!AS14 -> 10,219,416.67 | AQ43: =+Dalpark!AT14 -> 0.00 | AR43: =+Dalpark!AU14 -> 0.00 | AS43: =+Dalpark!AV14 -> 0.00 | AT43: =+Dalpark!AW14 -> 0.00 | AU43: =+Dalpark!AX14 -> 0.00 | AV43: =+Dalpark!AY14 -> 0.00 | AW43: =+Dalpark!AZ14 -> 0.00 | AX43: =+Dalpark!BA14 -> 0.00 | AY43: =+Dalpark!BB14 -> 0.00 | AZ43: =+Dalpark!BC14 -> 0.00 | BA43: =+Dalpark!BD14 -> 0.00 | BB43: =+Dalpark!BE14 -> 10,219,416.67 | BC43: =+Dalpark!BF14 -> 0.00 | BD43: =+Dalpark!BG14 -> 0.00 | BE43: =+Dalpark!BH14 -> 0.00 | BF43: =+Dalpark!BI14 -> 0.00 | BG43: =+Dalpark!BJ14 -> 0.00 | BH43: =+Dalpark!BK14 -> 0.00 | BI43: =+Dalpark!BL14 -> 0.00 | BJ43: =+Dalpark!BM14 -> 0.00 | BK43: =+Dalpark!BN14 -> 0.00 | BL43: =+Dalpark!BO14 -> 0.00 | BM43: =+Dalpark!BP14 -> 0.00 | BN43: =+Dalpark!BQ14 -> 10,219,416.67 | BO43: =+Dalpark!BR14 -> 0.00 | BP43: =+Dalpark!BS14 -> 0.00 | BQ43: =+Dalpark!BT14 -> 0.00 | BR43: =+Dalpark!BU14 -> 0.00 | BS43: =+Dalpark!BV14 -> 0.00 | BT43: =+Dalpark!BW14 -> 0.00 | BU43: =+Dalpark!BX14 -> 0.00 | BV43: =+Dalpark!BY14 -> 0.00 | BW43: =+Dalpark!BZ14 -> 0.00 | BX43: =+Dalpark!CA14 -> 0.00 | BY43: =+Dalpark!CB14 -> 0.00 | BZ43: =+Dalpark!CC14 -> 10,219,416.65
C44: =$B$12 -> Leandra | E44: =+Leandra!H14 -> 0.00 | F44: =+Leandra!I14 -> 0.00 | G44: =+Leandra!J14 -> 0.00 | H44: =+Leandra!K14 -> 0.00 | I44: =+Leandra!L14 -> 0.00 | J44: =+Leandra!M14 -> 0.00 | K44: =+Leandra!N14 -> 0.00 | L44: =+Leandra!O14 -> 0.00 | M44: =+Leandra!P14 -> 0.00 | N44: =+Leandra!Q14 -> 0.00 | O44: =+Leandra!R14 -> 0.00 | P44: =+Leandra!S14 -> 0.00 | Q44: =+Leandra!T14 -> 0.00 | R44: =+Leandra!U14 -> 9,114,000.00 | S44: =+Leandra!V14 -> 0.00 | T44: =+Leandra!W14 -> 0.00 | U44: =+Leandra!X14 -> 0.00 | V44: =+Leandra!Y14 -> 0.00 | W44: =+Leandra!Z14 -> 0.00 | X44: =+Leandra!AA14 -> 0.00 | Y44: =+Leandra!AB14 -> 0.00 | Z44: =+Leandra!AC14 -> 0.00 | AA44: =+Leandra!AD14 -> 0.00 | AB44: =+Leandra!AE14 -> 0.00 | AC44: =+Leandra!AF14 -> 0.00 | AD44: =+Leandra!AG14 -> 9,114,000.00 | AE44: =+Leandra!AH14 -> 0.00 | AF44: =+Leandra!AI14 -> 0.00 | AG44: =+Leandra!AJ14 -> 0.00 | AH44: =+Leandra!AK14 -> 0.00 | AI44: =+Leandra!AL14 -> 0.00 | AJ44: =+Leandra!AM14 -> 0.00 | AK44: =+Leandra!AN14 -> 0.00 | AL44: =+Leandra!AO14 -> 0.00 | AM44: =+Leandra!AP14 -> 0.00 | AN44: =+Leandra!AQ14 -> 0.00 | AO44: =+Leandra!AR14 -> 0.00 | AP44: =+Leandra!AS14 -> 9,114,000.00 | AQ44: =+Leandra!AT14 -> 0.00 | AR44: =+Leandra!AU14 -> 0.00 | AS44: =+Leandra!AV14 -> 0.00 | AT44: =+Leandra!AW14 -> 0.00 | AU44: =+Leandra!AX14 -> 0.00 | AV44: =+Leandra!AY14 -> 0.00 | AW44: =+Leandra!AZ14 -> 0.00 | AX44: =+Leandra!BA14 -> 0.00 | AY44: =+Leandra!BB14 -> 0.00 | AZ44: =+Leandra!BC14 -> 0.00 | BA44: =+Leandra!BD14 -> 0.00 | BB44: =+Leandra!BE14 -> 9,114,000.00 | BC44: =+Leandra!BF14 -> 0.00 | BD44: =+Leandra!BG14 -> 0.00 | BE44: =+Leandra!BH14 -> 0.00 | BF44: =+Leandra!BI14 -> 0.00 | BG44: =+Leandra!BJ14 -> 0.00 | BH44: =+Leandra!BK14 -> 0.00 | BI44: =+Leandra!BL14 -> 0.00 | BJ44: =+Leandra!BM14 -> 0.00 | BK44: =+Leandra!BN14 -> 0.00 | BL44: =+Leandra!BO14 -> 0.00 | BM44: =+Leandra!BP14 -> 0.00 | BN44: =+Leandra!BQ14 -> 9,114,000.00 | BO44: =+Leandra!BR14 -> 0.00 | BP44: =+Leandra!BS14 -> 0.00 | BQ44: =+Leandra!BT14 -> 0.00 | BR44: =+Leandra!BU14 -> 0.00 | BS44: =+Leandra!BV14 -> 0.00 | BT44: =+Leandra!BW14 -> 0.00 | BU44: =+Leandra!BX14 -> 0.00 | BV44: =+Leandra!BY14 -> 0.00 | BW44: =+Leandra!BZ14 -> 0.00 | BX44: =+Leandra!CA14 -> 0.00 | BY44: =+Leandra!CB14 -> 0.00 | BZ44: =+Leandra!CC14 -> 9,114,000.00
C45: =+B16 -> Trichardt | E45: =+Trichardt!H14 -> 0.00 | F45: =+Trichardt!I14 -> 0.00 | G45: =+Trichardt!J14 -> 0.00 | H45: =+Trichardt!K14 -> 0.00 | I45: =+Trichardt!L14 -> 0.00 | J45: =+Trichardt!M14 -> 0.00 | K45: =+Trichardt!N14 -> 0.00 | L45: =+Trichardt!O14 -> 0.00 | M45: =+Trichardt!P14 -> 0.00 | N45: =+Trichardt!Q14 -> 0.00 | O45: =+Trichardt!R14 -> 0.00 | P45: =+Trichardt!S14 -> 0.00 | Q45: =+Trichardt!T14 -> 0.00 | R45: =+Trichardt!U14 -> 5,699,303.32 | S45: =+Trichardt!V14 -> 0.00 | T45: =+Trichardt!W14 -> 0.00 | U45: =+Trichardt!X14 -> 0.00 | V45: =+Trichardt!Y14 -> 0.00 | W45: =+Trichardt!Z14 -> 0.00 | X45: =+Trichardt!AA14 -> 0.00 | Y45: =+Trichardt!AB14 -> 0.00 | Z45: =+Trichardt!AC14 -> 0.00 | AA45: =+Trichardt!AD14 -> 0.00 | AB45: =+Trichardt!AE14 -> 0.00 | AC45: =+Trichardt!AF14 -> 0.00 | AD45: =+Trichardt!AG14 -> 5,699,303.32 | AE45: =+Trichardt!AH14 -> 0.00 | AF45: =+Trichardt!AI14 -> 0.00 | AG45: =+Trichardt!AJ14 -> 0.00 | AH45: =+Trichardt!AK14 -> 0.00 | AI45: =+Trichardt!AL14 -> 0.00 | AJ45: =+Trichardt!AM14 -> 0.00 | AK45: =+Trichardt!AN14 -> 0.00 | AL45: =+Trichardt!AO14 -> 0.00 | AM45: =+Trichardt!AP14 -> 0.00 | AN45: =+Trichardt!AQ14 -> 0.00 | AO45: =+Trichardt!AR14 -> 0.00 | AP45: =+Trichardt!AS14 -> 5,699,303.32 | AQ45: =+Trichardt!AT14 -> 0.00 | AR45: =+Trichardt!AU14 -> 0.00 | AS45: =+Trichardt!AV14 -> 0.00 | AT45: =+Trichardt!AW14 -> 0.00 | AU45: =+Trichardt!AX14 -> 0.00 | AV45: =+Trichardt!AY14 -> 0.00 | AW45: =+Trichardt!AZ14 -> 0.00 | AX45: =+Trichardt!BA14 -> 0.00 | AY45: =+Trichardt!BB14 -> 0.00 | AZ45: =+Trichardt!BC14 -> 0.00 | BA45: =+Trichardt!BD14 -> 0.00 | BB45: =+Trichardt!BE14 -> 5,699,303.32 | BC45: =+Trichardt!BF14 -> 0.00 | BD45: =+Trichardt!BG14 -> 0.00 | BE45: =+Trichardt!BH14 -> 0.00 | BF45: =+Trichardt!BI14 -> 0.00 | BG45: =+Trichardt!BJ14 -> 0.00 | BH45: =+Trichardt!BK14 -> 0.00 | BI45: =+Trichardt!BL14 -> 0.00 | BJ45: =+Trichardt!BM14 -> 0.00 | BK45: =+Trichardt!BN14 -> 0.00 | BL45: =+Trichardt!BO14 -> 0.00 | BM45: =+Trichardt!BP14 -> 0.00 | BN45: =+Trichardt!BQ14 -> 5,699,303.32 | BO45: =+Trichardt!BR14 -> 0.00 | BP45: =+Trichardt!BS14 -> 0.00 | BQ45: =+Trichardt!BT14 -> 0.00 | BR45: =+Trichardt!BU14 -> 0.00 | BS45: =+Trichardt!BV14 -> 0.00 | BT45: =+Trichardt!BW14 -> 0.00 | BU45: =+Trichardt!BX14 -> 0.00 | BV45: =+Trichardt!BY14 -> 0.00 | BW45: =+Trichardt!BZ14 -> 0.00 | BX45: =+Trichardt!CA14 -> 0.00 | BY45: =+Trichardt!CB14 -> 0.00 | BZ45: =+Trichardt!CC14 -> 5,699,303.40
C46: =+B20 -> Ermelo | E46: =+Ermelo!H14 -> 0.00 | F46: =+Ermelo!I14 -> 0.00 | G46: =+Ermelo!J14 -> 0.00 | H46: =+Ermelo!K14 -> 0.00 | I46: =+Ermelo!L14 -> 0.00 | J46: =+Ermelo!M14 -> 0.00 | K46: =+Ermelo!N14 -> 0.00 | L46: =+Ermelo!O14 -> 0.00 | M46: =+Ermelo!P14 -> 0.00 | N46: =+Ermelo!Q14 -> 0.00 | O46: =+Ermelo!R14 -> 0.00 | P46: =+Ermelo!S14 -> 0.00 | Q46: =+Ermelo!T14 -> 0.00 | R46: =+Ermelo!U14 -> 6,550,966.67 | S46: =+Ermelo!V14 -> 0.00 | T46: =+Ermelo!W14 -> 0.00 | U46: =+Ermelo!X14 -> 0.00 | V46: =+Ermelo!Y14 -> 0.00 | W46: =+Ermelo!Z14 -> 0.00 | X46: =+Ermelo!AA14 -> 0.00 | Y46: =+Ermelo!AB14 -> 0.00 | Z46: =+Ermelo!AC14 -> 0.00 | AA46: =+Ermelo!AD14 -> 0.00 | AB46: =+Ermelo!AE14 -> 0.00 | AC46: =+Ermelo!AF14 -> 0.00 | AD46: =+Ermelo!AG14 -> 6,550,966.67 | AE46: =+Ermelo!AH14 -> 0.00 | AF46: =+Ermelo!AI14 -> 0.00 | AG46: =+Ermelo!AJ14 -> 0.00 | AH46: =+Ermelo!AK14 -> 0.00 | AI46: =+Ermelo!AL14 -> 0.00 | AJ46: =+Ermelo!AM14 -> 0.00 | AK46: =+Ermelo!AN14 -> 0.00 | AL46: =+Ermelo!AO14 -> 0.00 | AM46: =+Ermelo!AP14 -> 0.00 | AN46: =+Ermelo!AQ14 -> 0.00 | AO46: =+Ermelo!AR14 -> 0.00 | AP46: =+Ermelo!AS14 -> 6,550,966.67 | AQ46: =+Ermelo!AT14 -> 0.00 | AR46: =+Ermelo!AU14 -> 0.00 | AS46: =+Ermelo!AV14 -> 0.00 | AT46: =+Ermelo!AW14 -> 0.00 | AU46: =+Ermelo!AX14 -> 0.00 | AV46: =+Ermelo!AY14 -> 0.00 | AW46: =+Ermelo!AZ14 -> 0.00 | AX46: =+Ermelo!BA14 -> 0.00 | AY46: =+Ermelo!BB14 -> 0.00 | AZ46: =+Ermelo!BC14 -> 0.00 | BA46: =+Ermelo!BD14 -> 0.00 | BB46: =+Ermelo!BE14 -> 6,550,966.67 | BC46: =+Ermelo!BF14 -> 0.00 | BD46: =+Ermelo!BG14 -> 0.00 | BE46: =+Ermelo!BH14 -> 0.00 | BF46: =+Ermelo!BI14 -> 0.00 | BG46: =+Ermelo!BJ14 -> 0.00 | BH46: =+Ermelo!BK14 -> 0.00 | BI46: =+Ermelo!BL14 -> 0.00 | BJ46: =+Ermelo!BM14 -> 0.00 | BK46: =+Ermelo!BN14 -> 0.00 | BL46: =+Ermelo!BO14 -> 0.00 | BM46: =+Ermelo!BP14 -> 0.00 | BN46: =+Ermelo!BQ14 -> 6,550,966.67 | BO46: =+Ermelo!BR14 -> 0.00 | BP46: =+Ermelo!BS14 -> 0.00 | BQ46: =+Ermelo!BT14 -> 0.00 | BR46: =+Ermelo!BU14 -> 0.00 | BS46: =+Ermelo!BV14 -> 0.00 | BT46: =+Ermelo!BW14 -> 0.00 | BU46: =+Ermelo!BX14 -> 0.00 | BV46: =+Ermelo!BY14 -> 0.00 | BW46: =+Ermelo!BZ14 -> 0.00 | BX46: =+Ermelo!CA14 -> 0.00 | BY46: =+Ermelo!CB14 -> 0.00 | BZ46: =+Ermelo!CC14 -> 6,550,966.65
B47: OM Provisional Sums to Model (Not Subject to CPI) | E47: =+SUM(E42:E46) -> 0.00 | F47: 0.00 | G47: 0.00 | H47: 0.00 | I47: 0.00 | J47: 0.00 | K47: 0.00 | L47: 0.00 | M47: 0.00 | N47: 0.00 | O47: 0.00 | P47: 0.00 | Q47: 0.00 | R47: 43,530,353.34 | S47: 0.00 | T47: 0.00 | U47: 0.00 | V47: 0.00 | W47: 0.00 | X47: 0.00 | Y47: 0.00 | Z47: 0.00 | AA47: 0.00 | AB47: 0.00 | AC47: 0.00 | AD47: 43,530,353.34 | AE47: 0.00 | AF47: 0.00 | AG47: 0.00 | AH47: 0.00 | AI47: 0.00 | AJ47: 0.00 | AK47: 0.00 | AL47: 0.00 | AM47: 0.00 | AN47: 0.00 | AO47: 0.00 | AP47: 43,530,353.34 | AQ47: 0.00 | AR47: 0.00 | AS47: 0.00 | AT47: 0.00 | AU47: 0.00 | AV47: 0.00 | AW47: 0.00 | AX47: 0.00 | AY47: 0.00 | AZ47: 0.00 | BA47: 0.00 | BB47: 43,530,353.34 | BC47: 0.00 | BD47: 0.00 | BE47: 0.00 | BF47: 0.00 | BG47: 0.00 | BH47: 0.00 | BI47: 0.00 | BJ47: 0.00 | BK47: 0.00 | BL47: 0.00 | BM47: 0.00 | BN47: 43,530,353.34 | BO47: 0.00 | BP47: 0.00 | BQ47: =+SUM(BQ42:BQ46) -> 0.00 | BR47: 0.00 | BS47: 0.00 | BT47: 0.00 | BU47: 0.00 | BV47: 0.00 | BW47: 0.00 | BX47: 0.00 | BY47: 0.00 | BZ47: 43,530,353.30
B49: Control Centre | E49: Est Period | G49: Operation Service Period - Year 1 | S49: =+G49+1 -> Operation Service Period - Year 2 | AE49: =+S49+1 -> Operation Service Period - Year 3 | AQ49: =+AE49+1 -> Operation Service Period - Year 4 | BC49: =+AQ49+1 -> Operation Service Period - Year 5 | BO49: =+BC49+1 -> Operation Service Period - Year 6
E50: =+E$3 -> 2024-08-19 | F50: =+F$3 -> 2024-09-30 | G50: 2024-10-31 | H50: 2024-11-30 | I50: 2024-12-31 | J50: 2025-01-31 | K50: 2025-02-28 | L50: 2025-03-31 | M50: 2025-04-30 | N50: 2025-05-31 | O50: 2025-06-30 | P50: 2025-07-31 | Q50: 2025-08-31 | R50: 2025-09-30 | S50: 2025-10-31 | T50: 2025-11-30 | U50: 2025-12-31 | V50: 2026-01-31 | W50: 2026-02-28 | X50: 2026-03-31 | Y50: 2026-04-30 | Z50: 2026-05-31 | AA50: 2026-06-30 | AB50: 2026-07-31 | AC50: 2026-08-31 | AD50: 2026-09-30 | AE50: 2026-10-31 | AF50: 2026-11-30 | AG50: 2026-12-31 | AH50: 2027-01-31 | AI50: 2027-02-28 | AJ50: 2027-03-31 | AK50: 2027-04-30 | AL50: 2027-05-31 | AM50: 2027-06-30 | AN50: 2027-07-31 | AO50: 2027-08-31 | AP50: 2027-09-30 | AQ50: 2027-10-31 | AR50: 2027-11-30 | AS50: 2027-12-31 | AT50: 2028-01-31 | AU50: 2028-02-29 | AV50: 2028-03-31 | AW50: 2028-04-30 | AX50: 2028-05-31 | AY50: 2028-06-30 | AZ50: 2028-07-31 | BA50: 2028-08-31 | BB50: 2028-09-30 | BC50: 2028-10-31 | BD50: 2028-11-30 | BE50: 2028-12-31 | BF50: 2029-01-31 | BG50: 2029-02-28 | BH50: 2029-03-31 | BI50: 2029-04-30 | BJ50: 2029-05-31 | BK50: 2029-06-30 | BL50: 2029-07-31 | BM50: 2029-08-31 | BN50: 2029-09-30 | BO50: 2029-10-31 | BP50: 2029-11-30 | BQ50: 2029-12-31 | BR50: =+BR$3 -> 2030-01-31 | BS50: 2030-02-28 | BT50: 2030-03-31 | BU50: 2030-04-30 | BV50: 2030-05-31 | BW50: 2030-06-30 | BX50: 2030-07-31 | BY50: 2030-08-31 | BZ50: 2030-09-30
C51: =+B4 -> Gosforth | E51: =Gosforth!H22 -> 0.00 | F51: =Gosforth!I22 -> 0.00 | G51: =Gosforth!J22 -> 0.00 | H51: =Gosforth!K22 -> 0.00 | I51: =Gosforth!L22 -> 0.00 | J51: =Gosforth!M22 -> 0.00 | K51: =Gosforth!N22 -> 0.00 | L51: =Gosforth!O22 -> 0.00 | M51: =Gosforth!P22 -> 0.00 | N51: =Gosforth!Q22 -> 0.00 | O51: =Gosforth!R22 -> 0.00 | P51: =Gosforth!S22 -> 0.00 | Q51: =Gosforth!T22 -> 0.00 | R51: =Gosforth!U22 -> 0.00 | S51: =Gosforth!V22 -> 0.00 | T51: =Gosforth!W22 -> 0.00 | U51: =Gosforth!X22 -> 0.00 | V51: =Gosforth!Y22 -> 0.00 | W51: =Gosforth!Z22 -> 0.00 | X51: =Gosforth!AA22 -> 0.00 | Y51: =Gosforth!AB22 -> 0.00 | Z51: =Gosforth!AC22 -> 0.00 | AA51: =Gosforth!AD22 -> 0.00 | AB51: =Gosforth!AE22 -> 0.00 | AC51: =Gosforth!AF22 -> 0.00 | AD51: =Gosforth!AG22 -> 0.00 | AE51: =Gosforth!AH22 -> 0.00 | AF51: =Gosforth!AI22 -> 0.00 | AG51: =Gosforth!AJ22 -> 0.00 | AH51: =Gosforth!AK22 -> 0.00 | AI51: =Gosforth!AL22 -> 0.00 | AJ51: =Gosforth!AM22 -> 0.00 | AK51: =Gosforth!AN22 -> 0.00 | AL51: =Gosforth!AO22 -> 0.00 | AM51: =Gosforth!AP22 -> 0.00 | AN51: =Gosforth!AQ22 -> 0.00 | AO51: =Gosforth!AR22 -> 0.00 | AP51: =Gosforth!AS22 -> 0.00 | AQ51: =Gosforth!AT22 -> 0.00 | AR51: =Gosforth!AU22 -> 0.00 | AS51: =Gosforth!AV22 -> 0.00 | AT51: =Gosforth!AW22 -> 0.00 | AU51: =Gosforth!AX22 -> 0.00 | AV51: =Gosforth!AY22 -> 0.00 | AW51: =Gosforth!AZ22 -> 0.00 | AX51: =Gosforth!BA22 -> 0.00 | AY51: =Gosforth!BB22 -> 0.00 | AZ51: =Gosforth!BC22 -> 0.00 | BA51: =Gosforth!BD22 -> 0.00 | BB51: =Gosforth!BE22 -> 0.00 | BC51: =Gosforth!BF22 -> 0.00 | BD51: =Gosforth!BG22 -> 0.00 | BE51: =Gosforth!BH22 -> 0.00 | BF51: =Gosforth!BI22 -> 0.00 | BG51: =Gosforth!BJ22 -> 0.00 | BH51: =Gosforth!BK22 -> 0.00 | BI51: =Gosforth!BL22 -> 0.00 | BJ51: =Gosforth!BM22 -> 0.00 | BK51: =Gosforth!BN22 -> 0.00 | BL51: =Gosforth!BO22 -> 0.00 | BM51: =Gosforth!BP22 -> 0.00 | BN51: =Gosforth!BQ22 -> 0.00 | BO51: =Gosforth!BR22 -> 0.00 | BP51: =Gosforth!BS22 -> 0.00 | BQ51: =Gosforth!BT22 -> 0.00 | BR51: =Gosforth!BU22 -> 0.00 | BS51: =Gosforth!BV22 -> 0.00 | BT51: =Gosforth!BW22 -> 0.00 | BU51: =Gosforth!BX22 -> 0.00 | BV51: =Gosforth!BY22 -> 0.00 | BW51: =Gosforth!BZ22 -> 0.00 | BX51: =Gosforth!CA22 -> 0.00 | BY51: =Gosforth!CB22 -> 0.00 | BZ51: =Gosforth!CC22 -> 0.00
C52: =$B$8 -> Dalpark | E52: =Dalpark!H22 -> 0.00 | F52: =Dalpark!I22 -> 0.00 | G52: =Dalpark!J22 -> 0.00 | H52: =Dalpark!K22 -> 0.00 | I52: =Dalpark!L22 -> 0.00 | J52: =Dalpark!M22 -> 0.00 | K52: =Dalpark!N22 -> 0.00 | L52: =Dalpark!O22 -> 0.00 | M52: =Dalpark!P22 -> 0.00 | N52: =Dalpark!Q22 -> 0.00 | O52: =Dalpark!R22 -> 0.00 | P52: =Dalpark!S22 -> 0.00 | Q52: =Dalpark!T22 -> 0.00 | R52: =Dalpark!U22 -> 0.00 | S52: =Dalpark!V22 -> 0.00 | T52: =Dalpark!W22 -> 0.00 | U52: =Dalpark!X22 -> 0.00 | V52: =Dalpark!Y22 -> 0.00 | W52: =Dalpark!Z22 -> 0.00 | X52: =Dalpark!AA22 -> 0.00 | Y52: =Dalpark!AB22 -> 0.00 | Z52: =Dalpark!AC22 -> 0.00 | AA52: =Dalpark!AD22 -> 0.00 | AB52: =Dalpark!AE22 -> 0.00 | AC52: =Dalpark!AF22 -> 0.00 | AD52: =Dalpark!AG22 -> 0.00 | AE52: =Dalpark!AH22 -> 0.00 | AF52: =Dalpark!AI22 -> 0.00 | AG52: =Dalpark!AJ22 -> 0.00 | AH52: =Dalpark!AK22 -> 0.00 | AI52: =Dalpark!AL22 -> 0.00 | AJ52: =Dalpark!AM22 -> 0.00 | AK52: =Dalpark!AN22 -> 0.00 | AL52: =Dalpark!AO22 -> 0.00 | AM52: =Dalpark!AP22 -> 0.00 | AN52: =Dalpark!AQ22 -> 0.00 | AO52: =Dalpark!AR22 -> 0.00 | AP52: =Dalpark!AS22 -> 0.00 | AQ52: =Dalpark!AT22 -> 0.00 | AR52: =Dalpark!AU22 -> 0.00 | AS52: =Dalpark!AV22 -> 0.00 | AT52: =Dalpark!AW22 -> 0.00 | AU52: =Dalpark!AX22 -> 0.00 | AV52: =Dalpark!AY22 -> 0.00 | AW52: =Dalpark!AZ22 -> 0.00 | AX52: =Dalpark!BA22 -> 0.00 | AY52: =Dalpark!BB22 -> 0.00 | AZ52: =Dalpark!BC22 -> 0.00 | BA52: =Dalpark!BD22 -> 0.00 | BB52: =Dalpark!BE22 -> 0.00 | BC52: =Dalpark!BF22 -> 0.00 | BD52: =Dalpark!BG22 -> 0.00 | BE52: =Dalpark!BH22 -> 0.00 | BF52: =Dalpark!BI22 -> 0.00 | BG52: =Dalpark!BJ22 -> 0.00 | BH52: =Dalpark!BK22 -> 0.00 | BI52: =Dalpark!BL22 -> 0.00 | BJ52: =Dalpark!BM22 -> 0.00 | BK52: =Dalpark!BN22 -> 0.00 | BL52: =Dalpark!BO22 -> 0.00 | BM52: =Dalpark!BP22 -> 0.00 | BN52: =Dalpark!BQ22 -> 0.00 | BO52: =Dalpark!BR22 -> 0.00 | BP52: =Dalpark!BS22 -> 0.00 | BQ52: =Dalpark!BT22 -> 0.00 | BR52: =Dalpark!BU22 -> 0.00 | BS52: =Dalpark!BV22 -> 0.00 | BT52: =Dalpark!BW22 -> 0.00 | BU52: =Dalpark!BX22 -> 0.00 | BV52: =Dalpark!BY22 -> 0.00 | BW52: =Dalpark!BZ22 -> 0.00 | BX52: =Dalpark!CA22 -> 0.00 | BY52: =Dalpark!CB22 -> 0.00 | BZ52: =Dalpark!CC22 -> 0.00
C53: =$B$12 -> Leandra | E53: =Leandra!H22 -> 0.00 | F53: =Leandra!I22 -> 0.00 | G53: =Leandra!J22 -> 0.00 | H53: =Leandra!K22 -> 0.00 | I53: =Leandra!L22 -> 0.00 | J53: =Leandra!M22 -> 0.00 | K53: =Leandra!N22 -> 0.00 | L53: =Leandra!O22 -> 0.00 | M53: =Leandra!P22 -> 0.00 | N53: =Leandra!Q22 -> 0.00 | O53: =Leandra!R22 -> 0.00 | P53: =Leandra!S22 -> 0.00 | Q53: =Leandra!T22 -> 0.00 | R53: =Leandra!U22 -> 0.00 | S53: =Leandra!V22 -> 0.00 | T53: =Leandra!W22 -> 0.00 | U53: =Leandra!X22 -> 0.00 | V53: =Leandra!Y22 -> 0.00 | W53: =Leandra!Z22 -> 0.00 | X53: =Leandra!AA22 -> 0.00 | Y53: =Leandra!AB22 -> 0.00 | Z53: =Leandra!AC22 -> 0.00 | AA53: =Leandra!AD22 -> 0.00 | AB53: =Leandra!AE22 -> 0.00 | AC53: =Leandra!AF22 -> 0.00 | AD53: =Leandra!AG22 -> 0.00 | AE53: =Leandra!AH22 -> 0.00 | AF53: =Leandra!AI22 -> 0.00 | AG53: =Leandra!AJ22 -> 0.00 | AH53: =Leandra!AK22 -> 0.00 | AI53: =Leandra!AL22 -> 0.00 | AJ53: =Leandra!AM22 -> 0.00 | AK53: =Leandra!AN22 -> 0.00 | AL53: =Leandra!AO22 -> 0.00 | AM53: =Leandra!AP22 -> 0.00 | AN53: =Leandra!AQ22 -> 0.00 | AO53: =Leandra!AR22 -> 0.00 | AP53: =Leandra!AS22 -> 0.00 | AQ53: =Leandra!AT22 -> 0.00 | AR53: =Leandra!AU22 -> 0.00 | AS53: =Leandra!AV22 -> 0.00 | AT53: =Leandra!AW22 -> 0.00 | AU53: =Leandra!AX22 -> 0.00 | AV53: =Leandra!AY22 -> 0.00 | AW53: =Leandra!AZ22 -> 0.00 | AX53: =Leandra!BA22 -> 0.00 | AY53: =Leandra!BB22 -> 0.00 | AZ53: =Leandra!BC22 -> 0.00 | BA53: =Leandra!BD22 -> 0.00 | BB53: =Leandra!BE22 -> 0.00 | BC53: =Leandra!BF22 -> 0.00 | BD53: =Leandra!BG22 -> 0.00 | BE53: =Leandra!BH22 -> 0.00 | BF53: =Leandra!BI22 -> 0.00 | BG53: =Leandra!BJ22 -> 0.00 | BH53: =Leandra!BK22 -> 0.00 | BI53: =Leandra!BL22 -> 0.00 | BJ53: =Leandra!BM22 -> 0.00 | BK53: =Leandra!BN22 -> 0.00 | BL53: =Leandra!BO22 -> 0.00 | BM53: =Leandra!BP22 -> 0.00 | BN53: =Leandra!BQ22 -> 0.00 | BO53: =Leandra!BR22 -> 0.00 | BP53: =Leandra!BS22 -> 0.00 | BQ53: =Leandra!BT22 -> 0.00 | BR53: =Leandra!BU22 -> 0.00 | BS53: =Leandra!BV22 -> 0.00 | BT53: =Leandra!BW22 -> 0.00 | BU53: =Leandra!BX22 -> 0.00 | BV53: =Leandra!BY22 -> 0.00 | BW53: =Leandra!BZ22 -> 0.00 | BX53: =Leandra!CA22 -> 0.00 | BY53: =Leandra!CB22 -> 0.00 | BZ53: =Leandra!CC22 -> 0.00
C54: =+B16 -> Trichardt | E54: =Trichardt!H22 -> 0.00 | F54: =Trichardt!I22 -> 0.00 | G54: =Trichardt!J22 -> 0.00 | H54: =Trichardt!K22 -> 0.00 | I54: =Trichardt!L22 -> 0.00 | J54: =Trichardt!M22 -> 0.00 | K54: =Trichardt!N22 -> 0.00 | L54: =Trichardt!O22 -> 0.00 | M54: =Trichardt!P22 -> 0.00 | N54: =Trichardt!Q22 -> 0.00 | O54: =Trichardt!R22 -> 0.00 | P54: =Trichardt!S22 -> 0.00 | Q54: =Trichardt!T22 -> 0.00 | R54: =Trichardt!U22 -> 0.00 | S54: =Trichardt!V22 -> 0.00 | T54: =Trichardt!W22 -> 0.00 | U54: =Trichardt!X22 -> 0.00 | V54: =Trichardt!Y22 -> 0.00 | W54: =Trichardt!Z22 -> 0.00 | X54: =Trichardt!AA22 -> 0.00 | Y54: =Trichardt!AB22 -> 0.00 | Z54: =Trichardt!AC22 -> 0.00 | AA54: =Trichardt!AD22 -> 0.00 | AB54: =Trichardt!AE22 -> 0.00 | AC54: =Trichardt!AF22 -> 0.00 | AD54: =Trichardt!AG22 -> 0.00 | AE54: =Trichardt!AH22 -> 0.00 | AF54: =Trichardt!AI22 -> 0.00 | AG54: =Trichardt!AJ22 -> 0.00 | AH54: =Trichardt!AK22 -> 0.00 | AI54: =Trichardt!AL22 -> 0.00 | AJ54: =Trichardt!AM22 -> 0.00 | AK54: =Trichardt!AN22 -> 0.00 | AL54: =Trichardt!AO22 -> 0.00 | AM54: =Trichardt!AP22 -> 0.00 | AN54: =Trichardt!AQ22 -> 0.00 | AO54: =Trichardt!AR22 -> 0.00 | AP54: =Trichardt!AS22 -> 0.00 | AQ54: =Trichardt!AT22 -> 0.00 | AR54: =Trichardt!AU22 -> 0.00 | AS54: =Trichardt!AV22 -> 0.00 | AT54: =Trichardt!AW22 -> 0.00 | AU54: =Trichardt!AX22 -> 0.00 | AV54: =Trichardt!AY22 -> 0.00 | AW54: =Trichardt!AZ22 -> 0.00 | AX54: =Trichardt!BA22 -> 0.00 | AY54: =Trichardt!BB22 -> 0.00 | AZ54: =Trichardt!BC22 -> 0.00 | BA54: =Trichardt!BD22 -> 0.00 | BB54: =Trichardt!BE22 -> 0.00 | BC54: =Trichardt!BF22 -> 0.00 | BD54: =Trichardt!BG22 -> 0.00 | BE54: =Trichardt!BH22 -> 0.00 | BF54: =Trichardt!BI22 -> 0.00 | BG54: =Trichardt!BJ22 -> 0.00 | BH54: =Trichardt!BK22 -> 0.00 | BI54: =Trichardt!BL22 -> 0.00 | BJ54: =Trichardt!BM22 -> 0.00 | BK54: =Trichardt!BN22 -> 0.00 | BL54: =Trichardt!BO22 -> 0.00 | BM54: =Trichardt!BP22 -> 0.00 | BN54: =Trichardt!BQ22 -> 0.00 | BO54: =Trichardt!BR22 -> 0.00 | BP54: =Trichardt!BS22 -> 0.00 | BQ54: =Trichardt!BT22 -> 0.00 | BR54: =Trichardt!BU22 -> 0.00 | BS54: =Trichardt!BV22 -> 0.00 | BT54: =Trichardt!BW22 -> 0.00 | BU54: =Trichardt!BX22 -> 0.00 | BV54: =Trichardt!BY22 -> 0.00 | BW54: =Trichardt!BZ22 -> 0.00 | BX54: =Trichardt!CA22 -> 0.00 | BY54: =Trichardt!CB22 -> 0.00 | BZ54: =Trichardt!CC22 -> 0.00
C55: =+B20 -> Ermelo | E55: =Ermelo!H22 -> 0.00 | F55: =Ermelo!I22 -> 0.00 | G55: =Ermelo!J22 -> 0.00 | H55: =Ermelo!K22 -> 0.00 | I55: =Ermelo!L22 -> 0.00 | J55: =Ermelo!M22 -> 0.00 | K55: =Ermelo!N22 -> 0.00 | L55: =Ermelo!O22 -> 0.00 | M55: =Ermelo!P22 -> 0.00 | N55: =Ermelo!Q22 -> 0.00 | O55: =Ermelo!R22 -> 0.00 | P55: =Ermelo!S22 -> 0.00 | Q55: =Ermelo!T22 -> 0.00 | R55: =Ermelo!U22 -> 0.00 | S55: =Ermelo!V22 -> 0.00 | T55: =Ermelo!W22 -> 0.00 | U55: =Ermelo!X22 -> 0.00 | V55: =Ermelo!Y22 -> 0.00 | W55: =Ermelo!Z22 -> 0.00 | X55: =Ermelo!AA22 -> 0.00 | Y55: =Ermelo!AB22 -> 0.00 | Z55: =Ermelo!AC22 -> 0.00 | AA55: =Ermelo!AD22 -> 0.00 | AB55: =Ermelo!AE22 -> 0.00 | AC55: =Ermelo!AF22 -> 0.00 | AD55: =Ermelo!AG22 -> 0.00 | AE55: =Ermelo!AH22 -> 0.00 | AF55: =Ermelo!AI22 -> 0.00 | AG55: =Ermelo!AJ22 -> 0.00 | AH55: =Ermelo!AK22 -> 0.00 | AI55: =Ermelo!AL22 -> 0.00 | AJ55: =Ermelo!AM22 -> 0.00 | AK55: =Ermelo!AN22 -> 0.00 | AL55: =Ermelo!AO22 -> 0.00 | AM55: =Ermelo!AP22 -> 0.00 | AN55: =Ermelo!AQ22 -> 0.00 | AO55: =Ermelo!AR22 -> 0.00 | AP55: =Ermelo!AS22 -> 0.00 | AQ55: =Ermelo!AT22 -> 0.00 | AR55: =Ermelo!AU22 -> 0.00 | AS55: =Ermelo!AV22 -> 0.00 | AT55: =Ermelo!AW22 -> 0.00 | AU55: =Ermelo!AX22 -> 0.00 | AV55: =Ermelo!AY22 -> 0.00 | AW55: =Ermelo!AZ22 -> 0.00 | AX55: =Ermelo!BA22 -> 0.00 | AY55: =Ermelo!BB22 -> 0.00 | AZ55: =Ermelo!BC22 -> 0.00 | BA55: =Ermelo!BD22 -> 0.00 | BB55: =Ermelo!BE22 -> 0.00 | BC55: =Ermelo!BF22 -> 0.00 | BD55: =Ermelo!BG22 -> 0.00 | BE55: =Ermelo!BH22 -> 0.00 | BF55: =Ermelo!BI22 -> 0.00 | BG55: =Ermelo!BJ22 -> 0.00 | BH55: =Ermelo!BK22 -> 0.00 | BI55: =Ermelo!BL22 -> 0.00 | BJ55: =Ermelo!BM22 -> 0.00 | BK55: =Ermelo!BN22 -> 0.00 | BL55: =Ermelo!BO22 -> 0.00 | BM55: =Ermelo!BP22 -> 0.00 | BN55: =Ermelo!BQ22 -> 0.00 | BO55: =Ermelo!BR22 -> 0.00 | BP55: =Ermelo!BS22 -> 0.00 | BQ55: =Ermelo!BT22 -> 0.00 | BR55: =Ermelo!BU22 -> 0.00 | BS55: =Ermelo!BV22 -> 0.00 | BT55: =Ermelo!BW22 -> 0.00 | BU55: =Ermelo!BX22 -> 0.00 | BV55: =Ermelo!BY22 -> 0.00 | BW55: =Ermelo!BZ22 -> 0.00 | BX55: =Ermelo!CA22 -> 0.00 | BY55: =Ermelo!CB22 -> 0.00 | BZ55: =Ermelo!CC22 -> 0.00
B56: Fixed CAPEX to Model (Subject to CPI) | E56: =+SUM(E51:E55) -> 0.00 | F56: 0.00 | G56: 0.00 | H56: 0.00 | I56: 0.00 | J56: 0.00 | K56: 0.00 | L56: 0.00 | M56: 0.00 | N56: 0.00 | O56: 0.00 | P56: 0.00 | Q56: 0.00 | R56: 0.00 | S56: 0.00 | T56: 0.00 | U56: 0.00 | V56: 0.00 | W56: 0.00 | X56: 0.00 | Y56: 0.00 | Z56: 0.00 | AA56: 0.00 | AB56: 0.00 | AC56: 0.00 | AD56: 0.00 | AE56: 0.00 | AF56: 0.00 | AG56: 0.00 | AH56: 0.00 | AI56: 0.00 | AJ56: 0.00 | AK56: 0.00 | AL56: 0.00 | AM56: 0.00 | AN56: 0.00 | AO56: 0.00 | AP56: 0.00 | AQ56: 0.00 | AR56: 0.00 | AS56: 0.00 | AT56: 0.00 | AU56: 0.00 | AV56: 0.00 | AW56: 0.00 | AX56: 0.00 | AY56: 0.00 | AZ56: 0.00 | BA56: 0.00 | BB56: 0.00 | BC56: 0.00 | BD56: 0.00 | BE56: 0.00 | BF56: 0.00 | BG56: 0.00 | BH56: 0.00 | BI56: 0.00 | BJ56: 0.00 | BK56: 0.00 | BL56: 0.00 | BM56: 0.00 | BN56: 0.00 | BO56: 0.00 | BP56: 0.00 | BQ56: =+SUM(BQ51:BQ55) -> 0.00 | BR56: 0.00 | BS56: 0.00 | BT56: 0.00 | BU56: 0.00 | BV56: 0.00 | BW56: 0.00 | BX56: 0.00 | BY56: 0.00 | BZ56: 0.00
B58: Control Centre | E58: Est Period | G58: Operation Service Period - Year 1 | S58: =+G58+1 -> Operation Service Period - Year 2 | AE58: =+S58+1 -> Operation Service Period - Year 3 | AQ58: =+AE58+1 -> Operation Service Period - Year 4 | BC58: =+AQ58+1 -> Operation Service Period - Year 5 | BO58: =+BC58+1 -> Operation Service Period - Year 6
E59: =+E$3 -> 2024-08-19 | F59: =+F$3 -> 2024-09-30 | G59: 2024-10-31 | H59: 2024-11-30 | I59: 2024-12-31 | J59: 2025-01-31 | K59: 2025-02-28 | L59: 2025-03-31 | M59: 2025-04-30 | N59: 2025-05-31 | O59: 2025-06-30 | P59: 2025-07-31 | Q59: 2025-08-31 | R59: 2025-09-30 | S59: 2025-10-31 | T59: 2025-11-30 | U59: 2025-12-31 | V59: 2026-01-31 | W59: 2026-02-28 | X59: 2026-03-31 | Y59: 2026-04-30 | Z59: 2026-05-31 | AA59: 2026-06-30 | AB59: 2026-07-31 | AC59: 2026-08-31 | AD59: 2026-09-30 | AE59: 2026-10-31 | AF59: 2026-11-30 | AG59: 2026-12-31 | AH59: 2027-01-31 | AI59: 2027-02-28 | AJ59: 2027-03-31 | AK59: 2027-04-30 | AL59: 2027-05-31 | AM59: 2027-06-30 | AN59: 2027-07-31 | AO59: 2027-08-31 | AP59: 2027-09-30 | AQ59: 2027-10-31 | AR59: 2027-11-30 | AS59: 2027-12-31 | AT59: 2028-01-31 | AU59: 2028-02-29 | AV59: 2028-03-31 | AW59: 2028-04-30 | AX59: 2028-05-31 | AY59: 2028-06-30 | AZ59: 2028-07-31 | BA59: 2028-08-31 | BB59: 2028-09-30 | BC59: 2028-10-31 | BD59: 2028-11-30 | BE59: 2028-12-31 | BF59: 2029-01-31 | BG59: 2029-02-28 | BH59: 2029-03-31 | BI59: 2029-04-30 | BJ59: 2029-05-31 | BK59: 2029-06-30 | BL59: 2029-07-31 | BM59: 2029-08-31 | BN59: 2029-09-30 | BO59: 2029-10-31 | BP59: 2029-11-30 | BQ59: 2029-12-31 | BR59: =+BR$3 -> 2030-01-31 | BS59: 2030-02-28 | BT59: 2030-03-31 | BU59: 2030-04-30 | BV59: 2030-05-31 | BW59: 2030-06-30 | BX59: 2030-07-31 | BY59: 2030-08-31 | BZ59: 2030-09-30
C60: =+B4 -> Gosforth | E60: =+Gosforth!H23 -> 0.00 | F60: =+Gosforth!I23 -> 0.00 | G60: =+Gosforth!J23 -> 0.00 | H60: =+Gosforth!K23 -> 0.00 | I60: =+Gosforth!L23 -> 0.00 | J60: =+Gosforth!M23 -> 0.00 | K60: =+Gosforth!N23 -> 0.00 | L60: =+Gosforth!O23 -> 0.00 | M60: =+Gosforth!P23 -> 0.00 | N60: =+Gosforth!Q23 -> 0.00 | O60: =+Gosforth!R23 -> 0.00 | P60: =+Gosforth!S23 -> 0.00 | Q60: =+Gosforth!T23 -> 0.00 | R60: =+Gosforth!U23 -> 8,190,683.33 | S60: =+Gosforth!V23 -> 0.00 | T60: =+Gosforth!W23 -> 0.00 | U60: =+Gosforth!X23 -> 0.00 | V60: =+Gosforth!Y23 -> 0.00 | W60: =+Gosforth!Z23 -> 0.00 | X60: =+Gosforth!AA23 -> 0.00 | Y60: =+Gosforth!AB23 -> 0.00 | Z60: =+Gosforth!AC23 -> 0.00 | AA60: =+Gosforth!AD23 -> 0.00 | AB60: =+Gosforth!AE23 -> 0.00 | AC60: =+Gosforth!AF23 -> 0.00 | AD60: =+Gosforth!AG23 -> 8,190,683.33 | AE60: =+Gosforth!AH23 -> 0.00 | AF60: =+Gosforth!AI23 -> 0.00 | AG60: =+Gosforth!AJ23 -> 0.00 | AH60: =+Gosforth!AK23 -> 0.00 | AI60: =+Gosforth!AL23 -> 0.00 | AJ60: =+Gosforth!AM23 -> 0.00 | AK60: =+Gosforth!AN23 -> 0.00 | AL60: =+Gosforth!AO23 -> 0.00 | AM60: =+Gosforth!AP23 -> 0.00 | AN60: =+Gosforth!AQ23 -> 0.00 | AO60: =+Gosforth!AR23 -> 0.00 | AP60: =+Gosforth!AS23 -> 8,190,683.33 | AQ60: =+Gosforth!AT23 -> 0.00 | AR60: =+Gosforth!AU23 -> 0.00 | AS60: =+Gosforth!AV23 -> 0.00 | AT60: =+Gosforth!AW23 -> 0.00 | AU60: =+Gosforth!AX23 -> 0.00 | AV60: =+Gosforth!AY23 -> 0.00 | AW60: =+Gosforth!AZ23 -> 0.00 | AX60: =+Gosforth!BA23 -> 0.00 | AY60: =+Gosforth!BB23 -> 0.00 | AZ60: =+Gosforth!BC23 -> 0.00 | BA60: =+Gosforth!BD23 -> 0.00 | BB60: =+Gosforth!BE23 -> 8,190,683.33 | BC60: =+Gosforth!BF23 -> 0.00 | BD60: =+Gosforth!BG23 -> 0.00 | BE60: =+Gosforth!BH23 -> 0.00 | BF60: =+Gosforth!BI23 -> 0.00 | BG60: =+Gosforth!BJ23 -> 0.00 | BH60: =+Gosforth!BK23 -> 0.00 | BI60: =+Gosforth!BL23 -> 0.00 | BJ60: =+Gosforth!BM23 -> 0.00 | BK60: =+Gosforth!BN23 -> 0.00 | BL60: =+Gosforth!BO23 -> 0.00 | BM60: =+Gosforth!BP23 -> 0.00 | BN60: =+Gosforth!BQ23 -> 8,190,683.33 | BO60: =+Gosforth!BR23 -> 0.00 | BP60: =+Gosforth!BS23 -> 0.00 | BQ60: =+Gosforth!BT23 -> 0.00 | BR60: =+Gosforth!BU23 -> 0.00 | BS60: =+Gosforth!BV23 -> 0.00 | BT60: =+Gosforth!BW23 -> 0.00 | BU60: =+Gosforth!BX23 -> 0.00 | BV60: =+Gosforth!BY23 -> 0.00 | BW60: =+Gosforth!BZ23 -> 0.00 | BX60: =+Gosforth!CA23 -> 0.00 | BY60: =+Gosforth!CB23 -> 0.00 | BZ60: =+Gosforth!CC23 -> 8,190,683.35
C61: =$B$8 -> Dalpark | E61: =+Dalpark!H23 -> 0.00 | F61: =+Dalpark!I23 -> 0.00 | G61: =+Dalpark!J23 -> 0.00 | H61: =+Dalpark!K23 -> 0.00 | I61: =+Dalpark!L23 -> 0.00 | J61: =+Dalpark!M23 -> 0.00 | K61: =+Dalpark!N23 -> 0.00 | L61: =+Dalpark!O23 -> 0.00 | M61: =+Dalpark!P23 -> 0.00 | N61: =+Dalpark!Q23 -> 0.00 | O61: =+Dalpark!R23 -> 0.00 | P61: =+Dalpark!S23 -> 0.00 | Q61: =+Dalpark!T23 -> 0.00 | R61: =+Dalpark!U23 -> 7,937,266.67 | S61: =+Dalpark!V23 -> 0.00 | T61: =+Dalpark!W23 -> 0.00 | U61: =+Dalpark!X23 -> 0.00 | V61: =+Dalpark!Y23 -> 0.00 | W61: =+Dalpark!Z23 -> 0.00 | X61: =+Dalpark!AA23 -> 0.00 | Y61: =+Dalpark!AB23 -> 0.00 | Z61: =+Dalpark!AC23 -> 0.00 | AA61: =+Dalpark!AD23 -> 0.00 | AB61: =+Dalpark!AE23 -> 0.00 | AC61: =+Dalpark!AF23 -> 0.00 | AD61: =+Dalpark!AG23 -> 7,937,266.67 | AE61: =+Dalpark!AH23 -> 0.00 | AF61: =+Dalpark!AI23 -> 0.00 | AG61: =+Dalpark!AJ23 -> 0.00 | AH61: =+Dalpark!AK23 -> 0.00 | AI61: =+Dalpark!AL23 -> 0.00 | AJ61: =+Dalpark!AM23 -> 0.00 | AK61: =+Dalpark!AN23 -> 0.00 | AL61: =+Dalpark!AO23 -> 0.00 | AM61: =+Dalpark!AP23 -> 0.00 | AN61: =+Dalpark!AQ23 -> 0.00 | AO61: =+Dalpark!AR23 -> 0.00 | AP61: =+Dalpark!AS23 -> 7,937,266.67 | AQ61: =+Dalpark!AT23 -> 0.00 | AR61: =+Dalpark!AU23 -> 0.00 | AS61: =+Dalpark!AV23 -> 0.00 | AT61: =+Dalpark!AW23 -> 0.00 | AU61: =+Dalpark!AX23 -> 0.00 | AV61: =+Dalpark!AY23 -> 0.00 | AW61: =+Dalpark!AZ23 -> 0.00 | AX61: =+Dalpark!BA23 -> 0.00 | AY61: =+Dalpark!BB23 -> 0.00 | AZ61: =+Dalpark!BC23 -> 0.00 | BA61: =+Dalpark!BD23 -> 0.00 | BB61: =+Dalpark!BE23 -> 7,937,266.67 | BC61: =+Dalpark!BF23 -> 0.00 | BD61: =+Dalpark!BG23 -> 0.00 | BE61: =+Dalpark!BH23 -> 0.00 | BF61: =+Dalpark!BI23 -> 0.00 | BG61: =+Dalpark!BJ23 -> 0.00 | BH61: =+Dalpark!BK23 -> 0.00 | BI61: =+Dalpark!BL23 -> 0.00 | BJ61: =+Dalpark!BM23 -> 0.00 | BK61: =+Dalpark!BN23 -> 0.00 | BL61: =+Dalpark!BO23 -> 0.00 | BM61: =+Dalpark!BP23 -> 0.00 | BN61: =+Dalpark!BQ23 -> 7,937,266.67 | BO61: =+Dalpark!BR23 -> 0.00 | BP61: =+Dalpark!BS23 -> 0.00 | BQ61: =+Dalpark!BT23 -> 0.00 | BR61: =+Dalpark!BU23 -> 0.00 | BS61: =+Dalpark!BV23 -> 0.00 | BT61: =+Dalpark!BW23 -> 0.00 | BU61: =+Dalpark!BX23 -> 0.00 | BV61: =+Dalpark!BY23 -> 0.00 | BW61: =+Dalpark!BZ23 -> 0.00 | BX61: =+Dalpark!CA23 -> 0.00 | BY61: =+Dalpark!CB23 -> 0.00 | BZ61: =+Dalpark!CC23 -> 7,937,266.65
C62: =$B$12 -> Leandra | E62: =+Leandra!H23 -> 0.00 | F62: =+Leandra!I23 -> 0.00 | G62: =+Leandra!J23 -> 0.00 | H62: =+Leandra!K23 -> 0.00 | I62: =+Leandra!L23 -> 0.00 | J62: =+Leandra!M23 -> 0.00 | K62: =+Leandra!N23 -> 0.00 | L62: =+Leandra!O23 -> 0.00 | M62: =+Leandra!P23 -> 0.00 | N62: =+Leandra!Q23 -> 0.00 | O62: =+Leandra!R23 -> 0.00 | P62: =+Leandra!S23 -> 0.00 | Q62: =+Leandra!T23 -> 0.00 | R62: =+Leandra!U23 -> 4,779,113.33 | S62: =+Leandra!V23 -> 0.00 | T62: =+Leandra!W23 -> 0.00 | U62: =+Leandra!X23 -> 0.00 | V62: =+Leandra!Y23 -> 0.00 | W62: =+Leandra!Z23 -> 0.00 | X62: =+Leandra!AA23 -> 0.00 | Y62: =+Leandra!AB23 -> 0.00 | Z62: =+Leandra!AC23 -> 0.00 | AA62: =+Leandra!AD23 -> 0.00 | AB62: =+Leandra!AE23 -> 0.00 | AC62: =+Leandra!AF23 -> 0.00 | AD62: =+Leandra!AG23 -> 4,779,113.33 | AE62: =+Leandra!AH23 -> 0.00 | AF62: =+Leandra!AI23 -> 0.00 | AG62: =+Leandra!AJ23 -> 0.00 | AH62: =+Leandra!AK23 -> 0.00 | AI62: =+Leandra!AL23 -> 0.00 | AJ62: =+Leandra!AM23 -> 0.00 | AK62: =+Leandra!AN23 -> 0.00 | AL62: =+Leandra!AO23 -> 0.00 | AM62: =+Leandra!AP23 -> 0.00 | AN62: =+Leandra!AQ23 -> 0.00 | AO62: =+Leandra!AR23 -> 0.00 | AP62: =+Leandra!AS23 -> 4,779,113.33 | AQ62: =+Leandra!AT23 -> 0.00 | AR62: =+Leandra!AU23 -> 0.00 | AS62: =+Leandra!AV23 -> 0.00 | AT62: =+Leandra!AW23 -> 0.00 | AU62: =+Leandra!AX23 -> 0.00 | AV62: =+Leandra!AY23 -> 0.00 | AW62: =+Leandra!AZ23 -> 0.00 | AX62: =+Leandra!BA23 -> 0.00 | AY62: =+Leandra!BB23 -> 0.00 | AZ62: =+Leandra!BC23 -> 0.00 | BA62: =+Leandra!BD23 -> 0.00 | BB62: =+Leandra!BE23 -> 4,779,113.33 | BC62: =+Leandra!BF23 -> 0.00 | BD62: =+Leandra!BG23 -> 0.00 | BE62: =+Leandra!BH23 -> 0.00 | BF62: =+Leandra!BI23 -> 0.00 | BG62: =+Leandra!BJ23 -> 0.00 | BH62: =+Leandra!BK23 -> 0.00 | BI62: =+Leandra!BL23 -> 0.00 | BJ62: =+Leandra!BM23 -> 0.00 | BK62: =+Leandra!BN23 -> 0.00 | BL62: =+Leandra!BO23 -> 0.00 | BM62: =+Leandra!BP23 -> 0.00 | BN62: =+Leandra!BQ23 -> 4,779,113.33 | BO62: =+Leandra!BR23 -> 0.00 | BP62: =+Leandra!BS23 -> 0.00 | BQ62: =+Leandra!BT23 -> 0.00 | BR62: =+Leandra!BU23 -> 0.00 | BS62: =+Leandra!BV23 -> 0.00 | BT62: =+Leandra!BW23 -> 0.00 | BU62: =+Leandra!BX23 -> 0.00 | BV62: =+Leandra!BY23 -> 0.00 | BW62: =+Leandra!BZ23 -> 0.00 | BX62: =+Leandra!CA23 -> 0.00 | BY62: =+Leandra!CB23 -> 0.00 | BZ62: =+Leandra!CC23 -> 4,779,113.35
C63: =+B16 -> Trichardt | E63: =+Trichardt!H23 -> 0.00 | F63: =+Trichardt!I23 -> 0.00 | G63: =+Trichardt!J23 -> 0.00 | H63: =+Trichardt!K23 -> 0.00 | I63: =+Trichardt!L23 -> 0.00 | J63: =+Trichardt!M23 -> 0.00 | K63: =+Trichardt!N23 -> 0.00 | L63: =+Trichardt!O23 -> 0.00 | M63: =+Trichardt!P23 -> 0.00 | N63: =+Trichardt!Q23 -> 0.00 | O63: =+Trichardt!R23 -> 0.00 | P63: =+Trichardt!S23 -> 0.00 | Q63: =+Trichardt!T23 -> 0.00 | R63: =+Trichardt!U23 -> 3,962,266.67 | S63: =+Trichardt!V23 -> 0.00 | T63: =+Trichardt!W23 -> 0.00 | U63: =+Trichardt!X23 -> 0.00 | V63: =+Trichardt!Y23 -> 0.00 | W63: =+Trichardt!Z23 -> 0.00 | X63: =+Trichardt!AA23 -> 0.00 | Y63: =+Trichardt!AB23 -> 0.00 | Z63: =+Trichardt!AC23 -> 0.00 | AA63: =+Trichardt!AD23 -> 0.00 | AB63: =+Trichardt!AE23 -> 0.00 | AC63: =+Trichardt!AF23 -> 0.00 | AD63: =+Trichardt!AG23 -> 3,962,266.67 | AE63: =+Trichardt!AH23 -> 0.00 | AF63: =+Trichardt!AI23 -> 0.00 | AG63: =+Trichardt!AJ23 -> 0.00 | AH63: =+Trichardt!AK23 -> 0.00 | AI63: =+Trichardt!AL23 -> 0.00 | AJ63: =+Trichardt!AM23 -> 0.00 | AK63: =+Trichardt!AN23 -> 0.00 | AL63: =+Trichardt!AO23 -> 0.00 | AM63: =+Trichardt!AP23 -> 0.00 | AN63: =+Trichardt!AQ23 -> 0.00 | AO63: =+Trichardt!AR23 -> 0.00 | AP63: =+Trichardt!AS23 -> 3,962,266.67 | AQ63: =+Trichardt!AT23 -> 0.00 | AR63: =+Trichardt!AU23 -> 0.00 | AS63: =+Trichardt!AV23 -> 0.00 | AT63: =+Trichardt!AW23 -> 0.00 | AU63: =+Trichardt!AX23 -> 0.00 | AV63: =+Trichardt!AY23 -> 0.00 | AW63: =+Trichardt!AZ23 -> 0.00 | AX63: =+Trichardt!BA23 -> 0.00 | AY63: =+Trichardt!BB23 -> 0.00 | AZ63: =+Trichardt!BC23 -> 0.00 | BA63: =+Trichardt!BD23 -> 0.00 | BB63: =+Trichardt!BE23 -> 3,962,266.67 | BC63: =+Trichardt!BF23 -> 0.00 | BD63: =+Trichardt!BG23 -> 0.00 | BE63: =+Trichardt!BH23 -> 0.00 | BF63: =+Trichardt!BI23 -> 0.00 | BG63: =+Trichardt!BJ23 -> 0.00 | BH63: =+Trichardt!BK23 -> 0.00 | BI63: =+Trichardt!BL23 -> 0.00 | BJ63: =+Trichardt!BM23 -> 0.00 | BK63: =+Trichardt!BN23 -> 0.00 | BL63: =+Trichardt!BO23 -> 0.00 | BM63: =+Trichardt!BP23 -> 0.00 | BN63: =+Trichardt!BQ23 -> 3,962,266.67 | BO63: =+Trichardt!BR23 -> 0.00 | BP63: =+Trichardt!BS23 -> 0.00 | BQ63: =+Trichardt!BT23 -> 0.00 | BR63: =+Trichardt!BU23 -> 0.00 | BS63: =+Trichardt!BV23 -> 0.00 | BT63: =+Trichardt!BW23 -> 0.00 | BU63: =+Trichardt!BX23 -> 0.00 | BV63: =+Trichardt!BY23 -> 0.00 | BW63: =+Trichardt!BZ23 -> 0.00 | BX63: =+Trichardt!CA23 -> 0.00 | BY63: =+Trichardt!CB23 -> 0.00 | BZ63: =+Trichardt!CC23 -> 3,962,266.65
C64: =+B20 -> Ermelo | E64: =+Ermelo!H23 -> 0.00 | F64: =+Ermelo!I23 -> 0.00 | G64: =+Ermelo!J23 -> 0.00 | H64: =+Ermelo!K23 -> 0.00 | I64: =+Ermelo!L23 -> 0.00 | J64: =+Ermelo!M23 -> 0.00 | K64: =+Ermelo!N23 -> 0.00 | L64: =+Ermelo!O23 -> 0.00 | M64: =+Ermelo!P23 -> 0.00 | N64: =+Ermelo!Q23 -> 0.00 | O64: =+Ermelo!R23 -> 0.00 | P64: =+Ermelo!S23 -> 0.00 | Q64: =+Ermelo!T23 -> 0.00 | R64: =+Ermelo!U23 -> 3,662,266.67 | S64: =+Ermelo!V23 -> 0.00 | T64: =+Ermelo!W23 -> 0.00 | U64: =+Ermelo!X23 -> 0.00 | V64: =+Ermelo!Y23 -> 0.00 | W64: =+Ermelo!Z23 -> 0.00 | X64: =+Ermelo!AA23 -> 0.00 | Y64: =+Ermelo!AB23 -> 0.00 | Z64: =+Ermelo!AC23 -> 0.00 | AA64: =+Ermelo!AD23 -> 0.00 | AB64: =+Ermelo!AE23 -> 0.00 | AC64: =+Ermelo!AF23 -> 0.00 | AD64: =+Ermelo!AG23 -> 3,662,266.67 | AE64: =+Ermelo!AH23 -> 0.00 | AF64: =+Ermelo!AI23 -> 0.00 | AG64: =+Ermelo!AJ23 -> 0.00 | AH64: =+Ermelo!AK23 -> 0.00 | AI64: =+Ermelo!AL23 -> 0.00 | AJ64: =+Ermelo!AM23 -> 0.00 | AK64: =+Ermelo!AN23 -> 0.00 | AL64: =+Ermelo!AO23 -> 0.00 | AM64: =+Ermelo!AP23 -> 0.00 | AN64: =+Ermelo!AQ23 -> 0.00 | AO64: =+Ermelo!AR23 -> 0.00 | AP64: =+Ermelo!AS23 -> 3,662,266.67 | AQ64: =+Ermelo!AT23 -> 0.00 | AR64: =+Ermelo!AU23 -> 0.00 | AS64: =+Ermelo!AV23 -> 0.00 | AT64: =+Ermelo!AW23 -> 0.00 | AU64: =+Ermelo!AX23 -> 0.00 | AV64: =+Ermelo!AY23 -> 0.00 | AW64: =+Ermelo!AZ23 -> 0.00 | AX64: =+Ermelo!BA23 -> 0.00 | AY64: =+Ermelo!BB23 -> 0.00 | AZ64: =+Ermelo!BC23 -> 0.00 | BA64: =+Ermelo!BD23 -> 0.00 | BB64: =+Ermelo!BE23 -> 3,662,266.67 | BC64: =+Ermelo!BF23 -> 0.00 | BD64: =+Ermelo!BG23 -> 0.00 | BE64: =+Ermelo!BH23 -> 0.00 | BF64: =+Ermelo!BI23 -> 0.00 | BG64: =+Ermelo!BJ23 -> 0.00 | BH64: =+Ermelo!BK23 -> 0.00 | BI64: =+Ermelo!BL23 -> 0.00 | BJ64: =+Ermelo!BM23 -> 0.00 | BK64: =+Ermelo!BN23 -> 0.00 | BL64: =+Ermelo!BO23 -> 0.00 | BM64: =+Ermelo!BP23 -> 0.00 | BN64: =+Ermelo!BQ23 -> 3,662,266.67 | BO64: =+Ermelo!BR23 -> 0.00 | BP64: =+Ermelo!BS23 -> 0.00 | BQ64: =+Ermelo!BT23 -> 0.00 | BR64: =+Ermelo!BU23 -> 0.00 | BS64: =+Ermelo!BV23 -> 0.00 | BT64: =+Ermelo!BW23 -> 0.00 | BU64: =+Ermelo!BX23 -> 0.00 | BV64: =+Ermelo!BY23 -> 0.00 | BW64: =+Ermelo!BZ23 -> 0.00 | BX64: =+Ermelo!CA23 -> 0.00 | BY64: =+Ermelo!CB23 -> 0.00 | BZ64: =+Ermelo!CC23 -> 3,662,266.65
B65: CAPEX Provisional Sums to Model (Not Subject to CPI) | E65: =+SUM(E60:E64) -> 0.00 | F65: 0.00 | G65: 0.00 | H65: 0.00 | I65: 0.00 | J65: 0.00 | K65: 0.00 | L65: 0.00 | M65: 0.00 | N65: 0.00 | O65: 0.00 | P65: 0.00 | Q65: 0.00 | R65: 28,531,596.67 | S65: 0.00 | T65: 0.00 | U65: 0.00 | V65: 0.00 | W65: 0.00 | X65: 0.00 | Y65: 0.00 | Z65: 0.00 | AA65: 0.00 | AB65: 0.00 | AC65: 0.00 | AD65: 28,531,596.67 | AE65: 0.00 | AF65: 0.00 | AG65: 0.00 | AH65: 0.00 | AI65: 0.00 | AJ65: 0.00 | AK65: 0.00 | AL65: 0.00 | AM65: 0.00 | AN65: 0.00 | AO65: 0.00 | AP65: 28,531,596.67 | AQ65: 0.00 | AR65: 0.00 | AS65: 0.00 | AT65: 0.00 | AU65: 0.00 | AV65: 0.00 | AW65: 0.00 | AX65: 0.00 | AY65: 0.00 | AZ65: 0.00 | BA65: 0.00 | BB65: 28,531,596.67 | BC65: 0.00 | BD65: 0.00 | BE65: 0.00 | BF65: 0.00 | BG65: 0.00 | BH65: 0.00 | BI65: 0.00 | BJ65: 0.00 | BK65: 0.00 | BL65: 0.00 | BM65: 0.00 | BN65: 28,531,596.67 | BO65: 0.00 | BP65: 0.00 | BQ65: =+SUM(BQ60:BQ64) -> 0.00 | BR65: 0.00 | BS65: 0.00 | BT65: 0.00 | BU65: 0.00 | BV65: 0.00 | BW65: 0.00 | BX65: 0.00 | BY65: 0.00 | BZ65: 28,531,596.65
B67: Control Centre | E67: Est Period | G67: Operation Service Period - Year 1 | S67: =+G67+1 -> Operation Service Period - Year 2 | AE67: =+S67+1 -> Operation Service Period - Year 3 | AQ67: =+AE67+1 -> Operation Service Period - Year 4 | BC67: =+AQ67+1 -> Operation Service Period - Year 5 | BO67: =+BC67+1 -> Operation Service Period - Year 6
E68: =+E$3 -> 2024-08-19 | F68: =+F$3 -> 2024-09-30 | G68: 2024-10-31 | H68: 2024-11-30 | I68: 2024-12-31 | J68: 2025-01-31 | K68: 2025-02-28 | L68: 2025-03-31 | M68: 2025-04-30 | N68: 2025-05-31 | O68: 2025-06-30 | P68: 2025-07-31 | Q68: 2025-08-31 | R68: 2025-09-30 | S68: 2025-10-31 | T68: 2025-11-30 | U68: 2025-12-31 | V68: 2026-01-31 | W68: 2026-02-28 | X68: 2026-03-31 | Y68: 2026-04-30 | Z68: 2026-05-31 | AA68: 2026-06-30 | AB68: 2026-07-31 | AC68: 2026-08-31 | AD68: 2026-09-30 | AE68: 2026-10-31 | AF68: 2026-11-30 | AG68: 2026-12-31 | AH68: 2027-01-31 | AI68: 2027-02-28 | AJ68: 2027-03-31 | AK68: 2027-04-30 | AL68: 2027-05-31 | AM68: 2027-06-30 | AN68: 2027-07-31 | AO68: 2027-08-31 | AP68: 2027-09-30 | AQ68: 2027-10-31 | AR68: 2027-11-30 | AS68: 2027-12-31 | AT68: 2028-01-31 | AU68: 2028-02-29 | AV68: 2028-03-31 | AW68: 2028-04-30 | AX68: 2028-05-31 | AY68: 2028-06-30 | AZ68: 2028-07-31 | BA68: 2028-08-31 | BB68: 2028-09-30 | BC68: 2028-10-31 | BD68: 2028-11-30 | BE68: 2028-12-31 | BF68: 2029-01-31 | BG68: 2029-02-28 | BH68: 2029-03-31 | BI68: 2029-04-30 | BJ68: 2029-05-31 | BK68: 2029-06-30 | BL68: 2029-07-31 | BM68: 2029-08-31 | BN68: 2029-09-30 | BO68: 2029-10-31 | BP68: 2029-11-30 | BQ68: 2029-12-31 | BR68: =+BR$3 -> 2030-01-31 | BS68: 2030-02-28 | BT68: 2030-03-31 | BU68: 2030-04-30 | BV68: 2030-05-31 | BW68: 2030-06-30 | BX68: 2030-07-31 | BY68: 2030-08-31 | BZ68: 2030-09-30
C69: =+B4 -> Gosforth | E69: =+Gosforth!H24 -> 0.00 | F69: =+Gosforth!I24 -> 0.00 | G69: =+Gosforth!J24 -> 0.00 | H69: =+Gosforth!K24 -> 0.00 | I69: =+Gosforth!L24 -> 0.00 | J69: =+Gosforth!M24 -> 0.00 | K69: =+Gosforth!N24 -> 0.00 | L69: =+Gosforth!O24 -> 0.00 | M69: =+Gosforth!P24 -> 0.00 | N69: =+Gosforth!Q24 -> 0.00 | O69: =+Gosforth!R24 -> 0.00 | P69: =+Gosforth!S24 -> 0.00 | Q69: =+Gosforth!T24 -> 0.00 | R69: =+Gosforth!U24 -> 1,199,999.99 | S69: =+Gosforth!V24 -> 0.00 | T69: =+Gosforth!W24 -> 0.00 | U69: =+Gosforth!X24 -> 0.00 | V69: =+Gosforth!Y24 -> 0.00 | W69: =+Gosforth!Z24 -> 0.00 | X69: =+Gosforth!AA24 -> 0.00 | Y69: =+Gosforth!AB24 -> 0.00 | Z69: =+Gosforth!AC24 -> 0.00 | AA69: =+Gosforth!AD24 -> 0.00 | AB69: =+Gosforth!AE24 -> 0.00 | AC69: =+Gosforth!AF24 -> 0.00 | AD69: =+Gosforth!AG24 -> 1,199,999.99 | AE69: =+Gosforth!AH24 -> 0.00 | AF69: =+Gosforth!AI24 -> 0.00 | AG69: =+Gosforth!AJ24 -> 0.00 | AH69: =+Gosforth!AK24 -> 0.00 | AI69: =+Gosforth!AL24 -> 0.00 | AJ69: =+Gosforth!AM24 -> 0.00 | AK69: =+Gosforth!AN24 -> 0.00 | AL69: =+Gosforth!AO24 -> 0.00 | AM69: =+Gosforth!AP24 -> 0.00 | AN69: =+Gosforth!AQ24 -> 0.00 | AO69: =+Gosforth!AR24 -> 0.00 | AP69: =+Gosforth!AS24 -> 1,199,999.99 | AQ69: =+Gosforth!AT24 -> 0.00 | AR69: =+Gosforth!AU24 -> 0.00 | AS69: =+Gosforth!AV24 -> 0.00 | AT69: =+Gosforth!AW24 -> 0.00 | AU69: =+Gosforth!AX24 -> 0.00 | AV69: =+Gosforth!AY24 -> 0.00 | AW69: =+Gosforth!AZ24 -> 0.00 | AX69: =+Gosforth!BA24 -> 0.00 | AY69: =+Gosforth!BB24 -> 0.00 | AZ69: =+Gosforth!BC24 -> 0.00 | BA69: =+Gosforth!BD24 -> 0.00 | BB69: =+Gosforth!BE24 -> 1,199,999.99 | BC69: =+Gosforth!BF24 -> 0.00 | BD69: =+Gosforth!BG24 -> 0.00 | BE69: =+Gosforth!BH24 -> 0.00 | BF69: =+Gosforth!BI24 -> 0.00 | BG69: =+Gosforth!BJ24 -> 0.00 | BH69: =+Gosforth!BK24 -> 0.00 | BI69: =+Gosforth!BL24 -> 0.00 | BJ69: =+Gosforth!BM24 -> 0.00 | BK69: =+Gosforth!BN24 -> 0.00 | BL69: =+Gosforth!BO24 -> 0.00 | BM69: =+Gosforth!BP24 -> 0.00 | BN69: =+Gosforth!BQ24 -> 1,199,999.99 | BO69: =+Gosforth!BR24 -> 0.00 | BP69: =+Gosforth!BS24 -> 0.00 | BQ69: =+Gosforth!BT24 -> 0.00 | BR69: =+Gosforth!BU24 -> 0.00 | BS69: =+Gosforth!BV24 -> 0.00 | BT69: =+Gosforth!BW24 -> 0.00 | BU69: =+Gosforth!BX24 -> 0.00 | BV69: =+Gosforth!BY24 -> 0.00 | BW69: =+Gosforth!BZ24 -> 0.00 | BX69: =+Gosforth!CA24 -> 0.00 | BY69: =+Gosforth!CB24 -> 0.00 | BZ69: =+Gosforth!CC24 -> 1,200,000.05
C70: =$B$8 -> Dalpark | E70: =+Dalpark!H24 -> 0.00 | F70: =+Dalpark!I24 -> 0.00 | G70: =+Dalpark!J24 -> 0.00 | H70: =+Dalpark!K24 -> 0.00 | I70: =+Dalpark!L24 -> 0.00 | J70: =+Dalpark!M24 -> 0.00 | K70: =+Dalpark!N24 -> 0.00 | L70: =+Dalpark!O24 -> 0.00 | M70: =+Dalpark!P24 -> 0.00 | N70: =+Dalpark!Q24 -> 0.00 | O70: =+Dalpark!R24 -> 0.00 | P70: =+Dalpark!S24 -> 0.00 | Q70: =+Dalpark!T24 -> 0.00 | R70: =+Dalpark!U24 -> 1,085,583.33 | S70: =+Dalpark!V24 -> 0.00 | T70: =+Dalpark!W24 -> 0.00 | U70: =+Dalpark!X24 -> 0.00 | V70: =+Dalpark!Y24 -> 0.00 | W70: =+Dalpark!Z24 -> 0.00 | X70: =+Dalpark!AA24 -> 0.00 | Y70: =+Dalpark!AB24 -> 0.00 | Z70: =+Dalpark!AC24 -> 0.00 | AA70: =+Dalpark!AD24 -> 0.00 | AB70: =+Dalpark!AE24 -> 0.00 | AC70: =+Dalpark!AF24 -> 0.00 | AD70: =+Dalpark!AG24 -> 1,085,583.33 | AE70: =+Dalpark!AH24 -> 0.00 | AF70: =+Dalpark!AI24 -> 0.00 | AG70: =+Dalpark!AJ24 -> 0.00 | AH70: =+Dalpark!AK24 -> 0.00 | AI70: =+Dalpark!AL24 -> 0.00 | AJ70: =+Dalpark!AM24 -> 0.00 | AK70: =+Dalpark!AN24 -> 0.00 | AL70: =+Dalpark!AO24 -> 0.00 | AM70: =+Dalpark!AP24 -> 0.00 | AN70: =+Dalpark!AQ24 -> 0.00 | AO70: =+Dalpark!AR24 -> 0.00 | AP70: =+Dalpark!AS24 -> 1,085,583.33 | AQ70: =+Dalpark!AT24 -> 0.00 | AR70: =+Dalpark!AU24 -> 0.00 | AS70: =+Dalpark!AV24 -> 0.00 | AT70: =+Dalpark!AW24 -> 0.00 | AU70: =+Dalpark!AX24 -> 0.00 | AV70: =+Dalpark!AY24 -> 0.00 | AW70: =+Dalpark!AZ24 -> 0.00 | AX70: =+Dalpark!BA24 -> 0.00 | AY70: =+Dalpark!BB24 -> 0.00 | AZ70: =+Dalpark!BC24 -> 0.00 | BA70: =+Dalpark!BD24 -> 0.00 | BB70: =+Dalpark!BE24 -> 1,085,583.33 | BC70: =+Dalpark!BF24 -> 0.00 | BD70: =+Dalpark!BG24 -> 0.00 | BE70: =+Dalpark!BH24 -> 0.00 | BF70: =+Dalpark!BI24 -> 0.00 | BG70: =+Dalpark!BJ24 -> 0.00 | BH70: =+Dalpark!BK24 -> 0.00 | BI70: =+Dalpark!BL24 -> 0.00 | BJ70: =+Dalpark!BM24 -> 0.00 | BK70: =+Dalpark!BN24 -> 0.00 | BL70: =+Dalpark!BO24 -> 0.00 | BM70: =+Dalpark!BP24 -> 0.00 | BN70: =+Dalpark!BQ24 -> 1,085,583.33 | BO70: =+Dalpark!BR24 -> 0.00 | BP70: =+Dalpark!BS24 -> 0.00 | BQ70: =+Dalpark!BT24 -> 0.00 | BR70: =+Dalpark!BU24 -> 0.00 | BS70: =+Dalpark!BV24 -> 0.00 | BT70: =+Dalpark!BW24 -> 0.00 | BU70: =+Dalpark!BX24 -> 0.00 | BV70: =+Dalpark!BY24 -> 0.00 | BW70: =+Dalpark!BZ24 -> 0.00 | BX70: =+Dalpark!CA24 -> 0.00 | BY70: =+Dalpark!CB24 -> 0.00 | BZ70: =+Dalpark!CC24 -> 1,085,583.35
C71: =$B$12 -> Leandra | E71: =+Leandra!H24 -> 0.00 | F71: =+Leandra!I24 -> 0.00 | G71: =+Leandra!J24 -> 0.00 | H71: =+Leandra!K24 -> 0.00 | I71: =+Leandra!L24 -> 0.00 | J71: =+Leandra!M24 -> 0.00 | K71: =+Leandra!N24 -> 0.00 | L71: =+Leandra!O24 -> 0.00 | M71: =+Leandra!P24 -> 0.00 | N71: =+Leandra!Q24 -> 0.00 | O71: =+Leandra!R24 -> 0.00 | P71: =+Leandra!S24 -> 0.00 | Q71: =+Leandra!T24 -> 0.00 | R71: =+Leandra!U24 -> 1,002,249.99 | S71: =+Leandra!V24 -> 0.00 | T71: =+Leandra!W24 -> 0.00 | U71: =+Leandra!X24 -> 0.00 | V71: =+Leandra!Y24 -> 0.00 | W71: =+Leandra!Z24 -> 0.00 | X71: =+Leandra!AA24 -> 0.00 | Y71: =+Leandra!AB24 -> 0.00 | Z71: =+Leandra!AC24 -> 0.00 | AA71: =+Leandra!AD24 -> 0.00 | AB71: =+Leandra!AE24 -> 0.00 | AC71: =+Leandra!AF24 -> 0.00 | AD71: =+Leandra!AG24 -> 1,002,249.99 | AE71: =+Leandra!AH24 -> 0.00 | AF71: =+Leandra!AI24 -> 0.00 | AG71: =+Leandra!AJ24 -> 0.00 | AH71: =+Leandra!AK24 -> 0.00 | AI71: =+Leandra!AL24 -> 0.00 | AJ71: =+Leandra!AM24 -> 0.00 | AK71: =+Leandra!AN24 -> 0.00 | AL71: =+Leandra!AO24 -> 0.00 | AM71: =+Leandra!AP24 -> 0.00 | AN71: =+Leandra!AQ24 -> 0.00 | AO71: =+Leandra!AR24 -> 0.00 | AP71: =+Leandra!AS24 -> 1,002,249.99 | AQ71: =+Leandra!AT24 -> 0.00 | AR71: =+Leandra!AU24 -> 0.00 | AS71: =+Leandra!AV24 -> 0.00 | AT71: =+Leandra!AW24 -> 0.00 | AU71: =+Leandra!AX24 -> 0.00 | AV71: =+Leandra!AY24 -> 0.00 | AW71: =+Leandra!AZ24 -> 0.00 | AX71: =+Leandra!BA24 -> 0.00 | AY71: =+Leandra!BB24 -> 0.00 | AZ71: =+Leandra!BC24 -> 0.00 | BA71: =+Leandra!BD24 -> 0.00 | BB71: =+Leandra!BE24 -> 1,002,249.99 | BC71: =+Leandra!BF24 -> 0.00 | BD71: =+Leandra!BG24 -> 0.00 | BE71: =+Leandra!BH24 -> 0.00 | BF71: =+Leandra!BI24 -> 0.00 | BG71: =+Leandra!BJ24 -> 0.00 | BH71: =+Leandra!BK24 -> 0.00 | BI71: =+Leandra!BL24 -> 0.00 | BJ71: =+Leandra!BM24 -> 0.00 | BK71: =+Leandra!BN24 -> 0.00 | BL71: =+Leandra!BO24 -> 0.00 | BM71: =+Leandra!BP24 -> 0.00 | BN71: =+Leandra!BQ24 -> 1,002,249.99 | BO71: =+Leandra!BR24 -> 0.00 | BP71: =+Leandra!BS24 -> 0.00 | BQ71: =+Leandra!BT24 -> 0.00 | BR71: =+Leandra!BU24 -> 0.00 | BS71: =+Leandra!BV24 -> 0.00 | BT71: =+Leandra!BW24 -> 0.00 | BU71: =+Leandra!BX24 -> 0.00 | BV71: =+Leandra!BY24 -> 0.00 | BW71: =+Leandra!BZ24 -> 0.00 | BX71: =+Leandra!CA24 -> 0.00 | BY71: =+Leandra!CB24 -> 0.00 | BZ71: =+Leandra!CC24 -> 1,002,250.05
C72: =+B16 -> Trichardt | E72: =+Trichardt!H24 -> 0.00 | F72: =+Trichardt!I24 -> 0.00 | G72: =+Trichardt!J24 -> 0.00 | H72: =+Trichardt!K24 -> 0.00 | I72: =+Trichardt!L24 -> 0.00 | J72: =+Trichardt!M24 -> 0.00 | K72: =+Trichardt!N24 -> 0.00 | L72: =+Trichardt!O24 -> 0.00 | M72: =+Trichardt!P24 -> 0.00 | N72: =+Trichardt!Q24 -> 0.00 | O72: =+Trichardt!R24 -> 0.00 | P72: =+Trichardt!S24 -> 0.00 | Q72: =+Trichardt!T24 -> 0.00 | R72: =+Trichardt!U24 -> 968,916.66 | S72: =+Trichardt!V24 -> 0.00 | T72: =+Trichardt!W24 -> 0.00 | U72: =+Trichardt!X24 -> 0.00 | V72: =+Trichardt!Y24 -> 0.00 | W72: =+Trichardt!Z24 -> 0.00 | X72: =+Trichardt!AA24 -> 0.00 | Y72: =+Trichardt!AB24 -> 0.00 | Z72: =+Trichardt!AC24 -> 0.00 | AA72: =+Trichardt!AD24 -> 0.00 | AB72: =+Trichardt!AE24 -> 0.00 | AC72: =+Trichardt!AF24 -> 0.00 | AD72: =+Trichardt!AG24 -> 968,916.66 | AE72: =+Trichardt!AH24 -> 0.00 | AF72: =+Trichardt!AI24 -> 0.00 | AG72: =+Trichardt!AJ24 -> 0.00 | AH72: =+Trichardt!AK24 -> 0.00 | AI72: =+Trichardt!AL24 -> 0.00 | AJ72: =+Trichardt!AM24 -> 0.00 | AK72: =+Trichardt!AN24 -> 0.00 | AL72: =+Trichardt!AO24 -> 0.00 | AM72: =+Trichardt!AP24 -> 0.00 | AN72: =+Trichardt!AQ24 -> 0.00 | AO72: =+Trichardt!AR24 -> 0.00 | AP72: =+Trichardt!AS24 -> 968,916.66 | AQ72: =+Trichardt!AT24 -> 0.00 | AR72: =+Trichardt!AU24 -> 0.00 | AS72: =+Trichardt!AV24 -> 0.00 | AT72: =+Trichardt!AW24 -> 0.00 | AU72: =+Trichardt!AX24 -> 0.00 | AV72: =+Trichardt!AY24 -> 0.00 | AW72: =+Trichardt!AZ24 -> 0.00 | AX72: =+Trichardt!BA24 -> 0.00 | AY72: =+Trichardt!BB24 -> 0.00 | AZ72: =+Trichardt!BC24 -> 0.00 | BA72: =+Trichardt!BD24 -> 0.00 | BB72: =+Trichardt!BE24 -> 968,916.66 | BC72: =+Trichardt!BF24 -> 0.00 | BD72: =+Trichardt!BG24 -> 0.00 | BE72: =+Trichardt!BH24 -> 0.00 | BF72: =+Trichardt!BI24 -> 0.00 | BG72: =+Trichardt!BJ24 -> 0.00 | BH72: =+Trichardt!BK24 -> 0.00 | BI72: =+Trichardt!BL24 -> 0.00 | BJ72: =+Trichardt!BM24 -> 0.00 | BK72: =+Trichardt!BN24 -> 0.00 | BL72: =+Trichardt!BO24 -> 0.00 | BM72: =+Trichardt!BP24 -> 0.00 | BN72: =+Trichardt!BQ24 -> 968,916.66 | BO72: =+Trichardt!BR24 -> 0.00 | BP72: =+Trichardt!BS24 -> 0.00 | BQ72: =+Trichardt!BT24 -> 0.00 | BR72: =+Trichardt!BU24 -> 0.00 | BS72: =+Trichardt!BV24 -> 0.00 | BT72: =+Trichardt!BW24 -> 0.00 | BU72: =+Trichardt!BX24 -> 0.00 | BV72: =+Trichardt!BY24 -> 0.00 | BW72: =+Trichardt!BZ24 -> 0.00 | BX72: =+Trichardt!CA24 -> 0.00 | BY72: =+Trichardt!CB24 -> 0.00 | BZ72: =+Trichardt!CC24 -> 968,916.70
C73: =+B20 -> Ermelo | E73: =+Ermelo!H24 -> 0.00 | F73: =+Ermelo!I24 -> 0.00 | G73: =+Ermelo!J24 -> 0.00 | H73: =+Ermelo!K24 -> 0.00 | I73: =+Ermelo!L24 -> 0.00 | J73: =+Ermelo!M24 -> 0.00 | K73: =+Ermelo!N24 -> 0.00 | L73: =+Ermelo!O24 -> 0.00 | M73: =+Ermelo!P24 -> 0.00 | N73: =+Ermelo!Q24 -> 0.00 | O73: =+Ermelo!R24 -> 0.00 | P73: =+Ermelo!S24 -> 0.00 | Q73: =+Ermelo!T24 -> 0.00 | R73: =+Ermelo!U24 -> 885,583.32 | S73: =+Ermelo!V24 -> 0.00 | T73: =+Ermelo!W24 -> 0.00 | U73: =+Ermelo!X24 -> 0.00 | V73: =+Ermelo!Y24 -> 0.00 | W73: =+Ermelo!Z24 -> 0.00 | X73: =+Ermelo!AA24 -> 0.00 | Y73: =+Ermelo!AB24 -> 0.00 | Z73: =+Ermelo!AC24 -> 0.00 | AA73: =+Ermelo!AD24 -> 0.00 | AB73: =+Ermelo!AE24 -> 0.00 | AC73: =+Ermelo!AF24 -> 0.00 | AD73: =+Ermelo!AG24 -> 885,583.32 | AE73: =+Ermelo!AH24 -> 0.00 | AF73: =+Ermelo!AI24 -> 0.00 | AG73: =+Ermelo!AJ24 -> 0.00 | AH73: =+Ermelo!AK24 -> 0.00 | AI73: =+Ermelo!AL24 -> 0.00 | AJ73: =+Ermelo!AM24 -> 0.00 | AK73: =+Ermelo!AN24 -> 0.00 | AL73: =+Ermelo!AO24 -> 0.00 | AM73: =+Ermelo!AP24 -> 0.00 | AN73: =+Ermelo!AQ24 -> 0.00 | AO73: =+Ermelo!AR24 -> 0.00 | AP73: =+Ermelo!AS24 -> 885,583.32 | AQ73: =+Ermelo!AT24 -> 0.00 | AR73: =+Ermelo!AU24 -> 0.00 | AS73: =+Ermelo!AV24 -> 0.00 | AT73: =+Ermelo!AW24 -> 0.00 | AU73: =+Ermelo!AX24 -> 0.00 | AV73: =+Ermelo!AY24 -> 0.00 | AW73: =+Ermelo!AZ24 -> 0.00 | AX73: =+Ermelo!BA24 -> 0.00 | AY73: =+Ermelo!BB24 -> 0.00 | AZ73: =+Ermelo!BC24 -> 0.00 | BA73: =+Ermelo!BD24 -> 0.00 | BB73: =+Ermelo!BE24 -> 885,583.32 | BC73: =+Ermelo!BF24 -> 0.00 | BD73: =+Ermelo!BG24 -> 0.00 | BE73: =+Ermelo!BH24 -> 0.00 | BF73: =+Ermelo!BI24 -> 0.00 | BG73: =+Ermelo!BJ24 -> 0.00 | BH73: =+Ermelo!BK24 -> 0.00 | BI73: =+Ermelo!BL24 -> 0.00 | BJ73: =+Ermelo!BM24 -> 0.00 | BK73: =+Ermelo!BN24 -> 0.00 | BL73: =+Ermelo!BO24 -> 0.00 | BM73: =+Ermelo!BP24 -> 0.00 | BN73: =+Ermelo!BQ24 -> 885,583.32 | BO73: =+Ermelo!BR24 -> 0.00 | BP73: =+Ermelo!BS24 -> 0.00 | BQ73: =+Ermelo!BT24 -> 0.00 | BR73: =+Ermelo!BU24 -> 0.00 | BS73: =+Ermelo!BV24 -> 0.00 | BT73: =+Ermelo!BW24 -> 0.00 | BU73: =+Ermelo!BX24 -> 0.00 | BV73: =+Ermelo!BY24 -> 0.00 | BW73: =+Ermelo!BZ24 -> 0.00 | BX73: =+Ermelo!CA24 -> 0.00 | BY73: =+Ermelo!CB24 -> 0.00 | BZ73: =+Ermelo!CC24 -> 885,583.40
B74: Part D Contract Participation etc (Not Subject to CPI) | E74: =+SUM(E69:E73) -> 0.00 | F74: 0.00 | G74: 0.00 | H74: 0.00 | I74: 0.00 | J74: 0.00 | K74: 0.00 | L74: 0.00 | M74: 0.00 | N74: 0.00 | O74: 0.00 | P74: 0.00 | Q74: 0.00 | R74: 5,142,333.29 | S74: 0.00 | T74: 0.00 | U74: 0.00 | V74: 0.00 | W74: 0.00 | X74: 0.00 | Y74: 0.00 | Z74: 0.00 | AA74: 0.00 | AB74: 0.00 | AC74: 0.00 | AD74: 5,142,333.29 | AE74: 0.00 | AF74: 0.00 | AG74: 0.00 | AH74: 0.00 | AI74: 0.00 | AJ74: 0.00 | AK74: 0.00 | AL74: 0.00 | AM74: 0.00 | AN74: 0.00 | AO74: 0.00 | AP74: 5,142,333.29 | AQ74: 0.00 | AR74: 0.00 | AS74: 0.00 | AT74: 0.00 | AU74: 0.00 | AV74: 0.00 | AW74: 0.00 | AX74: 0.00 | AY74: 0.00 | AZ74: 0.00 | BA74: 0.00 | BB74: 5,142,333.29 | BC74: 0.00 | BD74: 0.00 | BE74: 0.00 | BF74: 0.00 | BG74: 0.00 | BH74: 0.00 | BI74: 0.00 | BJ74: 0.00 | BK74: 0.00 | BL74: 0.00 | BM74: 0.00 | BN74: 5,142,333.29 | BO74: 0.00 | BP74: 0.00 | BQ74: =+SUM(BQ69:BQ73) -> 0.00 | BR74: 0.00 | BS74: 0.00 | BT74: 0.00 | BU74: 0.00 | BV74: 0.00 | BW74: 0.00 | BX74: 0.00 | BY74: 0.00 | BZ74: 5,142,333.55
C76: CHECK: | D76: =IF((SUM(E60:BZ64)+SUM(E51:BZ55)+SUM(E42:BZ46)+SUM(E33:BZ37)+SUM(E4:BZ23)+SUM(E69:BZ73))='N17 Totals'!G8,"OK","CHECK") -> OK
E97: =(851709205.26+116778058.35)/72 -> 13,451,211.99

Sheet N17 Totals
B2: Item No | C2: Description | D2: Unit | E2: Quantity | F2: Rate | G2: TOTAL (6 Years) | H2: Est Period | J2: Operation Service Period - Year 1 | V2: Operation Service Period - Year 2 | AH2: Operation Service Period - Year 3 | AT2: Operation Service Period - Year 4 | BF2: Operation Service Period - Year 5 | BR2: Operation Service Period - Year 6
H3: ='Title Page'!C11 -> 2024-08-19 | I3: =DATE(YEAR(H3),MONTH(H3)+2,1)-1 -> 2024-09-30 | J3: =DATE(YEAR(I3),MONTH(I3)+2,1)-1 -> 2024-10-31 | K3: =DATE(YEAR(J3),MONTH(J3)+2,1)-1 -> 2024-11-30 | L3: 2024-12-31 | M3: 2025-01-31 | N3: 2025-02-28 | O3: 2025-03-31 | P3: 2025-04-30 | Q3: 2025-05-31 | R3: 2025-06-30 | S3: 2025-07-31 | T3: 2025-08-31 | U3: 2025-09-30 | V3: 2025-10-31 | W3: 2025-11-30 | X3: 2025-12-31 | Y3: 2026-01-31 | Z3: 2026-02-28 | AA3: 2026-03-31 | AB3: 2026-04-30 | AC3: 2026-05-31 | AD3: 2026-06-30 | AE3: 2026-07-31 | AF3: 2026-08-31 | AG3: 2026-09-30 | AH3: 2026-10-31 | AI3: 2026-11-30 | AJ3: 2026-12-31 | AK3: 2027-01-31 | AL3: 2027-02-28 | AM3: 2027-03-31 | AN3: 2027-04-30 | AO3: 2027-05-31 | AP3: 2027-06-30 | AQ3: 2027-07-31 | AR3: 2027-08-31 | AS3: 2027-09-30 | AT3: 2027-10-31 | AU3: 2027-11-30 | AV3: 2027-12-31 | AW3: 2028-01-31 | AX3: 2028-02-29 | AY3: 2028-03-31 | AZ3: 2028-04-30 | BA3: 2028-05-31 | BB3: 2028-06-30 | BC3: 2028-07-31 | BD3: 2028-08-31 | BE3: 2028-09-30 | BF3: 2028-10-31 | BG3: 2028-11-30 | BH3: 2028-12-31 | BI3: 2029-01-31 | BJ3: 2029-02-28 | BK3: 2029-03-31 | BL3: 2029-04-30 | BM3: 2029-05-31 | BN3: 2029-06-30 | BO3: 2029-07-31 | BP3: 2029-08-31 | BQ3: 2029-09-30 | BR3: 2029-10-31 | BS3: 2029-11-30 | BT3: 2029-12-31 | BU3: 2030-01-31 | BV3: 2030-02-28 | BW3: =DATE(YEAR(BV3),MONTH(BV3)+2,1)-1 -> 2030-03-31 | BX3: 2030-04-30 | BY3: 2030-05-31 | BZ3: 2030-06-30 | CA3: 2030-07-31 | CB3: 2030-08-31 | CC3: 2030-09-30
C6: Total Tendered F&V Cost (Incl VAT, in Rands) - to C1.1.1 FORM OF OFFER | G6: =+G7+G8 -> R 532,709,555.00
C7: 15 %VAT on Total Tendered F&V Cost (in Rands) | G7: =+G8*0.15 -> R 69,483,855.00
C8: Total Tendered F&V Cost (Excl VAT, in Rands) | G8: =+G11 -> R 463,225,700.00
F10: CHECK | G10: =+SUM(H30:CC53,H55:CC91,H93:CC101,H103:CC112,H115:CC125,H127:CC135,H137:CC145,H147:CC149,H151:CC167,H169:CC170,H172:CC172,H174:CC211,H215:CC228,H230:CC261,H263:CC277,H280:CC427,H429:CC431,H433:CC466,H469:CC503) -> R 463,225,700.00 | H10: =G10=G11 -> TRUE | I10: =G10=G28+G213+G468 -> TRUE
C11: Total Tendered F&V Cost for A- and B Series (excl VAT) | G11: =+SUM(H11:CC11) -> 463,225,700.00 | H11: =+H21+H12+H24 -> 0.00 | I11: =+I21+I12+I24 -> 0.00 | J11: 0.00 | K11: 0.00 | L11: 0.00 | M11: 0.00 | N11: 0.00 | O11: 0.00 | P11: 0.00 | Q11: 0.00 | R11: 0.00 | S11: 0.00 | T11: 0.00 | U11: 77,204,283.30 | V11: 0.00 | W11: 0.00 | X11: 0.00 | Y11: 0.00 | Z11: 0.00 | AA11: 0.00 | AB11: 0.00 | AC11: 0.00 | AD11: 0.00 | AE11: 0.00 | AF11: 0.00 | AG11: 77,204,283.30 | AH11: 0.00 | AI11: 0.00 | AJ11: 0.00 | AK11: 0.00 | AL11: 0.00 | AM11: 0.00 | AN11: 0.00 | AO11: 0.00 | AP11: 0.00 | AQ11: 0.00 | AR11: 0.00 | AS11: 77,204,283.30 | AT11: 0.00 | AU11: 0.00 | AV11: 0.00 | AW11: 0.00 | AX11: 0.00 | AY11: 0.00 | AZ11: 0.00 | BA11: 0.00 | BB11: 0.00 | BC11: 0.00 | BD11: 0.00 | BE11: 77,204,283.30 | BF11: 0.00 | BG11: 0.00 | BH11: 0.00 | BI11: 0.00 | BJ11: 0.00 | BK11: 0.00 | BL11: 0.00 | BM11: 0.00 | BN11: 0.00 | BO11: 0.00 | BP11: 0.00 | BQ11: 77,204,283.30 | BR11: 0.00 | BS11: 0.00 | BT11: 0.00 | BU11: =+BU21+BU12+BU24 -> 0.00 | BV11: 0.00 | BW11: 0.00 | BX11: 0.00 | BY11: 0.00 | BZ11: 0.00 | CA11: 0.00 | CB11: 0.00 | CC11: 77,204,283.50
B12: A | C12: A Series: Operation Service | G12: 261,182,120.00 | H12: =+H28 -> 0.00 | I12: =+I28 -> 0.00 | J12: 0.00 | K12: 0.00 | L12: 0.00 | M12: 0.00 | N12: 0.00 | O12: 0.00 | P12: 0.00 | Q12: 0.00 | R12: 0.00 | S12: 0.00 | T12: 0.00 | U12: 43,530,353.34 | V12: 0.00 | W12: 0.00 | X12: 0.00 | Y12: 0.00 | Z12: 0.00 | AA12: 0.00 | AB12: 0.00 | AC12: 0.00 | AD12: 0.00 | AE12: 0.00 | AF12: 0.00 | AG12: 43,530,353.34 | AH12: 0.00 | AI12: 0.00 | AJ12: 0.00 | AK12: 0.00 | AL12: 0.00 | AM12: 0.00 | AN12: 0.00 | AO12: 0.00 | AP12: 0.00 | AQ12: 0.00 | AR12: 0.00 | AS12: 43,530,353.34 | AT12: 0.00 | AU12: 0.00 | AV12: 0.00 | AW12: 0.00 | AX12: 0.00 | AY12: 0.00 | AZ12: 0.00 | BA12: 0.00 | BB12: 0.00 | BC12: 0.00 | BD12: 0.00 | BE12: 43,530,353.34 | BF12: 0.00 | BG12: 0.00 | BH12: 0.00 | BI12: 0.00 | BJ12: 0.00 | BK12: 0.00 | BL12: 0.00 | BM12: 0.00 | BN12: 0.00 | BO12: 0.00 | BP12: 0.00 | BQ12: 43,530,353.34 | BR12: 0.00 | BS12: 0.00 | BT12: 0.00 | BU12: =+BU28 -> 0.00 | BV12: 0.00 | BW12: 0.00 | BX12: 0.00 | BY12: 0.00 | BZ12: 0.00 | CA12: 0.00 | CB12: 0.00 | CC12: 43,530,353.30 | CD12: =G12=G28 -> TRUE
C13: Fixed Items | G13: 0.00 | H13: =+H12-SUM(H14:H15) -> 0.00 | I13: =+I12-SUM(I14:I15) -> 0.00 | J13: 0.00 | K13: 0.00 | L13: 0.00 | M13: 0.00 | N13: 0.00 | O13: 0.00 | P13: 0.00 | Q13: 0.00 | R13: 0.00 | S13: 0.00 | T13: 0.00 | U13: 0.00 | V13: 0.00 | W13: 0.00 | X13: 0.00 | Y13: 0.00 | Z13: 0.00 | AA13: 0.00 | AB13: 0.00 | AC13: 0.00 | AD13: 0.00 | AE13: 0.00 | AF13: 0.00 | AG13: 0.00 | AH13: 0.00 | AI13: 0.00 | AJ13: 0.00 | AK13: 0.00 | AL13: 0.00 | AM13: 0.00 | AN13: 0.00 | AO13: 0.00 | AP13: 0.00 | AQ13: 0.00 | AR13: 0.00 | AS13: 0.00 | AT13: 0.00 | AU13: 0.00 | AV13: 0.00 | AW13: 0.00 | AX13: 0.00 | AY13: 0.00 | AZ13: 0.00 | BA13: 0.00 | BB13: 0.00 | BC13: 0.00 | BD13: 0.00 | BE13: 0.00 | BF13: 0.00 | BG13: 0.00 | BH13: 0.00 | BI13: 0.00 | BJ13: 0.00 | BK13: 0.00 | BL13: 0.00 | BM13: 0.00 | BN13: 0.00 | BO13: 0.00 | BP13: 0.00 | BQ13: 0.00 | BR13: 0.00 | BS13: 0.00 | BT13: 0.00 | BU13: =+BU12-SUM(BU14:BU15) -> 0.00 | BV13: 0.00 | BW13: 0.00 | BX13: 0.00 | BY13: 0.00 | BZ13: 0.00 | CA13: 0.00 | CB13: 0.00 | CC13: 0.00
C14: Provisional Sums | G14: 261,182,120.00 | H14: =+H173 -> 0.00 | I14: =+I173 -> 0.00 | J14: 0.00 | K14: 0.00 | L14: 0.00 | M14: 0.00 | N14: 0.00 | O14: 0.00 | P14: 0.00 | Q14: 0.00 | R14: 0.00 | S14: 0.00 | T14: 0.00 | U14: 43,530,353.34 | V14: 0.00 | W14: 0.00 | X14: 0.00 | Y14: 0.00 | Z14: 0.00 | AA14: 0.00 | AB14: 0.00 | AC14: 0.00 | AD14: 0.00 | AE14: 0.00 | AF14: 0.00 | AG14: 43,530,353.34 | AH14: 0.00 | AI14: 0.00 | AJ14: 0.00 | AK14: 0.00 | AL14: 0.00 | AM14: 0.00 | AN14: 0.00 | AO14: 0.00 | AP14: 0.00 | AQ14: 0.00 | AR14: 0.00 | AS14: 43,530,353.34 | AT14: 0.00 | AU14: 0.00 | AV14: 0.00 | AW14: 0.00 | AX14: 0.00 | AY14: 0.00 | AZ14: 0.00 | BA14: 0.00 | BB14: 0.00 | BC14: 0.00 | BD14: 0.00 | BE14: 43,530,353.34 | BF14: 0.00 | BG14: 0.00 | BH14: 0.00 | BI14: 0.00 | BJ14: 0.00 | BK14: 0.00 | BL14: 0.00 | BM14: 0.00 | BN14: 0.00 | BO14: 0.00 | BP14: 0.00 | BQ14: 43,530,353.34 | BR14: 0.00 | BS14: 0.00 | BT14: 0.00 | BU14: =+BU173 -> 0.00 | BV14: 0.00 | BW14: 0.00 | BX14: 0.00 | BY14: 0.00 | BZ14: 0.00 | CA14: 0.00 | CB14: 0.00 | CC14: 43,530,353.30
C15: Variable Operation Cost | G15: 0.00 | H15: =+SUM(H16:H19) -> 0.00 | I15: 0.00 | J15: 0.00 | K15: 0.00 | L15: 0.00 | M15: 0.00 | N15: 0.00 | O15: 0.00 | P15: 0.00 | Q15: 0.00 | R15: 0.00 | S15: 0.00 | T15: 0.00 | U15: 0.00 | V15: 0.00 | W15: 0.00 | X15: 0.00 | Y15: 0.00 | Z15: 0.00 | AA15: 0.00 | AB15: 0.00 | AC15: 0.00 | AD15: 0.00 | AE15: 0.00 | AF15: 0.00 | AG15: 0.00 | AH15: 0.00 | AI15: 0.00 | AJ15: 0.00 | AK15: 0.00 | AL15: 0.00 | AM15: 0.00 | AN15: 0.00 | AO15: 0.00 | AP15: 0.00 | AQ15: 0.00 | AR15: 0.00 | AS15: 0.00 | AT15: 0.00 | AU15: 0.00 | AV15: 0.00 | AW15: 0.00 | AX15: 0.00 | AY15: 0.00 | AZ15: 0.00 | BA15: 0.00 | BB15: 0.00 | BC15: 0.00 | BD15: 0.00 | BE15: 0.00 | BF15: 0.00 | BG15: 0.00 | BH15: 0.00 | BI15: 0.00 | BJ15: 0.00 | BK15: 0.00 | BL15: 0.00 | BM15: 0.00 | BN15: 0.00 | BO15: 0.00 | BP15: 0.00 | BQ15: 0.00 | BR15: 0.00 | BS15: 0.00 | BT15: =+SUM(BT16:BT19) -> 0.00 | BU15: 0.00 | BV15: 0.00 | BW15: 0.00 | BX15: 0.00 | BY15: 0.00 | BZ15: 0.00 | CA15: 0.00 | CB15: 0.00 | CC15: 0.00
C16: Class 1 | D16: month | E16: 72 | F16: =+SUM(Gosforth!F16) -> 0.00 | G16: 0.00 | H16: =+SUM(Gosforth!H16) -> 0.00 | I16: =+SUM(Gosforth!I16) -> 0.00 | J16: =+SUM(Gosforth!J16) -> 0.00 | K16: =+SUM(Gosforth!K16) -> 0.00 | L16: =+SUM(Gosforth!L16) -> 0.00 | M16: =+SUM(Gosforth!M16) -> 0.00 | N16: =+SUM(Gosforth!N16) -> 0.00 | O16: =+SUM(Gosforth!O16) -> 0.00 | P16: =+SUM(Gosforth!P16) -> 0.00 | Q16: =+SUM(Gosforth!Q16) -> 0.00 | R16: =+SUM(Gosforth!R16) -> 0.00 | S16: =+SUM(Gosforth!S16) -> 0.00 | T16: =+SUM(Gosforth!T16) -> 0.00 | U16: =+SUM(Gosforth!U16) -> 0.00 | V16: =+SUM(Gosforth!V16) -> 0.00 | W16: =+SUM(Gosforth!W16) -> 0.00 | X16: =+SUM(Gosforth!X16) -> 0.00 | Y16: =+SUM(Gosforth!Y16) -> 0.00 | Z16: =+SUM(Gosforth!Z16) -> 0.00 | AA16: =+SUM(Gosforth!AA16) -> 0.00 | AB16: =+SUM(Gosforth!AB16) -> 0.00 | AC16: =+SUM(Gosforth!AC16) -> 0.00 | AD16: =+SUM(Gosforth!AD16) -> 0.00 | AE16: =+SUM(Gosforth!AE16) -> 0.00 | AF16: =+SUM(Gosforth!AF16) -> 0.00 | AG16: =+SUM(Gosforth!AG16) -> 0.00 | AH16: =+SUM(Gosforth!AH16) -> 0.00 | AI16: =+SUM(Gosforth!AI16) -> 0.00 | AJ16: =+SUM(Gosforth!AJ16) -> 0.00 | AK16: =+SUM(Gosforth!AK16) -> 0.00 | AL16: =+SUM(Gosforth!AL16) -> 0.00 | AM16: =+SUM(Gosforth!AM16) -> 0.00 | AN16: =+SUM(Gosforth!AN16) -> 0.00 | AO16: =+SUM(Gosforth!AO16) -> 0.00 | AP16: =+SUM(Gosforth!AP16) -> 0.00 | AQ16: =+SUM(Gosforth!AQ16) -> 0.00 | AR16: =+SUM(Gosforth!AR16) -> 0.00 | AS16: =+SUM(Gosforth!AS16) -> 0.00 | AT16: =+SUM(Gosforth!AT16) -> 0.00 | AU16: =+SUM(Gosforth!AU16) -> 0.00 | AV16: =+SUM(Gosforth!AV16) -> 0.00 | AW16: =+SUM(Gosforth!AW16) -> 0.00 | AX16: =+SUM(Gosforth!AX16) -> 0.00 | AY16: =+SUM(Gosforth!AY16) -> 0.00 | AZ16: =+SUM(Gosforth!AZ16) -> 0.00 | BA16: =+SUM(Gosforth!BA16) -> 0.00 | BB16: =+SUM(Gosforth!BB16) -> 0.00 | BC16: =+SUM(Gosforth!BC16) -> 0.00 | BD16: =+SUM(Gosforth!BD16) -> 0.00 | BE16: =+SUM(Gosforth!BE16) -> 0.00 | BF16: =+SUM(Gosforth!BF16) -> 0.00 | BG16: =+SUM(Gosforth!BG16) -> 0.00 | BH16: =+SUM(Gosforth!BH16) -> 0.00 | BI16: =+SUM(Gosforth!BI16) -> 0.00 | BJ16: =+SUM(Gosforth!BJ16) -> 0.00 | BK16: =+SUM(Gosforth!BK16) -> 0.00 | BL16: =+SUM(Gosforth!BL16) -> 0.00 | BM16: =+SUM(Gosforth!BM16) -> 0.00 | BN16: =+SUM(Gosforth!BN16) -> 0.00 | BO16: =+SUM(Gosforth!BO16) -> 0.00 | BP16: =+SUM(Gosforth!BP16) -> 0.00 | BQ16: =+SUM(Gosforth!BQ16) -> 0.00 | BR16: =+SUM(Gosforth!BR16) -> 0.00 | BS16: =+SUM(Gosforth!BS16) -> 0.00 | BT16: =+SUM(Gosforth!BT16) -> 0.00 | BU16: =+SUM(Gosforth!BU16) -> 0.00 | BV16: =+SUM(Gosforth!BV16) -> 0.00 | BW16: =+SUM(Gosforth!BW16) -> 0.00 | BX16: =+SUM(Gosforth!BX16) -> 0.00 | BY16: =+SUM(Gosforth!BY16) -> 0.00 | BZ16: =+SUM(Gosforth!BZ16) -> 0.00 | CA16: =+SUM(Gosforth!CA16) -> 0.00 | CB16: =+SUM(Gosforth!CB16) -> 0.00 | CC16: =+SUM(Gosforth!CC16) -> 0.00
C17: Class 2 | D17: month | E17: 72 | F17: =+SUM(Gosforth!F17) -> 0.00 | G17: 0.00 | H17: =+SUM(Gosforth!H17) -> 0.00 | I17: =+SUM(Gosforth!I17) -> 0.00 | J17: =+SUM(Gosforth!J17) -> 0.00 | K17: =+SUM(Gosforth!K17) -> 0.00 | L17: =+SUM(Gosforth!L17) -> 0.00 | M17: =+SUM(Gosforth!M17) -> 0.00 | N17: =+SUM(Gosforth!N17) -> 0.00 | O17: =+SUM(Gosforth!O17) -> 0.00 | P17: =+SUM(Gosforth!P17) -> 0.00 | Q17: =+SUM(Gosforth!Q17) -> 0.00 | R17: =+SUM(Gosforth!R17) -> 0.00 | S17: =+SUM(Gosforth!S17) -> 0.00 | T17: =+SUM(Gosforth!T17) -> 0.00 | U17: =+SUM(Gosforth!U17) -> 0.00 | V17: =+SUM(Gosforth!V17) -> 0.00 | W17: =+SUM(Gosforth!W17) -> 0.00 | X17: =+SUM(Gosforth!X17) -> 0.00 | Y17: =+SUM(Gosforth!Y17) -> 0.00 | Z17: =+SUM(Gosforth!Z17) -> 0.00 | AA17: =+SUM(Gosforth!AA17) -> 0.00 | AB17: =+SUM(Gosforth!AB17) -> 0.00 | AC17: =+SUM(Gosforth!AC17) -> 0.00 | AD17: =+SUM(Gosforth!AD17) -> 0.00 | AE17: =+SUM(Gosforth!AE17) -> 0.00 | AF17: =+SUM(Gosforth!AF17) -> 0.00 | AG17: =+SUM(Gosforth!AG17) -> 0.00 | AH17: =+SUM(Gosforth!AH17) -> 0.00 | AI17: =+SUM(Gosforth!AI17) -> 0.00 | AJ17: =+SUM(Gosforth!AJ17) -> 0.00 | AK17: =+SUM(Gosforth!AK17) -> 0.00 | AL17: =+SUM(Gosforth!AL17) -> 0.00 | AM17: =+SUM(Gosforth!AM17) -> 0.00 | AN17: =+SUM(Gosforth!AN17) -> 0.00 | AO17: =+SUM(Gosforth!AO17) -> 0.00 | AP17: =+SUM(Gosforth!AP17) -> 0.00 | AQ17: =+SUM(Gosforth!AQ17) -> 0.00 | AR17: =+SUM(Gosforth!AR17) -> 0.00 | AS17: =+SUM(Gosforth!AS17) -> 0.00 | AT17: =+SUM(Gosforth!AT17) -> 0.00 | AU17: =+SUM(Gosforth!AU17) -> 0.00 | AV17: =+SUM(Gosforth!AV17) -> 0.00 | AW17: =+SUM(Gosforth!AW17) -> 0.00 | AX17: =+SUM(Gosforth!AX17) -> 0.00 | AY17: =+SUM(Gosforth!AY17) -> 0.00 | AZ17: =+SUM(Gosforth!AZ17) -> 0.00 | BA17: =+SUM(Gosforth!BA17) -> 0.00 | BB17: =+SUM(Gosforth!BB17) -> 0.00 | BC17: =+SUM(Gosforth!BC17) -> 0.00 | BD17: =+SUM(Gosforth!BD17) -> 0.00 | BE17: =+SUM(Gosforth!BE17) -> 0.00 | BF17: =+SUM(Gosforth!BF17) -> 0.00 | BG17: =+SUM(Gosforth!BG17) -> 0.00 | BH17: =+SUM(Gosforth!BH17) -> 0.00 | BI17: =+SUM(Gosforth!BI17) -> 0.00 | BJ17: =+SUM(Gosforth!BJ17) -> 0.00 | BK17: =+SUM(Gosforth!BK17) -> 0.00 | BL17: =+SUM(Gosforth!BL17) -> 0.00 | BM17: =+SUM(Gosforth!BM17) -> 0.00 | BN17: =+SUM(Gosforth!BN17) -> 0.00 | BO17: =+SUM(Gosforth!BO17) -> 0.00 | BP17: =+SUM(Gosforth!BP17) -> 0.00 | BQ17: =+SUM(Gosforth!BQ17) -> 0.00 | BR17: =+SUM(Gosforth!BR17) -> 0.00 | BS17: =+SUM(Gosforth!BS17) -> 0.00 | BT17: =+SUM(Gosforth!BT17) -> 0.00 | BU17: =+SUM(Gosforth!BU17) -> 0.00 | BV17: =+SUM(Gosforth!BV17) -> 0.00 | BW17: =+SUM(Gosforth!BW17) -> 0.00 | BX17: =+SUM(Gosforth!BX17) -> 0.00 | BY17: =+SUM(Gosforth!BY17) -> 0.00 | BZ17: =+SUM(Gosforth!BZ17) -> 0.00 | CA17: =+SUM(Gosforth!CA17) -> 0.00 | CB17: =+SUM(Gosforth!CB17) -> 0.00 | CC17: =+SUM(Gosforth!CC17) -> 0.00
C18: Class 3 | D18: month | E18: 72 | F18: =+SUM(Gosforth!F18) -> 0.00 | G18: 0.00 | H18: =+SUM(Gosforth!H18) -> 0.00 | I18: =+SUM(Gosforth!I18) -> 0.00 | J18: =+SUM(Gosforth!J18) -> 0.00 | K18: =+SUM(Gosforth!K18) -> 0.00 | L18: =+SUM(Gosforth!L18) -> 0.00 | M18: =+SUM(Gosforth!M18) -> 0.00 | N18: =+SUM(Gosforth!N18) -> 0.00 | O18: =+SUM(Gosforth!O18) -> 0.00 | P18: =+SUM(Gosforth!P18) -> 0.00 | Q18: =+SUM(Gosforth!Q18) -> 0.00 | R18: =+SUM(Gosforth!R18) -> 0.00 | S18: =+SUM(Gosforth!S18) -> 0.00 | T18: =+SUM(Gosforth!T18) -> 0.00 | U18: =+SUM(Gosforth!U18) -> 0.00 | V18: =+SUM(Gosforth!V18) -> 0.00 | W18: =+SUM(Gosforth!W18) -> 0.00 | X18: =+SUM(Gosforth!X18) -> 0.00 | Y18: =+SUM(Gosforth!Y18) -> 0.00 | Z18: =+SUM(Gosforth!Z18) -> 0.00 | AA18: =+SUM(Gosforth!AA18) -> 0.00 | AB18: =+SUM(Gosforth!AB18) -> 0.00 | AC18: =+SUM(Gosforth!AC18) -> 0.00 | AD18: =+SUM(Gosforth!AD18) -> 0.00 | AE18: =+SUM(Gosforth!AE18) -> 0.00 | AF18: =+SUM(Gosforth!AF18) -> 0.00 | AG18: =+SUM(Gosforth!AG18) -> 0.00 | AH18: =+SUM(Gosforth!AH18) -> 0.00 | AI18: =+SUM(Gosforth!AI18) -> 0.00 | AJ18: =+SUM(Gosforth!AJ18) -> 0.00 | AK18: =+SUM(Gosforth!AK18) -> 0.00 | AL18: =+SUM(Gosforth!AL18) -> 0.00 | AM18: =+SUM(Gosforth!AM18) -> 0.00 | AN18: =+SUM(Gosforth!AN18) -> 0.00 | AO18: =+SUM(Gosforth!AO18) -> 0.00 | AP18: =+SUM(Gosforth!AP18) -> 0.00 | AQ18: =+SUM(Gosforth!AQ18) -> 0.00 | AR18: =+SUM(Gosforth!AR18) -> 0.00 | AS18: =+SUM(Gosforth!AS18) -> 0.00 | AT18: =+SUM(Gosforth!AT18) -> 0.00 | AU18: =+SUM(Gosforth!AU18) -> 0.00 | AV18: =+SUM(Gosforth!AV18) -> 0.00 | AW18: =+SUM(Gosforth!AW18) -> 0.00 | AX18: =+SUM(Gosforth!AX18) -> 0.00 | AY18: =+SUM(Gosforth!AY18) -> 0.00 | AZ18: =+SUM(Gosforth!AZ18) -> 0.00 | BA18: =+SUM(Gosforth!BA18) -> 0.00 | BB18: =+SUM(Gosforth!BB18) -> 0.00 | BC18: =+SUM(Gosforth!BC18) -> 0.00 | BD18: =+SUM(Gosforth!BD18) -> 0.00 | BE18: =+SUM(Gosforth!BE18) -> 0.00 | BF18: =+SUM(Gosforth!BF18) -> 0.00 | BG18: =+SUM(Gosforth!BG18) -> 0.00 | BH18: =+SUM(Gosforth!BH18) -> 0.00 | BI18: =+SUM(Gosforth!BI18) -> 0.00 | BJ18: =+SUM(Gosforth!BJ18) -> 0.00 | BK18: =+SUM(Gosforth!BK18) -> 0.00 | BL18: =+SUM(Gosforth!BL18) -> 0.00 | BM18: =+SUM(Gosforth!BM18) -> 0.00 | BN18: =+SUM(Gosforth!BN18) -> 0.00 | BO18: =+SUM(Gosforth!BO18) -> 0.00 | BP18: =+SUM(Gosforth!BP18) -> 0.00 | BQ18: =+SUM(Gosforth!BQ18) -> 0.00 | BR18: =+SUM(Gosforth!BR18) -> 0.00 | BS18: =+SUM(Gosforth!BS18) -> 0.00 | BT18: =+SUM(Gosforth!BT18) -> 0.00 | BU18: =+SUM(Gosforth!BU18) -> 0.00 | BV18: =+SUM(Gosforth!BV18) -> 0.00 | BW18: =+SUM(Gosforth!BW18) -> 0.00 | BX18: =+SUM(Gosforth!BX18) -> 0.00 | BY18: =+SUM(Gosforth!BY18) -> 0.00 | BZ18: =+SUM(Gosforth!BZ18) -> 0.00 | CA18: =+SUM(Gosforth!CA18) -> 0.00 | CB18: =+SUM(Gosforth!CB18) -> 0.00 | CC18: =+SUM(Gosforth!CC18) -> 0.00
C19: Class 4 | D19: month | E19: 72 | F19: =+SUM(Gosforth!F19) -> 0.00 | G19: 0.00 | H19: =+SUM(Gosforth!H19) -> 0.00 | I19: =+SUM(Gosforth!I19) -> 0.00 | J19: =+SUM(Gosforth!J19) -> 0.00 | K19: =+SUM(Gosforth!K19) -> 0.00 | L19: =+SUM(Gosforth!L19) -> 0.00 | M19: =+SUM(Gosforth!M19) -> 0.00 | N19: =+SUM(Gosforth!N19) -> 0.00 | O19: =+SUM(Gosforth!O19) -> 0.00 | P19: =+SUM(Gosforth!P19) -> 0.00 | Q19: =+SUM(Gosforth!Q19) -> 0.00 | R19: =+SUM(Gosforth!R19) -> 0.00 | S19: =+SUM(Gosforth!S19) -> 0.00 | T19: =+SUM(Gosforth!T19) -> 0.00 | U19: =+SUM(Gosforth!U19) -> 0.00 | V19: =+SUM(Gosforth!V19) -> 0.00 | W19: =+SUM(Gosforth!W19) -> 0.00 | X19: =+SUM(Gosforth!X19) -> 0.00 | Y19: =+SUM(Gosforth!Y19) -> 0.00 | Z19: =+SUM(Gosforth!Z19) -> 0.00 | AA19: =+SUM(Gosforth!AA19) -> 0.00 | AB19: =+SUM(Gosforth!AB19) -> 0.00 | AC19: =+SUM(Gosforth!AC19) -> 0.00 | AD19: =+SUM(Gosforth!AD19) -> 0.00 | AE19: =+SUM(Gosforth!AE19) -> 0.00 | AF19: =+SUM(Gosforth!AF19) -> 0.00 | AG19: =+SUM(Gosforth!AG19) -> 0.00 | AH19: =+SUM(Gosforth!AH19) -> 0.00 | AI19: =+SUM(Gosforth!AI19) -> 0.00 | AJ19: =+SUM(Gosforth!AJ19) -> 0.00 | AK19: =+SUM(Gosforth!AK19) -> 0.00 | AL19: =+SUM(Gosforth!AL19) -> 0.00 | AM19: =+SUM(Gosforth!AM19) -> 0.00 | AN19: =+SUM(Gosforth!AN19) -> 0.00 | AO19: =+SUM(Gosforth!AO19) -> 0.00 | AP19: =+SUM(Gosforth!AP19) -> 0.00 | AQ19: =+SUM(Gosforth!AQ19) -> 0.00 | AR19: =+SUM(Gosforth!AR19) -> 0.00 | AS19: =+SUM(Gosforth!AS19) -> 0.00 | AT19: =+SUM(Gosforth!AT19) -> 0.00 | AU19: =+SUM(Gosforth!AU19) -> 0.00 | AV19: =+SUM(Gosforth!AV19) -> 0.00 | AW19: =+SUM(Gosforth!AW19) -> 0.00 | AX19: =+SUM(Gosforth!AX19) -> 0.00 | AY19: =+SUM(Gosforth!AY19) -> 0.00 | AZ19: =+SUM(Gosforth!AZ19) -> 0.00 | BA19: =+SUM(Gosforth!BA19) -> 0.00 | BB19: =+SUM(Gosforth!BB19) -> 0.00 | BC19: =+SUM(Gosforth!BC19) -> 0.00 | BD19: =+SUM(Gosforth!BD19) -> 0.00 | BE19: =+SUM(Gosforth!BE19) -> 0.00 | BF19: =+SUM(Gosforth!BF19) -> 0.00 | BG19: =+SUM(Gosforth!BG19) -> 0.00 | BH19: =+SUM(Gosforth!BH19) -> 0.00 | BI19: =+SUM(Gosforth!BI19) -> 0.00 | BJ19: =+SUM(Gosforth!BJ19) -> 0.00 | BK19: =+SUM(Gosforth!BK19) -> 0.00 | BL19: =+SUM(Gosforth!BL19) -> 0.00 | BM19: =+SUM(Gosforth!BM19) -> 0.00 | BN19: =+SUM(Gosforth!BN19) -> 0.00 | BO19: =+SUM(Gosforth!BO19) -> 0.00 | BP19: =+SUM(Gosforth!BP19) -> 0.00 | BQ19: =+SUM(Gosforth!BQ19) -> 0.00 | BR19: =+SUM(Gosforth!BR19) -> 0.00 | BS19: =+SUM(Gosforth!BS19) -> 0.00 | BT19: =+SUM(Gosforth!BT19) -> 0.00 | BU19: =+SUM(Gosforth!BU19) -> 0.00 | BV19: =+SUM(Gosforth!BV19) -> 0.00 | BW19: =+SUM(Gosforth!BW19) -> 0.00 | BX19: =+SUM(Gosforth!BX19) -> 0.00 | BY19: =+SUM(Gosforth!BY19) -> 0.00 | BZ19: =+SUM(Gosforth!BZ19) -> 0.00 | CA19: =+SUM(Gosforth!CA19) -> 0.00 | CB19: =+SUM(Gosforth!CB19) -> 0.00 | CC19: =+SUM(Gosforth!CC19) -> 0.00
G20: =IF(SUM(G16:G19)=0,0,IF(AND((SUM(G16:G19)/G12)>0.4,G173=0),0.4,(SUM(G16:G19)/G12))) -> 0.00% | H20: 0.00% | I20: 0.00% | J20: 0.00% | K20: 0.00% | L20: 0.00% | M20: 0.00% | N20: 0.00% | O20: 0.00% | P20: 0.00% | Q20: 0.00% | R20: 0.00% | S20: 0.00% | T20: 0.00% | U20: 0.00% | V20: 0.00% | W20: 0.00% | X20: 0.00% | Y20: 0.00% | Z20: 0.00% | AA20: 0.00% | AB20: 0.00% | AC20: 0.00% | AD20: 0.00% | AE20: 0.00% | AF20: 0.00% | AG20: 0.00% | AH20: 0.00% | AI20: 0.00% | AJ20: 0.00% | AK20: 0.00% | AL20: 0.00% | AM20: =IF(SUM(AM16:AM19)=0,0,IF(AND((SUM(AM16:AM19)/AM12)>0.4,AM173=0),0.4,(SUM(AM16:AM19)/AM12))) -> 0.00% | AN20: 0.00% | AO20: 0.00% | AP20: 0.00% | AQ20: 0.00% | AR20: 0.00% | AS20: 0.00% | AT20: 0.00% | AU20: 0.00% | AV20: 0.00% | AW20: 0.00% | AX20: 0.00% | AY20: 0.00% | AZ20: 0.00% | BA20: 0.00% | BB20: 0.00% | BC20: 0.00% | BD20: 0.00% | BE20: 0.00% | BF20: 0.00% | BG20: 0.00% | BH20: 0.00% | BI20: 0.00% | BJ20: 0.00% | BK20: 0.00% | BL20: 0.00% | BM20: 0.00% | BN20: 0.00% | BO20: 0.00% | BP20: 0.00% | BQ20: 0.00% | BR20: 0.00% | BS20: =IF(SUM(BS16:BS19)=0,0,IF(AND((SUM(BS16:BS19)/BS12)>0.4,BS173=0),0.4,(SUM(BS16:BS19)/BS12))) -> 0.00% | BT20: 0.00% | BU20: 0.00% | BV20: 0.00% | BW20: 0.00% | BX20: 0.00% | BY20: 0.00% | BZ20: 0.00% | CA20: 0.00% | CB20: 0.00% | CC20: 0.00%
B21: B | C21: B Series: Design Build | G21: =+SUM(H21:CC21) -> 171,189,580.00 | H21: =+H213 -> 0.00 | I21: =+I213 -> 0.00 | J21: 0.00 | K21: 0.00 | L21: 0.00 | M21: 0.00 | N21: 0.00 | O21: 0.00 | P21: 0.00 | Q21: 0.00 | R21: 0.00 | S21: 0.00 | T21: 0.00 | U21: 28,531,596.67 | V21: 0.00 | W21: 0.00 | X21: 0.00 | Y21: 0.00 | Z21: 0.00 | AA21: 0.00 | AB21: 0.00 | AC21: 0.00 | AD21: 0.00 | AE21: 0.00 | AF21: 0.00 | AG21: 28,531,596.67 | AH21: 0.00 | AI21: 0.00 | AJ21: 0.00 | AK21: 0.00 | AL21: 0.00 | AM21: 0.00 | AN21: 0.00 | AO21: 0.00 | AP21: 0.00 | AQ21: 0.00 | AR21: 0.00 | AS21: 28,531,596.67 | AT21: 0.00 | AU21: 0.00 | AV21: 0.00 | AW21: 0.00 | AX21: 0.00 | AY21: 0.00 | AZ21: 0.00 | BA21: =+BA213 -> 0.00 | BB21: 0.00 | BC21: 0.00 | BD21: 0.00 | BE21: 28,531,596.67 | BF21: 0.00 | BG21: 0.00 | BH21: 0.00 | BI21: 0.00 | BJ21: 0.00 | BK21: 0.00 | BL21: 0.00 | BM21: 0.00 | BN21: 0.00 | BO21: 0.00 | BP21: 0.00 | BQ21: 28,531,596.67 | BR21: 0.00 | BS21: 0.00 | BT21: 0.00 | BU21: =+BU213 -> 0.00 | BV21: 0.00 | BW21: 0.00 | BX21: 0.00 | BY21: 0.00 | BZ21: 0.00 | CA21: 0.00 | CB21: 0.00 | CC21: 28,531,596.65 | CD21: =G21=G213 -> TRUE
C22: Fixed Items | G22: 0.00 | H22: =+H21-H23 -> 0.00 | I22: 0.00 | J22: 0.00 | K22: 0.00 | L22: 0.00 | M22: 0.00 | N22: 0.00 | O22: 0.00 | P22: 0.00 | Q22: 0.00 | R22: 0.00 | S22: 0.00 | T22: 0.00 | U22: 0.00 | V22: 0.00 | W22: 0.00 | X22: 0.00 | Y22: 0.00 | Z22: 0.00 | AA22: 0.00 | AB22: 0.00 | AC22: 0.00 | AD22: 0.00 | AE22: 0.00 | AF22: 0.00 | AG22: 0.00 | AH22: 0.00 | AI22: 0.00 | AJ22: 0.00 | AK22: 0.00 | AL22: 0.00 | AM22: 0.00 | AN22: 0.00 | AO22: 0.00 | AP22: 0.00 | AQ22: 0.00 | AR22: 0.00 | AS22: 0.00 | AT22: 0.00 | AU22: 0.00 | AV22: 0.00 | AW22: 0.00 | AX22: 0.00 | AY22: 0.00 | AZ22: 0.00 | BA22: 0.00 | BB22: 0.00 | BC22: 0.00 | BD22: 0.00 | BE22: 0.00 | BF22: 0.00 | BG22: 0.00 | BH22: 0.00 | BI22: 0.00 | BJ22: 0.00 | BK22: 0.00 | BL22: 0.00 | BM22: 0.00 | BN22: 0.00 | BO22: 0.00 | BP22: 0.00 | BQ22: 0.00 | BR22: 0.00 | BS22: 0.00 | BT22: =+BT21-BT23 -> 0.00 | BU22: 0.00 | BV22: 0.00 | BW22: 0.00 | BX22: 0.00 | BY22: 0.00 | BZ22: 0.00 | CA22: 0.00 | CB22: 0.00 | CC22: 0.00
C23: Provisional Sums | G23: 171,189,580.00 | H23: =+H432 -> 0.00 | I23: =+I432 -> 0.00 | J23: 0.00 | K23: 0.00 | L23: 0.00 | M23: 0.00 | N23: 0.00 | O23: 0.00 | P23: 0.00 | Q23: 0.00 | R23: 0.00 | S23: 0.00 | T23: 0.00 | U23: 28,531,596.67 | V23: 0.00 | W23: 0.00 | X23: 0.00 | Y23: 0.00 | Z23: 0.00 | AA23: 0.00 | AB23: 0.00 | AC23: 0.00 | AD23: 0.00 | AE23: 0.00 | AF23: 0.00 | AG23: 28,531,596.67 | AH23: 0.00 | AI23: 0.00 | AJ23: 0.00 | AK23: 0.00 | AL23: 0.00 | AM23: 0.00 | AN23: 0.00 | AO23: 0.00 | AP23: 0.00 | AQ23: 0.00 | AR23: 0.00 | AS23: 28,531,596.67 | AT23: 0.00 | AU23: 0.00 | AV23: 0.00 | AW23: 0.00 | AX23: 0.00 | AY23: 0.00 | AZ23: 0.00 | BA23: 0.00 | BB23: 0.00 | BC23: 0.00 | BD23: 0.00 | BE23: 28,531,596.67 | BF23: 0.00 | BG23: 0.00 | BH23: 0.00 | BI23: 0.00 | BJ23: 0.00 | BK23: 0.00 | BL23: 0.00 | BM23: 0.00 | BN23: 0.00 | BO23: 0.00 | BP23: 0.00 | BQ23: 28,531,596.67 | BR23: 0.00 | BS23: 0.00 | BT23: 0.00 | BU23: =+BU432 -> 0.00 | BV23: 0.00 | BW23: 0.00 | BX23: 0.00 | BY23: 0.00 | BZ23: 0.00 | CA23: 0.00 | CB23: 0.00 | CC23: 28,531,596.65
B24: D | C24: D Series: Contract Participation, etc | G24: 30,854,000.00 | H24: =+H468 -> 0.00 | I24: 0.00 | J24: 0.00 | K24: 0.00 | L24: 0.00 | M24: 0.00 | N24: 0.00 | O24: 0.00 | P24: 0.00 | Q24: 0.00 | R24: 0.00 | S24: 0.00 | T24: 0.00 | U24: 5,142,333.29 | V24: 0.00 | W24: 0.00 | X24: 0.00 | Y24: 0.00 | Z24: 0.00 | AA24: 0.00 | AB24: 0.00 | AC24: 0.00 | AD24: 0.00 | AE24: 0.00 | AF24: 0.00 | AG24: 5,142,333.29 | AH24: 0.00 | AI24: 0.00 | AJ24: 0.00 | AK24: 0.00 | AL24: 0.00 | AM24: 0.00 | AN24: 0.00 | AO24: 0.00 | AP24: 0.00 | AQ24: 0.00 | AR24: 0.00 | AS24: 5,142,333.29 | AT24: 0.00 | AU24: 0.00 | AV24: 0.00 | AW24: 0.00 | AX24: 0.00 | AY24: 0.00 | AZ24: 0.00 | BA24: 0.00 | BB24: 0.00 | BC24: 0.00 | BD24: 0.00 | BE24: 5,142,333.29 | BF24: 0.00 | BG24: 0.00 | BH24: 0.00 | BI24: 0.00 | BJ24: 0.00 | BK24: 0.00 | BL24: 0.00 | BM24: 0.00 | BN24: 0.00 | BO24: 0.00 | BP24: 0.00 | BQ24: 5,142,333.29 | BR24: 0.00 | BS24: 0.00 | BT24: =+BT468 -> 0.00 | BU24: =+BU468 -> 0.00 | BV24: =+BV468 -> 0.00 | BW24: 0.00 | BX24: 0.00 | BY24: 0.00 | BZ24: 0.00 | CA24: 0.00 | CB24: 0.00 | CC24: 5,142,333.55 | CD24: =G24=G468 -> TRUE
C25: Fixed Items | G25: 0.00 | H25: =H24-H26 -> 0.00 | I25: =I24-I26 -> 0.00 | J25: 0.00 | K25: 0.00 | L25: 0.00 | M25: 0.00 | N25: 0.00 | O25: 0.00 | P25: 0.00 | Q25: 0.00 | R25: 0.00 | S25: 0.00 | T25: 0.00 | U25: 0.00 | V25: 0.00 | W25: 0.00 | X25: 0.00 | Y25: 0.00 | Z25: 0.00 | AA25: 0.00 | AB25: 0.00 | AC25: 0.00 | AD25: 0.00 | AE25: 0.00 | AF25: 0.00 | AG25: 0.00 | AH25: 0.00 | AI25: 0.00 | AJ25: 0.00 | AK25: 0.00 | AL25: 0.00 | AM25: 0.00 | AN25: 0.00 | AO25: 0.00 | AP25: 0.00 | AQ25: 0.00 | AR25: 0.00 | AS25: 0.00 | AT25: 0.00 | AU25: 0.00 | AV25: 0.00 | AW25: 0.00 | AX25: 0.00 | AY25: 0.00 | AZ25: 0.00 | BA25: 0.00 | BB25: 0.00 | BC25: 0.00 | BD25: 0.00 | BE25: 0.00 | BF25: 0.00 | BG25: 0.00 | BH25: 0.00 | BI25: 0.00 | BJ25: 0.00 | BK25: 0.00 | BL25: 0.00 | BM25: 0.00 | BN25: 0.00 | BO25: 0.00 | BP25: 0.00 | BQ25: 0.00 | BR25: 0.00 | BS25: 0.00 | BT25: 0.00 | BU25: =BU24-BU26 -> 0.00 | BV25: 0.00 | BW25: 0.00 | BX25: 0.00 | BY25: 0.00 | BZ25: 0.00 | CA25: 0.00 | CB25: 0.00 | CC25: 0.00
C26: Provisional Sums | G26: 30,854,000.00 | H26: =SUM(H469,H471,H472,H485:H486,H492:H495,H497,H499,H501:H502) -> 0.00 | I26: 0.00 | J26: 0.00 | K26: 0.00 | L26: 0.00 | M26: 0.00 | N26: 0.00 | O26: 0.00 | P26: 0.00 | Q26: 0.00 | R26: 0.00 | S26: 0.00 | T26: 0.00 | U26: 5,142,333.29 | V26: 0.00 | W26: 0.00 | X26: 0.00 | Y26: 0.00 | Z26: 0.00 | AA26: 0.00 | AB26: 0.00 | AC26: 0.00 | AD26: 0.00 | AE26: 0.00 | AF26: 0.00 | AG26: 5,142,333.29 | AH26: 0.00 | AI26: 0.00 | AJ26: 0.00 | AK26: 0.00 | AL26: 0.00 | AM26: 0.00 | AN26: =SUM(AN469,AN471,AN472,AN485:AN486,AN492:AN495,AN497,AN499,AN501:AN502) -> 0.00 | AO26: 0.00 | AP26: 0.00 | AQ26: 0.00 | AR26: 0.00 | AS26: 5,142,333.29 | AT26: 0.00 | AU26: 0.00 | AV26: 0.00 | AW26: 0.00 | AX26: 0.00 | AY26: 0.00 | AZ26: 0.00 | BA26: 0.00 | BB26: 0.00 | BC26: 0.00 | BD26: 0.00 | BE26: 5,142,333.29 | BF26: 0.00 | BG26: 0.00 | BH26: 0.00 | BI26: 0.00 | BJ26: 0.00 | BK26: 0.00 | BL26: 0.00 | BM26: 0.00 | BN26: 0.00 | BO26: 0.00 | BP26: 0.00 | BQ26: 5,142,333.29 | BR26: 0.00 | BS26: 0.00 | BT26: =SUM(BT469,BT471,BT472,BT485:BT486,BT492:BT495,BT497,BT499,BT501:BT502) -> 0.00 | BU26: 0.00 | BV26: 0.00 | BW26: 0.00 | BX26: 0.00 | BY26: 0.00 | BZ26: 0.00 | CA26: 0.00 | CB26: 0.00 | CC26: 5,142,333.55
B28: A Series | C28: Operation Service | F28: =(Gosforth!G28+Dalpark!G28+Leandra!G28+Trichardt!G28+Ermelo!G28)=G28 -> TRUE | G28: =+SUM(G29,G54,G92,G102,G113,G146,G150,G168,G171,G173) -> 261,182,120.00 | H28: 0.00 | I28: 0.00 | J28: 0.00 | K28: 0.00 | L28: 0.00 | M28: 0.00 | N28: 0.00 | O28: 0.00 | P28: 0.00 | Q28: 0.00 | R28: 0.00 | S28: 0.00 | T28: 0.00 | U28: 43,530,353.34 | V28: 0.00 | W28: 0.00 | X28: 0.00 | Y28: 0.00 | Z28: 0.00 | AA28: 0.00 | AB28: 0.00 | AC28: 0.00 | AD28: 0.00 | AE28: 0.00 | AF28: 0.00 | AG28: 43,530,353.34 | AH28: 0.00 | AI28: 0.00 | AJ28: 0.00 | AK28: 0.00 | AL28: 0.00 | AM28: =+SUM(AM29,AM54,AM92,AM102,AM113,AM146,AM150,AM168,AM171,AM173) -> 0.00 | AN28: 0.00 | AO28: 0.00 | AP28: 0.00 | AQ28: 0.00 | AR28: 0.00 | AS28: 43,530,353.34 | AT28: 0.00 | AU28: 0.00 | AV28: 0.00 | AW28: 0.00 | AX28: 0.00 | AY28: 0.00 | AZ28: 0.00 | BA28: 0.00 | BB28: 0.00 | BC28: 0.00 | BD28: 0.00 | BE28: 43,530,353.34 | BF28: 0.00 | BG28: 0.00 | BH28: 0.00 | BI28: 0.00 | BJ28: 0.00 | BK28: 0.00 | BL28: 0.00 | BM28: 0.00 | BN28: 0.00 | BO28: 0.00 | BP28: 0.00 | BQ28: 43,530,353.34 | BR28: 0.00 | BS28: =+SUM(BS29,BS54,BS92,BS102,BS113,BS146,BS150,BS168,BS171,BS173) -> 0.00 | BT28: 0.00 | BU28: 0.00 | BV28: 0.00 | BW28: 0.00 | BX28: 0.00 | BY28: 0.00 | BZ28: 0.00 | CA28: 0.00 | CB28: 0.00 | CC28: 43,530,353.30 | CD28: .
B29: A-1000 | C29: General Contractors Obligations | F29: =(Gosforth!G29+Dalpark!G29+Leandra!G29+Trichardt!G29+Ermelo!G29)=G29 -> TRUE | G29: =SUM(G30:G53) -> 0.00 | H29: =SUM(H30:H53) -> 0.00 | I29: 0.00 | J29: 0.00 | K29: 0.00 | L29: 0.00 | M29: 0.00 | N29: 0.00 | O29: 0.00 | P29: 0.00 | Q29: 0.00 | R29: 0.00 | S29: 0.00 | T29: 0.00 | U29: 0.00 | V29: 0.00 | W29: 0.00 | X29: 0.00 | Y29: 0.00 | Z29: 0.00 | AA29: 0.00 | AB29: 0.00 | AC29: 0.00 | AD29: 0.00 | AE29: 0.00 | AF29: 0.00 | AG29: 0.00 | AH29: 0.00 | AI29: 0.00 | AJ29: 0.00 | AK29: 0.00 | AL29: 0.00 | AM29: =SUM(AM30:AM53) -> 0.00 | AN29: 0.00 | AO29: 0.00 | AP29: 0.00 | AQ29: 0.00 | AR29: 0.00 | AS29: 0.00 | AT29: 0.00 | AU29: 0.00 | AV29: 0.00 | AW29: 0.00 | AX29: 0.00 | AY29: 0.00 | AZ29: 0.00 | BA29: 0.00 | BB29: 0.00 | BC29: 0.00 | BD29: 0.00 | BE29: 0.00 | BF29: 0.00 | BG29: 0.00 | BH29: 0.00 | BI29: 0.00 | BJ29: 0.00 | BK29: 0.00 | BL29: 0.00 | BM29: 0.00 | BN29: 0.00 | BO29: 0.00 | BP29: 0.00 | BQ29: 0.00 | BR29: 0.00 | BS29: =SUM(BS30:BS53) -> 0.00 | BT29: 0.00 | BU29: 0.00 | BV29: 0.00 | BW29: 0.00 | BX29: 0.00 | BY29: 0.00 | BZ29: 0.00 | CA29: 0.00 | CB29: 0.00 | CC29: 0.00 | CD29: .
B30: A-1001 | C30: Contractors General Obligations for the duration of the Operations Service Period | F30: =(Gosforth!G30+Dalpark!G30+Leandra!G30+Trichardt!G30+Ermelo!G30)=G30 -> TRUE | G30: =+SUM(H30:CC30) -> 0.00 | H30: =SUM(Gosforth:Ermelo!H30) -> 0.00 | I30: =SUM(Gosforth:Ermelo!I30) -> 0.00 | J30: =SUM(Gosforth:Ermelo!J30) -> 0.00 | K30: =SUM(Gosforth:Ermelo!K30) -> 0.00 | L30: =SUM(Gosforth:Ermelo!L30) -> 0.00 | M30: =SUM(Gosforth:Ermelo!M30) -> 0.00 | N30: =SUM(Gosforth:Ermelo!N30) -> 0.00 | O30: =SUM(Gosforth:Ermelo!O30) -> 0.00 | P30: =SUM(Gosforth:Ermelo!P30) -> 0.00 | Q30: =SUM(Gosforth:Ermelo!Q30) -> 0.00 | R30: =SUM(Gosforth:Ermelo!R30) -> 0.00 | S30: =SUM(Gosforth:Ermelo!S30) -> 0.00 | T30: =SUM(Gosforth:Ermelo!T30) -> 0.00 | U30: =SUM(Gosforth:Ermelo!U30) -> 0.00 | V30: =SUM(Gosforth:Ermelo!V30) -> 0.00 | W30: =SUM(Gosforth:Ermelo!W30) -> 0.00 | X30: =SUM(Gosforth:Ermelo!X30) -> 0.00 | Y30: =SUM(Gosforth:Ermelo!Y30) -> 0.00 | Z30: =SUM(Gosforth:Ermelo!Z30) -> 0.00 | AA30: =SUM(Gosforth:Ermelo!AA30) -> 0.00 | AB30: =SUM(Gosforth:Ermelo!AB30) -> 0.00 | AC30: =SUM(Gosforth:Ermelo!AC30) -> 0.00 | AD30: =SUM(Gosforth:Ermelo!AD30) -> 0.00 | AE30: =SUM(Gosforth:Ermelo!AE30) -> 0.00 | AF30: =SUM(Gosforth:Ermelo!AF30) -> 0.00 | AG30: =SUM(Gosforth:Ermelo!AG30) -> 0.00 | AH30: =SUM(Gosforth:Ermelo!AH30) -> 0.00 | AI30: =SUM(Gosforth:Ermelo!AI30) -> 0.00 | AJ30: =SUM(Gosforth:Ermelo!AJ30) -> 0.00 | AK30: =SUM(Gosforth:Ermelo!AK30) -> 0.00 | AL30: =SUM(Gosforth:Ermelo!AL30) -> 0.00 | AM30: =SUM(Gosforth:Ermelo!AM30) -> 0.00 | AN30: =SUM(Gosforth:Ermelo!AN30) -> 0.00 | AO30: =SUM(Gosforth:Ermelo!AO30) -> 0.00 | AP30: =SUM(Gosforth:Ermelo!AP30) -> 0.00 | AQ30: =SUM(Gosforth:Ermelo!AQ30) -> 0.00 | AR30: =SUM(Gosforth:Ermelo!AR30) -> 0.00 | AS30: =SUM(Gosforth:Ermelo!AS30) -> 0.00 | AT30: =SUM(Gosforth:Ermelo!AT30) -> 0.00 | AU30: =SUM(Gosforth:Ermelo!AU30) -> 0.00 | AV30: =SUM(Gosforth:Ermelo!AV30) -> 0.00 | AW30: =SUM(Gosforth:Ermelo!AW30) -> 0.00 | AX30: =SUM(Gosforth:Ermelo!AX30) -> 0.00 | AY30: =SUM(Gosforth:Ermelo!AY30) -> 0.00 | AZ30: =SUM(Gosforth:Ermelo!AZ30) -> 0.00 | BA30: =SUM(Gosforth:Ermelo!BA30) -> 0.00 | BB30: =SUM(Gosforth:Ermelo!BB30) -> 0.00 | BC30: =SUM(Gosforth:Ermelo!BC30) -> 0.00 | BD30: =SUM(Gosforth:Ermelo!BD30) -> 0.00 | BE30: =SUM(Gosforth:Ermelo!BE30) -> 0.00 | BF30: =SUM(Gosforth:Ermelo!BF30) -> 0.00 | BG30: =SUM(Gosforth:Ermelo!BG30) -> 0.00 | BH30: =SUM(Gosforth:Ermelo!BH30) -> 0.00 | BI30: =SUM(Gosforth:Ermelo!BI30) -> 0.00 | BJ30: =SUM(Gosforth:Ermelo!BJ30) -> 0.00 | BK30: =SUM(Gosforth:Ermelo!BK30) -> 0.00 | BL30: =SUM(Gosforth:Ermelo!BL30) -> 0.00 | BM30: =SUM(Gosforth:Ermelo!BM30) -> 0.00 | BN30: =SUM(Gosforth:Ermelo!BN30) -> 0.00 | BO30: =SUM(Gosforth:Ermelo!BO30) -> 0.00 | BP30: =SUM(Gosforth:Ermelo!BP30) -> 0.00 | BQ30: =SUM(Gosforth:Ermelo!BQ30) -> 0.00 | BR30: =SUM(Gosforth:Ermelo!BR30) -> 0.00 | BS30: =SUM(Gosforth:Ermelo!BS30) -> 0.00 | BT30: =SUM(Gosforth:Ermelo!BT30) -> 0.00 | BU30: =SUM(Gosforth:Ermelo!BU30) -> 0.00 | BV30: =SUM(Gosforth:Ermelo!BV30) -> 0.00 | BW30: =SUM(Gosforth:Ermelo!BW30) -> 0.00 | BX30: =SUM(Gosforth:Ermelo!BX30) -> 0.00 | BY30: =SUM(Gosforth:Ermelo!BY30) -> 0.00 | BZ30: =SUM(Gosforth:Ermelo!BZ30) -> 0.00 | CA30: =SUM(Gosforth:Ermelo!CA30) -> 0.00 | CB30: =SUM(Gosforth:Ermelo!CB30) -> 0.00 | CC30: =SUM(Gosforth:Ermelo!CC30) -> 0.00 | CD30: .
B31: A-1001a | C31: Contractors General Obligations for the duration of the Operations Service Period – Establishment Period | D31: Week | E31: =SUM(Gosforth:Ermelo!E31) -> 30 | F31: =(Gosforth!G31+Dalpark!G31+Leandra!G31+Trichardt!G31+Ermelo!G31)=G31 -> TRUE | G31: 0.00 | H31: =SUM(Gosforth:Ermelo!H31) -> 0.00 | I31: =SUM(Gosforth:Ermelo!I31) -> 0.00 | J31: =SUM(Gosforth:Ermelo!J31) -> 0.00 | K31: =SUM(Gosforth:Ermelo!K31) -> 0.00 | L31: =SUM(Gosforth:Ermelo!L31) -> 0.00 | M31: =SUM(Gosforth:Ermelo!M31) -> 0.00 | N31: =SUM(Gosforth:Ermelo!N31) -> 0.00 | O31: =SUM(Gosforth:Ermelo!O31) -> 0.00 | P31: =SUM(Gosforth:Ermelo!P31) -> 0.00 | Q31: =SUM(Gosforth:Ermelo!Q31) -> 0.00 | R31: =SUM(Gosforth:Ermelo!R31) -> 0.00 | S31: =SUM(Gosforth:Ermelo!S31) -> 0.00 | T31: =SUM(Gosforth:Ermelo!T31) -> 0.00 | U31: =SUM(Gosforth:Ermelo!U31) -> 0.00 | V31: =SUM(Gosforth:Ermelo!V31) -> 0.00 | W31: =SUM(Gosforth:Ermelo!W31) -> 0.00 | X31: =SUM(Gosforth:Ermelo!X31) -> 0.00 | Y31: =SUM(Gosforth:Ermelo!Y31) -> 0.00 | Z31: =SUM(Gosforth:Ermelo!Z31) -> 0.00 | AA31: =SUM(Gosforth:Ermelo!AA31) -> 0.00 | AB31: =SUM(Gosforth:Ermelo!AB31) -> 0.00 | AC31: =SUM(Gosforth:Ermelo!AC31) -> 0.00 | AD31: =SUM(Gosforth:Ermelo!AD31) -> 0.00 | AE31: =SUM(Gosforth:Ermelo!AE31) -> 0.00 | AF31: =SUM(Gosforth:Ermelo!AF31) -> 0.00 | AG31: =SUM(Gosforth:Ermelo!AG31) -> 0.00 | AH31: =SUM(Gosforth:Ermelo!AH31) -> 0.00 | AI31: =SUM(Gosforth:Ermelo!AI31) -> 0.00 | AJ31: =SUM(Gosforth:Ermelo!AJ31) -> 0.00 | AK31: =SUM(Gosforth:Ermelo!AK31) -> 0.00 | AL31: =SUM(Gosforth:Ermelo!AL31) -> 0.00 | AM31: =SUM(Gosforth:Ermelo!AM31) -> 0.00 | AN31: =SUM(Gosforth:Ermelo!AN31) -> 0.00 | AO31: =SUM(Gosforth:Ermelo!AO31) -> 0.00 | AP31: =SUM(Gosforth:Ermelo!AP31) -> 0.00 | AQ31: =SUM(Gosforth:Ermelo!AQ31) -> 0.00 | AR31: =SUM(Gosforth:Ermelo!AR31) -> 0.00 | AS31: =SUM(Gosforth:Ermelo!AS31) -> 0.00 | AT31: =SUM(Gosforth:Ermelo!AT31) -> 0.00 | AU31: =SUM(Gosforth:Ermelo!AU31) -> 0.00 | AV31: =SUM(Gosforth:Ermelo!AV31) -> 0.00 | AW31: =SUM(Gosforth:Ermelo!AW31) -> 0.00 | AX31: =SUM(Gosforth:Ermelo!AX31) -> 0.00 | AY31: =SUM(Gosforth:Ermelo!AY31) -> 0.00 | AZ31: =SUM(Gosforth:Ermelo!AZ31) -> 0.00 | BA31: =SUM(Gosforth:Ermelo!BA31) -> 0.00 | BB31: =SUM(Gosforth:Ermelo!BB31) -> 0.00 | BC31: =SUM(Gosforth:Ermelo!BC31) -> 0.00 | BD31: =SUM(Gosforth:Ermelo!BD31) -> 0.00 | BE31: =SUM(Gosforth:Ermelo!BE31) -> 0.00 | BF31: =SUM(Gosforth:Ermelo!BF31) -> 0.00 | BG31: =SUM(Gosforth:Ermelo!BG31) -> 0.00 | BH31: =SUM(Gosforth:Ermelo!BH31) -> 0.00 | BI31: =SUM(Gosforth:Ermelo!BI31) -> 0.00 | BJ31: =SUM(Gosforth:Ermelo!BJ31) -> 0.00 | BK31: =SUM(Gosforth:Ermelo!BK31) -> 0.00 | BL31: =SUM(Gosforth:Ermelo!BL31) -> 0.00 | BM31: =SUM(Gosforth:Ermelo!BM31) -> 0.00 | BN31: =SUM(Gosforth:Ermelo!BN31) -> 0.00 | BO31: =SUM(Gosforth:Ermelo!BO31) -> 0.00 | BP31: =SUM(Gosforth:Ermelo!BP31) -> 0.00 | BQ31: =SUM(Gosforth:Ermelo!BQ31) -> 0.00 | BR31: =SUM(Gosforth:Ermelo!BR31) -> 0.00 | BS31: =SUM(Gosforth:Ermelo!BS31) -> 0.00 | BT31: =SUM(Gosforth:Ermelo!BT31) -> 0.00 | BU31: =SUM(Gosforth:Ermelo!BU31) -> 0.00 | BV31: =SUM(Gosforth:Ermelo!BV31) -> 0.00 | BW31: =SUM(Gosforth:Ermelo!BW31) -> 0.00 | BX31: =SUM(Gosforth:Ermelo!BX31) -> 0.00 | BY31: =SUM(Gosforth:Ermelo!BY31) -> 0.00 | BZ31: =SUM(Gosforth:Ermelo!BZ31) -> 0.00 | CA31: =SUM(Gosforth:Ermelo!CA31) -> 0.00 | CB31: =SUM(Gosforth:Ermelo!CB31) -> 0.00 | CC31: =SUM(Gosforth:Ermelo!CC31) -> 0.00 | CD31: .
B32: A-1001b | C32: Contractor’s General Obligations during Operations Period - Section 1 (Using the Toll System handed over) | D32: Month | E32: =SUM(Gosforth:Ermelo!E32) -> 180 | F32: =(Gosforth!G32+Dalpark!G32+Leandra!G32+Trichardt!G32+Ermelo!G32)=G32 -> TRUE | G32: 0.00 | H32: =SUM(Gosforth:Ermelo!H32) -> 0.00 | I32: =SUM(Gosforth:Ermelo!I32) -> 0.00 | J32: =SUM(Gosforth:Ermelo!J32) -> 0.00 | K32: =SUM(Gosforth:Ermelo!K32) -> 0.00 | L32: =SUM(Gosforth:Ermelo!L32) -> 0.00 | M32: =SUM(Gosforth:Ermelo!M32) -> 0.00 | N32: =SUM(Gosforth:Ermelo!N32) -> 0.00 | O32: =SUM(Gosforth:Ermelo!O32) -> 0.00 | P32: =SUM(Gosforth:Ermelo!P32) -> 0.00 | Q32: =SUM(Gosforth:Ermelo!Q32) -> 0.00 | R32: =SUM(Gosforth:Ermelo!R32) -> 0.00 | S32: =SUM(Gosforth:Ermelo!S32) -> 0.00 | T32: =SUM(Gosforth:Ermelo!T32) -> 0.00 | U32: =SUM(Gosforth:Ermelo!U32) -> 0.00 | V32: =SUM(Gosforth:Ermelo!V32) -> 0.00 | W32: =SUM(Gosforth:Ermelo!W32) -> 0.00 | X32: =SUM(Gosforth:Ermelo!X32) -> 0.00 | Y32: =SUM(Gosforth:Ermelo!Y32) -> 0.00 | Z32: =SUM(Gosforth:Ermelo!Z32) -> 0.00 | AA32: =SUM(Gosforth:Ermelo!AA32) -> 0.00 | AB32: =SUM(Gosforth:Ermelo!AB32) -> 0.00 | AC32: =SUM(Gosforth:Ermelo!AC32) -> 0.00 | AD32: =SUM(Gosforth:Ermelo!AD32) -> 0.00 | AE32: =SUM(Gosforth:Ermelo!AE32) -> 0.00 | AF32: =SUM(Gosforth:Ermelo!AF32) -> 0.00 | AG32: =SUM(Gosforth:Ermelo!AG32) -> 0.00 | AH32: =SUM(Gosforth:Ermelo!AH32) -> 0.00 | AI32: =SUM(Gosforth:Ermelo!AI32) -> 0.00 | AJ32: =SUM(Gosforth:Ermelo!AJ32) -> 0.00 | AK32: =SUM(Gosforth:Ermelo!AK32) -> 0.00 | AL32: =SUM(Gosforth:Ermelo!AL32) -> 0.00 | AM32: =SUM(Gosforth:Ermelo!AM32) -> 0.00 | AN32: =SUM(Gosforth:Ermelo!AN32) -> 0.00 | AO32: =SUM(Gosforth:Ermelo!AO32) -> 0.00 | AP32: =SUM(Gosforth:Ermelo!AP32) -> 0.00 | AQ32: =SUM(Gosforth:Ermelo!AQ32) -> 0.00 | AR32: =SUM(Gosforth:Ermelo!AR32) -> 0.00 | AS32: =SUM(Gosforth:Ermelo!AS32) -> 0.00 | AT32: =SUM(Gosforth:Ermelo!AT32) -> 0.00 | AU32: =SUM(Gosforth:Ermelo!AU32) -> 0.00 | AV32: =SUM(Gosforth:Ermelo!AV32) -> 0.00 | AW32: =SUM(Gosforth:Ermelo!AW32) -> 0.00 | AX32: =SUM(Gosforth:Ermelo!AX32) -> 0.00 | AY32: =SUM(Gosforth:Ermelo!AY32) -> 0.00 | AZ32: =SUM(Gosforth:Ermelo!AZ32) -> 0.00 | BA32: =SUM(Gosforth:Ermelo!BA32) -> 0.00 | BB32: =SUM(Gosforth:Ermelo!BB32) -> 0.00 | BC32: =SUM(Gosforth:Ermelo!BC32) -> 0.00 | BD32: =SUM(Gosforth:Ermelo!BD32) -> 0.00 | BE32: =SUM(Gosforth:Ermelo!BE32) -> 0.00 | BF32: =SUM(Gosforth:Ermelo!BF32) -> 0.00 | BG32: =SUM(Gosforth:Ermelo!BG32) -> 0.00 | BH32: =SUM(Gosforth:Ermelo!BH32) -> 0.00 | BI32: =SUM(Gosforth:Ermelo!BI32) -> 0.00 | BJ32: =SUM(Gosforth:Ermelo!BJ32) -> 0.00 | BK32: =SUM(Gosforth:Ermelo!BK32) -> 0.00 | BL32: =SUM(Gosforth:Ermelo!BL32) -> 0.00 | BM32: =SUM(Gosforth:Ermelo!BM32) -> 0.00 | BN32: =SUM(Gosforth:Ermelo!BN32) -> 0.00 | BO32: =SUM(Gosforth:Ermelo!BO32) -> 0.00 | BP32: =SUM(Gosforth:Ermelo!BP32) -> 0.00 | BQ32: =SUM(Gosforth:Ermelo!BQ32) -> 0.00 | BR32: =SUM(Gosforth:Ermelo!BR32) -> 0.00 | BS32: =SUM(Gosforth:Ermelo!BS32) -> 0.00 | BT32: =SUM(Gosforth:Ermelo!BT32) -> 0.00 | BU32: =SUM(Gosforth:Ermelo!BU32) -> 0.00 | BV32: =SUM(Gosforth:Ermelo!BV32) -> 0.00 | BW32: =SUM(Gosforth:Ermelo!BW32) -> 0.00 | BX32: =SUM(Gosforth:Ermelo!BX32) -> 0.00 | BY32: =SUM(Gosforth:Ermelo!BY32) -> 0.00 | BZ32: =SUM(Gosforth:Ermelo!BZ32) -> 0.00 | CA32: =SUM(Gosforth:Ermelo!CA32) -> 0.00 | CB32: =SUM(Gosforth:Ermelo!CB32) -> 0.00 | CC32: =SUM(Gosforth:Ermelo!CC32) -> 0.00 | CD32: .
B33: A-1001c | C33: Contractor’s General Obligations during Operations Period - Section 2 & 3 (Using the upgraded Toll System) | D33: Month | E33: =SUM(Gosforth:Ermelo!E33) -> 70 | F33: =(Gosforth!G33+Dalpark!G33+Leandra!G33+Trichardt!G33+Ermelo!G33)=G33 -> TRUE | G33: 0.00 | H33: =SUM(Gosforth:Ermelo!H33) -> 0.00 | I33: =SUM(Gosforth:Ermelo!I33) -> 0.00 | J33: =SUM(Gosforth:Ermelo!J33) -> 0.00 | K33: =SUM(Gosforth:Ermelo!K33) -> 0.00 | L33: =SUM(Gosforth:Ermelo!L33) -> 0.00 | M33: =SUM(Gosforth:Ermelo!M33) -> 0.00 | N33: =SUM(Gosforth:Ermelo!N33) -> 0.00 | O33: =SUM(Gosforth:Ermelo!O33) -> 0.00 | P33: =SUM(Gosforth:Ermelo!P33) -> 0.00 | Q33: =SUM(Gosforth:Ermelo!Q33) -> 0.00 | R33: =SUM(Gosforth:Ermelo!R33) -> 0.00 | S33: =SUM(Gosforth:Ermelo!S33) -> 0.00 | T33: =SUM(Gosforth:Ermelo!T33) -> 0.00 | U33: =SUM(Gosforth:Ermelo!U33) -> 0.00 | V33: =SUM(Gosforth:Ermelo!V33) -> 0.00 | W33: =SUM(Gosforth:Ermelo!W33) -> 0.00 | X33: =SUM(Gosforth:Ermelo!X33) -> 0.00 | Y33: =SUM(Gosforth:Ermelo!Y33) -> 0.00 | Z33: =SUM(Gosforth:Ermelo!Z33) -> 0.00 | AA33: =SUM(Gosforth:Ermelo!AA33) -> 0.00 | AB33: =SUM(Gosforth:Ermelo!AB33) -> 0.00 | AC33: =SUM(Gosforth:Ermelo!AC33) -> 0.00 | AD33: =SUM(Gosforth:Ermelo!AD33) -> 0.00 | AE33: =SUM(Gosforth:Ermelo!AE33) -> 0.00 | AF33: =SUM(Gosforth:Ermelo!AF33) -> 0.00 | AG33: =SUM(Gosforth:Ermelo!AG33) -> 0.00 | AH33: =SUM(Gosforth:Ermelo!AH33) -> 0.00 | AI33: =SUM(Gosforth:Ermelo!AI33) -> 0.00 | AJ33: =SUM(Gosforth:Ermelo!AJ33) -> 0.00 | AK33: =SUM(Gosforth:Ermelo!AK33) -> 0.00 | AL33: =SUM(Gosforth:Ermelo!AL33) -> 0.00 | AM33: =SUM(Gosforth:Ermelo!AM33) -> 0.00 | AN33: =SUM(Gosforth:Ermelo!AN33) -> 0.00 | AO33: =SUM(Gosforth:Ermelo!AO33) -> 0.00 | AP33: =SUM(Gosforth:Ermelo!AP33) -> 0.00 | AQ33: =SUM(Gosforth:Ermelo!AQ33) -> 0.00 | AR33: =SUM(Gosforth:Ermelo!AR33) -> 0.00 | AS33: =SUM(Gosforth:Ermelo!AS33) -> 0.00 | AT33: =SUM(Gosforth:Ermelo!AT33) -> 0.00 | AU33: =SUM(Gosforth:Ermelo!AU33) -> 0.00 | AV33: =SUM(Gosforth:Ermelo!AV33) -> 0.00 | AW33: =SUM(Gosforth:Ermelo!AW33) -> 0.00 | AX33: =SUM(Gosforth:Ermelo!AX33) -> 0.00 | AY33: =SUM(Gosforth:Ermelo!AY33) -> 0.00 | AZ33: =SUM(Gosforth:Ermelo!AZ33) -> 0.00 | BA33: =SUM(Gosforth:Ermelo!BA33) -> 0.00 | BB33: =SUM(Gosforth:Ermelo!BB33) -> 0.00 | BC33: =SUM(Gosforth:Ermelo!BC33) -> 0.00 | BD33: =SUM(Gosforth:Ermelo!BD33) -> 0.00 | BE33: =SUM(Gosforth:Ermelo!BE33) -> 0.00 | BF33: =SUM(Gosforth:Ermelo!BF33) -> 0.00 | BG33: =SUM(Gosforth:Ermelo!BG33) -> 0.00 | BH33: =SUM(Gosforth:Ermelo!BH33) -> 0.00 | BI33: =SUM(Gosforth:Ermelo!BI33) -> 0.00 | BJ33: =SUM(Gosforth:Ermelo!BJ33) -> 0.00 | BK33: =SUM(Gosforth:Ermelo!BK33) -> 0.00 | BL33: =SUM(Gosforth:Ermelo!BL33) -> 0.00 | BM33: =SUM(Gosforth:Ermelo!BM33) -> 0.00 | BN33: =SUM(Gosforth:Ermelo!BN33) -> 0.00 | BO33: =SUM(Gosforth:Ermelo!BO33) -> 0.00 | BP33: =SUM(Gosforth:Ermelo!BP33) -> 0.00 | BQ33: =SUM(Gosforth:Ermelo!BQ33) -> 0.00 | BR33: =SUM(Gosforth:Ermelo!BR33) -> 0.00 | BS33: =SUM(Gosforth:Ermelo!BS33) -> 0.00 | BT33: =SUM(Gosforth:Ermelo!BT33) -> 0.00 | BU33: =SUM(Gosforth:Ermelo!BU33) -> 0.00 | BV33: =SUM(Gosforth:Ermelo!BV33) -> 0.00 | BW33: =SUM(Gosforth:Ermelo!BW33) -> 0.00 | BX33: =SUM(Gosforth:Ermelo!BX33) -> 0.00 | BY33: =SUM(Gosforth:Ermelo!BY33) -> 0.00 | BZ33: =SUM(Gosforth:Ermelo!BZ33) -> 0.00 | CA33: =SUM(Gosforth:Ermelo!CA33) -> 0.00 | CB33: =SUM(Gosforth:Ermelo!CB33) -> 0.00 | CC33: =SUM(Gosforth:Ermelo!CC33) -> 0.00 | CD33: .
B34: A-1001d | C34: Contractor’s General Obligations during Operations Period - Section 4 (Using the SANRAL MIS) | D34: Month | E34: =SUM(Gosforth:Ermelo!E34) -> 55 | F34: =(Gosforth!G34+Dalpark!G34+Leandra!G34+Trichardt!G34+Ermelo!G34)=G34 -> TRUE | G34: 0.00 | H34: =SUM(Gosforth:Ermelo!H34) -> 0.00 | I34: =SUM(Gosforth:Ermelo!I34) -> 0.00 | J34: =SUM(Gosforth:Ermelo!J34) -> 0.00 | K34: =SUM(Gosforth:Ermelo!K34) -> 0.00 | L34: =SUM(Gosforth:Ermelo!L34) -> 0.00 | M34: =SUM(Gosforth:Ermelo!M34) -> 0.00 | N34: =SUM(Gosforth:Ermelo!N34) -> 0.00 | O34: =SUM(Gosforth:Ermelo!O34) -> 0.00 | P34: =SUM(Gosforth:Ermelo!P34) -> 0.00 | Q34: =SUM(Gosforth:Ermelo!Q34) -> 0.00 | R34: =SUM(Gosforth:Ermelo!R34) -> 0.00 | S34: =SUM(Gosforth:Ermelo!S34) -> 0.00 | T34: =SUM(Gosforth:Ermelo!T34) -> 0.00 | U34: =SUM(Gosforth:Ermelo!U34) -> 0.00 | V34: =SUM(Gosforth:Ermelo!V34) -> 0.00 | W34: =SUM(Gosforth:Ermelo!W34) -> 0.00 | X34: =SUM(Gosforth:Ermelo!X34) -> 0.00 | Y34: =SUM(Gosforth:Ermelo!Y34) -> 0.00 | Z34: =SUM(Gosforth:Ermelo!Z34) -> 0.00 | AA34: =SUM(Gosforth:Ermelo!AA34) -> 0.00 | AB34: =SUM(Gosforth:Ermelo!AB34) -> 0.00 | AC34: =SUM(Gosforth:Ermelo!AC34) -> 0.00 | AD34: =SUM(Gosforth:Ermelo!AD34) -> 0.00 | AE34: =SUM(Gosforth:Ermelo!AE34) -> 0.00 | AF34: =SUM(Gosforth:Ermelo!AF34) -> 0.00 | AG34: =SUM(Gosforth:Ermelo!AG34) -> 0.00 | AH34: =SUM(Gosforth:Ermelo!AH34) -> 0.00 | AI34: =SUM(Gosforth:Ermelo!AI34) -> 0.00 | AJ34: =SUM(Gosforth:Ermelo!AJ34) -> 0.00 | AK34: =SUM(Gosforth:Ermelo!AK34) -> 0.00 | AL34: =SUM(Gosforth:Ermelo!AL34) -> 0.00 | AM34: =SUM(Gosforth:Ermelo!AM34) -> 0.00 | AN34: =SUM(Gosforth:Ermelo!AN34) -> 0.00 | AO34: =SUM(Gosforth:Ermelo!AO34) -> 0.00 | AP34: =SUM(Gosforth:Ermelo!AP34) -> 0.00 | AQ34: =SUM(Gosforth:Ermelo!AQ34) -> 0.00 | AR34: =SUM(Gosforth:Ermelo!AR34) -> 0.00 | AS34: =SUM(Gosforth:Ermelo!AS34) -> 0.00 | AT34: =SUM(Gosforth:Ermelo!AT34) -> 0.00 | AU34: =SUM(Gosforth:Ermelo!AU34) -> 0.00 | AV34: =SUM(Gosforth:Ermelo!AV34) -> 0.00 | AW34: =SUM(Gosforth:Ermelo!AW34) -> 0.00 | AX34: =SUM(Gosforth:Ermelo!AX34) -> 0.00 | AY34: =SUM(Gosforth:Ermelo!AY34) -> 0.00 | AZ34: =SUM(Gosforth:Ermelo!AZ34) -> 0.00 | BA34: =SUM(Gosforth:Ermelo!BA34) -> 0.00 | BB34: =SUM(Gosforth:Ermelo!BB34) -> 0.00 | BC34: =SUM(Gosforth:Ermelo!BC34) -> 0.00 | BD34: =SUM(Gosforth:Ermelo!BD34) -> 0.00 | BE34: =SUM(Gosforth:Ermelo!BE34) -> 0.00 | BF34: =SUM(Gosforth:Ermelo!BF34) -> 0.00 | BG34: =SUM(Gosforth:Ermelo!BG34) -> 0.00 | BH34: =SUM(Gosforth:Ermelo!BH34) -> 0.00 | BI34: =SUM(Gosforth:Ermelo!BI34) -> 0.00 | BJ34: =SUM(Gosforth:Ermelo!BJ34) -> 0.00 | BK34: =SUM(Gosforth:Ermelo!BK34) -> 0.00 | BL34: =SUM(Gosforth:Ermelo!BL34) -> 0.00 | BM34: =SUM(Gosforth:Ermelo!BM34) -> 0.00 | BN34: =SUM(Gosforth:Ermelo!BN34) -> 0.00 | BO34: =SUM(Gosforth:Ermelo!BO34) -> 0.00 | BP34: =SUM(Gosforth:Ermelo!BP34) -> 0.00 | BQ34: =SUM(Gosforth:Ermelo!BQ34) -> 0.00 | BR34: =SUM(Gosforth:Ermelo!BR34) -> 0.00 | BS34: =SUM(Gosforth:Ermelo!BS34) -> 0.00 | BT34: =SUM(Gosforth:Ermelo!BT34) -> 0.00 | BU34: =SUM(Gosforth:Ermelo!BU34) -> 0.00 | BV34: =SUM(Gosforth:Ermelo!BV34) -> 0.00 | BW34: =SUM(Gosforth:Ermelo!BW34) -> 0.00 | BX34: =SUM(Gosforth:Ermelo!BX34) -> 0.00 | BY34: =SUM(Gosforth:Ermelo!BY34) -> 0.00 | BZ34: =SUM(Gosforth:Ermelo!BZ34) -> 0.00 | CA34: =SUM(Gosforth:Ermelo!CA34) -> 0.00 | CB34: =SUM(Gosforth:Ermelo!CB34) -> 0.00 | CC34: =SUM(Gosforth:Ermelo!CC34) -> 0.00 | CD34: .
B35: A-1001e | C35: Contractor’s General Obligations during Operations Period - Section 5 (Using the national SANRAL Toll System) | D35: Month | E35: =SUM(Gosforth:Ermelo!E35) -> 55 | F35: =(Gosforth!G35+Dalpark!G35+Leandra!G35+Trichardt!G35+Ermelo!G35)=G35 -> TRUE | G35: 0.00 | H35: =SUM(Gosforth:Ermelo!H35) -> 0.00 | I35: =SUM(Gosforth:Ermelo!I35) -> 0.00 | J35: =SUM(Gosforth:Ermelo!J35) -> 0.00 | K35: =SUM(Gosforth:Ermelo!K35) -> 0.00 | L35: =SUM(Gosforth:Ermelo!L35) -> 0.00 | M35: =SUM(Gosforth:Ermelo!M35) -> 0.00 | N35: =SUM(Gosforth:Ermelo!N35) -> 0.00 | O35: =SUM(Gosforth:Ermelo!O35) -> 0.00 | P35: =SUM(Gosforth:Ermelo!P35) -> 0.00 | Q35: =SUM(Gosforth:Ermelo!Q35) -> 0.00 | R35: =SUM(Gosforth:Ermelo!R35) -> 0.00 | S35: =SUM(Gosforth:Ermelo!S35) -> 0.00 | T35: =SUM(Gosforth:Ermelo!T35) -> 0.00 | U35: =SUM(Gosforth:Ermelo!U35) -> 0.00 | V35: =SUM(Gosforth:Ermelo!V35) -> 0.00 | W35: =SUM(Gosforth:Ermelo!W35) -> 0.00 | X35: =SUM(Gosforth:Ermelo!X35) -> 0.00 | Y35: =SUM(Gosforth:Ermelo!Y35) -> 0.00 | Z35: =SUM(Gosforth:Ermelo!Z35) -> 0.00 | AA35: =SUM(Gosforth:Ermelo!AA35) -> 0.00 | AB35: =SUM(Gosforth:Ermelo!AB35) -> 0.00 | AC35: =SUM(Gosforth:Ermelo!AC35) -> 0.00 | AD35: =SUM(Gosforth:Ermelo!AD35) -> 0.00 | AE35: =SUM(Gosforth:Ermelo!AE35) -> 0.00 | AF35: =SUM(Gosforth:Ermelo!AF35) -> 0.00 | AG35: =SUM(Gosforth:Ermelo!AG35) -> 0.00 | AH35: =SUM(Gosforth:Ermelo!AH35) -> 0.00 | AI35: =SUM(Gosforth:Ermelo!AI35) -> 0.00 | AJ35: =SUM(Gosforth:Ermelo!AJ35) -> 0.00 | AK35: =SUM(Gosforth:Ermelo!AK35) -> 0.00 | AL35: =SUM(Gosforth:Ermelo!AL35) -> 0.00 | AM35: =SUM(Gosforth:Ermelo!AM35) -> 0.00 | AN35: =SUM(Gosforth:Ermelo!AN35) -> 0.00 | AO35: =SUM(Gosforth:Ermelo!AO35) -> 0.00 | AP35: =SUM(Gosforth:Ermelo!AP35) -> 0.00 | AQ35: =SUM(Gosforth:Ermelo!AQ35) -> 0.00 | AR35: =SUM(Gosforth:Ermelo!AR35) -> 0.00 | AS35: =SUM(Gosforth:Ermelo!AS35) -> 0.00 | AT35: =SUM(Gosforth:Ermelo!AT35) -> 0.00 | AU35: =SUM(Gosforth:Ermelo!AU35) -> 0.00 | AV35: =SUM(Gosforth:Ermelo!AV35) -> 0.00 | AW35: =SUM(Gosforth:Ermelo!AW35) -> 0.00 | AX35: =SUM(Gosforth:Ermelo!AX35) -> 0.00 | AY35: =SUM(Gosforth:Ermelo!AY35) -> 0.00 | AZ35: =SUM(Gosforth:Ermelo!AZ35) -> 0.00 | BA35: =SUM(Gosforth:Ermelo!BA35) -> 0.00 | BB35: =SUM(Gosforth:Ermelo!BB35) -> 0.00 | BC35: =SUM(Gosforth:Ermelo!BC35) -> 0.00 | BD35: =SUM(Gosforth:Ermelo!BD35) -> 0.00 | BE35: =SUM(Gosforth:Ermelo!BE35) -> 0.00 | BF35: =SUM(Gosforth:Ermelo!BF35) -> 0.00 | BG35: =SUM(Gosforth:Ermelo!BG35) -> 0.00 | BH35: =SUM(Gosforth:Ermelo!BH35) -> 0.00 | BI35: =SUM(Gosforth:Ermelo!BI35) -> 0.00 | BJ35: =SUM(Gosforth:Ermelo!BJ35) -> 0.00 | BK35: =SUM(Gosforth:Ermelo!BK35) -> 0.00 | BL35: =SUM(Gosforth:Ermelo!BL35) -> 0.00 | BM35: =SUM(Gosforth:Ermelo!BM35) -> 0.00 | BN35: =SUM(Gosforth:Ermelo!BN35) -> 0.00 | BO35: =SUM(Gosforth:Ermelo!BO35) -> 0.00 | BP35: =SUM(Gosforth:Ermelo!BP35) -> 0.00 | BQ35: =SUM(Gosforth:Ermelo!BQ35) -> 0.00 | BR35: =SUM(Gosforth:Ermelo!BR35) -> 0.00 | BS35: =SUM(Gosforth:Ermelo!BS35) -> 0.00 | BT35: =SUM(Gosforth:Ermelo!BT35) -> 0.00 | BU35: =SUM(Gosforth:Ermelo!BU35) -> 0.00 | BV35: =SUM(Gosforth:Ermelo!BV35) -> 0.00 | BW35: =SUM(Gosforth:Ermelo!BW35) -> 0.00 | BX35: =SUM(Gosforth:Ermelo!BX35) -> 0.00 | BY35: =SUM(Gosforth:Ermelo!BY35) -> 0.00 | BZ35: =SUM(Gosforth:Ermelo!BZ35) -> 0.00 | CA35: =SUM(Gosforth:Ermelo!CA35) -> 0.00 | CB35: =SUM(Gosforth:Ermelo!CB35) -> 0.00 | CC35: =SUM(Gosforth:Ermelo!CC35) -> 0.00 | CD35: .
B36: A-1002 | C36: Provision of Performance Security | D36: Year | E36: =SUM(Gosforth:Ermelo!E36) -> 30 | F36: =(Gosforth!G36+Dalpark!G36+Leandra!G36+Trichardt!G36+Ermelo!G36)=G36 -> TRUE | G36: 0.00 | H36: =SUM(Gosforth:Ermelo!H36) -> 0.00 | I36: =SUM(Gosforth:Ermelo!I36) -> 0.00 | J36: =SUM(Gosforth:Ermelo!J36) -> 0.00 | K36: =SUM(Gosforth:Ermelo!K36) -> 0.00 | L36: =SUM(Gosforth:Ermelo!L36) -> 0.00 | M36: =SUM(Gosforth:Ermelo!M36) -> 0.00 | N36: =SUM(Gosforth:Ermelo!N36) -> 0.00 | O36: =SUM(Gosforth:Ermelo!O36) -> 0.00 | P36: =SUM(Gosforth:Ermelo!P36) -> 0.00 | Q36: =SUM(Gosforth:Ermelo!Q36) -> 0.00 | R36: =SUM(Gosforth:Ermelo!R36) -> 0.00 | S36: =SUM(Gosforth:Ermelo!S36) -> 0.00 | T36: =SUM(Gosforth:Ermelo!T36) -> 0.00 | U36: =SUM(Gosforth:Ermelo!U36) -> 0.00 | V36: =SUM(Gosforth:Ermelo!V36) -> 0.00 | W36: =SUM(Gosforth:Ermelo!W36) -> 0.00 | X36: =SUM(Gosforth:Ermelo!X36) -> 0.00 | Y36: =SUM(Gosforth:Ermelo!Y36) -> 0.00 | Z36: =SUM(Gosforth:Ermelo!Z36) -> 0.00 | AA36: =SUM(Gosforth:Ermelo!AA36) -> 0.00 | AB36: =SUM(Gosforth:Ermelo!AB36) -> 0.00 | AC36: =SUM(Gosforth:Ermelo!AC36) -> 0.00 | AD36: =SUM(Gosforth:Ermelo!AD36) -> 0.00 | AE36: =SUM(Gosforth:Ermelo!AE36) -> 0.00 | AF36: =SUM(Gosforth:Ermelo!AF36) -> 0.00 | AG36: =SUM(Gosforth:Ermelo!AG36) -> 0.00 | AH36: =SUM(Gosforth:Ermelo!AH36) -> 0.00 | AI36: =SUM(Gosforth:Ermelo!AI36) -> 0.00 | AJ36: =SUM(Gosforth:Ermelo!AJ36) -> 0.00 | AK36: =SUM(Gosforth:Ermelo!AK36) -> 0.00 | AL36: =SUM(Gosforth:Ermelo!AL36) -> 0.00 | AM36: =SUM(Gosforth:Ermelo!AM36) -> 0.00 | AN36: =SUM(Gosforth:Ermelo!AN36) -> 0.00 | AO36: =SUM(Gosforth:Ermelo!AO36) -> 0.00 | AP36: =SUM(Gosforth:Ermelo!AP36) -> 0.00 | AQ36: =SUM(Gosforth:Ermelo!AQ36) -> 0.00 | AR36: =SUM(Gosforth:Ermelo!AR36) -> 0.00 | AS36: =SUM(Gosforth:Ermelo!AS36) -> 0.00 | AT36: =SUM(Gosforth:Ermelo!AT36) -> 0.00 | AU36: =SUM(Gosforth:Ermelo!AU36) -> 0.00 | AV36: =SUM(Gosforth:Ermelo!AV36) -> 0.00 | AW36: =SUM(Gosforth:Ermelo!AW36) -> 0.00 | AX36: =SUM(Gosforth:Ermelo!AX36) -> 0.00 | AY36: =SUM(Gosforth:Ermelo!AY36) -> 0.00 | AZ36: =SUM(Gosforth:Ermelo!AZ36) -> 0.00 | BA36: =SUM(Gosforth:Ermelo!BA36) -> 0.00 | BB36: =SUM(Gosforth:Ermelo!BB36) -> 0.00 | BC36: =SUM(Gosforth:Ermelo!BC36) -> 0.00 | BD36: =SUM(Gosforth:Ermelo!BD36) -> 0.00 | BE36: =SUM(Gosforth:Ermelo!BE36) -> 0.00 | BF36: =SUM(Gosforth:Ermelo!BF36) -> 0.00 | BG36: =SUM(Gosforth:Ermelo!BG36) -> 0.00 | BH36: =SUM(Gosforth:Ermelo!BH36) -> 0.00 | BI36: =SUM(Gosforth:Ermelo!BI36) -> 0.00 | BJ36: =SUM(Gosforth:Ermelo!BJ36) -> 0.00 | BK36: =SUM(Gosforth:Ermelo!BK36) -> 0.00 | BL36: =SUM(Gosforth:Ermelo!BL36) -> 0.00 | BM36: =SUM(Gosforth:Ermelo!BM36) -> 0.00 | BN36: =SUM(Gosforth:Ermelo!BN36) -> 0.00 | BO36: =SUM(Gosforth:Ermelo!BO36) -> 0.00 | BP36: =SUM(Gosforth:Ermelo!BP36) -> 0.00 | BQ36: =SUM(Gosforth:Ermelo!BQ36) -> 0.00 | BR36: =SUM(Gosforth:Ermelo!BR36) -> 0.00 | BS36: =SUM(Gosforth:Ermelo!BS36) -> 0.00 | BT36: =SUM(Gosforth:Ermelo!BT36) -> 0.00 | BU36: =SUM(Gosforth:Ermelo!BU36) -> 0.00 | BV36: =SUM(Gosforth:Ermelo!BV36) -> 0.00 | BW36: =SUM(Gosforth:Ermelo!BW36) -> 0.00 | BX36: =SUM(Gosforth:Ermelo!BX36) -> 0.00 | BY36: =SUM(Gosforth:Ermelo!BY36) -> 0.00 | BZ36: =SUM(Gosforth:Ermelo!BZ36) -> 0.00 | CA36: =SUM(Gosforth:Ermelo!CA36) -> 0.00 | CB36: =SUM(Gosforth:Ermelo!CB36) -> 0.00 | CC36: =SUM(Gosforth:Ermelo!CC36) -> 0.00 | CD36: .
B37: A-1003 | C37: Compliance with Laws | D37: Month | E37: =SUM(Gosforth:Ermelo!E37) -> 360 | F37: =(Gosforth!G37+Dalpark!G37+Leandra!G37+Trichardt!G37+Ermelo!G37)=G37 -> TRUE | G37: 0.00 | H37: =SUM(Gosforth:Ermelo!H37) -> 0.00 | I37: =SUM(Gosforth:Ermelo!I37) -> 0.00 | J37: =SUM(Gosforth:Ermelo!J37) -> 0.00 | K37: =SUM(Gosforth:Ermelo!K37) -> 0.00 | L37: =SUM(Gosforth:Ermelo!L37) -> 0.00 | M37: =SUM(Gosforth:Ermelo!M37) -> 0.00 | N37: =SUM(Gosforth:Ermelo!N37) -> 0.00 | O37: =SUM(Gosforth:Ermelo!O37) -> 0.00 | P37: =SUM(Gosforth:Ermelo!P37) -> 0.00 | Q37: =SUM(Gosforth:Ermelo!Q37) -> 0.00 | R37: =SUM(Gosforth:Ermelo!R37) -> 0.00 | S37: =SUM(Gosforth:Ermelo!S37) -> 0.00 | T37: =SUM(Gosforth:Ermelo!T37) -> 0.00 | U37: =SUM(Gosforth:Ermelo!U37) -> 0.00 | V37: =SUM(Gosforth:Ermelo!V37) -> 0.00 | W37: =SUM(Gosforth:Ermelo!W37) -> 0.00 | X37: =SUM(Gosforth:Ermelo!X37) -> 0.00 | Y37: =SUM(Gosforth:Ermelo!Y37) -> 0.00 | Z37: =SUM(Gosforth:Ermelo!Z37) -> 0.00 | AA37: =SUM(Gosforth:Ermelo!AA37) -> 0.00 | AB37: =SUM(Gosforth:Ermelo!AB37) -> 0.00 | AC37: =SUM(Gosforth:Ermelo!AC37) -> 0.00 | AD37: =SUM(Gosforth:Ermelo!AD37) -> 0.00 | AE37: =SUM(Gosforth:Ermelo!AE37) -> 0.00 | AF37: =SUM(Gosforth:Ermelo!AF37) -> 0.00 | AG37: =SUM(Gosforth:Ermelo!AG37) -> 0.00 | AH37: =SUM(Gosforth:Ermelo!AH37) -> 0.00 | AI37: =SUM(Gosforth:Ermelo!AI37) -> 0.00 | AJ37: =SUM(Gosforth:Ermelo!AJ37) -> 0.00 | AK37: =SUM(Gosforth:Ermelo!AK37) -> 0.00 | AL37: =SUM(Gosforth:Ermelo!AL37) -> 0.00 | AM37: =SUM(Gosforth:Ermelo!AM37) -> 0.00 | AN37: =SUM(Gosforth:Ermelo!AN37) -> 0.00 | AO37: =SUM(Gosforth:Ermelo!AO37) -> 0.00 | AP37: =SUM(Gosforth:Ermelo!AP37) -> 0.00 | AQ37: =SUM(Gosforth:Ermelo!AQ37) -> 0.00 | AR37: =SUM(Gosforth:Ermelo!AR37) -> 0.00 | AS37: =SUM(Gosforth:Ermelo!AS37) -> 0.00 | AT37: =SUM(Gosforth:Ermelo!AT37) -> 0.00 | AU37: =SUM(Gosforth:Ermelo!AU37) -> 0.00 | AV37: =SUM(Gosforth:Ermelo!AV37) -> 0.00 | AW37: =SUM(Gosforth:Ermelo!AW37) -> 0.00 | AX37: =SUM(Gosforth:Ermelo!AX37) -> 0.00 | AY37: =SUM(Gosforth:Ermelo!AY37) -> 0.00 | AZ37: =SUM(Gosforth:Ermelo!AZ37) -> 0.00 | BA37: =SUM(Gosforth:Ermelo!BA37) -> 0.00 | BB37: =SUM(Gosforth:Ermelo!BB37) -> 0.00 | BC37: =SUM(Gosforth:Ermelo!BC37) -> 0.00 | BD37: =SUM(Gosforth:Ermelo!BD37) -> 0.00 | BE37: =SUM(Gosforth:Ermelo!BE37) -> 0.00 | BF37: =SUM(Gosforth:Ermelo!BF37) -> 0.00 | BG37: =SUM(Gosforth:Ermelo!BG37) -> 0.00 | BH37: =SUM(Gosforth:Ermelo!BH37) -> 0.00 | BI37: =SUM(Gosforth:Ermelo!BI37) -> 0.00 | BJ37: =SUM(Gosforth:Ermelo!BJ37) -> 0.00 | BK37: =SUM(Gosforth:Ermelo!BK37) -> 0.00 | BL37: =SUM(Gosforth:Ermelo!BL37) -> 0.00 | BM37: =SUM(Gosforth:Ermelo!BM37) -> 0.00 | BN37: =SUM(Gosforth:Ermelo!BN37) -> 0.00 | BO37: =SUM(Gosforth:Ermelo!BO37) -> 0.00 | BP37: =SUM(Gosforth:Ermelo!BP37) -> 0.00 | BQ37: =SUM(Gosforth:Ermelo!BQ37) -> 0.00 | BR37: =SUM(Gosforth:Ermelo!BR37) -> 0.00 | BS37: =SUM(Gosforth:Ermelo!BS37) -> 0.00 | BT37: =SUM(Gosforth:Ermelo!BT37) -> 0.00 | BU37: =SUM(Gosforth:Ermelo!BU37) -> 0.00 | BV37: =SUM(Gosforth:Ermelo!BV37) -> 0.00 | BW37: =SUM(Gosforth:Ermelo!BW37) -> 0.00 | BX37: =SUM(Gosforth:Ermelo!BX37) -> 0.00 | BY37: =SUM(Gosforth:Ermelo!BY37) -> 0.00 | BZ37: =SUM(Gosforth:Ermelo!BZ37) -> 0.00 | CA37: =SUM(Gosforth:Ermelo!CA37) -> 0.00 | CB37: =SUM(Gosforth:Ermelo!CB37) -> 0.00 | CC37: =SUM(Gosforth:Ermelo!CC37) -> 0.00 | CD37: .
B38: A-1004 | C38: Compliance with Health and Safety Requirements | D38: Month | E38: =SUM(Gosforth:Ermelo!E38) -> 360 | F38: =(Gosforth!G38+Dalpark!G38+Leandra!G38+Trichardt!G38+Ermelo!G38)=G38 -> TRUE | G38: 0.00 | H38: =SUM(Gosforth:Ermelo!H38) -> 0.00 | I38: =SUM(Gosforth:Ermelo!I38) -> 0.00 | J38: =SUM(Gosforth:Ermelo!J38) -> 0.00 | K38: =SUM(Gosforth:Ermelo!K38) -> 0.00 | L38: =SUM(Gosforth:Ermelo!L38) -> 0.00 | M38: =SUM(Gosforth:Ermelo!M38) -> 0.00 | N38: =SUM(Gosforth:Ermelo!N38) -> 0.00 | O38: =SUM(Gosforth:Ermelo!O38) -> 0.00 | P38: =SUM(Gosforth:Ermelo!P38) -> 0.00 | Q38: =SUM(Gosforth:Ermelo!Q38) -> 0.00 | R38: =SUM(Gosforth:Ermelo!R38) -> 0.00 | S38: =SUM(Gosforth:Ermelo!S38) -> 0.00 | T38: =SUM(Gosforth:Ermelo!T38) -> 0.00 | U38: =SUM(Gosforth:Ermelo!U38) -> 0.00 | V38: =SUM(Gosforth:Ermelo!V38) -> 0.00 | W38: =SUM(Gosforth:Ermelo!W38) -> 0.00 | X38: =SUM(Gosforth:Ermelo!X38) -> 0.00 | Y38: =SUM(Gosforth:Ermelo!Y38) -> 0.00 | Z38: =SUM(Gosforth:Ermelo!Z38) -> 0.00 | AA38: =SUM(Gosforth:Ermelo!AA38) -> 0.00 | AB38: =SUM(Gosforth:Ermelo!AB38) -> 0.00 | AC38: =SUM(Gosforth:Ermelo!AC38) -> 0.00 | AD38: =SUM(Gosforth:Ermelo!AD38) -> 0.00 | AE38: =SUM(Gosforth:Ermelo!AE38) -> 0.00 | AF38: =SUM(Gosforth:Ermelo!AF38) -> 0.00 | AG38: =SUM(Gosforth:Ermelo!AG38) -> 0.00 | AH38: =SUM(Gosforth:Ermelo!AH38) -> 0.00 | AI38: =SUM(Gosforth:Ermelo!AI38) -> 0.00 | AJ38: =SUM(Gosforth:Ermelo!AJ38) -> 0.00 | AK38: =SUM(Gosforth:Ermelo!AK38) -> 0.00 | AL38: =SUM(Gosforth:Ermelo!AL38) -> 0.00 | AM38: =SUM(Gosforth:Ermelo!AM38) -> 0.00 | AN38: =SUM(Gosforth:Ermelo!AN38) -> 0.00 | AO38: =SUM(Gosforth:Ermelo!AO38) -> 0.00 | AP38: =SUM(Gosforth:Ermelo!AP38) -> 0.00 | AQ38: =SUM(Gosforth:Ermelo!AQ38) -> 0.00 | AR38: =SUM(Gosforth:Ermelo!AR38) -> 0.00 | AS38: =SUM(Gosforth:Ermelo!AS38) -> 0.00 | AT38: =SUM(Gosforth:Ermelo!AT38) -> 0.00 | AU38: =SUM(Gosforth:Ermelo!AU38) -> 0.00 | AV38: =SUM(Gosforth:Ermelo!AV38) -> 0.00 | AW38: =SUM(Gosforth:Ermelo!AW38) -> 0.00 | AX38: =SUM(Gosforth:Ermelo!AX38) -> 0.00 | AY38: =SUM(Gosforth:Ermelo!AY38) -> 0.00 | AZ38: =SUM(Gosforth:Ermelo!AZ38) -> 0.00 | BA38: =SUM(Gosforth:Ermelo!BA38) -> 0.00 | BB38: =SUM(Gosforth:Ermelo!BB38) -> 0.00 | BC38: =SUM(Gosforth:Ermelo!BC38) -> 0.00 | BD38: =SUM(Gosforth:Ermelo!BD38) -> 0.00 | BE38: =SUM(Gosforth:Ermelo!BE38) -> 0.00 | BF38: =SUM(Gosforth:Ermelo!BF38) -> 0.00 | BG38: =SUM(Gosforth:Ermelo!BG38) -> 0.00 | BH38: =SUM(Gosforth:Ermelo!BH38) -> 0.00 | BI38: =SUM(Gosforth:Ermelo!BI38) -> 0.00 | BJ38: =SUM(Gosforth:Ermelo!BJ38) -> 0.00 | BK38: =SUM(Gosforth:Ermelo!BK38) -> 0.00 | BL38: =SUM(Gosforth:Ermelo!BL38) -> 0.00 | BM38: =SUM(Gosforth:Ermelo!BM38) -> 0.00 | BN38: =SUM(Gosforth:Ermelo!BN38) -> 0.00 | BO38: =SUM(Gosforth:Ermelo!BO38) -> 0.00 | BP38: =SUM(Gosforth:Ermelo!BP38) -> 0.00 | BQ38: =SUM(Gosforth:Ermelo!BQ38) -> 0.00 | BR38: =SUM(Gosforth:Ermelo!BR38) -> 0.00 | BS38: =SUM(Gosforth:Ermelo!BS38) -> 0.00 | BT38: =SUM(Gosforth:Ermelo!BT38) -> 0.00 | BU38: =SUM(Gosforth:Ermelo!BU38) -> 0.00 | BV38: =SUM(Gosforth:Ermelo!BV38) -> 0.00 | BW38: =SUM(Gosforth:Ermelo!BW38) -> 0.00 | BX38: =SUM(Gosforth:Ermelo!BX38) -> 0.00 | BY38: =SUM(Gosforth:Ermelo!BY38) -> 0.00 | BZ38: =SUM(Gosforth:Ermelo!BZ38) -> 0.00 | CA38: =SUM(Gosforth:Ermelo!CA38) -> 0.00 | CB38: =SUM(Gosforth:Ermelo!CB38) -> 0.00 | CC38: =SUM(Gosforth:Ermelo!CC38) -> 0.00 | CD38: .
B39: A-1005 | C39: Compliance with Environmental Requirements | D39: Month | E39: =SUM(Gosforth:Ermelo!E39) -> 360 | F39: =(Gosforth!G39+Dalpark!G39+Leandra!G39+Trichardt!G39+Ermelo!G39)=G39 -> TRUE | G39: 0.00 | H39: =SUM(Gosforth:Ermelo!H39) -> 0.00 | I39: =SUM(Gosforth:Ermelo!I39) -> 0.00 | J39: =SUM(Gosforth:Ermelo!J39) -> 0.00 | K39: =SUM(Gosforth:Ermelo!K39) -> 0.00 | L39: =SUM(Gosforth:Ermelo!L39) -> 0.00 | M39: =SUM(Gosforth:Ermelo!M39) -> 0.00 | N39: =SUM(Gosforth:Ermelo!N39) -> 0.00 | O39: =SUM(Gosforth:Ermelo!O39) -> 0.00 | P39: =SUM(Gosforth:Ermelo!P39) -> 0.00 | Q39: =SUM(Gosforth:Ermelo!Q39) -> 0.00 | R39: =SUM(Gosforth:Ermelo!R39) -> 0.00 | S39: =SUM(Gosforth:Ermelo!S39) -> 0.00 | T39: =SUM(Gosforth:Ermelo!T39) -> 0.00 | U39: =SUM(Gosforth:Ermelo!U39) -> 0.00 | V39: =SUM(Gosforth:Ermelo!V39) -> 0.00 | W39: =SUM(Gosforth:Ermelo!W39) -> 0.00 | X39: =SUM(Gosforth:Ermelo!X39) -> 0.00 | Y39: =SUM(Gosforth:Ermelo!Y39) -> 0.00 | Z39: =SUM(Gosforth:Ermelo!Z39) -> 0.00 | AA39: =SUM(Gosforth:Ermelo!AA39) -> 0.00 | AB39: =SUM(Gosforth:Ermelo!AB39) -> 0.00 | AC39: =SUM(Gosforth:Ermelo!AC39) -> 0.00 | AD39: =SUM(Gosforth:Ermelo!AD39) -> 0.00 | AE39: =SUM(Gosforth:Ermelo!AE39) -> 0.00 | AF39: =SUM(Gosforth:Ermelo!AF39) -> 0.00 | AG39: =SUM(Gosforth:Ermelo!AG39) -> 0.00 | AH39: =SUM(Gosforth:Ermelo!AH39) -> 0.00 | AI39: =SUM(Gosforth:Ermelo!AI39) -> 0.00 | AJ39: =SUM(Gosforth:Ermelo!AJ39) -> 0.00 | AK39: =SUM(Gosforth:Ermelo!AK39) -> 0.00 | AL39: =SUM(Gosforth:Ermelo!AL39) -> 0.00 | AM39: =SUM(Gosforth:Ermelo!AM39) -> 0.00 | AN39: =SUM(Gosforth:Ermelo!AN39) -> 0.00 | AO39: =SUM(Gosforth:Ermelo!AO39) -> 0.00 | AP39: =SUM(Gosforth:Ermelo!AP39) -> 0.00 | AQ39: =SUM(Gosforth:Ermelo!AQ39) -> 0.00 | AR39: =SUM(Gosforth:Ermelo!AR39) -> 0.00 | AS39: =SUM(Gosforth:Ermelo!AS39) -> 0.00 | AT39: =SUM(Gosforth:Ermelo!AT39) -> 0.00 | AU39: =SUM(Gosforth:Ermelo!AU39) -> 0.00 | AV39: =SUM(Gosforth:Ermelo!AV39) -> 0.00 | AW39: =SUM(Gosforth:Ermelo!AW39) -> 0.00 | AX39: =SUM(Gosforth:Ermelo!AX39) -> 0.00 | AY39: =SUM(Gosforth:Ermelo!AY39) -> 0.00 | AZ39: =SUM(Gosforth:Ermelo!AZ39) -> 0.00 | BA39: =SUM(Gosforth:Ermelo!BA39) -> 0.00 | BB39: =SUM(Gosforth:Ermelo!BB39) -> 0.00 | BC39: =SUM(Gosforth:Ermelo!BC39) -> 0.00 | BD39: =SUM(Gosforth:Ermelo!BD39) -> 0.00 | BE39: =SUM(Gosforth:Ermelo!BE39) -> 0.00 | BF39: =SUM(Gosforth:Ermelo!BF39) -> 0.00 | BG39: =SUM(Gosforth:Ermelo!BG39) -> 0.00 | BH39: =SUM(Gosforth:Ermelo!BH39) -> 0.00 | BI39: =SUM(Gosforth:Ermelo!BI39) -> 0.00 | BJ39: =SUM(Gosforth:Ermelo!BJ39) -> 0.00 | BK39: =SUM(Gosforth:Ermelo!BK39) -> 0.00 | BL39: =SUM(Gosforth:Ermelo!BL39) -> 0.00 | BM39: =SUM(Gosforth:Ermelo!BM39) -> 0.00 | BN39: =SUM(Gosforth:Ermelo!BN39) -> 0.00 | BO39: =SUM(Gosforth:Ermelo!BO39) -> 0.00 | BP39: =SUM(Gosforth:Ermelo!BP39) -> 0.00 | BQ39: =SUM(Gosforth:Ermelo!BQ39) -> 0.00 | BR39: =SUM(Gosforth:Ermelo!BR39) -> 0.00 | BS39: =SUM(Gosforth:Ermelo!BS39) -> 0.00 | BT39: =SUM(Gosforth:Ermelo!BT39) -> 0.00 | BU39: =SUM(Gosforth:Ermelo!BU39) -> 0.00 | BV39: =SUM(Gosforth:Ermelo!BV39) -> 0.00 | BW39: =SUM(Gosforth:Ermelo!BW39) -> 0.00 | BX39: =SUM(Gosforth:Ermelo!BX39) -> 0.00 | BY39: =SUM(Gosforth:Ermelo!BY39) -> 0.00 | BZ39: =SUM(Gosforth:Ermelo!BZ39) -> 0.00 | CA39: =SUM(Gosforth:Ermelo!CA39) -> 0.00 | CB39: =SUM(Gosforth:Ermelo!CB39) -> 0.00 | CC39: =SUM(Gosforth:Ermelo!CC39) -> 0.00 | CD39: .
B40: A-1006 | C40: Compliance with Social Responsibility Requirements | D40: Month | E40: =SUM(Gosforth:Ermelo!E40) -> 360 | F40: =(Gosforth!G40+Dalpark!G40+Leandra!G40+Trichardt!G40+Ermelo!G40)=G40 -> TRUE | G40: 0.00 | H40: =SUM(Gosforth:Ermelo!H40) -> 0.00 | I40: =SUM(Gosforth:Ermelo!I40) -> 0.00 | J40: =SUM(Gosforth:Ermelo!J40) -> 0.00 | K40: =SUM(Gosforth:Ermelo!K40) -> 0.00 | L40: =SUM(Gosforth:Ermelo!L40) -> 0.00 | M40: =SUM(Gosforth:Ermelo!M40) -> 0.00 | N40: =SUM(Gosforth:Ermelo!N40) -> 0.00 | O40: =SUM(Gosforth:Ermelo!O40) -> 0.00 | P40: =SUM(Gosforth:Ermelo!P40) -> 0.00 | Q40: =SUM(Gosforth:Ermelo!Q40) -> 0.00 | R40: =SUM(Gosforth:Ermelo!R40) -> 0.00 | S40: =SUM(Gosforth:Ermelo!S40) -> 0.00 | T40: =SUM(Gosforth:Ermelo!T40) -> 0.00 | U40: =SUM(Gosforth:Ermelo!U40) -> 0.00 | V40: =SUM(Gosforth:Ermelo!V40) -> 0.00 | W40: =SUM(Gosforth:Ermelo!W40) -> 0.00 | X40: =SUM(Gosforth:Ermelo!X40) -> 0.00 | Y40: =SUM(Gosforth:Ermelo!Y40) -> 0.00 | Z40: =SUM(Gosforth:Ermelo!Z40) -> 0.00 | AA40: =SUM(Gosforth:Ermelo!AA40) -> 0.00 | AB40: =SUM(Gosforth:Ermelo!AB40) -> 0.00 | AC40: =SUM(Gosforth:Ermelo!AC40) -> 0.00 | AD40: =SUM(Gosforth:Ermelo!AD40) -> 0.00 | AE40: =SUM(Gosforth:Ermelo!AE40) -> 0.00 | AF40: =SUM(Gosforth:Ermelo!AF40) -> 0.00 | AG40: =SUM(Gosforth:Ermelo!AG40) -> 0.00 | AH40: =SUM(Gosforth:Ermelo!AH40) -> 0.00 | AI40: =SUM(Gosforth:Ermelo!AI40) -> 0.00 | AJ40: =SUM(Gosforth:Ermelo!AJ40) -> 0.00 | AK40: =SUM(Gosforth:Ermelo!AK40) -> 0.00 | AL40: =SUM(Gosforth:Ermelo!AL40) -> 0.00 | AM40: =SUM(Gosforth:Ermelo!AM40) -> 0.00 | AN40: =SUM(Gosforth:Ermelo!AN40) -> 0.00 | AO40: =SUM(Gosforth:Ermelo!AO40) -> 0.00 | AP40: =SUM(Gosforth:Ermelo!AP40) -> 0.00 | AQ40: =SUM(Gosforth:Ermelo!AQ40) -> 0.00 | AR40: =SUM(Gosforth:Ermelo!AR40) -> 0.00 | AS40: =SUM(Gosforth:Ermelo!AS40) -> 0.00 | AT40: =SUM(Gosforth:Ermelo!AT40) -> 0.00 | AU40: =SUM(Gosforth:Ermelo!AU40) -> 0.00 | AV40: =SUM(Gosforth:Ermelo!AV40) -> 0.00 | AW40: =SUM(Gosforth:Ermelo!AW40) -> 0.00 | AX40: =SUM(Gosforth:Ermelo!AX40) -> 0.00 | AY40: =SUM(Gosforth:Ermelo!AY40) -> 0.00 | AZ40: =SUM(Gosforth:Ermelo!AZ40) -> 0.00 | BA40: =SUM(Gosforth:Ermelo!BA40) -> 0.00 | BB40: =SUM(Gosforth:Ermelo!BB40) -> 0.00 | BC40: =SUM(Gosforth:Ermelo!BC40) -> 0.00 | BD40: =SUM(Gosforth:Ermelo!BD40) -> 0.00 | BE40: =SUM(Gosforth:Ermelo!BE40) -> 0.00 | BF40: =SUM(Gosforth:Ermelo!BF40) -> 0.00 | BG40: =SUM(Gosforth:Ermelo!BG40) -> 0.00 | BH40: =SUM(Gosforth:Ermelo!BH40) -> 0.00 | BI40: =SUM(Gosforth:Ermelo!BI40) -> 0.00 | BJ40: =SUM(Gosforth:Ermelo!BJ40) -> 0.00 | BK40: =SUM(Gosforth:Ermelo!BK40) -> 0.00 | BL40: =SUM(Gosforth:Ermelo!BL40) -> 0.00 | BM40: =SUM(Gosforth:Ermelo!BM40) -> 0.00 | BN40: =SUM(Gosforth:Ermelo!BN40) -> 0.00 | BO40: =SUM(Gosforth:Ermelo!BO40) -> 0.00 | BP40: =SUM(Gosforth:Ermelo!BP40) -> 0.00 | BQ40: =SUM(Gosforth:Ermelo!BQ40) -> 0.00 | BR40: =SUM(Gosforth:Ermelo!BR40) -> 0.00 | BS40: =SUM(Gosforth:Ermelo!BS40) -> 0.00 | BT40: =SUM(Gosforth:Ermelo!BT40) -> 0.00 | BU40: =SUM(Gosforth:Ermelo!BU40) -> 0.00 | BV40: =SUM(Gosforth:Ermelo!BV40) -> 0.00 | BW40: =SUM(Gosforth:Ermelo!BW40) -> 0.00 | BX40: =SUM(Gosforth:Ermelo!BX40) -> 0.00 | BY40: =SUM(Gosforth:Ermelo!BY40) -> 0.00 | BZ40: =SUM(Gosforth:Ermelo!BZ40) -> 0.00 | CA40: =SUM(Gosforth:Ermelo!CA40) -> 0.00 | CB40: =SUM(Gosforth:Ermelo!CB40) -> 0.00 | CC40: =SUM(Gosforth:Ermelo!CC40) -> 0.00 | CD40: .
B41: A-1007 | C41: Provision and Maintenance of Adequate Insurance | D41: Month | E41: =SUM(Gosforth:Ermelo!E41) -> 360 | F41: =(Gosforth!G41+Dalpark!G41+Leandra!G41+Trichardt!G41+Ermelo!G41)=G41 -> TRUE | G41: 0.00 | H41: =SUM(Gosforth:Ermelo!H41) -> 0.00 | I41: =SUM(Gosforth:Ermelo!I41) -> 0.00 | J41: =SUM(Gosforth:Ermelo!J41) -> 0.00 | K41: =SUM(Gosforth:Ermelo!K41) -> 0.00 | L41: =SUM(Gosforth:Ermelo!L41) -> 0.00 | M41: =SUM(Gosforth:Ermelo!M41) -> 0.00 | N41: =SUM(Gosforth:Ermelo!N41) -> 0.00 | O41: =SUM(Gosforth:Ermelo!O41) -> 0.00 | P41: =SUM(Gosforth:Ermelo!P41) -> 0.00 | Q41: =SUM(Gosforth:Ermelo!Q41) -> 0.00 | R41: =SUM(Gosforth:Ermelo!R41) -> 0.00 | S41: =SUM(Gosforth:Ermelo!S41) -> 0.00 | T41: =SUM(Gosforth:Ermelo!T41) -> 0.00 | U41: =SUM(Gosforth:Ermelo!U41) -> 0.00 | V41: =SUM(Gosforth:Ermelo!V41) -> 0.00 | W41: =SUM(Gosforth:Ermelo!W41) -> 0.00 | X41: =SUM(Gosforth:Ermelo!X41) -> 0.00 | Y41: =SUM(Gosforth:Ermelo!Y41) -> 0.00 | Z41: =SUM(Gosforth:Ermelo!Z41) -> 0.00 | AA41: =SUM(Gosforth:Ermelo!AA41) -> 0.00 | AB41: =SUM(Gosforth:Ermelo!AB41) -> 0.00 | AC41: =SUM(Gosforth:Ermelo!AC41) -> 0.00 | AD41: =SUM(Gosforth:Ermelo!AD41) -> 0.00 | AE41: =SUM(Gosforth:Ermelo!AE41) -> 0.00 | AF41: =SUM(Gosforth:Ermelo!AF41) -> 0.00 | AG41: =SUM(Gosforth:Ermelo!AG41) -> 0.00 | AH41: =SUM(Gosforth:Ermelo!AH41) -> 0.00 | AI41: =SUM(Gosforth:Ermelo!AI41) -> 0.00 | AJ41: =SUM(Gosforth:Ermelo!AJ41) -> 0.00 | AK41: =SUM(Gosforth:Ermelo!AK41) -> 0.00 | AL41: =SUM(Gosforth:Ermelo!AL41) -> 0.00 | AM41: =SUM(Gosforth:Ermelo!AM41) -> 0.00 | AN41: =SUM(Gosforth:Ermelo!AN41) -> 0.00 | AO41: =SUM(Gosforth:Ermelo!AO41) -> 0.00 | AP41: =SUM(Gosforth:Ermelo!AP41) -> 0.00 | AQ41: =SUM(Gosforth:Ermelo!AQ41) -> 0.00 | AR41: =SUM(Gosforth:Ermelo!AR41) -> 0.00 | AS41: =SUM(Gosforth:Ermelo!AS41) -> 0.00 | AT41: =SUM(Gosforth:Ermelo!AT41) -> 0.00 | AU41: =SUM(Gosforth:Ermelo!AU41) -> 0.00 | AV41: =SUM(Gosforth:Ermelo!AV41) -> 0.00 | AW41: =SUM(Gosforth:Ermelo!AW41) -> 0.00 | AX41: =SUM(Gosforth:Ermelo!AX41) -> 0.00 | AY41: =SUM(Gosforth:Ermelo!AY41) -> 0.00 | AZ41: =SUM(Gosforth:Ermelo!AZ41) -> 0.00 | BA41: =SUM(Gosforth:Ermelo!BA41) -> 0.00 | BB41: =SUM(Gosforth:Ermelo!BB41) -> 0.00 | BC41: =SUM(Gosforth:Ermelo!BC41) -> 0.00 | BD41: =SUM(Gosforth:Ermelo!BD41) -> 0.00 | BE41: =SUM(Gosforth:Ermelo!BE41) -> 0.00 | BF41: =SUM(Gosforth:Ermelo!BF41) -> 0.00 | BG41: =SUM(Gosforth:Ermelo!BG41) -> 0.00 | BH41: =SUM(Gosforth:Ermelo!BH41) -> 0.00 | BI41: =SUM(Gosforth:Ermelo!BI41) -> 0.00 | BJ41: =SUM(Gosforth:Ermelo!BJ41) -> 0.00 | BK41: =SUM(Gosforth:Ermelo!BK41) -> 0.00 | BL41: =SUM(Gosforth:Ermelo!BL41) -> 0.00 | BM41: =SUM(Gosforth:Ermelo!BM41) -> 0.00 | BN41: =SUM(Gosforth:Ermelo!BN41) -> 0.00 | BO41: =SUM(Gosforth:Ermelo!BO41) -> 0.00 | BP41: =SUM(Gosforth:Ermelo!BP41) -> 0.00 | BQ41: =SUM(Gosforth:Ermelo!BQ41) -> 0.00 | BR41: =SUM(Gosforth:Ermelo!BR41) -> 0.00 | BS41: =SUM(Gosforth:Ermelo!BS41) -> 0.00 | BT41: =SUM(Gosforth:Ermelo!BT41) -> 0.00 | BU41: =SUM(Gosforth:Ermelo!BU41) -> 0.00 | BV41: =SUM(Gosforth:Ermelo!BV41) -> 0.00 | BW41: =SUM(Gosforth:Ermelo!BW41) -> 0.00 | BX41: =SUM(Gosforth:Ermelo!BX41) -> 0.00 | BY41: =SUM(Gosforth:Ermelo!BY41) -> 0.00 | BZ41: =SUM(Gosforth:Ermelo!BZ41) -> 0.00 | CA41: =SUM(Gosforth:Ermelo!CA41) -> 0.00 | CB41: =SUM(Gosforth:Ermelo!CB41) -> 0.00 | CC41: =SUM(Gosforth:Ermelo!CC41) -> 0.00 | CD41: .
B42: A-1008 | C42: Provision and Maintenance of Contractor's Equipment | D42: Month | E42: =SUM(Gosforth:Ermelo!E42) -> 360 | F42: =(Gosforth!G42+Dalpark!G42+Leandra!G42+Trichardt!G42+Ermelo!G42)=G42 -> TRUE | G42: 0.00 | H42: =SUM(Gosforth:Ermelo!H42) -> 0.00 | I42: =SUM(Gosforth:Ermelo!I42) -> 0.00 | J42: =SUM(Gosforth:Ermelo!J42) -> 0.00 | K42: =SUM(Gosforth:Ermelo!K42) -> 0.00 | L42: =SUM(Gosforth:Ermelo!L42) -> 0.00 | M42: =SUM(Gosforth:Ermelo!M42) -> 0.00 | N42: =SUM(Gosforth:Ermelo!N42) -> 0.00 | O42: =SUM(Gosforth:Ermelo!O42) -> 0.00 | P42: =SUM(Gosforth:Ermelo!P42) -> 0.00 | Q42: =SUM(Gosforth:Ermelo!Q42) -> 0.00 | R42: =SUM(Gosforth:Ermelo!R42) -> 0.00 | S42: =SUM(Gosforth:Ermelo!S42) -> 0.00 | T42: =SUM(Gosforth:Ermelo!T42) -> 0.00 | U42: =SUM(Gosforth:Ermelo!U42) -> 0.00 | V42: =SUM(Gosforth:Ermelo!V42) -> 0.00 | W42: =SUM(Gosforth:Ermelo!W42) -> 0.00 | X42: =SUM(Gosforth:Ermelo!X42) -> 0.00 | Y42: =SUM(Gosforth:Ermelo!Y42) -> 0.00 | Z42: =SUM(Gosforth:Ermelo!Z42) -> 0.00 | AA42: =SUM(Gosforth:Ermelo!AA42) -> 0.00 | AB42: =SUM(Gosforth:Ermelo!AB42) -> 0.00 | AC42: =SUM(Gosforth:Ermelo!AC42) -> 0.00 | AD42: =SUM(Gosforth:Ermelo!AD42) -> 0.00 | AE42: =SUM(Gosforth:Ermelo!AE42) -> 0.00 | AF42: =SUM(Gosforth:Ermelo!AF42) -> 0.00 | AG42: =SUM(Gosforth:Ermelo!AG42) -> 0.00 | AH42: =SUM(Gosforth:Ermelo!AH42) -> 0.00 | AI42: =SUM(Gosforth:Ermelo!AI42) -> 0.00 | AJ42: =SUM(Gosforth:Ermelo!AJ42) -> 0.00 | AK42: =SUM(Gosforth:Ermelo!AK42) -> 0.00 | AL42: =SUM(Gosforth:Ermelo!AL42) -> 0.00 | AM42: =SUM(Gosforth:Ermelo!AM42) -> 0.00 | AN42: =SUM(Gosforth:Ermelo!AN42) -> 0.00 | AO42: =SUM(Gosforth:Ermelo!AO42) -> 0.00 | AP42: =SUM(Gosforth:Ermelo!AP42) -> 0.00 | AQ42: =SUM(Gosforth:Ermelo!AQ42) -> 0.00 | AR42: =SUM(Gosforth:Ermelo!AR42) -> 0.00 | AS42: =SUM(Gosforth:Ermelo!AS42) -> 0.00 | AT42: =SUM(Gosforth:Ermelo!AT42) -> 0.00 | AU42: =SUM(Gosforth:Ermelo!AU42) -> 0.00 | AV42: =SUM(Gosforth:Ermelo!AV42) -> 0.00 | AW42: =SUM(Gosforth:Ermelo!AW42) -> 0.00 | AX42: =SUM(Gosforth:Ermelo!AX42) -> 0.00 | AY42: =SUM(Gosforth:Ermelo!AY42) -> 0.00 | AZ42: =SUM(Gosforth:Ermelo!AZ42) -> 0.00 | BA42: =SUM(Gosforth:Ermelo!BA42) -> 0.00 | BB42: =SUM(Gosforth:Ermelo!BB42) -> 0.00 | BC42: =SUM(Gosforth:Ermelo!BC42) -> 0.00 | BD42: =SUM(Gosforth:Ermelo!BD42) -> 0.00 | BE42: =SUM(Gosforth:Ermelo!BE42) -> 0.00 | BF42: =SUM(Gosforth:Ermelo!BF42) -> 0.00 | BG42: =SUM(Gosforth:Ermelo!BG42) -> 0.00 | BH42: =SUM(Gosforth:Ermelo!BH42) -> 0.00 | BI42: =SUM(Gosforth:Ermelo!BI42) -> 0.00 | BJ42: =SUM(Gosforth:Ermelo!BJ42) -> 0.00 | BK42: =SUM(Gosforth:Ermelo!BK42) -> 0.00 | BL42: =SUM(Gosforth:Ermelo!BL42) -> 0.00 | BM42: =SUM(Gosforth:Ermelo!BM42) -> 0.00 | BN42: =SUM(Gosforth:Ermelo!BN42) -> 0.00 | BO42: =SUM(Gosforth:Ermelo!BO42) -> 0.00 | BP42: =SUM(Gosforth:Ermelo!BP42) -> 0.00 | BQ42: =SUM(Gosforth:Ermelo!BQ42) -> 0.00 | BR42: =SUM(Gosforth:Ermelo!BR42) -> 0.00 | BS42: =SUM(Gosforth:Ermelo!BS42) -> 0.00 | BT42: =SUM(Gosforth:Ermelo!BT42) -> 0.00 | BU42: =SUM(Gosforth:Ermelo!BU42) -> 0.00 | BV42: =SUM(Gosforth:Ermelo!BV42) -> 0.00 | BW42: =SUM(Gosforth:Ermelo!BW42) -> 0.00 | BX42: =SUM(Gosforth:Ermelo!BX42) -> 0.00 | BY42: =SUM(Gosforth:Ermelo!BY42) -> 0.00 | BZ42: =SUM(Gosforth:Ermelo!BZ42) -> 0.00 | CA42: =SUM(Gosforth:Ermelo!CA42) -> 0.00 | CB42: =SUM(Gosforth:Ermelo!CB42) -> 0.00 | CC42: =SUM(Gosforth:Ermelo!CC42) -> 0.00 | CD42: .
B43: A-1009 | C43: Supply and Maintenance of Documents and Drawings | D43: Month | E43: =SUM(Gosforth:Ermelo!E43) -> 360 | F43: =(Gosforth!G43+Dalpark!G43+Leandra!G43+Trichardt!G43+Ermelo!G43)=G43 -> TRUE | G43: 0.00 | H43: =SUM(Gosforth:Ermelo!H43) -> 0.00 | I43: =SUM(Gosforth:Ermelo!I43) -> 0.00 | J43: =SUM(Gosforth:Ermelo!J43) -> 0.00 | K43: =SUM(Gosforth:Ermelo!K43) -> 0.00 | L43: =SUM(Gosforth:Ermelo!L43) -> 0.00 | M43: =SUM(Gosforth:Ermelo!M43) -> 0.00 | N43: =SUM(Gosforth:Ermelo!N43) -> 0.00 | O43: =SUM(Gosforth:Ermelo!O43) -> 0.00 | P43: =SUM(Gosforth:Ermelo!P43) -> 0.00 | Q43: =SUM(Gosforth:Ermelo!Q43) -> 0.00 | R43: =SUM(Gosforth:Ermelo!R43) -> 0.00 | S43: =SUM(Gosforth:Ermelo!S43) -> 0.00 | T43: =SUM(Gosforth:Ermelo!T43) -> 0.00 | U43: =SUM(Gosforth:Ermelo!U43) -> 0.00 | V43: =SUM(Gosforth:Ermelo!V43) -> 0.00 | W43: =SUM(Gosforth:Ermelo!W43) -> 0.00 | X43: =SUM(Gosforth:Ermelo!X43) -> 0.00 | Y43: =SUM(Gosforth:Ermelo!Y43) -> 0.00 | Z43: =SUM(Gosforth:Ermelo!Z43) -> 0.00 | AA43: =SUM(Gosforth:Ermelo!AA43) -> 0.00 | AB43: =SUM(Gosforth:Ermelo!AB43) -> 0.00 | AC43: =SUM(Gosforth:Ermelo!AC43) -> 0.00 | AD43: =SUM(Gosforth:Ermelo!AD43) -> 0.00 | AE43: =SUM(Gosforth:Ermelo!AE43) -> 0.00 | AF43: =SUM(Gosforth:Ermelo!AF43) -> 0.00 | AG43: =SUM(Gosforth:Ermelo!AG43) -> 0.00 | AH43: =SUM(Gosforth:Ermelo!AH43) -> 0.00 | AI43: =SUM(Gosforth:Ermelo!AI43) -> 0.00 | AJ43: =SUM(Gosforth:Ermelo!AJ43) -> 0.00 | AK43: =SUM(Gosforth:Ermelo!AK43) -> 0.00 | AL43: =SUM(Gosforth:Ermelo!AL43) -> 0.00 | AM43: =SUM(Gosforth:Ermelo!AM43) -> 0.00 | AN43: =SUM(Gosforth:Ermelo!AN43) -> 0.00 | AO43: =SUM(Gosforth:Ermelo!AO43) -> 0.00 | AP43: =SUM(Gosforth:Ermelo!AP43) -> 0.00 | AQ43: =SUM(Gosforth:Ermelo!AQ43) -> 0.00 | AR43: =SUM(Gosforth:Ermelo!AR43) -> 0.00 | AS43: =SUM(Gosforth:Ermelo!AS43) -> 0.00 | AT43: =SUM(Gosforth:Ermelo!AT43) -> 0.00 | AU43: =SUM(Gosforth:Ermelo!AU43) -> 0.00 | AV43: =SUM(Gosforth:Ermelo!AV43) -> 0.00 | AW43: =SUM(Gosforth:Ermelo!AW43) -> 0.00 | AX43: =SUM(Gosforth:Ermelo!AX43) -> 0.00 | AY43: =SUM(Gosforth:Ermelo!AY43) -> 0.00 | AZ43: =SUM(Gosforth:Ermelo!AZ43) -> 0.00 | BA43: =SUM(Gosforth:Ermelo!BA43) -> 0.00 | BB43: =SUM(Gosforth:Ermelo!BB43) -> 0.00 | BC43: =SUM(Gosforth:Ermelo!BC43) -> 0.00 | BD43: =SUM(Gosforth:Ermelo!BD43) -> 0.00 | BE43: =SUM(Gosforth:Ermelo!BE43) -> 0.00 | BF43: =SUM(Gosforth:Ermelo!BF43) -> 0.00 | BG43: =SUM(Gosforth:Ermelo!BG43) -> 0.00 | BH43: =SUM(Gosforth:Ermelo!BH43) -> 0.00 | BI43: =SUM(Gosforth:Ermelo!BI43) -> 0.00 | BJ43: =SUM(Gosforth:Ermelo!BJ43) -> 0.00 | BK43: =SUM(Gosforth:Ermelo!BK43) -> 0.00 | BL43: =SUM(Gosforth:Ermelo!BL43) -> 0.00 | BM43: =SUM(Gosforth:Ermelo!BM43) -> 0.00 | BN43: =SUM(Gosforth:Ermelo!BN43) -> 0.00 | BO43: =SUM(Gosforth:Ermelo!BO43) -> 0.00 | BP43: =SUM(Gosforth:Ermelo!BP43) -> 0.00 | BQ43: =SUM(Gosforth:Ermelo!BQ43) -> 0.00 | BR43: =SUM(Gosforth:Ermelo!BR43) -> 0.00 | BS43: =SUM(Gosforth:Ermelo!BS43) -> 0.00 | BT43: =SUM(Gosforth:Ermelo!BT43) -> 0.00 | BU43: =SUM(Gosforth:Ermelo!BU43) -> 0.00 | BV43: =SUM(Gosforth:Ermelo!BV43) -> 0.00 | BW43: =SUM(Gosforth:Ermelo!BW43) -> 0.00 | BX43: =SUM(Gosforth:Ermelo!BX43) -> 0.00 | BY43: =SUM(Gosforth:Ermelo!BY43) -> 0.00 | BZ43: =SUM(Gosforth:Ermelo!BZ43) -> 0.00 | CA43: =SUM(Gosforth:Ermelo!CA43) -> 0.00 | CB43: =SUM(Gosforth:Ermelo!CB43) -> 0.00 | CC43: =SUM(Gosforth:Ermelo!CC43) -> 0.00 | CD43: .
B44: A-1010 | C44: Training of Personnel and other training obligations | D44: Month | E44: =SUM(Gosforth:Ermelo!E44) -> 360 | F44: =(Gosforth!G44+Dalpark!G44+Leandra!G44+Trichardt!G44+Ermelo!G44)=G44 -> TRUE | G44: 0.00 | H44: =SUM(Gosforth:Ermelo!H44) -> 0.00 | I44: =SUM(Gosforth:Ermelo!I44) -> 0.00 | J44: =SUM(Gosforth:Ermelo!J44) -> 0.00 | K44: =SUM(Gosforth:Ermelo!K44) -> 0.00 | L44: =SUM(Gosforth:Ermelo!L44) -> 0.00 | M44: =SUM(Gosforth:Ermelo!M44) -> 0.00 | N44: =SUM(Gosforth:Ermelo!N44) -> 0.00 | O44: =SUM(Gosforth:Ermelo!O44) -> 0.00 | P44: =SUM(Gosforth:Ermelo!P44) -> 0.00 | Q44: =SUM(Gosforth:Ermelo!Q44) -> 0.00 | R44: =SUM(Gosforth:Ermelo!R44) -> 0.00 | S44: =SUM(Gosforth:Ermelo!S44) -> 0.00 | T44: =SUM(Gosforth:Ermelo!T44) -> 0.00 | U44: =SUM(Gosforth:Ermelo!U44) -> 0.00 | V44: =SUM(Gosforth:Ermelo!V44) -> 0.00 | W44: =SUM(Gosforth:Ermelo!W44) -> 0.00 | X44: =SUM(Gosforth:Ermelo!X44) -> 0.00 | Y44: =SUM(Gosforth:Ermelo!Y44) -> 0.00 | Z44: =SUM(Gosforth:Ermelo!Z44) -> 0.00 | AA44: =SUM(Gosforth:Ermelo!AA44) -> 0.00 | AB44: =SUM(Gosforth:Ermelo!AB44) -> 0.00 | AC44: =SUM(Gosforth:Ermelo!AC44) -> 0.00 | AD44: =SUM(Gosforth:Ermelo!AD44) -> 0.00 | AE44: =SUM(Gosforth:Ermelo!AE44) -> 0.00 | AF44: =SUM(Gosforth:Ermelo!AF44) -> 0.00 | AG44: =SUM(Gosforth:Ermelo!AG44) -> 0.00 | AH44: =SUM(Gosforth:Ermelo!AH44) -> 0.00 | AI44: =SUM(Gosforth:Ermelo!AI44) -> 0.00 | AJ44: =SUM(Gosforth:Ermelo!AJ44) -> 0.00 | AK44: =SUM(Gosforth:Ermelo!AK44) -> 0.00 | AL44: =SUM(Gosforth:Ermelo!AL44) -> 0.00 | AM44: =SUM(Gosforth:Ermelo!AM44) -> 0.00 | AN44: =SUM(Gosforth:Ermelo!AN44) -> 0.00 | AO44: =SUM(Gosforth:Ermelo!AO44) -> 0.00 | AP44: =SUM(Gosforth:Ermelo!AP44) -> 0.00 | AQ44: =SUM(Gosforth:Ermelo!AQ44) -> 0.00 | AR44: =SUM(Gosforth:Ermelo!AR44) -> 0.00 | AS44: =SUM(Gosforth:Ermelo!AS44) -> 0.00 | AT44: =SUM(Gosforth:Ermelo!AT44) -> 0.00 | AU44: =SUM(Gosforth:Ermelo!AU44) -> 0.00 | AV44: =SUM(Gosforth:Ermelo!AV44) -> 0.00 | AW44: =SUM(Gosforth:Ermelo!AW44) -> 0.00 | AX44: =SUM(Gosforth:Ermelo!AX44) -> 0.00 | AY44: =SUM(Gosforth:Ermelo!AY44) -> 0.00 | AZ44: =SUM(Gosforth:Ermelo!AZ44) -> 0.00 | BA44: =SUM(Gosforth:Ermelo!BA44) -> 0.00 | BB44: =SUM(Gosforth:Ermelo!BB44) -> 0.00 | BC44: =SUM(Gosforth:Ermelo!BC44) -> 0.00 | BD44: =SUM(Gosforth:Ermelo!BD44) -> 0.00 | BE44: =SUM(Gosforth:Ermelo!BE44) -> 0.00 | BF44: =SUM(Gosforth:Ermelo!BF44) -> 0.00 | BG44: =SUM(Gosforth:Ermelo!BG44) -> 0.00 | BH44: =SUM(Gosforth:Ermelo!BH44) -> 0.00 | BI44: =SUM(Gosforth:Ermelo!BI44) -> 0.00 | BJ44: =SUM(Gosforth:Ermelo!BJ44) -> 0.00 | BK44: =SUM(Gosforth:Ermelo!BK44) -> 0.00 | BL44: =SUM(Gosforth:Ermelo!BL44) -> 0.00 | BM44: =SUM(Gosforth:Ermelo!BM44) -> 0.00 | BN44: =SUM(Gosforth:Ermelo!BN44) -> 0.00 | BO44: =SUM(Gosforth:Ermelo!BO44) -> 0.00 | BP44: =SUM(Gosforth:Ermelo!BP44) -> 0.00 | BQ44: =SUM(Gosforth:Ermelo!BQ44) -> 0.00 | BR44: =SUM(Gosforth:Ermelo!BR44) -> 0.00 | BS44: =SUM(Gosforth:Ermelo!BS44) -> 0.00 | BT44: =SUM(Gosforth:Ermelo!BT44) -> 0.00 | BU44: =SUM(Gosforth:Ermelo!BU44) -> 0.00 | BV44: =SUM(Gosforth:Ermelo!BV44) -> 0.00 | BW44: =SUM(Gosforth:Ermelo!BW44) -> 0.00 | BX44: =SUM(Gosforth:Ermelo!BX44) -> 0.00 | BY44: =SUM(Gosforth:Ermelo!BY44) -> 0.00 | BZ44: =SUM(Gosforth:Ermelo!BZ44) -> 0.00 | CA44: =SUM(Gosforth:Ermelo!CA44) -> 0.00 | CB44: =SUM(Gosforth:Ermelo!CB44) -> 0.00 | CC44: =SUM(Gosforth:Ermelo!CC44) -> 0.00 | CD44: .
B45: A-1011 | C45: Completion of Operation Service Period | D45: Lump Sum | E45: =SUM(Gosforth:Ermelo!E45) -> 5 | F45: =(Gosforth!G45+Dalpark!G45+Leandra!G45+Trichardt!G45+Ermelo!G45)=G45 -> TRUE | G45: 0.00 | H45: =SUM(Gosforth:Ermelo!H45) -> 0.00 | I45: =SUM(Gosforth:Ermelo!I45) -> 0.00 | J45: =SUM(Gosforth:Ermelo!J45) -> 0.00 | K45: =SUM(Gosforth:Ermelo!K45) -> 0.00 | L45: =SUM(Gosforth:Ermelo!L45) -> 0.00 | M45: =SUM(Gosforth:Ermelo!M45) -> 0.00 | N45: =SUM(Gosforth:Ermelo!N45) -> 0.00 | O45: =SUM(Gosforth:Ermelo!O45) -> 0.00 | P45: =SUM(Gosforth:Ermelo!P45) -> 0.00 | Q45: =SUM(Gosforth:Ermelo!Q45) -> 0.00 | R45: =SUM(Gosforth:Ermelo!R45) -> 0.00 | S45: =SUM(Gosforth:Ermelo!S45) -> 0.00 | T45: =SUM(Gosforth:Ermelo!T45) -> 0.00 | U45: =SUM(Gosforth:Ermelo!U45) -> 0.00 | V45: =SUM(Gosforth:Ermelo!V45) -> 0.00 | W45: =SUM(Gosforth:Ermelo!W45) -> 0.00 | X45: =SUM(Gosforth:Ermelo!X45) -> 0.00 | Y45: =SUM(Gosforth:Ermelo!Y45) -> 0.00 | Z45: =SUM(Gosforth:Ermelo!Z45) -> 0.00 | AA45: =SUM(Gosforth:Ermelo!AA45) -> 0.00 | AB45: =SUM(Gosforth:Ermelo!AB45) -> 0.00 | AC45: =SUM(Gosforth:Ermelo!AC45) -> 0.00 | AD45: =SUM(Gosforth:Ermelo!AD45) -> 0.00 | AE45: =SUM(Gosforth:Ermelo!AE45) -> 0.00 | AF45: =SUM(Gosforth:Ermelo!AF45) -> 0.00 | AG45: =SUM(Gosforth:Ermelo!AG45) -> 0.00 | AH45: =SUM(Gosforth:Ermelo!AH45) -> 0.00 | AI45: =SUM(Gosforth:Ermelo!AI45) -> 0.00 | AJ45: =SUM(Gosforth:Ermelo!AJ45) -> 0.00 | AK45: =SUM(Gosforth:Ermelo!AK45) -> 0.00 | AL45: =SUM(Gosforth:Ermelo!AL45) -> 0.00 | AM45: =SUM(Gosforth:Ermelo!AM45) -> 0.00 | AN45: =SUM(Gosforth:Ermelo!AN45) -> 0.00 | AO45: =SUM(Gosforth:Ermelo!AO45) -> 0.00 | AP45: =SUM(Gosforth:Ermelo!AP45) -> 0.00 | AQ45: =SUM(Gosforth:Ermelo!AQ45) -> 0.00 | AR45: =SUM(Gosforth:Ermelo!AR45) -> 0.00 | AS45: =SUM(Gosforth:Ermelo!AS45) -> 0.00 | AT45: =SUM(Gosforth:Ermelo!AT45) -> 0.00 | AU45: =SUM(Gosforth:Ermelo!AU45) -> 0.00 | AV45: =SUM(Gosforth:Ermelo!AV45) -> 0.00 | AW45: =SUM(Gosforth:Ermelo!AW45) -> 0.00 | AX45: =SUM(Gosforth:Ermelo!AX45) -> 0.00 | AY45: =SUM(Gosforth:Ermelo!AY45) -> 0.00 | AZ45: =SUM(Gosforth:Ermelo!AZ45) -> 0.00 | BA45: =SUM(Gosforth:Ermelo!BA45) -> 0.00 | BB45: =SUM(Gosforth:Ermelo!BB45) -> 0.00 | BC45: =SUM(Gosforth:Ermelo!BC45) -> 0.00 | BD45: =SUM(Gosforth:Ermelo!BD45) -> 0.00 | BE45: =SUM(Gosforth:Ermelo!BE45) -> 0.00 | BF45: =SUM(Gosforth:Ermelo!BF45) -> 0.00 | BG45: =SUM(Gosforth:Ermelo!BG45) -> 0.00 | BH45: =SUM(Gosforth:Ermelo!BH45) -> 0.00 | BI45: =SUM(Gosforth:Ermelo!BI45) -> 0.00 | BJ45: =SUM(Gosforth:Ermelo!BJ45) -> 0.00 | BK45: =SUM(Gosforth:Ermelo!BK45) -> 0.00 | BL45: =SUM(Gosforth:Ermelo!BL45) -> 0.00 | BM45: =SUM(Gosforth:Ermelo!BM45) -> 0.00 | BN45: =SUM(Gosforth:Ermelo!BN45) -> 0.00 | BO45: =SUM(Gosforth:Ermelo!BO45) -> 0.00 | BP45: =SUM(Gosforth:Ermelo!BP45) -> 0.00 | BQ45: =SUM(Gosforth:Ermelo!BQ45) -> 0.00 | BR45: =SUM(Gosforth:Ermelo!BR45) -> 0.00 | BS45: =SUM(Gosforth:Ermelo!BS45) -> 0.00 | BT45: =SUM(Gosforth:Ermelo!BT45) -> 0.00 | BU45: =SUM(Gosforth:Ermelo!BU45) -> 0.00 | BV45: =SUM(Gosforth:Ermelo!BV45) -> 0.00 | BW45: =SUM(Gosforth:Ermelo!BW45) -> 0.00 | BX45: =SUM(Gosforth:Ermelo!BX45) -> 0.00 | BY45: =SUM(Gosforth:Ermelo!BY45) -> 0.00 | BZ45: =SUM(Gosforth:Ermelo!BZ45) -> 0.00 | CA45: =SUM(Gosforth:Ermelo!CA45) -> 0.00 | CB45: =SUM(Gosforth:Ermelo!CB45) -> 0.00 | CC45: =SUM(Gosforth:Ermelo!CC45) -> 0.00 | CD45: .
B46: A-1012 | C46: Extra Over Cost for Taking over of upgraded & new assets during contract period (if triggered) | D46: Lump Sum | E46: =SUM(Gosforth:Ermelo!E46) -> 5 | F46: =(Gosforth!G46+Dalpark!G46+Leandra!G46+Trichardt!G46+Ermelo!G46)=G46 -> TRUE | G46: 0.00 | H46: =SUM(Gosforth:Ermelo!H46) -> 0.00 | I46: =SUM(Gosforth:Ermelo!I46) -> 0.00 | J46: =SUM(Gosforth:Ermelo!J46) -> 0.00 | K46: =SUM(Gosforth:Ermelo!K46) -> 0.00 | L46: =SUM(Gosforth:Ermelo!L46) -> 0.00 | M46: =SUM(Gosforth:Ermelo!M46) -> 0.00 | N46: =SUM(Gosforth:Ermelo!N46) -> 0.00 | O46: =SUM(Gosforth:Ermelo!O46) -> 0.00 | P46: =SUM(Gosforth:Ermelo!P46) -> 0.00 | Q46: =SUM(Gosforth:Ermelo!Q46) -> 0.00 | R46: =SUM(Gosforth:Ermelo!R46) -> 0.00 | S46: =SUM(Gosforth:Ermelo!S46) -> 0.00 | T46: =SUM(Gosforth:Ermelo!T46) -> 0.00 | U46: =SUM(Gosforth:Ermelo!U46) -> 0.00 | V46: =SUM(Gosforth:Ermelo!V46) -> 0.00 | W46: =SUM(Gosforth:Ermelo!W46) -> 0.00 | X46: =SUM(Gosforth:Ermelo!X46) -> 0.00 | Y46: =SUM(Gosforth:Ermelo!Y46) -> 0.00 | Z46: =SUM(Gosforth:Ermelo!Z46) -> 0.00 | AA46: =SUM(Gosforth:Ermelo!AA46) -> 0.00 | AB46: =SUM(Gosforth:Ermelo!AB46) -> 0.00 | AC46: =SUM(Gosforth:Ermelo!AC46) -> 0.00 | AD46: =SUM(Gosforth:Ermelo!AD46) -> 0.00 | AE46: =SUM(Gosforth:Ermelo!AE46) -> 0.00 | AF46: =SUM(Gosforth:Ermelo!AF46) -> 0.00 | AG46: =SUM(Gosforth:Ermelo!AG46) -> 0.00 | AH46: =SUM(Gosforth:Ermelo!AH46) -> 0.00 | AI46: =SUM(Gosforth:Ermelo!AI46) -> 0.00 | AJ46: =SUM(Gosforth:Ermelo!AJ46) -> 0.00 | AK46: =SUM(Gosforth:Ermelo!AK46) -> 0.00 | AL46: =SUM(Gosforth:Ermelo!AL46) -> 0.00 | AM46: =SUM(Gosforth:Ermelo!AM46) -> 0.00 | AN46: =SUM(Gosforth:Ermelo!AN46) -> 0.00 | AO46: =SUM(Gosforth:Ermelo!AO46) -> 0.00 | AP46: =SUM(Gosforth:Ermelo!AP46) -> 0.00 | AQ46: =SUM(Gosforth:Ermelo!AQ46) -> 0.00 | AR46: =SUM(Gosforth:Ermelo!AR46) -> 0.00 | AS46: =SUM(Gosforth:Ermelo!AS46) -> 0.00 | AT46: =SUM(Gosforth:Ermelo!AT46) -> 0.00 | AU46: =SUM(Gosforth:Ermelo!AU46) -> 0.00 | AV46: =SUM(Gosforth:Ermelo!AV46) -> 0.00 | AW46: =SUM(Gosforth:Ermelo!AW46) -> 0.00 | AX46: =SUM(Gosforth:Ermelo!AX46) -> 0.00 | AY46: =SUM(Gosforth:Ermelo!AY46) -> 0.00 | AZ46: =SUM(Gosforth:Ermelo!AZ46) -> 0.00 | BA46: =SUM(Gosforth:Ermelo!BA46) -> 0.00 | BB46: =SUM(Gosforth:Ermelo!BB46) -> 0.00 | BC46: =SUM(Gosforth:Ermelo!BC46) -> 0.00 | BD46: =SUM(Gosforth:Ermelo!BD46) -> 0.00 | BE46: =SUM(Gosforth:Ermelo!BE46) -> 0.00 | BF46: =SUM(Gosforth:Ermelo!BF46) -> 0.00 | BG46: =SUM(Gosforth:Ermelo!BG46) -> 0.00 | BH46: =SUM(Gosforth:Ermelo!BH46) -> 0.00 | BI46: =SUM(Gosforth:Ermelo!BI46) -> 0.00 | BJ46: =SUM(Gosforth:Ermelo!BJ46) -> 0.00 | BK46: =SUM(Gosforth:Ermelo!BK46) -> 0.00 | BL46: =SUM(Gosforth:Ermelo!BL46) -> 0.00 | BM46: =SUM(Gosforth:Ermelo!BM46) -> 0.00 | BN46: =SUM(Gosforth:Ermelo!BN46) -> 0.00 | BO46: =SUM(Gosforth:Ermelo!BO46) -> 0.00 | BP46: =SUM(Gosforth:Ermelo!BP46) -> 0.00 | BQ46: =SUM(Gosforth:Ermelo!BQ46) -> 0.00 | BR46: =SUM(Gosforth:Ermelo!BR46) -> 0.00 | BS46: =SUM(Gosforth:Ermelo!BS46) -> 0.00 | BT46: =SUM(Gosforth:Ermelo!BT46) -> 0.00 | BU46: =SUM(Gosforth:Ermelo!BU46) -> 0.00 | BV46: =SUM(Gosforth:Ermelo!BV46) -> 0.00 | BW46: =SUM(Gosforth:Ermelo!BW46) -> 0.00 | BX46: =SUM(Gosforth:Ermelo!BX46) -> 0.00 | BY46: =SUM(Gosforth:Ermelo!BY46) -> 0.00 | BZ46: =SUM(Gosforth:Ermelo!BZ46) -> 0.00 | CA46: =SUM(Gosforth:Ermelo!CA46) -> 0.00 | CB46: =SUM(Gosforth:Ermelo!CB46) -> 0.00 | CC46: =SUM(Gosforth:Ermelo!CC46) -> 0.00 | CD46: .
B47: A-1013 | C47: ESCROW for commissioning System application software (not toll system related) | D47: Month | E47: =SUM(Gosforth:Ermelo!E47) -> 360 | F47: =(Gosforth!G47+Dalpark!G47+Leandra!G47+Trichardt!G47+Ermelo!G47)=G47 -> TRUE | G47: 0.00 | H47: =SUM(Gosforth:Ermelo!H47) -> 0.00 | I47: =SUM(Gosforth:Ermelo!I47) -> 0.00 | J47: =SUM(Gosforth:Ermelo!J47) -> 0.00 | K47: =SUM(Gosforth:Ermelo!K47) -> 0.00 | L47: =SUM(Gosforth:Ermelo!L47) -> 0.00 | M47: =SUM(Gosforth:Ermelo!M47) -> 0.00 | N47: =SUM(Gosforth:Ermelo!N47) -> 0.00 | O47: =SUM(Gosforth:Ermelo!O47) -> 0.00 | P47: =SUM(Gosforth:Ermelo!P47) -> 0.00 | Q47: =SUM(Gosforth:Ermelo!Q47) -> 0.00 | R47: =SUM(Gosforth:Ermelo!R47) -> 0.00 | S47: =SUM(Gosforth:Ermelo!S47) -> 0.00 | T47: =SUM(Gosforth:Ermelo!T47) -> 0.00 | U47: =SUM(Gosforth:Ermelo!U47) -> 0.00 | V47: =SUM(Gosforth:Ermelo!V47) -> 0.00 | W47: =SUM(Gosforth:Ermelo!W47) -> 0.00 | X47: =SUM(Gosforth:Ermelo!X47) -> 0.00 | Y47: =SUM(Gosforth:Ermelo!Y47) -> 0.00 | Z47: =SUM(Gosforth:Ermelo!Z47) -> 0.00 | AA47: =SUM(Gosforth:Ermelo!AA47) -> 0.00 | AB47: =SUM(Gosforth:Ermelo!AB47) -> 0.00 | AC47: =SUM(Gosforth:Ermelo!AC47) -> 0.00 | AD47: =SUM(Gosforth:Ermelo!AD47) -> 0.00 | AE47: =SUM(Gosforth:Ermelo!AE47) -> 0.00 | AF47: =SUM(Gosforth:Ermelo!AF47) -> 0.00 | AG47: =SUM(Gosforth:Ermelo!AG47) -> 0.00 | AH47: =SUM(Gosforth:Ermelo!AH47) -> 0.00 | AI47: =SUM(Gosforth:Ermelo!AI47) -> 0.00 | AJ47: =SUM(Gosforth:Ermelo!AJ47) -> 0.00 | AK47: =SUM(Gosforth:Ermelo!AK47) -> 0.00 | AL47: =SUM(Gosforth:Ermelo!AL47) -> 0.00 | AM47: =SUM(Gosforth:Ermelo!AM47) -> 0.00 | AN47: =SUM(Gosforth:Ermelo!AN47) -> 0.00 | AO47: =SUM(Gosforth:Ermelo!AO47) -> 0.00 | AP47: =SUM(Gosforth:Ermelo!AP47) -> 0.00 | AQ47: =SUM(Gosforth:Ermelo!AQ47) -> 0.00 | AR47: =SUM(Gosforth:Ermelo!AR47) -> 0.00 | AS47: =SUM(Gosforth:Ermelo!AS47) -> 0.00 | AT47: =SUM(Gosforth:Ermelo!AT47) -> 0.00 | AU47: =SUM(Gosforth:Ermelo!AU47) -> 0.00 | AV47: =SUM(Gosforth:Ermelo!AV47) -> 0.00 | AW47: =SUM(Gosforth:Ermelo!AW47) -> 0.00 | AX47: =SUM(Gosforth:Ermelo!AX47) -> 0.00 | AY47: =SUM(Gosforth:Ermelo!AY47) -> 0.00 | AZ47: =SUM(Gosforth:Ermelo!AZ47) -> 0.00 | BA47: =SUM(Gosforth:Ermelo!BA47) -> 0.00 | BB47: =SUM(Gosforth:Ermelo!BB47) -> 0.00 | BC47: =SUM(Gosforth:Ermelo!BC47) -> 0.00 | BD47: =SUM(Gosforth:Ermelo!BD47) -> 0.00 | BE47: =SUM(Gosforth:Ermelo!BE47) -> 0.00 | BF47: =SUM(Gosforth:Ermelo!BF47) -> 0.00 | BG47: =SUM(Gosforth:Ermelo!BG47) -> 0.00 | BH47: =SUM(Gosforth:Ermelo!BH47) -> 0.00 | BI47: =SUM(Gosforth:Ermelo!BI47) -> 0.00 | BJ47: =SUM(Gosforth:Ermelo!BJ47) -> 0.00 | BK47: =SUM(Gosforth:Ermelo!BK47) -> 0.00 | BL47: =SUM(Gosforth:Ermelo!BL47) -> 0.00 | BM47: =SUM(Gosforth:Ermelo!BM47) -> 0.00 | BN47: =SUM(Gosforth:Ermelo!BN47) -> 0.00 | BO47: =SUM(Gosforth:Ermelo!BO47) -> 0.00 | BP47: =SUM(Gosforth:Ermelo!BP47) -> 0.00 | BQ47: =SUM(Gosforth:Ermelo!BQ47) -> 0.00 | BR47: =SUM(Gosforth:Ermelo!BR47) -> 0.00 | BS47: =SUM(Gosforth:Ermelo!BS47) -> 0.00 | BT47: =SUM(Gosforth:Ermelo!BT47) -> 0.00 | BU47: =SUM(Gosforth:Ermelo!BU47) -> 0.00 | BV47: =SUM(Gosforth:Ermelo!BV47) -> 0.00 | BW47: =SUM(Gosforth:Ermelo!BW47) -> 0.00 | BX47: =SUM(Gosforth:Ermelo!BX47) -> 0.00 | BY47: =SUM(Gosforth:Ermelo!BY47) -> 0.00 | BZ47: =SUM(Gosforth:Ermelo!BZ47) -> 0.00 | CA47: =SUM(Gosforth:Ermelo!CA47) -> 0.00 | CB47: =SUM(Gosforth:Ermelo!CB47) -> 0.00 | CC47: =SUM(Gosforth:Ermelo!CC47) -> 0.00 | CD47: .
B48: A-1014 | C48: Updating Integrated Transport Information System (ITIS) Modules | D48: Month | E48: =SUM(Gosforth:Ermelo!E48) -> 360 | F48: =(Gosforth!G48+Dalpark!G48+Leandra!G48+Trichardt!G48+Ermelo!G48)=G48 -> TRUE | G48: 0.00 | H48: =SUM(Gosforth:Ermelo!H48) -> 0.00 | I48: =SUM(Gosforth:Ermelo!I48) -> 0.00 | J48: =SUM(Gosforth:Ermelo!J48) -> 0.00 | K48: =SUM(Gosforth:Ermelo!K48) -> 0.00 | L48: =SUM(Gosforth:Ermelo!L48) -> 0.00 | M48: =SUM(Gosforth:Ermelo!M48) -> 0.00 | N48: =SUM(Gosforth:Ermelo!N48) -> 0.00 | O48: =SUM(Gosforth:Ermelo!O48) -> 0.00 | P48: =SUM(Gosforth:Ermelo!P48) -> 0.00 | Q48: =SUM(Gosforth:Ermelo!Q48) -> 0.00 | R48: =SUM(Gosforth:Ermelo!R48) -> 0.00 | S48: =SUM(Gosforth:Ermelo!S48) -> 0.00 | T48: =SUM(Gosforth:Ermelo!T48) -> 0.00 | U48: =SUM(Gosforth:Ermelo!U48) -> 0.00 | V48: =SUM(Gosforth:Ermelo!V48) -> 0.00 | W48: =SUM(Gosforth:Ermelo!W48) -> 0.00 | X48: =SUM(Gosforth:Ermelo!X48) -> 0.00 | Y48: =SUM(Gosforth:Ermelo!Y48) -> 0.00 | Z48: =SUM(Gosforth:Ermelo!Z48) -> 0.00 | AA48: =SUM(Gosforth:Ermelo!AA48) -> 0.00 | AB48: =SUM(Gosforth:Ermelo!AB48) -> 0.00 | AC48: =SUM(Gosforth:Ermelo!AC48) -> 0.00 | AD48: =SUM(Gosforth:Ermelo!AD48) -> 0.00 | AE48: =SUM(Gosforth:Ermelo!AE48) -> 0.00 | AF48: =SUM(Gosforth:Ermelo!AF48) -> 0.00 | AG48: =SUM(Gosforth:Ermelo!AG48) -> 0.00 | AH48: =SUM(Gosforth:Ermelo!AH48) -> 0.00 | AI48: =SUM(Gosforth:Ermelo!AI48) -> 0.00 | AJ48: =SUM(Gosforth:Ermelo!AJ48) -> 0.00 | AK48: =SUM(Gosforth:Ermelo!AK48) -> 0.00 | AL48: =SUM(Gosforth:Ermelo!AL48) -> 0.00 | AM48: =SUM(Gosforth:Ermelo!AM48) -> 0.00 | AN48: =SUM(Gosforth:Ermelo!AN48) -> 0.00 | AO48: =SUM(Gosforth:Ermelo!AO48) -> 0.00 | AP48: =SUM(Gosforth:Ermelo!AP48) -> 0.00 | AQ48: =SUM(Gosforth:Ermelo!AQ48) -> 0.00 | AR48: =SUM(Gosforth:Ermelo!AR48) -> 0.00 | AS48: =SUM(Gosforth:Ermelo!AS48) -> 0.00 | AT48: =SUM(Gosforth:Ermelo!AT48) -> 0.00 | AU48: =SUM(Gosforth:Ermelo!AU48) -> 0.00 | AV48: =SUM(Gosforth:Ermelo!AV48) -> 0.00 | AW48: =SUM(Gosforth:Ermelo!AW48) -> 0.00 | AX48: =SUM(Gosforth:Ermelo!AX48) -> 0.00 | AY48: =SUM(Gosforth:Ermelo!AY48) -> 0.00 | AZ48: =SUM(Gosforth:Ermelo!AZ48) -> 0.00 | BA48: =SUM(Gosforth:Ermelo!BA48) -> 0.00 | BB48: =SUM(Gosforth:Ermelo!BB48) -> 0.00 | BC48: =SUM(Gosforth:Ermelo!BC48) -> 0.00 | BD48: =SUM(Gosforth:Ermelo!BD48) -> 0.00 | BE48: =SUM(Gosforth:Ermelo!BE48) -> 0.00 | BF48: =SUM(Gosforth:Ermelo!BF48) -> 0.00 | BG48: =SUM(Gosforth:Ermelo!BG48) -> 0.00 | BH48: =SUM(Gosforth:Ermelo!BH48) -> 0.00 | BI48: =SUM(Gosforth:Ermelo!BI48) -> 0.00 | BJ48: =SUM(Gosforth:Ermelo!BJ48) -> 0.00 | BK48: =SUM(Gosforth:Ermelo!BK48) -> 0.00 | BL48: =SUM(Gosforth:Ermelo!BL48) -> 0.00 | BM48: =SUM(Gosforth:Ermelo!BM48) -> 0.00 | BN48: =SUM(Gosforth:Ermelo!BN48) -> 0.00 | BO48: =SUM(Gosforth:Ermelo!BO48) -> 0.00 | BP48: =SUM(Gosforth:Ermelo!BP48) -> 0.00 | BQ48: =SUM(Gosforth:Ermelo!BQ48) -> 0.00 | BR48: =SUM(Gosforth:Ermelo!BR48) -> 0.00 | BS48: =SUM(Gosforth:Ermelo!BS48) -> 0.00 | BT48: =SUM(Gosforth:Ermelo!BT48) -> 0.00 | BU48: =SUM(Gosforth:Ermelo!BU48) -> 0.00 | BV48: =SUM(Gosforth:Ermelo!BV48) -> 0.00 | BW48: =SUM(Gosforth:Ermelo!BW48) -> 0.00 | BX48: =SUM(Gosforth:Ermelo!BX48) -> 0.00 | BY48: =SUM(Gosforth:Ermelo!BY48) -> 0.00 | BZ48: =SUM(Gosforth:Ermelo!BZ48) -> 0.00 | CA48: =SUM(Gosforth:Ermelo!CA48) -> 0.00 | CB48: =SUM(Gosforth:Ermelo!CB48) -> 0.00 | CC48: =SUM(Gosforth:Ermelo!CC48) -> 0.00 | CD48: .
B49: A-1015 | C49: Liaison with Service Providers | D49: Month | E49: =SUM(Gosforth:Ermelo!E49) -> 360 | F49: =(Gosforth!G49+Dalpark!G49+Leandra!G49+Trichardt!G49+Ermelo!G49)=G49 -> TRUE | G49: 0.00 | H49: =SUM(Gosforth:Ermelo!H49) -> 0.00 | I49: =SUM(Gosforth:Ermelo!I49) -> 0.00 | J49: =SUM(Gosforth:Ermelo!J49) -> 0.00 | K49: =SUM(Gosforth:Ermelo!K49) -> 0.00 | L49: =SUM(Gosforth:Ermelo!L49) -> 0.00 | M49: =SUM(Gosforth:Ermelo!M49) -> 0.00 | N49: =SUM(Gosforth:Ermelo!N49) -> 0.00 | O49: =SUM(Gosforth:Ermelo!O49) -> 0.00 | P49: =SUM(Gosforth:Ermelo!P49) -> 0.00 | Q49: =SUM(Gosforth:Ermelo!Q49) -> 0.00 | R49: =SUM(Gosforth:Ermelo!R49) -> 0.00 | S49: =SUM(Gosforth:Ermelo!S49) -> 0.00 | T49: =SUM(Gosforth:Ermelo!T49) -> 0.00 | U49: =SUM(Gosforth:Ermelo!U49) -> 0.00 | V49: =SUM(Gosforth:Ermelo!V49) -> 0.00 | W49: =SUM(Gosforth:Ermelo!W49) -> 0.00 | X49: =SUM(Gosforth:Ermelo!X49) -> 0.00 | Y49: =SUM(Gosforth:Ermelo!Y49) -> 0.00 | Z49: =SUM(Gosforth:Ermelo!Z49) -> 0.00 | AA49: =SUM(Gosforth:Ermelo!AA49) -> 0.00 | AB49: =SUM(Gosforth:Ermelo!AB49) -> 0.00 | AC49: =SUM(Gosforth:Ermelo!AC49) -> 0.00 | AD49: =SUM(Gosforth:Ermelo!AD49) -> 0.00 | AE49: =SUM(Gosforth:Ermelo!AE49) -> 0.00 | AF49: =SUM(Gosforth:Ermelo!AF49) -> 0.00 | AG49: =SUM(Gosforth:Ermelo!AG49) -> 0.00 | AH49: =SUM(Gosforth:Ermelo!AH49) -> 0.00 | AI49: =SUM(Gosforth:Ermelo!AI49) -> 0.00 | AJ49: =SUM(Gosforth:Ermelo!AJ49) -> 0.00 | AK49: =SUM(Gosforth:Ermelo!AK49) -> 0.00 | AL49: =SUM(Gosforth:Ermelo!AL49) -> 0.00 | AM49: =SUM(Gosforth:Ermelo!AM49) -> 0.00 | AN49: =SUM(Gosforth:Ermelo!AN49) -> 0.00 | AO49: =SUM(Gosforth:Ermelo!AO49) -> 0.00 | AP49: =SUM(Gosforth:Ermelo!AP49) -> 0.00 | AQ49: =SUM(Gosforth:Ermelo!AQ49) -> 0.00 | AR49: =SUM(Gosforth:Ermelo!AR49) -> 0.00 | AS49: =SUM(Gosforth:Ermelo!AS49) -> 0.00 | AT49: =SUM(Gosforth:Ermelo!AT49) -> 0.00 | AU49: =SUM(Gosforth:Ermelo!AU49) -> 0.00 | AV49: =SUM(Gosforth:Ermelo!AV49) -> 0.00 | AW49: =SUM(Gosforth:Ermelo!AW49) -> 0.00 | AX49: =SUM(Gosforth:Ermelo!AX49) -> 0.00 | AY49: =SUM(Gosforth:Ermelo!AY49) -> 0.00 | AZ49: =SUM(Gosforth:Ermelo!AZ49) -> 0.00 | BA49: =SUM(Gosforth:Ermelo!BA49) -> 0.00 | BB49: =SUM(Gosforth:Ermelo!BB49) -> 0.00 | BC49: =SUM(Gosforth:Ermelo!BC49) -> 0.00 | BD49: =SUM(Gosforth:Ermelo!BD49) -> 0.00 | BE49: =SUM(Gosforth:Ermelo!BE49) -> 0.00 | BF49: =SUM(Gosforth:Ermelo!BF49) -> 0.00 | BG49: =SUM(Gosforth:Ermelo!BG49) -> 0.00 | BH49: =SUM(Gosforth:Ermelo!BH49) -> 0.00 | BI49: =SUM(Gosforth:Ermelo!BI49) -> 0.00 | BJ49: =SUM(Gosforth:Ermelo!BJ49) -> 0.00 | BK49: =SUM(Gosforth:Ermelo!BK49) -> 0.00 | BL49: =SUM(Gosforth:Ermelo!BL49) -> 0.00 | BM49: =SUM(Gosforth:Ermelo!BM49) -> 0.00 | BN49: =SUM(Gosforth:Ermelo!BN49) -> 0.00 | BO49: =SUM(Gosforth:Ermelo!BO49) -> 0.00 | BP49: =SUM(Gosforth:Ermelo!BP49) -> 0.00 | BQ49: =SUM(Gosforth:Ermelo!BQ49) -> 0.00 | BR49: =SUM(Gosforth:Ermelo!BR49) -> 0.00 | BS49: =SUM(Gosforth:Ermelo!BS49) -> 0.00 | BT49: =SUM(Gosforth:Ermelo!BT49) -> 0.00 | BU49: =SUM(Gosforth:Ermelo!BU49) -> 0.00 | BV49: =SUM(Gosforth:Ermelo!BV49) -> 0.00 | BW49: =SUM(Gosforth:Ermelo!BW49) -> 0.00 | BX49: =SUM(Gosforth:Ermelo!BX49) -> 0.00 | BY49: =SUM(Gosforth:Ermelo!BY49) -> 0.00 | BZ49: =SUM(Gosforth:Ermelo!BZ49) -> 0.00 | CA49: =SUM(Gosforth:Ermelo!CA49) -> 0.00 | CB49: =SUM(Gosforth:Ermelo!CB49) -> 0.00 | CC49: =SUM(Gosforth:Ermelo!CC49) -> 0.00 | CD49: .
B50: A-1016 | C50: Mentoring Targeted Enterprise (New Entrant-Developing Operator) | F50: =(Gosforth!G50+Dalpark!G50+Leandra!G50+Trichardt!G50+Ermelo!G50)=G50 -> TRUE | G50: 0.00 | H50: =SUM(Gosforth:Ermelo!H50) -> 0.00 | I50: =SUM(Gosforth:Ermelo!I50) -> 0.00 | J50: =SUM(Gosforth:Ermelo!J50) -> 0.00 | K50: =SUM(Gosforth:Ermelo!K50) -> 0.00 | L50: =SUM(Gosforth:Ermelo!L50) -> 0.00 | M50: =SUM(Gosforth:Ermelo!M50) -> 0.00 | N50: =SUM(Gosforth:Ermelo!N50) -> 0.00 | O50: =SUM(Gosforth:Ermelo!O50) -> 0.00 | P50: =SUM(Gosforth:Ermelo!P50) -> 0.00 | Q50: =SUM(Gosforth:Ermelo!Q50) -> 0.00 | R50: =SUM(Gosforth:Ermelo!R50) -> 0.00 | S50: =SUM(Gosforth:Ermelo!S50) -> 0.00 | T50: =SUM(Gosforth:Ermelo!T50) -> 0.00 | U50: =SUM(Gosforth:Ermelo!U50) -> 0.00 | V50: =SUM(Gosforth:Ermelo!V50) -> 0.00 | W50: =SUM(Gosforth:Ermelo!W50) -> 0.00 | X50: =SUM(Gosforth:Ermelo!X50) -> 0.00 | Y50: =SUM(Gosforth:Ermelo!Y50) -> 0.00 | Z50: =SUM(Gosforth:Ermelo!Z50) -> 0.00 | AA50: =SUM(Gosforth:Ermelo!AA50) -> 0.00 | AB50: =SUM(Gosforth:Ermelo!AB50) -> 0.00 | AC50: =SUM(Gosforth:Ermelo!AC50) -> 0.00 | AD50: =SUM(Gosforth:Ermelo!AD50) -> 0.00 | AE50: =SUM(Gosforth:Ermelo!AE50) -> 0.00 | AF50: =SUM(Gosforth:Ermelo!AF50) -> 0.00 | AG50: =SUM(Gosforth:Ermelo!AG50) -> 0.00 | AH50: =SUM(Gosforth:Ermelo!AH50) -> 0.00 | AI50: =SUM(Gosforth:Ermelo!AI50) -> 0.00 | AJ50: =SUM(Gosforth:Ermelo!AJ50) -> 0.00 | AK50: =SUM(Gosforth:Ermelo!AK50) -> 0.00 | AL50: =SUM(Gosforth:Ermelo!AL50) -> 0.00 | AM50: =SUM(Gosforth:Ermelo!AM50) -> 0.00 | AN50: =SUM(Gosforth:Ermelo!AN50) -> 0.00 | AO50: =SUM(Gosforth:Ermelo!AO50) -> 0.00 | AP50: =SUM(Gosforth:Ermelo!AP50) -> 0.00 | AQ50: =SUM(Gosforth:Ermelo!AQ50) -> 0.00 | AR50: =SUM(Gosforth:Ermelo!AR50) -> 0.00 | AS50: =SUM(Gosforth:Ermelo!AS50) -> 0.00 | AT50: =SUM(Gosforth:Ermelo!AT50) -> 0.00 | AU50: =SUM(Gosforth:Ermelo!AU50) -> 0.00 | AV50: =SUM(Gosforth:Ermelo!AV50) -> 0.00 | AW50: =SUM(Gosforth:Ermelo!AW50) -> 0.00 | AX50: =SUM(Gosforth:Ermelo!AX50) -> 0.00 | AY50: =SUM(Gosforth:Ermelo!AY50) -> 0.00 | AZ50: =SUM(Gosforth:Ermelo!AZ50) -> 0.00 | BA50: =SUM(Gosforth:Ermelo!BA50) -> 0.00 | BB50: =SUM(Gosforth:Ermelo!BB50) -> 0.00 | BC50: =SUM(Gosforth:Ermelo!BC50) -> 0.00 | BD50: =SUM(Gosforth:Ermelo!BD50) -> 0.00 | BE50: =SUM(Gosforth:Ermelo!BE50) -> 0.00 | BF50: =SUM(Gosforth:Ermelo!BF50) -> 0.00 | BG50: =SUM(Gosforth:Ermelo!BG50) -> 0.00 | BH50: =SUM(Gosforth:Ermelo!BH50) -> 0.00 | BI50: =SUM(Gosforth:Ermelo!BI50) -> 0.00 | BJ50: =SUM(Gosforth:Ermelo!BJ50) -> 0.00 | BK50: =SUM(Gosforth:Ermelo!BK50) -> 0.00 | BL50: =SUM(Gosforth:Ermelo!BL50) -> 0.00 | BM50: =SUM(Gosforth:Ermelo!BM50) -> 0.00 | BN50: =SUM(Gosforth:Ermelo!BN50) -> 0.00 | BO50: =SUM(Gosforth:Ermelo!BO50) -> 0.00 | BP50: =SUM(Gosforth:Ermelo!BP50) -> 0.00 | BQ50: =SUM(Gosforth:Ermelo!BQ50) -> 0.00 | BR50: =SUM(Gosforth:Ermelo!BR50) -> 0.00 | BS50: =SUM(Gosforth:Ermelo!BS50) -> 0.00 | BT50: =SUM(Gosforth:Ermelo!BT50) -> 0.00 | BU50: =SUM(Gosforth:Ermelo!BU50) -> 0.00 | BV50: =SUM(Gosforth:Ermelo!BV50) -> 0.00 | BW50: =SUM(Gosforth:Ermelo!BW50) -> 0.00 | BX50: =SUM(Gosforth:Ermelo!BX50) -> 0.00 | BY50: =SUM(Gosforth:Ermelo!BY50) -> 0.00 | BZ50: =SUM(Gosforth:Ermelo!BZ50) -> 0.00 | CA50: =SUM(Gosforth:Ermelo!CA50) -> 0.00 | CB50: =SUM(Gosforth:Ermelo!CB50) -> 0.00 | CC50: =SUM(Gosforth:Ermelo!CC50) -> 0.00 | CD50: .
B51: A-1016a | C51: Identify and train Targeted Enterprise (New Entrant-Developing Operator) | D51: Month | E51: =SUM(Gosforth:Ermelo!E51) -> 60 | F51: =(Gosforth!G51+Dalpark!G51+Leandra!G51+Trichardt!G51+Ermelo!G51)=G51 -> TRUE | G51: 0.00 | H51: =SUM(Gosforth:Ermelo!H51) -> 0.00 | I51: =SUM(Gosforth:Ermelo!I51) -> 0.00 | J51: =SUM(Gosforth:Ermelo!J51) -> 0.00 | K51: =SUM(Gosforth:Ermelo!K51) -> 0.00 | L51: =SUM(Gosforth:Ermelo!L51) -> 0.00 | M51: =SUM(Gosforth:Ermelo!M51) -> 0.00 | N51: =SUM(Gosforth:Ermelo!N51) -> 0.00 | O51: =SUM(Gosforth:Ermelo!O51) -> 0.00 | P51: =SUM(Gosforth:Ermelo!P51) -> 0.00 | Q51: =SUM(Gosforth:Ermelo!Q51) -> 0.00 | R51: =SUM(Gosforth:Ermelo!R51) -> 0.00 | S51: =SUM(Gosforth:Ermelo!S51) -> 0.00 | T51: =SUM(Gosforth:Ermelo!T51) -> 0.00 | U51: =SUM(Gosforth:Ermelo!U51) -> 0.00 | V51: =SUM(Gosforth:Ermelo!V51) -> 0.00 | W51: =SUM(Gosforth:Ermelo!W51) -> 0.00 | X51: =SUM(Gosforth:Ermelo!X51) -> 0.00 | Y51: =SUM(Gosforth:Ermelo!Y51) -> 0.00 | Z51: =SUM(Gosforth:Ermelo!Z51) -> 0.00 | AA51: =SUM(Gosforth:Ermelo!AA51) -> 0.00 | AB51: =SUM(Gosforth:Ermelo!AB51) -> 0.00 | AC51: =SUM(Gosforth:Ermelo!AC51) -> 0.00 | AD51: =SUM(Gosforth:Ermelo!AD51) -> 0.00 | AE51: =SUM(Gosforth:Ermelo!AE51) -> 0.00 | AF51: =SUM(Gosforth:Ermelo!AF51) -> 0.00 | AG51: =SUM(Gosforth:Ermelo!AG51) -> 0.00 | AH51: =SUM(Gosforth:Ermelo!AH51) -> 0.00 | AI51: =SUM(Gosforth:Ermelo!AI51) -> 0.00 | AJ51: =SUM(Gosforth:Ermelo!AJ51) -> 0.00 | AK51: =SUM(Gosforth:Ermelo!AK51) -> 0.00 | AL51: =SUM(Gosforth:Ermelo!AL51) -> 0.00 | AM51: =SUM(Gosforth:Ermelo!AM51) -> 0.00 | AN51: =SUM(Gosforth:Ermelo!AN51) -> 0.00 | AO51: =SUM(Gosforth:Ermelo!AO51) -> 0.00 | AP51: =SUM(Gosforth:Ermelo!AP51) -> 0.00 | AQ51: =SUM(Gosforth:Ermelo!AQ51) -> 0.00 | AR51: =SUM(Gosforth:Ermelo!AR51) -> 0.00 | AS51: =SUM(Gosforth:Ermelo!AS51) -> 0.00 | AT51: =SUM(Gosforth:Ermelo!AT51) -> 0.00 | AU51: =SUM(Gosforth:Ermelo!AU51) -> 0.00 | AV51: =SUM(Gosforth:Ermelo!AV51) -> 0.00 | AW51: =SUM(Gosforth:Ermelo!AW51) -> 0.00 | AX51: =SUM(Gosforth:Ermelo!AX51) -> 0.00 | AY51: =SUM(Gosforth:Ermelo!AY51) -> 0.00 | AZ51: =SUM(Gosforth:Ermelo!AZ51) -> 0.00 | BA51: =SUM(Gosforth:Ermelo!BA51) -> 0.00 | BB51: =SUM(Gosforth:Ermelo!BB51) -> 0.00 | BC51: =SUM(Gosforth:Ermelo!BC51) -> 0.00 | BD51: =SUM(Gosforth:Ermelo!BD51) -> 0.00 | BE51: =SUM(Gosforth:Ermelo!BE51) -> 0.00 | BF51: =SUM(Gosforth:Ermelo!BF51) -> 0.00 | BG51: =SUM(Gosforth:Ermelo!BG51) -> 0.00 | BH51: =SUM(Gosforth:Ermelo!BH51) -> 0.00 | BI51: =SUM(Gosforth:Ermelo!BI51) -> 0.00 | BJ51: =SUM(Gosforth:Ermelo!BJ51) -> 0.00 | BK51: =SUM(Gosforth:Ermelo!BK51) -> 0.00 | BL51: =SUM(Gosforth:Ermelo!BL51) -> 0.00 | BM51: =SUM(Gosforth:Ermelo!BM51) -> 0.00 | BN51: =SUM(Gosforth:Ermelo!BN51) -> 0.00 | BO51: =SUM(Gosforth:Ermelo!BO51) -> 0.00 | BP51: =SUM(Gosforth:Ermelo!BP51) -> 0.00 | BQ51: =SUM(Gosforth:Ermelo!BQ51) -> 0.00 | BR51: =SUM(Gosforth:Ermelo!BR51) -> 0.00 | BS51: =SUM(Gosforth:Ermelo!BS51) -> 0.00 | BT51: =SUM(Gosforth:Ermelo!BT51) -> 0.00 | BU51: =SUM(Gosforth:Ermelo!BU51) -> 0.00 | BV51: =SUM(Gosforth:Ermelo!BV51) -> 0.00 | BW51: =SUM(Gosforth:Ermelo!BW51) -> 0.00 | BX51: =SUM(Gosforth:Ermelo!BX51) -> 0.00 | BY51: =SUM(Gosforth:Ermelo!BY51) -> 0.00 | BZ51: =SUM(Gosforth:Ermelo!BZ51) -> 0.00 | CA51: =SUM(Gosforth:Ermelo!CA51) -> 0.00 | CB51: =SUM(Gosforth:Ermelo!CB51) -> 0.00 | CC51: =SUM(Gosforth:Ermelo!CC51) -> 0.00 | CD51: .
B52: A-1016b | C52: Oversee of Targeted Enterprise (New Entrant-Developing Operator) management of Toll Plaza | D52: Month | E52: =SUM(Gosforth:Ermelo!E52) -> 300 | F52: =(Gosforth!G52+Dalpark!G52+Leandra!G52+Trichardt!G52+Ermelo!G52)=G52 -> TRUE | G52: 0.00 | H52: =SUM(Gosforth:Ermelo!H52) -> 0.00 | I52: =SUM(Gosforth:Ermelo!I52) -> 0.00 | J52: =SUM(Gosforth:Ermelo!J52) -> 0.00 | K52: =SUM(Gosforth:Ermelo!K52) -> 0.00 | L52: =SUM(Gosforth:Ermelo!L52) -> 0.00 | M52: =SUM(Gosforth:Ermelo!M52) -> 0.00 | N52: =SUM(Gosforth:Ermelo!N52) -> 0.00 | O52: =SUM(Gosforth:Ermelo!O52) -> 0.00 | P52: =SUM(Gosforth:Ermelo!P52) -> 0.00 | Q52: =SUM(Gosforth:Ermelo!Q52) -> 0.00 | R52: =SUM(Gosforth:Ermelo!R52) -> 0.00 | S52: =SUM(Gosforth:Ermelo!S52) -> 0.00 | T52: =SUM(Gosforth:Ermelo!T52) -> 0.00 | U52: =SUM(Gosforth:Ermelo!U52) -> 0.00 | V52: =SUM(Gosforth:Ermelo!V52) -> 0.00 | W52: =SUM(Gosforth:Ermelo!W52) -> 0.00 | X52: =SUM(Gosforth:Ermelo!X52) -> 0.00 | Y52: =SUM(Gosforth:Ermelo!Y52) -> 0.00 | Z52: =SUM(Gosforth:Ermelo!Z52) -> 0.00 | AA52: =SUM(Gosforth:Ermelo!AA52) -> 0.00 | AB52: =SUM(Gosforth:Ermelo!AB52) -> 0.00 | AC52: =SUM(Gosforth:Ermelo!AC52) -> 0.00 | AD52: =SUM(Gosforth:Ermelo!AD52) -> 0.00 | AE52: =SUM(Gosforth:Ermelo!AE52) -> 0.00 | AF52: =SUM(Gosforth:Ermelo!AF52) -> 0.00 | AG52: =SUM(Gosforth:Ermelo!AG52) -> 0.00 | AH52: =SUM(Gosforth:Ermelo!AH52) -> 0.00 | AI52: =SUM(Gosforth:Ermelo!AI52) -> 0.00 | AJ52: =SUM(Gosforth:Ermelo!AJ52) -> 0.00 | AK52: =SUM(Gosforth:Ermelo!AK52) -> 0.00 | AL52: =SUM(Gosforth:Ermelo!AL52) -> 0.00 | AM52: =SUM(Gosforth:Ermelo!AM52) -> 0.00 | AN52: =SUM(Gosforth:Ermelo!AN52) -> 0.00 | AO52: =SUM(Gosforth:Ermelo!AO52) -> 0.00 | AP52: =SUM(Gosforth:Ermelo!AP52) -> 0.00 | AQ52: =SUM(Gosforth:Ermelo!AQ52) -> 0.00 | AR52: =SUM(Gosforth:Ermelo!AR52) -> 0.00 | AS52: =SUM(Gosforth:Ermelo!AS52) -> 0.00 | AT52: =SUM(Gosforth:Ermelo!AT52) -> 0.00 | AU52: =SUM(Gosforth:Ermelo!AU52) -> 0.00 | AV52: =SUM(Gosforth:Ermelo!AV52) -> 0.00 | AW52: =SUM(Gosforth:Ermelo!AW52) -> 0.00 | AX52: =SUM(Gosforth:Ermelo!AX52) -> 0.00 | AY52: =SUM(Gosforth:Ermelo!AY52) -> 0.00 | AZ52: =SUM(Gosforth:Ermelo!AZ52) -> 0.00 | BA52: =SUM(Gosforth:Ermelo!BA52) -> 0.00 | BB52: =SUM(Gosforth:Ermelo!BB52) -> 0.00 | BC52: =SUM(Gosforth:Ermelo!BC52) -> 0.00 | BD52: =SUM(Gosforth:Ermelo!BD52) -> 0.00 | BE52: =SUM(Gosforth:Ermelo!BE52) -> 0.00 | BF52: =SUM(Gosforth:Ermelo!BF52) -> 0.00 | BG52: =SUM(Gosforth:Ermelo!BG52) -> 0.00 | BH52: =SUM(Gosforth:Ermelo!BH52) -> 0.00 | BI52: =SUM(Gosforth:Ermelo!BI52) -> 0.00 | BJ52: =SUM(Gosforth:Ermelo!BJ52) -> 0.00 | BK52: =SUM(Gosforth:Ermelo!BK52) -> 0.00 | BL52: =SUM(Gosforth:Ermelo!BL52) -> 0.00 | BM52: =SUM(Gosforth:Ermelo!BM52) -> 0.00 | BN52: =SUM(Gosforth:Ermelo!BN52) -> 0.00 | BO52: =SUM(Gosforth:Ermelo!BO52) -> 0.00 | BP52: =SUM(Gosforth:Ermelo!BP52) -> 0.00 | BQ52: =SUM(Gosforth:Ermelo!BQ52) -> 0.00 | BR52: =SUM(Gosforth:Ermelo!BR52) -> 0.00 | BS52: =SUM(Gosforth:Ermelo!BS52) -> 0.00 | BT52: =SUM(Gosforth:Ermelo!BT52) -> 0.00 | BU52: =SUM(Gosforth:Ermelo!BU52) -> 0.00 | BV52: =SUM(Gosforth:Ermelo!BV52) -> 0.00 | BW52: =SUM(Gosforth:Ermelo!BW52) -> 0.00 | BX52: =SUM(Gosforth:Ermelo!BX52) -> 0.00 | BY52: =SUM(Gosforth:Ermelo!BY52) -> 0.00 | BZ52: =SUM(Gosforth:Ermelo!BZ52) -> 0.00 | CA52: =SUM(Gosforth:Ermelo!CA52) -> 0.00 | CB52: =SUM(Gosforth:Ermelo!CB52) -> 0.00 | CC52: =SUM(Gosforth:Ermelo!CC52) -> 0.00 | CD52: .
B53: A-1017 | C53: Extra over costs for the supervision of the Nominated Subcontractor | D53: Month | E53: =SUM(Gosforth:Ermelo!E53) -> 360 | F53: =(Gosforth!G53+Dalpark!G53+Leandra!G53+Trichardt!G53+Ermelo!G53)=G53 -> TRUE | G53: 0.00 | H53: =SUM(Gosforth:Ermelo!H53) -> 0.00 | I53: =SUM(Gosforth:Ermelo!I53) -> 0.00 | J53: =SUM(Gosforth:Ermelo!J53) -> 0.00 | K53: =SUM(Gosforth:Ermelo!K53) -> 0.00 | L53: =SUM(Gosforth:Ermelo!L53) -> 0.00 | M53: =SUM(Gosforth:Ermelo!M53) -> 0.00 | N53: =SUM(Gosforth:Ermelo!N53) -> 0.00 | O53: =SUM(Gosforth:Ermelo!O53) -> 0.00 | P53: =SUM(Gosforth:Ermelo!P53) -> 0.00 | Q53: =SUM(Gosforth:Ermelo!Q53) -> 0.00 | R53: =SUM(Gosforth:Ermelo!R53) -> 0.00 | S53: =SUM(Gosforth:Ermelo!S53) -> 0.00 | T53: =SUM(Gosforth:Ermelo!T53) -> 0.00 | U53: =SUM(Gosforth:Ermelo!U53) -> 0.00 | V53: =SUM(Gosforth:Ermelo!V53) -> 0.00 | W53: =SUM(Gosforth:Ermelo!W53) -> 0.00 | X53: =SUM(Gosforth:Ermelo!X53) -> 0.00 | Y53: =SUM(Gosforth:Ermelo!Y53) -> 0.00 | Z53: =SUM(Gosforth:Ermelo!Z53) -> 0.00 | AA53: =SUM(Gosforth:Ermelo!AA53) -> 0.00 | AB53: =SUM(Gosforth:Ermelo!AB53) -> 0.00 | AC53: =SUM(Gosforth:Ermelo!AC53) -> 0.00 | AD53: =SUM(Gosforth:Ermelo!AD53) -> 0.00 | AE53: =SUM(Gosforth:Ermelo!AE53) -> 0.00 | AF53: =SUM(Gosforth:Ermelo!AF53) -> 0.00 | AG53: =SUM(Gosforth:Ermelo!AG53) -> 0.00 | AH53: =SUM(Gosforth:Ermelo!AH53) -> 0.00 | AI53: =SUM(Gosforth:Ermelo!AI53) -> 0.00 | AJ53: =SUM(Gosforth:Ermelo!AJ53) -> 0.00 | AK53: =SUM(Gosforth:Ermelo!AK53) -> 0.00 | AL53: =SUM(Gosforth:Ermelo!AL53) -> 0.00 | AM53: =SUM(Gosforth:Ermelo!AM53) -> 0.00 | AN53: =SUM(Gosforth:Ermelo!AN53) -> 0.00 | AO53: =SUM(Gosforth:Ermelo!AO53) -> 0.00 | AP53: =SUM(Gosforth:Ermelo!AP53) -> 0.00 | AQ53: =SUM(Gosforth:Ermelo!AQ53) -> 0.00 | AR53: =SUM(Gosforth:Ermelo!AR53) -> 0.00 | AS53: =SUM(Gosforth:Ermelo!AS53) -> 0.00 | AT53: =SUM(Gosforth:Ermelo!AT53) -> 0.00 | AU53: =SUM(Gosforth:Ermelo!AU53) -> 0.00 | AV53: =SUM(Gosforth:Ermelo!AV53) -> 0.00 | AW53: =SUM(Gosforth:Ermelo!AW53) -> 0.00 | AX53: =SUM(Gosforth:Ermelo!AX53) -> 0.00 | AY53: =SUM(Gosforth:Ermelo!AY53) -> 0.00 | AZ53: =SUM(Gosforth:Ermelo!AZ53) -> 0.00 | BA53: =SUM(Gosforth:Ermelo!BA53) -> 0.00 | BB53: =SUM(Gosforth:Ermelo!BB53) -> 0.00 | BC53: =SUM(Gosforth:Ermelo!BC53) -> 0.00 | BD53: =SUM(Gosforth:Ermelo!BD53) -> 0.00 | BE53: =SUM(Gosforth:Ermelo!BE53) -> 0.00 | BF53: =SUM(Gosforth:Ermelo!BF53) -> 0.00 | BG53: =SUM(Gosforth:Ermelo!BG53) -> 0.00 | BH53: =SUM(Gosforth:Ermelo!BH53) -> 0.00 | BI53: =SUM(Gosforth:Ermelo!BI53) -> 0.00 | BJ53: =SUM(Gosforth:Ermelo!BJ53) -> 0.00 | BK53: =SUM(Gosforth:Ermelo!BK53) -> 0.00 | BL53: =SUM(Gosforth:Ermelo!BL53) -> 0.00 | BM53: =SUM(Gosforth:Ermelo!BM53) -> 0.00 | BN53: =SUM(Gosforth:Ermelo!BN53) -> 0.00 | BO53: =SUM(Gosforth:Ermelo!BO53) -> 0.00 | BP53: =SUM(Gosforth:Ermelo!BP53) -> 0.00 | BQ53: =SUM(Gosforth:Ermelo!BQ53) -> 0.00 | BR53: =SUM(Gosforth:Ermelo!BR53) -> 0.00 | BS53: =SUM(Gosforth:Ermelo!BS53) -> 0.00 | BT53: =SUM(Gosforth:Ermelo!BT53) -> 0.00 | BU53: =SUM(Gosforth:Ermelo!BU53) -> 0.00 | BV53: =SUM(Gosforth:Ermelo!BV53) -> 0.00 | BW53: =SUM(Gosforth:Ermelo!BW53) -> 0.00 | BX53: =SUM(Gosforth:Ermelo!BX53) -> 0.00 | BY53: =SUM(Gosforth:Ermelo!BY53) -> 0.00 | BZ53: =SUM(Gosforth:Ermelo!BZ53) -> 0.00 | CA53: =SUM(Gosforth:Ermelo!CA53) -> 0.00 | CB53: =SUM(Gosforth:Ermelo!CB53) -> 0.00 | CC53: =SUM(Gosforth:Ermelo!CC53) -> 0.00 | CD53: .
B54: A-2000 | C54: Provisioning of Staff and Labour | F54: =(Gosforth!G54+Dalpark!G54+Leandra!G54+Trichardt!G54+Ermelo!G54)=G54 -> TRUE | G54: =SUM(G55:G91) -> 0.00 | H54: =SUM(H55:H91) -> 0.00 | I54: =SUM(I55:I91) -> 0.00 | J54: 0.00 | K54: 0.00 | L54: 0.00 | M54: 0.00 | N54: 0.00 | O54: 0.00 | P54: 0.00 | Q54: 0.00 | R54: 0.00 | S54: 0.00 | T54: 0.00 | U54: 0.00 | V54: 0.00 | W54: 0.00 | X54: 0.00 | Y54: 0.00 | Z54: 0.00 | AA54: 0.00 | AB54: 0.00 | AC54: 0.00 | AD54: 0.00 | AE54: 0.00 | AF54: 0.00 | AG54: 0.00 | AH54: 0.00 | AI54: 0.00 | AJ54: 0.00 | AK54: 0.00 | AL54: 0.00 | AM54: 0.00 | AN54: 0.00 | AO54: 0.00 | AP54: 0.00 | AQ54: 0.00 | AR54: 0.00 | AS54: 0.00 | AT54: 0.00 | AU54: 0.00 | AV54: 0.00 | AW54: 0.00 | AX54: 0.00 | AY54: 0.00 | AZ54: 0.00 | BA54: 0.00 | BB54: 0.00 | BC54: 0.00 | BD54: 0.00 | BE54: 0.00 | BF54: 0.00 | BG54: 0.00 | BH54: 0.00 | BI54: 0.00 | BJ54: 0.00 | BK54: 0.00 | BL54: 0.00 | BM54: 0.00 | BN54: 0.00 | BO54: 0.00 | BP54: 0.00 | BQ54: 0.00 | BR54: 0.00 | BS54: 0.00 | BT54: 0.00 | BU54: =SUM(BU55:BU91) -> 0.00 | BV54: 0.00 | BW54: 0.00 | BX54: 0.00 | BY54: 0.00 | BZ54: 0.00 | CA54: 0.00 | CB54: 0.00 | CC54: 0.00 | CD54: .
B55: A-2001 | C55: Toll Collectors | D55: Month | E55: =SUM(Gosforth:Ermelo!E55) -> 360 | F55: =(Gosforth!G55+Dalpark!G55+Leandra!G55+Trichardt!G55+Ermelo!G55)=G55 -> TRUE | G55: 0.00 | H55: =SUM(Gosforth:Ermelo!H55) -> 0.00 | I55: =SUM(Gosforth:Ermelo!I55) -> 0.00 | J55: =SUM(Gosforth:Ermelo!J55) -> 0.00 | K55: =SUM(Gosforth:Ermelo!K55) -> 0.00 | L55: =SUM(Gosforth:Ermelo!L55) -> 0.00 | M55: =SUM(Gosforth:Ermelo!M55) -> 0.00 | N55: =SUM(Gosforth:Ermelo!N55) -> 0.00 | O55: =SUM(Gosforth:Ermelo!O55) -> 0.00 | P55: =SUM(Gosforth:Ermelo!P55) -> 0.00 | Q55: =SUM(Gosforth:Ermelo!Q55) -> 0.00 | R55: =SUM(Gosforth:Ermelo!R55) -> 0.00 | S55: =SUM(Gosforth:Ermelo!S55) -> 0.00 | T55: =SUM(Gosforth:Ermelo!T55) -> 0.00 | U55: =SUM(Gosforth:Ermelo!U55) -> 0.00 | V55: =SUM(Gosforth:Ermelo!V55) -> 0.00 | W55: =SUM(Gosforth:Ermelo!W55) -> 0.00 | X55: =SUM(Gosforth:Ermelo!X55) -> 0.00 | Y55: =SUM(Gosforth:Ermelo!Y55) -> 0.00 | Z55: =SUM(Gosforth:Ermelo!Z55) -> 0.00 | AA55: =SUM(Gosforth:Ermelo!AA55) -> 0.00 | AB55: =SUM(Gosforth:Ermelo!AB55) -> 0.00 | AC55: =SUM(Gosforth:Ermelo!AC55) -> 0.00 | AD55: =SUM(Gosforth:Ermelo!AD55) -> 0.00 | AE55: =SUM(Gosforth:Ermelo!AE55) -> 0.00 | AF55: =SUM(Gosforth:Ermelo!AF55) -> 0.00 | AG55: =SUM(Gosforth:Ermelo!AG55) -> 0.00 | AH55: =SUM(Gosforth:Ermelo!AH55) -> 0.00 | AI55: =SUM(Gosforth:Ermelo!AI55) -> 0.00 | AJ55: =SUM(Gosforth:Ermelo!AJ55) -> 0.00 | AK55: =SUM(Gosforth:Ermelo!AK55) -> 0.00 | AL55: =SUM(Gosforth:Ermelo!AL55) -> 0.00 | AM55: =SUM(Gosforth:Ermelo!AM55) -> 0.00 | AN55: =SUM(Gosforth:Ermelo!AN55) -> 0.00 | AO55: =SUM(Gosforth:Ermelo!AO55) -> 0.00 | AP55: =SUM(Gosforth:Ermelo!AP55) -> 0.00 | AQ55: =SUM(Gosforth:Ermelo!AQ55) -> 0.00 | AR55: =SUM(Gosforth:Ermelo!AR55) -> 0.00 | AS55: =SUM(Gosforth:Ermelo!AS55) -> 0.00 | AT55: =SUM(Gosforth:Ermelo!AT55) -> 0.00 | AU55: =SUM(Gosforth:Ermelo!AU55) -> 0.00 | AV55: =SUM(Gosforth:Ermelo!AV55) -> 0.00 | AW55: =SUM(Gosforth:Ermelo!AW55) -> 0.00 | AX55: =SUM(Gosforth:Ermelo!AX55) -> 0.00 | AY55: =SUM(Gosforth:Ermelo!AY55) -> 0.00 | AZ55: =SUM(Gosforth:Ermelo!AZ55) -> 0.00 | BA55: =SUM(Gosforth:Ermelo!BA55) -> 0.00 | BB55: =SUM(Gosforth:Ermelo!BB55) -> 0.00 | BC55: =SUM(Gosforth:Ermelo!BC55) -> 0.00 | BD55: =SUM(Gosforth:Ermelo!BD55) -> 0.00 | BE55: =SUM(Gosforth:Ermelo!BE55) -> 0.00 | BF55: =SUM(Gosforth:Ermelo!BF55) -> 0.00 | BG55: =SUM(Gosforth:Ermelo!BG55) -> 0.00 | BH55: =SUM(Gosforth:Ermelo!BH55) -> 0.00 | BI55: =SUM(Gosforth:Ermelo!BI55) -> 0.00 | BJ55: =SUM(Gosforth:Ermelo!BJ55) -> 0.00 | BK55: =SUM(Gosforth:Ermelo!BK55) -> 0.00 | BL55: =SUM(Gosforth:Ermelo!BL55) -> 0.00 | BM55: =SUM(Gosforth:Ermelo!BM55) -> 0.00 | BN55: =SUM(Gosforth:Ermelo!BN55) -> 0.00 | BO55: =SUM(Gosforth:Ermelo!BO55) -> 0.00 | BP55: =SUM(Gosforth:Ermelo!BP55) -> 0.00 | BQ55: =SUM(Gosforth:Ermelo!BQ55) -> 0.00 | BR55: =SUM(Gosforth:Ermelo!BR55) -> 0.00 | BS55: =SUM(Gosforth:Ermelo!BS55) -> 0.00 | BT55: =SUM(Gosforth:Ermelo!BT55) -> 0.00 | BU55: =SUM(Gosforth:Ermelo!BU55) -> 0.00 | BV55: =SUM(Gosforth:Ermelo!BV55) -> 0.00 | BW55: =SUM(Gosforth:Ermelo!BW55) -> 0.00 | BX55: =SUM(Gosforth:Ermelo!BX55) -> 0.00 | BY55: =SUM(Gosforth:Ermelo!BY55) -> 0.00 | BZ55: =SUM(Gosforth:Ermelo!BZ55) -> 0.00 | CA55: =SUM(Gosforth:Ermelo!CA55) -> 0.00 | CB55: =SUM(Gosforth:Ermelo!CB55) -> 0.00 | CC55: =SUM(Gosforth:Ermelo!CC55) -> 0.00 | CD55: .
B56: A-2002 | C56: Senior Toll Collectors | D56: Month | E56: =SUM(Gosforth:Ermelo!E56) -> 360 | F56: =(Gosforth!G56+Dalpark!G56+Leandra!G56+Trichardt!G56+Ermelo!G56)=G56 -> TRUE | G56: 0.00 | H56: =SUM(Gosforth:Ermelo!H56) -> 0.00 | I56: =SUM(Gosforth:Ermelo!I56) -> 0.00 | J56: =SUM(Gosforth:Ermelo!J56) -> 0.00 | K56: =SUM(Gosforth:Ermelo!K56) -> 0.00 | L56: =SUM(Gosforth:Ermelo!L56) -> 0.00 | M56: =SUM(Gosforth:Ermelo!M56) -> 0.00 | N56: =SUM(Gosforth:Ermelo!N56) -> 0.00 | O56: =SUM(Gosforth:Ermelo!O56) -> 0.00 | P56: =SUM(Gosforth:Ermelo!P56) -> 0.00 | Q56: =SUM(Gosforth:Ermelo!Q56) -> 0.00 | R56: =SUM(Gosforth:Ermelo!R56) -> 0.00 | S56: =SUM(Gosforth:Ermelo!S56) -> 0.00 | T56: =SUM(Gosforth:Ermelo!T56) -> 0.00 | U56: =SUM(Gosforth:Ermelo!U56) -> 0.00 | V56: =SUM(Gosforth:Ermelo!V56) -> 0.00 | W56: =SUM(Gosforth:Ermelo!W56) -> 0.00 | X56: =SUM(Gosforth:Ermelo!X56) -> 0.00 | Y56: =SUM(Gosforth:Ermelo!Y56) -> 0.00 | Z56: =SUM(Gosforth:Ermelo!Z56) -> 0.00 | AA56: =SUM(Gosforth:Ermelo!AA56) -> 0.00 | AB56: =SUM(Gosforth:Ermelo!AB56) -> 0.00 | AC56: =SUM(Gosforth:Ermelo!AC56) -> 0.00 | AD56: =SUM(Gosforth:Ermelo!AD56) -> 0.00 | AE56: =SUM(Gosforth:Ermelo!AE56) -> 0.00 | AF56: =SUM(Gosforth:Ermelo!AF56) -> 0.00 | AG56: =SUM(Gosforth:Ermelo!AG56) -> 0.00 | AH56: =SUM(Gosforth:Ermelo!AH56) -> 0.00 | AI56: =SUM(Gosforth:Ermelo!AI56) -> 0.00 | AJ56: =SUM(Gosforth:Ermelo!AJ56) -> 0.00 | AK56: =SUM(Gosforth:Ermelo!AK56) -> 0.00 | AL56: =SUM(Gosforth:Ermelo!AL56) -> 0.00 | AM56: =SUM(Gosforth:Ermelo!AM56) -> 0.00 | AN56: =SUM(Gosforth:Ermelo!AN56) -> 0.00 | AO56: =SUM(Gosforth:Ermelo!AO56) -> 0.00 | AP56: =SUM(Gosforth:Ermelo!AP56) -> 0.00 | AQ56: =SUM(Gosforth:Ermelo!AQ56) -> 0.00 | AR56: =SUM(Gosforth:Ermelo!AR56) -> 0.00 | AS56: =SUM(Gosforth:Ermelo!AS56) -> 0.00 | AT56: =SUM(Gosforth:Ermelo!AT56) -> 0.00 | AU56: =SUM(Gosforth:Ermelo!AU56) -> 0.00 | AV56: =SUM(Gosforth:Ermelo!AV56) -> 0.00 | AW56: =SUM(Gosforth:Ermelo!AW56) -> 0.00 | AX56: =SUM(Gosforth:Ermelo!AX56) -> 0.00 | AY56: =SUM(Gosforth:Ermelo!AY56) -> 0.00 | AZ56: =SUM(Gosforth:Ermelo!AZ56) -> 0.00 | BA56: =SUM(Gosforth:Ermelo!BA56) -> 0.00 | BB56: =SUM(Gosforth:Ermelo!BB56) -> 0.00 | BC56: =SUM(Gosforth:Ermelo!BC56) -> 0.00 | BD56: =SUM(Gosforth:Ermelo!BD56) -> 0.00 | BE56: =SUM(Gosforth:Ermelo!BE56) -> 0.00 | BF56: =SUM(Gosforth:Ermelo!BF56) -> 0.00 | BG56: =SUM(Gosforth:Ermelo!BG56) -> 0.00 | BH56: =SUM(Gosforth:Ermelo!BH56) -> 0.00 | BI56: =SUM(Gosforth:Ermelo!BI56) -> 0.00 | BJ56: =SUM(Gosforth:Ermelo!BJ56) -> 0.00 | BK56: =SUM(Gosforth:Ermelo!BK56) -> 0.00 | BL56: =SUM(Gosforth:Ermelo!BL56) -> 0.00 | BM56: =SUM(Gosforth:Ermelo!BM56) -> 0.00 | BN56: =SUM(Gosforth:Ermelo!BN56) -> 0.00 | BO56: =SUM(Gosforth:Ermelo!BO56) -> 0.00 | BP56: =SUM(Gosforth:Ermelo!BP56) -> 0.00 | BQ56: =SUM(Gosforth:Ermelo!BQ56) -> 0.00 | BR56: =SUM(Gosforth:Ermelo!BR56) -> 0.00 | BS56: =SUM(Gosforth:Ermelo!BS56) -> 0.00 | BT56: =SUM(Gosforth:Ermelo!BT56) -> 0.00 | BU56: =SUM(Gosforth:Ermelo!BU56) -> 0.00 | BV56: =SUM(Gosforth:Ermelo!BV56) -> 0.00 | BW56: =SUM(Gosforth:Ermelo!BW56) -> 0.00 | BX56: =SUM(Gosforth:Ermelo!BX56) -> 0.00 | BY56: =SUM(Gosforth:Ermelo!BY56) -> 0.00 | BZ56: =SUM(Gosforth:Ermelo!BZ56) -> 0.00 | CA56: =SUM(Gosforth:Ermelo!CA56) -> 0.00 | CB56: =SUM(Gosforth:Ermelo!CB56) -> 0.00 | CC56: =SUM(Gosforth:Ermelo!CC56) -> 0.00 | CD56: .
B57: A-2003 | C57: Seasonal Toll Collectors | D57: Month | E57: =SUM(Gosforth:Ermelo!E57) -> 360 | F57: =(Gosforth!G57+Dalpark!G57+Leandra!G57+Trichardt!G57+Ermelo!G57)=G57 -> TRUE | G57: 0.00 | H57: =SUM(Gosforth:Ermelo!H57) -> 0.00 | I57: =SUM(Gosforth:Ermelo!I57) -> 0.00 | J57: =SUM(Gosforth:Ermelo!J57) -> 0.00 | K57: =SUM(Gosforth:Ermelo!K57) -> 0.00 | L57: =SUM(Gosforth:Ermelo!L57) -> 0.00 | M57: =SUM(Gosforth:Ermelo!M57) -> 0.00 | N57: =SUM(Gosforth:Ermelo!N57) -> 0.00 | O57: =SUM(Gosforth:Ermelo!O57) -> 0.00 | P57: =SUM(Gosforth:Ermelo!P57) -> 0.00 | Q57: =SUM(Gosforth:Ermelo!Q57) -> 0.00 | R57: =SUM(Gosforth:Ermelo!R57) -> 0.00 | S57: =SUM(Gosforth:Ermelo!S57) -> 0.00 | T57: =SUM(Gosforth:Ermelo!T57) -> 0.00 | U57: =SUM(Gosforth:Ermelo!U57) -> 0.00 | V57: =SUM(Gosforth:Ermelo!V57) -> 0.00 | W57: =SUM(Gosforth:Ermelo!W57) -> 0.00 | X57: =SUM(Gosforth:Ermelo!X57) -> 0.00 | Y57: =SUM(Gosforth:Ermelo!Y57) -> 0.00 | Z57: =SUM(Gosforth:Ermelo!Z57) -> 0.00 | AA57: =SUM(Gosforth:Ermelo!AA57) -> 0.00 | AB57: =SUM(Gosforth:Ermelo!AB57) -> 0.00 | AC57: =SUM(Gosforth:Ermelo!AC57) -> 0.00 | AD57: =SUM(Gosforth:Ermelo!AD57) -> 0.00 | AE57: =SUM(Gosforth:Ermelo!AE57) -> 0.00 | AF57: =SUM(Gosforth:Ermelo!AF57) -> 0.00 | AG57: =SUM(Gosforth:Ermelo!AG57) -> 0.00 | AH57: =SUM(Gosforth:Ermelo!AH57) -> 0.00 | AI57: =SUM(Gosforth:Ermelo!AI57) -> 0.00 | AJ57: =SUM(Gosforth:Ermelo!AJ57) -> 0.00 | AK57: =SUM(Gosforth:Ermelo!AK57) -> 0.00 | AL57: =SUM(Gosforth:Ermelo!AL57) -> 0.00 | AM57: =SUM(Gosforth:Ermelo!AM57) -> 0.00 | AN57: =SUM(Gosforth:Ermelo!AN57) -> 0.00 | AO57: =SUM(Gosforth:Ermelo!AO57) -> 0.00 | AP57: =SUM(Gosforth:Ermelo!AP57) -> 0.00 | AQ57: =SUM(Gosforth:Ermelo!AQ57) -> 0.00 | AR57: =SUM(Gosforth:Ermelo!AR57) -> 0.00 | AS57: =SUM(Gosforth:Ermelo!AS57) -> 0.00 | AT57: =SUM(Gosforth:Ermelo!AT57) -> 0.00 | AU57: =SUM(Gosforth:Ermelo!AU57) -> 0.00 | AV57: =SUM(Gosforth:Ermelo!AV57) -> 0.00 | AW57: =SUM(Gosforth:Ermelo!AW57) -> 0.00 | AX57: =SUM(Gosforth:Ermelo!AX57) -> 0.00 | AY57: =SUM(Gosforth:Ermelo!AY57) -> 0.00 | AZ57: =SUM(Gosforth:Ermelo!AZ57) -> 0.00 | BA57: =SUM(Gosforth:Ermelo!BA57) -> 0.00 | BB57: =SUM(Gosforth:Ermelo!BB57) -> 0.00 | BC57: =SUM(Gosforth:Ermelo!BC57) -> 0.00 | BD57: =SUM(Gosforth:Ermelo!BD57) -> 0.00 | BE57: =SUM(Gosforth:Ermelo!BE57) -> 0.00 | BF57: =SUM(Gosforth:Ermelo!BF57) -> 0.00 | BG57: =SUM(Gosforth:Ermelo!BG57) -> 0.00 | BH57: =SUM(Gosforth:Ermelo!BH57) -> 0.00 | BI57: =SUM(Gosforth:Ermelo!BI57) -> 0.00 | BJ57: =SUM(Gosforth:Ermelo!BJ57) -> 0.00 | BK57: =SUM(Gosforth:Ermelo!BK57) -> 0.00 | BL57: =SUM(Gosforth:Ermelo!BL57) -> 0.00 | BM57: =SUM(Gosforth:Ermelo!BM57) -> 0.00 | BN57: =SUM(Gosforth:Ermelo!BN57) -> 0.00 | BO57: =SUM(Gosforth:Ermelo!BO57) -> 0.00 | BP57: =SUM(Gosforth:Ermelo!BP57) -> 0.00 | BQ57: =SUM(Gosforth:Ermelo!BQ57) -> 0.00 | BR57: =SUM(Gosforth:Ermelo!BR57) -> 0.00 | BS57: =SUM(Gosforth:Ermelo!BS57) -> 0.00 | BT57: =SUM(Gosforth:Ermelo!BT57) -> 0.00 | BU57: =SUM(Gosforth:Ermelo!BU57) -> 0.00 | BV57: =SUM(Gosforth:Ermelo!BV57) -> 0.00 | BW57: =SUM(Gosforth:Ermelo!BW57) -> 0.00 | BX57: =SUM(Gosforth:Ermelo!BX57) -> 0.00 | BY57: =SUM(Gosforth:Ermelo!BY57) -> 0.00 | BZ57: =SUM(Gosforth:Ermelo!BZ57) -> 0.00 | CA57: =SUM(Gosforth:Ermelo!CA57) -> 0.00 | CB57: =SUM(Gosforth:Ermelo!CB57) -> 0.00 | CC57: =SUM(Gosforth:Ermelo!CC57) -> 0.00 | CD57: .
B58: A-2004 | C58: Shift Supervisors | D58: Month | E58: =SUM(Gosforth:Ermelo!E58) -> 360 | F58: =(Gosforth!G58+Dalpark!G58+Leandra!G58+Trichardt!G58+Ermelo!G58)=G58 -> TRUE | G58: 0.00 | H58: =SUM(Gosforth:Ermelo!H58) -> 0.00 | I58: =SUM(Gosforth:Ermelo!I58) -> 0.00 | J58: =SUM(Gosforth:Ermelo!J58) -> 0.00 | K58: =SUM(Gosforth:Ermelo!K58) -> 0.00 | L58: =SUM(Gosforth:Ermelo!L58) -> 0.00 | M58: =SUM(Gosforth:Ermelo!M58) -> 0.00 | N58: =SUM(Gosforth:Ermelo!N58) -> 0.00 | O58: =SUM(Gosforth:Ermelo!O58) -> 0.00 | P58: =SUM(Gosforth:Ermelo!P58) -> 0.00 | Q58: =SUM(Gosforth:Ermelo!Q58) -> 0.00 | R58: =SUM(Gosforth:Ermelo!R58) -> 0.00 | S58: =SUM(Gosforth:Ermelo!S58) -> 0.00 | T58: =SUM(Gosforth:Ermelo!T58) -> 0.00 | U58: =SUM(Gosforth:Ermelo!U58) -> 0.00 | V58: =SUM(Gosforth:Ermelo!V58) -> 0.00 | W58: =SUM(Gosforth:Ermelo!W58) -> 0.00 | X58: =SUM(Gosforth:Ermelo!X58) -> 0.00 | Y58: =SUM(Gosforth:Ermelo!Y58) -> 0.00 | Z58: =SUM(Gosforth:Ermelo!Z58) -> 0.00 | AA58: =SUM(Gosforth:Ermelo!AA58) -> 0.00 | AB58: =SUM(Gosforth:Ermelo!AB58) -> 0.00 | AC58: =SUM(Gosforth:Ermelo!AC58) -> 0.00 | AD58: =SUM(Gosforth:Ermelo!AD58) -> 0.00 | AE58: =SUM(Gosforth:Ermelo!AE58) -> 0.00 | AF58: =SUM(Gosforth:Ermelo!AF58) -> 0.00 | AG58: =SUM(Gosforth:Ermelo!AG58) -> 0.00 | AH58: =SUM(Gosforth:Ermelo!AH58) -> 0.00 | AI58: =SUM(Gosforth:Ermelo!AI58) -> 0.00 | AJ58: =SUM(Gosforth:Ermelo!AJ58) -> 0.00 | AK58: =SUM(Gosforth:Ermelo!AK58) -> 0.00 | AL58: =SUM(Gosforth:Ermelo!AL58) -> 0.00 | AM58: =SUM(Gosforth:Ermelo!AM58) -> 0.00 | AN58: =SUM(Gosforth:Ermelo!AN58) -> 0.00 | AO58: =SUM(Gosforth:Ermelo!AO58) -> 0.00 | AP58: =SUM(Gosforth:Ermelo!AP58) -> 0.00 | AQ58: =SUM(Gosforth:Ermelo!AQ58) -> 0.00 | AR58: =SUM(Gosforth:Ermelo!AR58) -> 0.00 | AS58: =SUM(Gosforth:Ermelo!AS58) -> 0.00 | AT58: =SUM(Gosforth:Ermelo!AT58) -> 0.00 | AU58: =SUM(Gosforth:Ermelo!AU58) -> 0.00 | AV58: =SUM(Gosforth:Ermelo!AV58) -> 0.00 | AW58: =SUM(Gosforth:Ermelo!AW58) -> 0.00 | AX58: =SUM(Gosforth:Ermelo!AX58) -> 0.00 | AY58: =SUM(Gosforth:Ermelo!AY58) -> 0.00 | AZ58: =SUM(Gosforth:Ermelo!AZ58) -> 0.00 | BA58: =SUM(Gosforth:Ermelo!BA58) -> 0.00 | BB58: =SUM(Gosforth:Ermelo!BB58) -> 0.00 | BC58: =SUM(Gosforth:Ermelo!BC58) -> 0.00 | BD58: =SUM(Gosforth:Ermelo!BD58) -> 0.00 | BE58: =SUM(Gosforth:Ermelo!BE58) -> 0.00 | BF58: =SUM(Gosforth:Ermelo!BF58) -> 0.00 | BG58: =SUM(Gosforth:Ermelo!BG58) -> 0.00 | BH58: =SUM(Gosforth:Ermelo!BH58) -> 0.00 | BI58: =SUM(Gosforth:Ermelo!BI58) -> 0.00 | BJ58: =SUM(Gosforth:Ermelo!BJ58) -> 0.00 | BK58: =SUM(Gosforth:Ermelo!BK58) -> 0.00 | BL58: =SUM(Gosforth:Ermelo!BL58) -> 0.00 | BM58: =SUM(Gosforth:Ermelo!BM58) -> 0.00 | BN58: =SUM(Gosforth:Ermelo!BN58) -> 0.00 | BO58: =SUM(Gosforth:Ermelo!BO58) -> 0.00 | BP58: =SUM(Gosforth:Ermelo!BP58) -> 0.00 | BQ58: =SUM(Gosforth:Ermelo!BQ58) -> 0.00 | BR58: =SUM(Gosforth:Ermelo!BR58) -> 0.00 | BS58: =SUM(Gosforth:Ermelo!BS58) -> 0.00 | BT58: =SUM(Gosforth:Ermelo!BT58) -> 0.00 | BU58: =SUM(Gosforth:Ermelo!BU58) -> 0.00 | BV58: =SUM(Gosforth:Ermelo!BV58) -> 0.00 | BW58: =SUM(Gosforth:Ermelo!BW58) -> 0.00 | BX58: =SUM(Gosforth:Ermelo!BX58) -> 0.00 | BY58: =SUM(Gosforth:Ermelo!BY58) -> 0.00 | BZ58: =SUM(Gosforth:Ermelo!BZ58) -> 0.00 | CA58: =SUM(Gosforth:Ermelo!CA58) -> 0.00 | CB58: =SUM(Gosforth:Ermelo!CB58) -> 0.00 | CC58: =SUM(Gosforth:Ermelo!CC58) -> 0.00 | CD58: .
B59: A-2005 | C59: Plaza Managers | D59: Month | E59: =SUM(Gosforth:Ermelo!E59) -> 360 | F59: =(Gosforth!G59+Dalpark!G59+Leandra!G59+Trichardt!G59+Ermelo!G59)=G59 -> TRUE | G59: 0.00 | H59: =SUM(Gosforth:Ermelo!H59) -> 0.00 | I59: =SUM(Gosforth:Ermelo!I59) -> 0.00 | J59: =SUM(Gosforth:Ermelo!J59) -> 0.00 | K59: =SUM(Gosforth:Ermelo!K59) -> 0.00 | L59: =SUM(Gosforth:Ermelo!L59) -> 0.00 | M59: =SUM(Gosforth:Ermelo!M59) -> 0.00 | N59: =SUM(Gosforth:Ermelo!N59) -> 0.00 | O59: =SUM(Gosforth:Ermelo!O59) -> 0.00 | P59: =SUM(Gosforth:Ermelo!P59) -> 0.00 | Q59: =SUM(Gosforth:Ermelo!Q59) -> 0.00 | R59: =SUM(Gosforth:Ermelo!R59) -> 0.00 | S59: =SUM(Gosforth:Ermelo!S59) -> 0.00 | T59: =SUM(Gosforth:Ermelo!T59) -> 0.00 | U59: =SUM(Gosforth:Ermelo!U59) -> 0.00 | V59: =SUM(Gosforth:Ermelo!V59) -> 0.00 | W59: =SUM(Gosforth:Ermelo!W59) -> 0.00 | X59: =SUM(Gosforth:Ermelo!X59) -> 0.00 | Y59: =SUM(Gosforth:Ermelo!Y59) -> 0.00 | Z59: =SUM(Gosforth:Ermelo!Z59) -> 0.00 | AA59: =SUM(Gosforth:Ermelo!AA59) -> 0.00 | AB59: =SUM(Gosforth:Ermelo!AB59) -> 0.00 | AC59: =SUM(Gosforth:Ermelo!AC59) -> 0.00 | AD59: =SUM(Gosforth:Ermelo!AD59) -> 0.00 | AE59: =SUM(Gosforth:Ermelo!AE59) -> 0.00 | AF59: =SUM(Gosforth:Ermelo!AF59) -> 0.00 | AG59: =SUM(Gosforth:Ermelo!AG59) -> 0.00 | AH59: =SUM(Gosforth:Ermelo!AH59) -> 0.00 | AI59: =SUM(Gosforth:Ermelo!AI59) -> 0.00 | AJ59: =SUM(Gosforth:Ermelo!AJ59) -> 0.00 | AK59: =SUM(Gosforth:Ermelo!AK59) -> 0.00 | AL59: =SUM(Gosforth:Ermelo!AL59) -> 0.00 | AM59: =SUM(Gosforth:Ermelo!AM59) -> 0.00 | AN59: =SUM(Gosforth:Ermelo!AN59) -> 0.00 | AO59: =SUM(Gosforth:Ermelo!AO59) -> 0.00 | AP59: =SUM(Gosforth:Ermelo!AP59) -> 0.00 | AQ59: =SUM(Gosforth:Ermelo!AQ59) -> 0.00 | AR59: =SUM(Gosforth:Ermelo!AR59) -> 0.00 | AS59: =SUM(Gosforth:Ermelo!AS59) -> 0.00 | AT59: =SUM(Gosforth:Ermelo!AT59) -> 0.00 | AU59: =SUM(Gosforth:Ermelo!AU59) -> 0.00 | AV59: =SUM(Gosforth:Ermelo!AV59) -> 0.00 | AW59: =SUM(Gosforth:Ermelo!AW59) -> 0.00 | AX59: =SUM(Gosforth:Ermelo!AX59) -> 0.00 | AY59: =SUM(Gosforth:Ermelo!AY59) -> 0.00 | AZ59: =SUM(Gosforth:Ermelo!AZ59) -> 0.00 | BA59: =SUM(Gosforth:Ermelo!BA59) -> 0.00 | BB59: =SUM(Gosforth:Ermelo!BB59) -> 0.00 | BC59: =SUM(Gosforth:Ermelo!BC59) -> 0.00 | BD59: =SUM(Gosforth:Ermelo!BD59) -> 0.00 | BE59: =SUM(Gosforth:Ermelo!BE59) -> 0.00 | BF59: =SUM(Gosforth:Ermelo!BF59) -> 0.00 | BG59: =SUM(Gosforth:Ermelo!BG59) -> 0.00 | BH59: =SUM(Gosforth:Ermelo!BH59) -> 0.00 | BI59: =SUM(Gosforth:Ermelo!BI59) -> 0.00 | BJ59: =SUM(Gosforth:Ermelo!BJ59) -> 0.00 | BK59: =SUM(Gosforth:Ermelo!BK59) -> 0.00 | BL59: =SUM(Gosforth:Ermelo!BL59) -> 0.00 | BM59: =SUM(Gosforth:Ermelo!BM59) -> 0.00 | BN59: =SUM(Gosforth:Ermelo!BN59) -> 0.00 | BO59: =SUM(Gosforth:Ermelo!BO59) -> 0.00 | BP59: =SUM(Gosforth:Ermelo!BP59) -> 0.00 | BQ59: =SUM(Gosforth:Ermelo!BQ59) -> 0.00 | BR59: =SUM(Gosforth:Ermelo!BR59) -> 0.00 | BS59: =SUM(Gosforth:Ermelo!BS59) -> 0.00 | BT59: =SUM(Gosforth:Ermelo!BT59) -> 0.00 | BU59: =SUM(Gosforth:Ermelo!BU59) -> 0.00 | BV59: =SUM(Gosforth:Ermelo!BV59) -> 0.00 | BW59: =SUM(Gosforth:Ermelo!BW59) -> 0.00 | BX59: =SUM(Gosforth:Ermelo!BX59) -> 0.00 | BY59: =SUM(Gosforth:Ermelo!BY59) -> 0.00 | BZ59: =SUM(Gosforth:Ermelo!BZ59) -> 0.00 | CA59: =SUM(Gosforth:Ermelo!CA59) -> 0.00 | CB59: =SUM(Gosforth:Ermelo!CB59) -> 0.00 | CC59: =SUM(Gosforth:Ermelo!CC59) -> 0.00 | CD59: .
B60: A-2006 | C60: Administrative Personnel | D60: Month | E60: =SUM(Gosforth:Ermelo!E60) -> 360 | F60: =(Gosforth!G60+Dalpark!G60+Leandra!G60+Trichardt!G60+Ermelo!G60)=G60 -> TRUE | G60: 0.00 | H60: =SUM(Gosforth:Ermelo!H60) -> 0.00 | I60: =SUM(Gosforth:Ermelo!I60) -> 0.00 | J60: =SUM(Gosforth:Ermelo!J60) -> 0.00 | K60: =SUM(Gosforth:Ermelo!K60) -> 0.00 | L60: =SUM(Gosforth:Ermelo!L60) -> 0.00 | M60: =SUM(Gosforth:Ermelo!M60) -> 0.00 | N60: =SUM(Gosforth:Ermelo!N60) -> 0.00 | O60: =SUM(Gosforth:Ermelo!O60) -> 0.00 | P60: =SUM(Gosforth:Ermelo!P60) -> 0.00 | Q60: =SUM(Gosforth:Ermelo!Q60) -> 0.00 | R60: =SUM(Gosforth:Ermelo!R60) -> 0.00 | S60: =SUM(Gosforth:Ermelo!S60) -> 0.00 | T60: =SUM(Gosforth:Ermelo!T60) -> 0.00 | U60: =SUM(Gosforth:Ermelo!U60) -> 0.00 | V60: =SUM(Gosforth:Ermelo!V60) -> 0.00 | W60: =SUM(Gosforth:Ermelo!W60) -> 0.00 | X60: =SUM(Gosforth:Ermelo!X60) -> 0.00 | Y60: =SUM(Gosforth:Ermelo!Y60) -> 0.00 | Z60: =SUM(Gosforth:Ermelo!Z60) -> 0.00 | AA60: =SUM(Gosforth:Ermelo!AA60) -> 0.00 | AB60: =SUM(Gosforth:Ermelo!AB60) -> 0.00 | AC60: =SUM(Gosforth:Ermelo!AC60) -> 0.00 | AD60: =SUM(Gosforth:Ermelo!AD60) -> 0.00 | AE60: =SUM(Gosforth:Ermelo!AE60) -> 0.00 | AF60: =SUM(Gosforth:Ermelo!AF60) -> 0.00 | AG60: =SUM(Gosforth:Ermelo!AG60) -> 0.00 | AH60: =SUM(Gosforth:Ermelo!AH60) -> 0.00 | AI60: =SUM(Gosforth:Ermelo!AI60) -> 0.00 | AJ60: =SUM(Gosforth:Ermelo!AJ60) -> 0.00 | AK60: =SUM(Gosforth:Ermelo!AK60) -> 0.00 | AL60: =SUM(Gosforth:Ermelo!AL60) -> 0.00 | AM60: =SUM(Gosforth:Ermelo!AM60) -> 0.00 | AN60: =SUM(Gosforth:Ermelo!AN60) -> 0.00 | AO60: =SUM(Gosforth:Ermelo!AO60) -> 0.00 | AP60: =SUM(Gosforth:Ermelo!AP60) -> 0.00 | AQ60: =SUM(Gosforth:Ermelo!AQ60) -> 0.00 | AR60: =SUM(Gosforth:Ermelo!AR60) -> 0.00 | AS60: =SUM(Gosforth:Ermelo!AS60) -> 0.00 | AT60: =SUM(Gosforth:Ermelo!AT60) -> 0.00 | AU60: =SUM(Gosforth:Ermelo!AU60) -> 0.00 | AV60: =SUM(Gosforth:Ermelo!AV60) -> 0.00 | AW60: =SUM(Gosforth:Ermelo!AW60) -> 0.00 | AX60: =SUM(Gosforth:Ermelo!AX60) -> 0.00 | AY60: =SUM(Gosforth:Ermelo!AY60) -> 0.00 | AZ60: =SUM(Gosforth:Ermelo!AZ60) -> 0.00 | BA60: =SUM(Gosforth:Ermelo!BA60) -> 0.00 | BB60: =SUM(Gosforth:Ermelo!BB60) -> 0.00 | BC60: =SUM(Gosforth:Ermelo!BC60) -> 0.00 | BD60: =SUM(Gosforth:Ermelo!BD60) -> 0.00 | BE60: =SUM(Gosforth:Ermelo!BE60) -> 0.00 | BF60: =SUM(Gosforth:Ermelo!BF60) -> 0.00 | BG60: =SUM(Gosforth:Ermelo!BG60) -> 0.00 | BH60: =SUM(Gosforth:Ermelo!BH60) -> 0.00 | BI60: =SUM(Gosforth:Ermelo!BI60) -> 0.00 | BJ60: =SUM(Gosforth:Ermelo!BJ60) -> 0.00 | BK60: =SUM(Gosforth:Ermelo!BK60) -> 0.00 | BL60: =SUM(Gosforth:Ermelo!BL60) -> 0.00 | BM60: =SUM(Gosforth:Ermelo!BM60) -> 0.00 | BN60: =SUM(Gosforth:Ermelo!BN60) -> 0.00 | BO60: =SUM(Gosforth:Ermelo!BO60) -> 0.00 | BP60: =SUM(Gosforth:Ermelo!BP60) -> 0.00 | BQ60: =SUM(Gosforth:Ermelo!BQ60) -> 0.00 | BR60: =SUM(Gosforth:Ermelo!BR60) -> 0.00 | BS60: =SUM(Gosforth:Ermelo!BS60) -> 0.00 | BT60: =SUM(Gosforth:Ermelo!BT60) -> 0.00 | BU60: =SUM(Gosforth:Ermelo!BU60) -> 0.00 | BV60: =SUM(Gosforth:Ermelo!BV60) -> 0.00 | BW60: =SUM(Gosforth:Ermelo!BW60) -> 0.00 | BX60: =SUM(Gosforth:Ermelo!BX60) -> 0.00 | BY60: =SUM(Gosforth:Ermelo!BY60) -> 0.00 | BZ60: =SUM(Gosforth:Ermelo!BZ60) -> 0.00 | CA60: =SUM(Gosforth:Ermelo!CA60) -> 0.00 | CB60: =SUM(Gosforth:Ermelo!CB60) -> 0.00 | CC60: =SUM(Gosforth:Ermelo!CC60) -> 0.00 | CD60: .
B61: A-2007 | C61: Lane, Garden and Plaza Attendants | D61: Month | E61: =SUM(Gosforth:Ermelo!E61) -> 360 | F61: =(Gosforth!G61+Dalpark!G61+Leandra!G61+Trichardt!G61+Ermelo!G61)=G61 -> TRUE | G61: 0.00 | H61: =SUM(Gosforth:Ermelo!H61) -> 0.00 | I61: =SUM(Gosforth:Ermelo!I61) -> 0.00 | J61: =SUM(Gosforth:Ermelo!J61) -> 0.00 | K61: =SUM(Gosforth:Ermelo!K61) -> 0.00 | L61: =SUM(Gosforth:Ermelo!L61) -> 0.00 | M61: =SUM(Gosforth:Ermelo!M61) -> 0.00 | N61: =SUM(Gosforth:Ermelo!N61) -> 0.00 | O61: =SUM(Gosforth:Ermelo!O61) -> 0.00 | P61: =SUM(Gosforth:Ermelo!P61) -> 0.00 | Q61: =SUM(Gosforth:Ermelo!Q61) -> 0.00 | R61: =SUM(Gosforth:Ermelo!R61) -> 0.00 | S61: =SUM(Gosforth:Ermelo!S61) -> 0.00 | T61: =SUM(Gosforth:Ermelo!T61) -> 0.00 | U61: =SUM(Gosforth:Ermelo!U61) -> 0.00 | V61: =SUM(Gosforth:Ermelo!V61) -> 0.00 | W61: =SUM(Gosforth:Ermelo!W61) -> 0.00 | X61: =SUM(Gosforth:Ermelo!X61) -> 0.00 | Y61: =SUM(Gosforth:Ermelo!Y61) -> 0.00 | Z61: =SUM(Gosforth:Ermelo!Z61) -> 0.00 | AA61: =SUM(Gosforth:Ermelo!AA61) -> 0.00 | AB61: =SUM(Gosforth:Ermelo!AB61) -> 0.00 | AC61: =SUM(Gosforth:Ermelo!AC61) -> 0.00 | AD61: =SUM(Gosforth:Ermelo!AD61) -> 0.00 | AE61: =SUM(Gosforth:Ermelo!AE61) -> 0.00 | AF61: =SUM(Gosforth:Ermelo!AF61) -> 0.00 | AG61: =SUM(Gosforth:Ermelo!AG61) -> 0.00 | AH61: =SUM(Gosforth:Ermelo!AH61) -> 0.00 | AI61: =SUM(Gosforth:Ermelo!AI61) -> 0.00 | AJ61: =SUM(Gosforth:Ermelo!AJ61) -> 0.00 | AK61: =SUM(Gosforth:Ermelo!AK61) -> 0.00 | AL61: =SUM(Gosforth:Ermelo!AL61) -> 0.00 | AM61: =SUM(Gosforth:Ermelo!AM61) -> 0.00 | AN61: =SUM(Gosforth:Ermelo!AN61) -> 0.00 | AO61: =SUM(Gosforth:Ermelo!AO61) -> 0.00 | AP61: =SUM(Gosforth:Ermelo!AP61) -> 0.00 | AQ61: =SUM(Gosforth:Ermelo!AQ61) -> 0.00 | AR61: =SUM(Gosforth:Ermelo!AR61) -> 0.00 | AS61: =SUM(Gosforth:Ermelo!AS61) -> 0.00 | AT61: =SUM(Gosforth:Ermelo!AT61) -> 0.00 | AU61: =SUM(Gosforth:Ermelo!AU61) -> 0.00 | AV61: =SUM(Gosforth:Ermelo!AV61) -> 0.00 | AW61: =SUM(Gosforth:Ermelo!AW61) -> 0.00 | AX61: =SUM(Gosforth:Ermelo!AX61) -> 0.00 | AY61: =SUM(Gosforth:Ermelo!AY61) -> 0.00 | AZ61: =SUM(Gosforth:Ermelo!AZ61) -> 0.00 | BA61: =SUM(Gosforth:Ermelo!BA61) -> 0.00 | BB61: =SUM(Gosforth:Ermelo!BB61) -> 0.00 | BC61: =SUM(Gosforth:Ermelo!BC61) -> 0.00 | BD61: =SUM(Gosforth:Ermelo!BD61) -> 0.00 | BE61: =SUM(Gosforth:Ermelo!BE61) -> 0.00 | BF61: =SUM(Gosforth:Ermelo!BF61) -> 0.00 | BG61: =SUM(Gosforth:Ermelo!BG61) -> 0.00 | BH61: =SUM(Gosforth:Ermelo!BH61) -> 0.00 | BI61: =SUM(Gosforth:Ermelo!BI61) -> 0.00 | BJ61: =SUM(Gosforth:Ermelo!BJ61) -> 0.00 | BK61: =SUM(Gosforth:Ermelo!BK61) -> 0.00 | BL61: =SUM(Gosforth:Ermelo!BL61) -> 0.00 | BM61: =SUM(Gosforth:Ermelo!BM61) -> 0.00 | BN61: =SUM(Gosforth:Ermelo!BN61) -> 0.00 | BO61: =SUM(Gosforth:Ermelo!BO61) -> 0.00 | BP61: =SUM(Gosforth:Ermelo!BP61) -> 0.00 | BQ61: =SUM(Gosforth:Ermelo!BQ61) -> 0.00 | BR61: =SUM(Gosforth:Ermelo!BR61) -> 0.00 | BS61: =SUM(Gosforth:Ermelo!BS61) -> 0.00 | BT61: =SUM(Gosforth:Ermelo!BT61) -> 0.00 | BU61: =SUM(Gosforth:Ermelo!BU61) -> 0.00 | BV61: =SUM(Gosforth:Ermelo!BV61) -> 0.00 | BW61: =SUM(Gosforth:Ermelo!BW61) -> 0.00 | BX61: =SUM(Gosforth:Ermelo!BX61) -> 0.00 | BY61: =SUM(Gosforth:Ermelo!BY61) -> 0.00 | BZ61: =SUM(Gosforth:Ermelo!BZ61) -> 0.00 | CA61: =SUM(Gosforth:Ermelo!CA61) -> 0.00 | CB61: =SUM(Gosforth:Ermelo!CB61) -> 0.00 | CC61: =SUM(Gosforth:Ermelo!CC61) -> 0.00 | CD61: .
B62: A-2008 | C62: Technical Staff | D62: Month | E62: =SUM(Gosforth:Ermelo!E62) -> 360 | F62: =(Gosforth!G62+Dalpark!G62+Leandra!G62+Trichardt!G62+Ermelo!G62)=G62 -> TRUE | G62: 0.00 | H62: =SUM(Gosforth:Ermelo!H62) -> 0.00 | I62: =SUM(Gosforth:Ermelo!I62) -> 0.00 | J62: =SUM(Gosforth:Ermelo!J62) -> 0.00 | K62: =SUM(Gosforth:Ermelo!K62) -> 0.00 | L62: =SUM(Gosforth:Ermelo!L62) -> 0.00 | M62: =SUM(Gosforth:Ermelo!M62) -> 0.00 | N62: =SUM(Gosforth:Ermelo!N62) -> 0.00 | O62: =SUM(Gosforth:Ermelo!O62) -> 0.00 | P62: =SUM(Gosforth:Ermelo!P62) -> 0.00 | Q62: =SUM(Gosforth:Ermelo!Q62) -> 0.00 | R62: =SUM(Gosforth:Ermelo!R62) -> 0.00 | S62: =SUM(Gosforth:Ermelo!S62) -> 0.00 | T62: =SUM(Gosforth:Ermelo!T62) -> 0.00 | U62: =SUM(Gosforth:Ermelo!U62) -> 0.00 | V62: =SUM(Gosforth:Ermelo!V62) -> 0.00 | W62: =SUM(Gosforth:Ermelo!W62) -> 0.00 | X62: =SUM(Gosforth:Ermelo!X62) -> 0.00 | Y62: =SUM(Gosforth:Ermelo!Y62) -> 0.00 | Z62: =SUM(Gosforth:Ermelo!Z62) -> 0.00 | AA62: =SUM(Gosforth:Ermelo!AA62) -> 0.00 | AB62: =SUM(Gosforth:Ermelo!AB62) -> 0.00 | AC62: =SUM(Gosforth:Ermelo!AC62) -> 0.00 | AD62: =SUM(Gosforth:Ermelo!AD62) -> 0.00 | AE62: =SUM(Gosforth:Ermelo!AE62) -> 0.00 | AF62: =SUM(Gosforth:Ermelo!AF62) -> 0.00 | AG62: =SUM(Gosforth:Ermelo!AG62) -> 0.00 | AH62: =SUM(Gosforth:Ermelo!AH62) -> 0.00 | AI62: =SUM(Gosforth:Ermelo!AI62) -> 0.00 | AJ62: =SUM(Gosforth:Ermelo!AJ62) -> 0.00 | AK62: =SUM(Gosforth:Ermelo!AK62) -> 0.00 | AL62: =SUM(Gosforth:Ermelo!AL62) -> 0.00 | AM62: =SUM(Gosforth:Ermelo!AM62) -> 0.00 | AN62: =SUM(Gosforth:Ermelo!AN62) -> 0.00 | AO62: =SUM(Gosforth:Ermelo!AO62) -> 0.00 | AP62: =SUM(Gosforth:Ermelo!AP62) -> 0.00 | AQ62: =SUM(Gosforth:Ermelo!AQ62) -> 0.00 | AR62: =SUM(Gosforth:Ermelo!AR62) -> 0.00 | AS62: =SUM(Gosforth:Ermelo!AS62) -> 0.00 | AT62: =SUM(Gosforth:Ermelo!AT62) -> 0.00 | AU62: =SUM(Gosforth:Ermelo!AU62) -> 0.00 | AV62: =SUM(Gosforth:Ermelo!AV62) -> 0.00 | AW62: =SUM(Gosforth:Ermelo!AW62) -> 0.00 | AX62: =SUM(Gosforth:Ermelo!AX62) -> 0.00 | AY62: =SUM(Gosforth:Ermelo!AY62) -> 0.00 | AZ62: =SUM(Gosforth:Ermelo!AZ62) -> 0.00 | BA62: =SUM(Gosforth:Ermelo!BA62) -> 0.00 | BB62: =SUM(Gosforth:Ermelo!BB62) -> 0.00 | BC62: =SUM(Gosforth:Ermelo!BC62) -> 0.00 | BD62: =SUM(Gosforth:Ermelo!BD62) -> 0.00 | BE62: =SUM(Gosforth:Ermelo!BE62) -> 0.00 | BF62: =SUM(Gosforth:Ermelo!BF62) -> 0.00 | BG62: =SUM(Gosforth:Ermelo!BG62) -> 0.00 | BH62: =SUM(Gosforth:Ermelo!BH62) -> 0.00 | BI62: =SUM(Gosforth:Ermelo!BI62) -> 0.00 | BJ62: =SUM(Gosforth:Ermelo!BJ62) -> 0.00 | BK62: =SUM(Gosforth:Ermelo!BK62) -> 0.00 | BL62: =SUM(Gosforth:Ermelo!BL62) -> 0.00 | BM62: =SUM(Gosforth:Ermelo!BM62) -> 0.00 | BN62: =SUM(Gosforth:Ermelo!BN62) -> 0.00 | BO62: =SUM(Gosforth:Ermelo!BO62) -> 0.00 | BP62: =SUM(Gosforth:Ermelo!BP62) -> 0.00 | BQ62: =SUM(Gosforth:Ermelo!BQ62) -> 0.00 | BR62: =SUM(Gosforth:Ermelo!BR62) -> 0.00 | BS62: =SUM(Gosforth:Ermelo!BS62) -> 0.00 | BT62: =SUM(Gosforth:Ermelo!BT62) -> 0.00 | BU62: =SUM(Gosforth:Ermelo!BU62) -> 0.00 | BV62: =SUM(Gosforth:Ermelo!BV62) -> 0.00 | BW62: =SUM(Gosforth:Ermelo!BW62) -> 0.00 | BX62: =SUM(Gosforth:Ermelo!BX62) -> 0.00 | BY62: =SUM(Gosforth:Ermelo!BY62) -> 0.00 | BZ62: =SUM(Gosforth:Ermelo!BZ62) -> 0.00 | CA62: =SUM(Gosforth:Ermelo!CA62) -> 0.00 | CB62: =SUM(Gosforth:Ermelo!CB62) -> 0.00 | CC62: =SUM(Gosforth:Ermelo!CC62) -> 0.00 | CD62: .
B63: A-2009 | C63: Transport of Personnel | D63: Month | E63: =SUM(Gosforth:Ermelo!E63) -> 360 | F63: =(Gosforth!G63+Dalpark!G63+Leandra!G63+Trichardt!G63+Ermelo!G63)=G63 -> TRUE | G63: 0.00 | H63: =SUM(Gosforth:Ermelo!H63) -> 0.00 | I63: =SUM(Gosforth:Ermelo!I63) -> 0.00 | J63: =SUM(Gosforth:Ermelo!J63) -> 0.00 | K63: =SUM(Gosforth:Ermelo!K63) -> 0.00 | L63: =SUM(Gosforth:Ermelo!L63) -> 0.00 | M63: =SUM(Gosforth:Ermelo!M63) -> 0.00 | N63: =SUM(Gosforth:Ermelo!N63) -> 0.00 | O63: =SUM(Gosforth:Ermelo!O63) -> 0.00 | P63: =SUM(Gosforth:Ermelo!P63) -> 0.00 | Q63: =SUM(Gosforth:Ermelo!Q63) -> 0.00 | R63: =SUM(Gosforth:Ermelo!R63) -> 0.00 | S63: =SUM(Gosforth:Ermelo!S63) -> 0.00 | T63: =SUM(Gosforth:Ermelo!T63) -> 0.00 | U63: =SUM(Gosforth:Ermelo!U63) -> 0.00 | V63: =SUM(Gosforth:Ermelo!V63) -> 0.00 | W63: =SUM(Gosforth:Ermelo!W63) -> 0.00 | X63: =SUM(Gosforth:Ermelo!X63) -> 0.00 | Y63: =SUM(Gosforth:Ermelo!Y63) -> 0.00 | Z63: =SUM(Gosforth:Ermelo!Z63) -> 0.00 | AA63: =SUM(Gosforth:Ermelo!AA63) -> 0.00 | AB63: =SUM(Gosforth:Ermelo!AB63) -> 0.00 | AC63: =SUM(Gosforth:Ermelo!AC63) -> 0.00 | AD63: =SUM(Gosforth:Ermelo!AD63) -> 0.00 | AE63: =SUM(Gosforth:Ermelo!AE63) -> 0.00 | AF63: =SUM(Gosforth:Ermelo!AF63) -> 0.00 | AG63: =SUM(Gosforth:Ermelo!AG63) -> 0.00 | AH63: =SUM(Gosforth:Ermelo!AH63) -> 0.00 | AI63: =SUM(Gosforth:Ermelo!AI63) -> 0.00 | AJ63: =SUM(Gosforth:Ermelo!AJ63) -> 0.00 | AK63: =SUM(Gosforth:Ermelo!AK63) -> 0.00 | AL63: =SUM(Gosforth:Ermelo!AL63) -> 0.00 | AM63: =SUM(Gosforth:Ermelo!AM63) -> 0.00 | AN63: =SUM(Gosforth:Ermelo!AN63) -> 0.00 | AO63: =SUM(Gosforth:Ermelo!AO63) -> 0.00 | AP63: =SUM(Gosforth:Ermelo!AP63) -> 0.00 | AQ63: =SUM(Gosforth:Ermelo!AQ63) -> 0.00 | AR63: =SUM(Gosforth:Ermelo!AR63) -> 0.00 | AS63: =SUM(Gosforth:Ermelo!AS63) -> 0.00 | AT63: =SUM(Gosforth:Ermelo!AT63) -> 0.00 | AU63: =SUM(Gosforth:Ermelo!AU63) -> 0.00 | AV63: =SUM(Gosforth:Ermelo!AV63) -> 0.00 | AW63: =SUM(Gosforth:Ermelo!AW63) -> 0.00 | AX63: =SUM(Gosforth:Ermelo!AX63) -> 0.00 | AY63: =SUM(Gosforth:Ermelo!AY63) -> 0.00 | AZ63: =SUM(Gosforth:Ermelo!AZ63) -> 0.00 | BA63: =SUM(Gosforth:Ermelo!BA63) -> 0.00 | BB63: =SUM(Gosforth:Ermelo!BB63) -> 0.00 | BC63: =SUM(Gosforth:Ermelo!BC63) -> 0.00 | BD63: =SUM(Gosforth:Ermelo!BD63) -> 0.00 | BE63: =SUM(Gosforth:Ermelo!BE63) -> 0.00 | BF63: =SUM(Gosforth:Ermelo!BF63) -> 0.00 | BG63: =SUM(Gosforth:Ermelo!BG63) -> 0.00 | BH63: =SUM(Gosforth:Ermelo!BH63) -> 0.00 | BI63: =SUM(Gosforth:Ermelo!BI63) -> 0.00 | BJ63: =SUM(Gosforth:Ermelo!BJ63) -> 0.00 | BK63: =SUM(Gosforth:Ermelo!BK63) -> 0.00 | BL63: =SUM(Gosforth:Ermelo!BL63) -> 0.00 | BM63: =SUM(Gosforth:Ermelo!BM63) -> 0.00 | BN63: =SUM(Gosforth:Ermelo!BN63) -> 0.00 | BO63: =SUM(Gosforth:Ermelo!BO63) -> 0.00 | BP63: =SUM(Gosforth:Ermelo!BP63) -> 0.00 | BQ63: =SUM(Gosforth:Ermelo!BQ63) -> 0.00 | BR63: =SUM(Gosforth:Ermelo!BR63) -> 0.00 | BS63: =SUM(Gosforth:Ermelo!BS63) -> 0.00 | BT63: =SUM(Gosforth:Ermelo!BT63) -> 0.00 | BU63: =SUM(Gosforth:Ermelo!BU63) -> 0.00 | BV63: =SUM(Gosforth:Ermelo!BV63) -> 0.00 | BW63: =SUM(Gosforth:Ermelo!BW63) -> 0.00 | BX63: =SUM(Gosforth:Ermelo!BX63) -> 0.00 | BY63: =SUM(Gosforth:Ermelo!BY63) -> 0.00 | BZ63: =SUM(Gosforth:Ermelo!BZ63) -> 0.00 | CA63: =SUM(Gosforth:Ermelo!CA63) -> 0.00 | CB63: =SUM(Gosforth:Ermelo!CB63) -> 0.00 | CC63: =SUM(Gosforth:Ermelo!CC63) -> 0.00 | CD63: .
B64: A-2010 | C64: Additional Toll Collectors due to Lane Expansion/ Reversible Lane Creation (if triggered) | D64: Month | E64: =SUM(Gosforth:Ermelo!E64) -> 360 | F64: =(Gosforth!G64+Dalpark!G64+Leandra!G64+Trichardt!G64+Ermelo!G64)=G64 -> TRUE | G64: 0.00 | H64: =SUM(Gosforth:Ermelo!H64) -> 0.00 | I64: =SUM(Gosforth:Ermelo!I64) -> 0.00 | J64: =SUM(Gosforth:Ermelo!J64) -> 0.00 | K64: =SUM(Gosforth:Ermelo!K64) -> 0.00 | L64: =SUM(Gosforth:Ermelo!L64) -> 0.00 | M64: =SUM(Gosforth:Ermelo!M64) -> 0.00 | N64: =SUM(Gosforth:Ermelo!N64) -> 0.00 | O64: =SUM(Gosforth:Ermelo!O64) -> 0.00 | P64: =SUM(Gosforth:Ermelo!P64) -> 0.00 | Q64: =SUM(Gosforth:Ermelo!Q64) -> 0.00 | R64: =SUM(Gosforth:Ermelo!R64) -> 0.00 | S64: =SUM(Gosforth:Ermelo!S64) -> 0.00 | T64: =SUM(Gosforth:Ermelo!T64) -> 0.00 | U64: =SUM(Gosforth:Ermelo!U64) -> 0.00 | V64: =SUM(Gosforth:Ermelo!V64) -> 0.00 | W64: =SUM(Gosforth:Ermelo!W64) -> 0.00 | X64: =SUM(Gosforth:Ermelo!X64) -> 0.00 | Y64: =SUM(Gosforth:Ermelo!Y64) -> 0.00 | Z64: =SUM(Gosforth:Ermelo!Z64) -> 0.00 | AA64: =SUM(Gosforth:Ermelo!AA64) -> 0.00 | AB64: =SUM(Gosforth:Ermelo!AB64) -> 0.00 | AC64: =SUM(Gosforth:Ermelo!AC64) -> 0.00 | AD64: =SUM(Gosforth:Ermelo!AD64) -> 0.00 | AE64: =SUM(Gosforth:Ermelo!AE64) -> 0.00 | AF64: =SUM(Gosforth:Ermelo!AF64) -> 0.00 | AG64: =SUM(Gosforth:Ermelo!AG64) -> 0.00 | AH64: =SUM(Gosforth:Ermelo!AH64) -> 0.00 | AI64: =SUM(Gosforth:Ermelo!AI64) -> 0.00 | AJ64: =SUM(Gosforth:Ermelo!AJ64) -> 0.00 | AK64: =SUM(Gosforth:Ermelo!AK64) -> 0.00 | AL64: =SUM(Gosforth:Ermelo!AL64) -> 0.00 | AM64: =SUM(Gosforth:Ermelo!AM64) -> 0.00 | AN64: =SUM(Gosforth:Ermelo!AN64) -> 0.00 | AO64: =SUM(Gosforth:Ermelo!AO64) -> 0.00 | AP64: =SUM(Gosforth:Ermelo!AP64) -> 0.00 | AQ64: =SUM(Gosforth:Ermelo!AQ64) -> 0.00 | AR64: =SUM(Gosforth:Ermelo!AR64) -> 0.00 | AS64: =SUM(Gosforth:Ermelo!AS64) -> 0.00 | AT64: =SUM(Gosforth:Ermelo!AT64) -> 0.00 | AU64: =SUM(Gosforth:Ermelo!AU64) -> 0.00 | AV64: =SUM(Gosforth:Ermelo!AV64) -> 0.00 | AW64: =SUM(Gosforth:Ermelo!AW64) -> 0.00 | AX64: =SUM(Gosforth:Ermelo!AX64) -> 0.00 | AY64: =SUM(Gosforth:Ermelo!AY64) -> 0.00 | AZ64: =SUM(Gosforth:Ermelo!AZ64) -> 0.00 | BA64: =SUM(Gosforth:Ermelo!BA64) -> 0.00 | BB64: =SUM(Gosforth:Ermelo!BB64) -> 0.00 | BC64: =SUM(Gosforth:Ermelo!BC64) -> 0.00 | BD64: =SUM(Gosforth:Ermelo!BD64) -> 0.00 | BE64: =SUM(Gosforth:Ermelo!BE64) -> 0.00 | BF64: =SUM(Gosforth:Ermelo!BF64) -> 0.00 | BG64: =SUM(Gosforth:Ermelo!BG64) -> 0.00 | BH64: =SUM(Gosforth:Ermelo!BH64) -> 0.00 | BI64: =SUM(Gosforth:Ermelo!BI64) -> 0.00 | BJ64: =SUM(Gosforth:Ermelo!BJ64) -> 0.00 | BK64: =SUM(Gosforth:Ermelo!BK64) -> 0.00 | BL64: =SUM(Gosforth:Ermelo!BL64) -> 0.00 | BM64: =SUM(Gosforth:Ermelo!BM64) -> 0.00 | BN64: =SUM(Gosforth:Ermelo!BN64) -> 0.00 | BO64: =SUM(Gosforth:Ermelo!BO64) -> 0.00 | BP64: =SUM(Gosforth:Ermelo!BP64) -> 0.00 | BQ64: =SUM(Gosforth:Ermelo!BQ64) -> 0.00 | BR64: =SUM(Gosforth:Ermelo!BR64) -> 0.00 | BS64: =SUM(Gosforth:Ermelo!BS64) -> 0.00 | BT64: =SUM(Gosforth:Ermelo!BT64) -> 0.00 | BU64: =SUM(Gosforth:Ermelo!BU64) -> 0.00 | BV64: =SUM(Gosforth:Ermelo!BV64) -> 0.00 | BW64: =SUM(Gosforth:Ermelo!BW64) -> 0.00 | BX64: =SUM(Gosforth:Ermelo!BX64) -> 0.00 | BY64: =SUM(Gosforth:Ermelo!BY64) -> 0.00 | BZ64: =SUM(Gosforth:Ermelo!BZ64) -> 0.00 | CA64: =SUM(Gosforth:Ermelo!CA64) -> 0.00 | CB64: =SUM(Gosforth:Ermelo!CB64) -> 0.00 | CC64: =SUM(Gosforth:Ermelo!CC64) -> 0.00 | CD64: .
B65: A-2011 | C65: Extra Over or Saving of Operation Cost if Dedicated ETC / Card lanes are implemented | CD65: .
B66: A-2011a | C66: Extra over on Saving of Operational Costs if Dedicated ETC lanes are implemented (1 lane/direction) | D66: Month | E66: =SUM(Gosforth:Ermelo!E66) -> 360 | F66: =(Gosforth!G66+Dalpark!G66+Leandra!G66+Trichardt!G66+Ermelo!G66)=G66 -> TRUE | G66: 0.00 | H66: =SUM(Gosforth:Ermelo!H66) -> 0.00 | I66: =SUM(Gosforth:Ermelo!I66) -> 0.00 | J66: =SUM(Gosforth:Ermelo!J66) -> 0.00 | K66: =SUM(Gosforth:Ermelo!K66) -> 0.00 | L66: =SUM(Gosforth:Ermelo!L66) -> 0.00 | M66: =SUM(Gosforth:Ermelo!M66) -> 0.00 | N66: =SUM(Gosforth:Ermelo!N66) -> 0.00 | O66: =SUM(Gosforth:Ermelo!O66) -> 0.00 | P66: =SUM(Gosforth:Ermelo!P66) -> 0.00 | Q66: =SUM(Gosforth:Ermelo!Q66) -> 0.00 | R66: =SUM(Gosforth:Ermelo!R66) -> 0.00 | S66: =SUM(Gosforth:Ermelo!S66) -> 0.00 | T66: =SUM(Gosforth:Ermelo!T66) -> 0.00 | U66: =SUM(Gosforth:Ermelo!U66) -> 0.00 | V66: =SUM(Gosforth:Ermelo!V66) -> 0.00 | W66: =SUM(Gosforth:Ermelo!W66) -> 0.00 | X66: =SUM(Gosforth:Ermelo!X66) -> 0.00 | Y66: =SUM(Gosforth:Ermelo!Y66) -> 0.00 | Z66: =SUM(Gosforth:Ermelo!Z66) -> 0.00 | AA66: =SUM(Gosforth:Ermelo!AA66) -> 0.00 | AB66: =SUM(Gosforth:Ermelo!AB66) -> 0.00 | AC66: =SUM(Gosforth:Ermelo!AC66) -> 0.00 | AD66: =SUM(Gosforth:Ermelo!AD66) -> 0.00 | AE66: =SUM(Gosforth:Ermelo!AE66) -> 0.00 | AF66: =SUM(Gosforth:Ermelo!AF66) -> 0.00 | AG66: =SUM(Gosforth:Ermelo!AG66) -> 0.00 | AH66: =SUM(Gosforth:Ermelo!AH66) -> 0.00 | AI66: =SUM(Gosforth:Ermelo!AI66) -> 0.00 | AJ66: =SUM(Gosforth:Ermelo!AJ66) -> 0.00 | AK66: =SUM(Gosforth:Ermelo!AK66) -> 0.00 | AL66: =SUM(Gosforth:Ermelo!AL66) -> 0.00 | AM66: =SUM(Gosforth:Ermelo!AM66) -> 0.00 | AN66: =SUM(Gosforth:Ermelo!AN66) -> 0.00 | AO66: =SUM(Gosforth:Ermelo!AO66) -> 0.00 | AP66: =SUM(Gosforth:Ermelo!AP66) -> 0.00 | AQ66: =SUM(Gosforth:Ermelo!AQ66) -> 0.00 | AR66: =SUM(Gosforth:Ermelo!AR66) -> 0.00 | AS66: =SUM(Gosforth:Ermelo!AS66) -> 0.00 | AT66: =SUM(Gosforth:Ermelo!AT66) -> 0.00 | AU66: =SUM(Gosforth:Ermelo!AU66) -> 0.00 | AV66: =SUM(Gosforth:Ermelo!AV66) -> 0.00 | AW66: =SUM(Gosforth:Ermelo!AW66) -> 0.00 | AX66: =SUM(Gosforth:Ermelo!AX66) -> 0.00 | AY66: =SUM(Gosforth:Ermelo!AY66) -> 0.00 | AZ66: =SUM(Gosforth:Ermelo!AZ66) -> 0.00 | BA66: =SUM(Gosforth:Ermelo!BA66) -> 0.00 | BB66: =SUM(Gosforth:Ermelo!BB66) -> 0.00 | BC66: =SUM(Gosforth:Ermelo!BC66) -> 0.00 | BD66: =SUM(Gosforth:Ermelo!BD66) -> 0.00 | BE66: =SUM(Gosforth:Ermelo!BE66) -> 0.00 | BF66: =SUM(Gosforth:Ermelo!BF66) -> 0.00 | BG66: =SUM(Gosforth:Ermelo!BG66) -> 0.00 | BH66: =SUM(Gosforth:Ermelo!BH66) -> 0.00 | BI66: =SUM(Gosforth:Ermelo!BI66) -> 0.00 | BJ66: =SUM(Gosforth:Ermelo!BJ66) -> 0.00 | BK66: =SUM(Gosforth:Ermelo!BK66) -> 0.00 | BL66: =SUM(Gosforth:Ermelo!BL66) -> 0.00 | BM66: =SUM(Gosforth:Ermelo!BM66) -> 0.00 | BN66: =SUM(Gosforth:Ermelo!BN66) -> 0.00 | BO66: =SUM(Gosforth:Ermelo!BO66) -> 0.00 | BP66: =SUM(Gosforth:Ermelo!BP66) -> 0.00 | BQ66: =SUM(Gosforth:Ermelo!BQ66) -> 0.00 | BR66: =SUM(Gosforth:Ermelo!BR66) -> 0.00 | BS66: =SUM(Gosforth:Ermelo!BS66) -> 0.00 | BT66: =SUM(Gosforth:Ermelo!BT66) -> 0.00 | BU66: =SUM(Gosforth:Ermelo!BU66) -> 0.00 | BV66: =SUM(Gosforth:Ermelo!BV66) -> 0.00 | BW66: =SUM(Gosforth:Ermelo!BW66) -> 0.00 | BX66: =SUM(Gosforth:Ermelo!BX66) -> 0.00 | BY66: =SUM(Gosforth:Ermelo!BY66) -> 0.00 | BZ66: =SUM(Gosforth:Ermelo!BZ66) -> 0.00 | CA66: =SUM(Gosforth:Ermelo!CA66) -> 0.00 | CB66: =SUM(Gosforth:Ermelo!CB66) -> 0.00 | CC66: =SUM(Gosforth:Ermelo!CC66) -> 0.00 | CD66: .
B67: A-2011b | C67: Extra over on Saving of Operational Costs if Dedicated ETC lanes are implemented (2 lanes/direction) (if triggered) | D67: Month | E67: =SUM(Gosforth:Ermelo!E67) -> 360 | F67: =(Gosforth!G67+Dalpark!G67+Leandra!G67+Trichardt!G67+Ermelo!G67)=G67 -> TRUE | G67: 0.00 | H67: =SUM(Gosforth:Ermelo!H67) -> 0.00 | I67: =SUM(Gosforth:Ermelo!I67) -> 0.00 | J67: =SUM(Gosforth:Ermelo!J67) -> 0.00 | K67: =SUM(Gosforth:Ermelo!K67) -> 0.00 | L67: =SUM(Gosforth:Ermelo!L67) -> 0.00 | M67: =SUM(Gosforth:Ermelo!M67) -> 0.00 | N67: =SUM(Gosforth:Ermelo!N67) -> 0.00 | O67: =SUM(Gosforth:Ermelo!O67) -> 0.00 | P67: =SUM(Gosforth:Ermelo!P67) -> 0.00 | Q67: =SUM(Gosforth:Ermelo!Q67) -> 0.00 | R67: =SUM(Gosforth:Ermelo!R67) -> 0.00 | S67: =SUM(Gosforth:Ermelo!S67) -> 0.00 | T67: =SUM(Gosforth:Ermelo!T67) -> 0.00 | U67: =SUM(Gosforth:Ermelo!U67) -> 0.00 | V67: =SUM(Gosforth:Ermelo!V67) -> 0.00 | W67: =SUM(Gosforth:Ermelo!W67) -> 0.00 | X67: =SUM(Gosforth:Ermelo!X67) -> 0.00 | Y67: =SUM(Gosforth:Ermelo!Y67) -> 0.00 | Z67: =SUM(Gosforth:Ermelo!Z67) -> 0.00 | AA67: =SUM(Gosforth:Ermelo!AA67) -> 0.00 | AB67: =SUM(Gosforth:Ermelo!AB67) -> 0.00 | AC67: =SUM(Gosforth:Ermelo!AC67) -> 0.00 | AD67: =SUM(Gosforth:Ermelo!AD67) -> 0.00 | AE67: =SUM(Gosforth:Ermelo!AE67) -> 0.00 | AF67: =SUM(Gosforth:Ermelo!AF67) -> 0.00 | AG67: =SUM(Gosforth:Ermelo!AG67) -> 0.00 | AH67: =SUM(Gosforth:Ermelo!AH67) -> 0.00 | AI67: =SUM(Gosforth:Ermelo!AI67) -> 0.00 | AJ67: =SUM(Gosforth:Ermelo!AJ67) -> 0.00 | AK67: =SUM(Gosforth:Ermelo!AK67) -> 0.00 | AL67: =SUM(Gosforth:Ermelo!AL67) -> 0.00 | AM67: =SUM(Gosforth:Ermelo!AM67) -> 0.00 | AN67: =SUM(Gosforth:Ermelo!AN67) -> 0.00 | AO67: =SUM(Gosforth:Ermelo!AO67) -> 0.00 | AP67: =SUM(Gosforth:Ermelo!AP67) -> 0.00 | AQ67: =SUM(Gosforth:Ermelo!AQ67) -> 0.00 | AR67: =SUM(Gosforth:Ermelo!AR67) -> 0.00 | AS67: =SUM(Gosforth:Ermelo!AS67) -> 0.00 | AT67: =SUM(Gosforth:Ermelo!AT67) -> 0.00 | AU67: =SUM(Gosforth:Ermelo!AU67) -> 0.00 | AV67: =SUM(Gosforth:Ermelo!AV67) -> 0.00 | AW67: =SUM(Gosforth:Ermelo!AW67) -> 0.00 | AX67: =SUM(Gosforth:Ermelo!AX67) -> 0.00 | AY67: =SUM(Gosforth:Ermelo!AY67) -> 0.00 | AZ67: =SUM(Gosforth:Ermelo!AZ67) -> 0.00 | BA67: =SUM(Gosforth:Ermelo!BA67) -> 0.00 | BB67: =SUM(Gosforth:Ermelo!BB67) -> 0.00 | BC67: =SUM(Gosforth:Ermelo!BC67) -> 0.00 | BD67: =SUM(Gosforth:Ermelo!BD67) -> 0.00 | BE67: =SUM(Gosforth:Ermelo!BE67) -> 0.00 | BF67: =SUM(Gosforth:Ermelo!BF67) -> 0.00 | BG67: =SUM(Gosforth:Ermelo!BG67) -> 0.00 | BH67: =SUM(Gosforth:Ermelo!BH67) -> 0.00 | BI67: =SUM(Gosforth:Ermelo!BI67) -> 0.00 | BJ67: =SUM(Gosforth:Ermelo!BJ67) -> 0.00 | BK67: =SUM(Gosforth:Ermelo!BK67) -> 0.00 | BL67: =SUM(Gosforth:Ermelo!BL67) -> 0.00 | BM67: =SUM(Gosforth:Ermelo!BM67) -> 0.00 | BN67: =SUM(Gosforth:Ermelo!BN67) -> 0.00 | BO67: =SUM(Gosforth:Ermelo!BO67) -> 0.00 | BP67: =SUM(Gosforth:Ermelo!BP67) -> 0.00 | BQ67: =SUM(Gosforth:Ermelo!BQ67) -> 0.00 | BR67: =SUM(Gosforth:Ermelo!BR67) -> 0.00 | BS67: =SUM(Gosforth:Ermelo!BS67) -> 0.00 | BT67: =SUM(Gosforth:Ermelo!BT67) -> 0.00 | BU67: =SUM(Gosforth:Ermelo!BU67) -> 0.00 | BV67: =SUM(Gosforth:Ermelo!BV67) -> 0.00 | BW67: =SUM(Gosforth:Ermelo!BW67) -> 0.00 | BX67: =SUM(Gosforth:Ermelo!BX67) -> 0.00 | BY67: =SUM(Gosforth:Ermelo!BY67) -> 0.00 | BZ67: =SUM(Gosforth:Ermelo!BZ67) -> 0.00 | CA67: =SUM(Gosforth:Ermelo!CA67) -> 0.00 | CB67: =SUM(Gosforth:Ermelo!CB67) -> 0.00 | CC67: =SUM(Gosforth:Ermelo!CC67) -> 0.00 | CD67: .
B68: A-2011c | C68: Extra over or saving of Operational costs if additional Dedicated ETC lanes are implemented (3 lanes/direction) (If triggered) | D68: Month | E68: =SUM(Gosforth:Ermelo!E68) -> 360 | F68: =(Gosforth!G68+Dalpark!G68+Leandra!G68+Trichardt!G68+Ermelo!G68)=G68 -> TRUE | G68: 0.00 | H68: =SUM(Gosforth:Ermelo!H68) -> 0.00 | I68: =SUM(Gosforth:Ermelo!I68) -> 0.00 | J68: =SUM(Gosforth:Ermelo!J68) -> 0.00 | K68: =SUM(Gosforth:Ermelo!K68) -> 0.00 | L68: =SUM(Gosforth:Ermelo!L68) -> 0.00 | M68: =SUM(Gosforth:Ermelo!M68) -> 0.00 | N68: =SUM(Gosforth:Ermelo!N68) -> 0.00 | O68: =SUM(Gosforth:Ermelo!O68) -> 0.00 | P68: =SUM(Gosforth:Ermelo!P68) -> 0.00 | Q68: =SUM(Gosforth:Ermelo!Q68) -> 0.00 | R68: =SUM(Gosforth:Ermelo!R68) -> 0.00 | S68: =SUM(Gosforth:Ermelo!S68) -> 0.00 | T68: =SUM(Gosforth:Ermelo!T68) -> 0.00 | U68: =SUM(Gosforth:Ermelo!U68) -> 0.00 | V68: =SUM(Gosforth:Ermelo!V68) -> 0.00 | W68: =SUM(Gosforth:Ermelo!W68) -> 0.00 | X68: =SUM(Gosforth:Ermelo!X68) -> 0.00 | Y68: =SUM(Gosforth:Ermelo!Y68) -> 0.00 | Z68: =SUM(Gosforth:Ermelo!Z68) -> 0.00 | AA68: =SUM(Gosforth:Ermelo!AA68) -> 0.00 | AB68: =SUM(Gosforth:Ermelo!AB68) -> 0.00 | AC68: =SUM(Gosforth:Ermelo!AC68) -> 0.00 | AD68: =SUM(Gosforth:Ermelo!AD68) -> 0.00 | AE68: =SUM(Gosforth:Ermelo!AE68) -> 0.00 | AF68: =SUM(Gosforth:Ermelo!AF68) -> 0.00 | AG68: =SUM(Gosforth:Ermelo!AG68) -> 0.00 | AH68: =SUM(Gosforth:Ermelo!AH68) -> 0.00 | AI68: =SUM(Gosforth:Ermelo!AI68) -> 0.00 | AJ68: =SUM(Gosforth:Ermelo!AJ68) -> 0.00 | AK68: =SUM(Gosforth:Ermelo!AK68) -> 0.00 | AL68: =SUM(Gosforth:Ermelo!AL68) -> 0.00 | AM68: =SUM(Gosforth:Ermelo!AM68) -> 0.00 | AN68: =SUM(Gosforth:Ermelo!AN68) -> 0.00 | AO68: =SUM(Gosforth:Ermelo!AO68) -> 0.00 | AP68: =SUM(Gosforth:Ermelo!AP68) -> 0.00 | AQ68: =SUM(Gosforth:Ermelo!AQ68) -> 0.00 | AR68: =SUM(Gosforth:Ermelo!AR68) -> 0.00 | AS68: =SUM(Gosforth:Ermelo!AS68) -> 0.00 | AT68: =SUM(Gosforth:Ermelo!AT68) -> 0.00 | AU68: =SUM(Gosforth:Ermelo!AU68) -> 0.00 | AV68: =SUM(Gosforth:Ermelo!AV68) -> 0.00 | AW68: =SUM(Gosforth:Ermelo!AW68) -> 0.00 | AX68: =SUM(Gosforth:Ermelo!AX68) -> 0.00 | AY68: =SUM(Gosforth:Ermelo!AY68) -> 0.00 | AZ68: =SUM(Gosforth:Ermelo!AZ68) -> 0.00 | BA68: =SUM(Gosforth:Ermelo!BA68) -> 0.00 | BB68: =SUM(Gosforth:Ermelo!BB68) -> 0.00 | BC68: =SUM(Gosforth:Ermelo!BC68) -> 0.00 | BD68: =SUM(Gosforth:Ermelo!BD68) -> 0.00 | BE68: =SUM(Gosforth:Ermelo!BE68) -> 0.00 | BF68: =SUM(Gosforth:Ermelo!BF68) -> 0.00 | BG68: =SUM(Gosforth:Ermelo!BG68) -> 0.00 | BH68: =SUM(Gosforth:Ermelo!BH68) -> 0.00 | BI68: =SUM(Gosforth:Ermelo!BI68) -> 0.00 | BJ68: =SUM(Gosforth:Ermelo!BJ68) -> 0.00 | BK68: =SUM(Gosforth:Ermelo!BK68) -> 0.00 | BL68: =SUM(Gosforth:Ermelo!BL68) -> 0.00 | BM68: =SUM(Gosforth:Ermelo!BM68) -> 0.00 | BN68: =SUM(Gosforth:Ermelo!BN68) -> 0.00 | BO68: =SUM(Gosforth:Ermelo!BO68) -> 0.00 | BP68: =SUM(Gosforth:Ermelo!BP68) -> 0.00 | BQ68: =SUM(Gosforth:Ermelo!BQ68) -> 0.00 | BR68: =SUM(Gosforth:Ermelo!BR68) -> 0.00 | BS68: =SUM(Gosforth:Ermelo!BS68) -> 0.00 | BT68: =SUM(Gosforth:Ermelo!BT68) -> 0.00 | BU68: =SUM(Gosforth:Ermelo!BU68) -> 0.00 | BV68: =SUM(Gosforth:Ermelo!BV68) -> 0.00 | BW68: =SUM(Gosforth:Ermelo!BW68) -> 0.00 | BX68: =SUM(Gosforth:Ermelo!BX68) -> 0.00 | BY68: =SUM(Gosforth:Ermelo!BY68) -> 0.00 | BZ68: =SUM(Gosforth:Ermelo!BZ68) -> 0.00 | CA68: =SUM(Gosforth:Ermelo!CA68) -> 0.00 | CB68: =SUM(Gosforth:Ermelo!CB68) -> 0.00 | CC68: =SUM(Gosforth:Ermelo!CC68) -> 0.00 | CD68: .
B69: A-2011d | C69: Extra over on Saving of Operational Costs if Dedicated Card lanes are implemented (1 lane/direction) | D69: Month | E69: =SUM(Gosforth:Ermelo!E69) -> 144 | F69: =(Gosforth!G69+Dalpark!G69+Leandra!G69+Trichardt!G69+Ermelo!G69)=G69 -> TRUE | G69: 0.00 | H69: =SUM(Gosforth:Ermelo!H69) -> 0.00 | I69: =SUM(Gosforth:Ermelo!I69) -> 0.00 | J69: =SUM(Gosforth:Ermelo!J69) -> 0.00 | K69: =SUM(Gosforth:Ermelo!K69) -> 0.00 | L69: =SUM(Gosforth:Ermelo!L69) -> 0.00 | M69: =SUM(Gosforth:Ermelo!M69) -> 0.00 | N69: =SUM(Gosforth:Ermelo!N69) -> 0.00 | O69: =SUM(Gosforth:Ermelo!O69) -> 0.00 | P69: =SUM(Gosforth:Ermelo!P69) -> 0.00 | Q69: =SUM(Gosforth:Ermelo!Q69) -> 0.00 | R69: =SUM(Gosforth:Ermelo!R69) -> 0.00 | S69: =SUM(Gosforth:Ermelo!S69) -> 0.00 | T69: =SUM(Gosforth:Ermelo!T69) -> 0.00 | U69: =SUM(Gosforth:Ermelo!U69) -> 0.00 | V69: =SUM(Gosforth:Ermelo!V69) -> 0.00 | W69: =SUM(Gosforth:Ermelo!W69) -> 0.00 | X69: =SUM(Gosforth:Ermelo!X69) -> 0.00 | Y69: =SUM(Gosforth:Ermelo!Y69) -> 0.00 | Z69: =SUM(Gosforth:Ermelo!Z69) -> 0.00 | AA69: =SUM(Gosforth:Ermelo!AA69) -> 0.00 | AB69: =SUM(Gosforth:Ermelo!AB69) -> 0.00 | AC69: =SUM(Gosforth:Ermelo!AC69) -> 0.00 | AD69: =SUM(Gosforth:Ermelo!AD69) -> 0.00 | AE69: =SUM(Gosforth:Ermelo!AE69) -> 0.00 | AF69: =SUM(Gosforth:Ermelo!AF69) -> 0.00 | AG69: =SUM(Gosforth:Ermelo!AG69) -> 0.00 | AH69: =SUM(Gosforth:Ermelo!AH69) -> 0.00 | AI69: =SUM(Gosforth:Ermelo!AI69) -> 0.00 | AJ69: =SUM(Gosforth:Ermelo!AJ69) -> 0.00 | AK69: =SUM(Gosforth:Ermelo!AK69) -> 0.00 | AL69: =SUM(Gosforth:Ermelo!AL69) -> 0.00 | AM69: =SUM(Gosforth:Ermelo!AM69) -> 0.00 | AN69: =SUM(Gosforth:Ermelo!AN69) -> 0.00 | AO69: =SUM(Gosforth:Ermelo!AO69) -> 0.00 | AP69: =SUM(Gosforth:Ermelo!AP69) -> 0.00 | AQ69: =SUM(Gosforth:Ermelo!AQ69) -> 0.00 | AR69: =SUM(Gosforth:Ermelo!AR69) -> 0.00 | AS69: =SUM(Gosforth:Ermelo!AS69) -> 0.00 | AT69: =SUM(Gosforth:Ermelo!AT69) -> 0.00 | AU69: =SUM(Gosforth:Ermelo!AU69) -> 0.00 | AV69: =SUM(Gosforth:Ermelo!AV69) -> 0.00 | AW69: =SUM(Gosforth:Ermelo!AW69) -> 0.00 | AX69: =SUM(Gosforth:Ermelo!AX69) -> 0.00 | AY69: =SUM(Gosforth:Ermelo!AY69) -> 0.00 | AZ69: =SUM(Gosforth:Ermelo!AZ69) -> 0.00 | BA69: =SUM(Gosforth:Ermelo!BA69) -> 0.00 | BB69: =SUM(Gosforth:Ermelo!BB69) -> 0.00 | BC69: =SUM(Gosforth:Ermelo!BC69) -> 0.00 | BD69: =SUM(Gosforth:Ermelo!BD69) -> 0.00 | BE69: =SUM(Gosforth:Ermelo!BE69) -> 0.00 | BF69: =SUM(Gosforth:Ermelo!BF69) -> 0.00 | BG69: =SUM(Gosforth:Ermelo!BG69) -> 0.00 | BH69: =SUM(Gosforth:Ermelo!BH69) -> 0.00 | BI69: =SUM(Gosforth:Ermelo!BI69) -> 0.00 | BJ69: =SUM(Gosforth:Ermelo!BJ69) -> 0.00 | BK69: =SUM(Gosforth:Ermelo!BK69) -> 0.00 | BL69: =SUM(Gosforth:Ermelo!BL69) -> 0.00 | BM69: =SUM(Gosforth:Ermelo!BM69) -> 0.00 | BN69: =SUM(Gosforth:Ermelo!BN69) -> 0.00 | BO69: =SUM(Gosforth:Ermelo!BO69) -> 0.00 | BP69: =SUM(Gosforth:Ermelo!BP69) -> 0.00 | BQ69: =SUM(Gosforth:Ermelo!BQ69) -> 0.00 | BR69: =SUM(Gosforth:Ermelo!BR69) -> 0.00 | BS69: =SUM(Gosforth:Ermelo!BS69) -> 0.00 | BT69: =SUM(Gosforth:Ermelo!BT69) -> 0.00 | BU69: =SUM(Gosforth:Ermelo!BU69) -> 0.00 | BV69: =SUM(Gosforth:Ermelo!BV69) -> 0.00 | BW69: =SUM(Gosforth:Ermelo!BW69) -> 0.00 | BX69: =SUM(Gosforth:Ermelo!BX69) -> 0.00 | BY69: =SUM(Gosforth:Ermelo!BY69) -> 0.00 | BZ69: =SUM(Gosforth:Ermelo!BZ69) -> 0.00 | CA69: =SUM(Gosforth:Ermelo!CA69) -> 0.00 | CB69: =SUM(Gosforth:Ermelo!CB69) -> 0.00 | CC69: =SUM(Gosforth:Ermelo!CC69) -> 0.00 | CD69: .
B70: A-2012 | C70: Management of functional Customer Service, Including Account Registration, Tag Distribution, Account Top-Up as well as Revenue Management | D70: Month | E70: =SUM(Gosforth:Ermelo!E70) -> 360 | F70: =(Gosforth!G70+Dalpark!G70+Leandra!G70+Trichardt!G70+Ermelo!G70)=G70 -> TRUE | G70: 0.00 | H70: =SUM(Gosforth:Ermelo!H70) -> 0.00 | I70: =SUM(Gosforth:Ermelo!I70) -> 0.00 | J70: =SUM(Gosforth:Ermelo!J70) -> 0.00 | K70: =SUM(Gosforth:Ermelo!K70) -> 0.00 | L70: =SUM(Gosforth:Ermelo!L70) -> 0.00 | M70: =SUM(Gosforth:Ermelo!M70) -> 0.00 | N70: =SUM(Gosforth:Ermelo!N70) -> 0.00 | O70: =SUM(Gosforth:Ermelo!O70) -> 0.00 | P70: =SUM(Gosforth:Ermelo!P70) -> 0.00 | Q70: =SUM(Gosforth:Ermelo!Q70) -> 0.00 | R70: =SUM(Gosforth:Ermelo!R70) -> 0.00 | S70: =SUM(Gosforth:Ermelo!S70) -> 0.00 | T70: =SUM(Gosforth:Ermelo!T70) -> 0.00 | U70: =SUM(Gosforth:Ermelo!U70) -> 0.00 | V70: =SUM(Gosforth:Ermelo!V70) -> 0.00 | W70: =SUM(Gosforth:Ermelo!W70) -> 0.00 | X70: =SUM(Gosforth:Ermelo!X70) -> 0.00 | Y70: =SUM(Gosforth:Ermelo!Y70) -> 0.00 | Z70: =SUM(Gosforth:Ermelo!Z70) -> 0.00 | AA70: =SUM(Gosforth:Ermelo!AA70) -> 0.00 | AB70: =SUM(Gosforth:Ermelo!AB70) -> 0.00 | AC70: =SUM(Gosforth:Ermelo!AC70) -> 0.00 | AD70: =SUM(Gosforth:Ermelo!AD70) -> 0.00 | AE70: =SUM(Gosforth:Ermelo!AE70) -> 0.00 | AF70: =SUM(Gosforth:Ermelo!AF70) -> 0.00 | AG70: =SUM(Gosforth:Ermelo!AG70) -> 0.00 | AH70: =SUM(Gosforth:Ermelo!AH70) -> 0.00 | AI70: =SUM(Gosforth:Ermelo!AI70) -> 0.00 | AJ70: =SUM(Gosforth:Ermelo!AJ70) -> 0.00 | AK70: =SUM(Gosforth:Ermelo!AK70) -> 0.00 | AL70: =SUM(Gosforth:Ermelo!AL70) -> 0.00 | AM70: =SUM(Gosforth:Ermelo!AM70) -> 0.00 | AN70: =SUM(Gosforth:Ermelo!AN70) -> 0.00 | AO70: =SUM(Gosforth:Ermelo!AO70) -> 0.00 | AP70: =SUM(Gosforth:Ermelo!AP70) -> 0.00 | AQ70: =SUM(Gosforth:Ermelo!AQ70) -> 0.00 | AR70: =SUM(Gosforth:Ermelo!AR70) -> 0.00 | AS70: =SUM(Gosforth:Ermelo!AS70) -> 0.00 | AT70: =SUM(Gosforth:Ermelo!AT70) -> 0.00 | AU70: =SUM(Gosforth:Ermelo!AU70) -> 0.00 | AV70: =SUM(Gosforth:Ermelo!AV70) -> 0.00 | AW70: =SUM(Gosforth:Ermelo!AW70) -> 0.00 | AX70: =SUM(Gosforth:Ermelo!AX70) -> 0.00 | AY70: =SUM(Gosforth:Ermelo!AY70) -> 0.00 | AZ70: =SUM(Gosforth:Ermelo!AZ70) -> 0.00 | BA70: =SUM(Gosforth:Ermelo!BA70) -> 0.00 | BB70: =SUM(Gosforth:Ermelo!BB70) -> 0.00 | BC70: =SUM(Gosforth:Ermelo!BC70) -> 0.00 | BD70: =SUM(Gosforth:Ermelo!BD70) -> 0.00 | BE70: =SUM(Gosforth:Ermelo!BE70) -> 0.00 | BF70: =SUM(Gosforth:Ermelo!BF70) -> 0.00 | BG70: =SUM(Gosforth:Ermelo!BG70) -> 0.00 | BH70: =SUM(Gosforth:Ermelo!BH70) -> 0.00 | BI70: =SUM(Gosforth:Ermelo!BI70) -> 0.00 | BJ70: =SUM(Gosforth:Ermelo!BJ70) -> 0.00 | BK70: =SUM(Gosforth:Ermelo!BK70) -> 0.00 | BL70: =SUM(Gosforth:Ermelo!BL70) -> 0.00 | BM70: =SUM(Gosforth:Ermelo!BM70) -> 0.00 | BN70: =SUM(Gosforth:Ermelo!BN70) -> 0.00 | BO70: =SUM(Gosforth:Ermelo!BO70) -> 0.00 | BP70: =SUM(Gosforth:Ermelo!BP70) -> 0.00 | BQ70: =SUM(Gosforth:Ermelo!BQ70) -> 0.00 | BR70: =SUM(Gosforth:Ermelo!BR70) -> 0.00 | BS70: =SUM(Gosforth:Ermelo!BS70) -> 0.00 | BT70: =SUM(Gosforth:Ermelo!BT70) -> 0.00 | BU70: =SUM(Gosforth:Ermelo!BU70) -> 0.00 | BV70: =SUM(Gosforth:Ermelo!BV70) -> 0.00 | BW70: =SUM(Gosforth:Ermelo!BW70) -> 0.00 | BX70: =SUM(Gosforth:Ermelo!BX70) -> 0.00 | BY70: =SUM(Gosforth:Ermelo!BY70) -> 0.00 | BZ70: =SUM(Gosforth:Ermelo!BZ70) -> 0.00 | CA70: =SUM(Gosforth:Ermelo!CA70) -> 0.00 | CB70: =SUM(Gosforth:Ermelo!CB70) -> 0.00 | CC70: =SUM(Gosforth:Ermelo!CC70) -> 0.00 | CD70: .
B71: A-2013 | C71: Customer Service Operations, including Account Registration, Tag Distribution, Account Top-up and Revenue Collection and Administration Services at Control Centres (if triggered) | CD71: .
B72: A-2013a | C72: Operations of 1 Customer Service Counter | D72: Month | E72: =SUM(Gosforth:Ermelo!E72) -> 360 | F72: =(Gosforth!G72+Dalpark!G72+Leandra!G72+Trichardt!G72+Ermelo!G72)=G72 -> TRUE | G72: 0.00 | H72: =SUM(Gosforth:Ermelo!H72) -> 0.00 | I72: =SUM(Gosforth:Ermelo!I72) -> 0.00 | J72: =SUM(Gosforth:Ermelo!J72) -> 0.00 | K72: =SUM(Gosforth:Ermelo!K72) -> 0.00 | L72: =SUM(Gosforth:Ermelo!L72) -> 0.00 | M72: =SUM(Gosforth:Ermelo!M72) -> 0.00 | N72: =SUM(Gosforth:Ermelo!N72) -> 0.00 | O72: =SUM(Gosforth:Ermelo!O72) -> 0.00 | P72: =SUM(Gosforth:Ermelo!P72) -> 0.00 | Q72: =SUM(Gosforth:Ermelo!Q72) -> 0.00 | R72: =SUM(Gosforth:Ermelo!R72) -> 0.00 | S72: =SUM(Gosforth:Ermelo!S72) -> 0.00 | T72: =SUM(Gosforth:Ermelo!T72) -> 0.00 | U72: =SUM(Gosforth:Ermelo!U72) -> 0.00 | V72: =SUM(Gosforth:Ermelo!V72) -> 0.00 | W72: =SUM(Gosforth:Ermelo!W72) -> 0.00 | X72: =SUM(Gosforth:Ermelo!X72) -> 0.00 | Y72: =SUM(Gosforth:Ermelo!Y72) -> 0.00 | Z72: =SUM(Gosforth:Ermelo!Z72) -> 0.00 | AA72: =SUM(Gosforth:Ermelo!AA72) -> 0.00 | AB72: =SUM(Gosforth:Ermelo!AB72) -> 0.00 | AC72: =SUM(Gosforth:Ermelo!AC72) -> 0.00 | AD72: =SUM(Gosforth:Ermelo!AD72) -> 0.00 | AE72: =SUM(Gosforth:Ermelo!AE72) -> 0.00 | AF72: =SUM(Gosforth:Ermelo!AF72) -> 0.00 | AG72: =SUM(Gosforth:Ermelo!AG72) -> 0.00 | AH72: =SUM(Gosforth:Ermelo!AH72) -> 0.00 | AI72: =SUM(Gosforth:Ermelo!AI72) -> 0.00 | AJ72: =SUM(Gosforth:Ermelo!AJ72) -> 0.00 | AK72: =SUM(Gosforth:Ermelo!AK72) -> 0.00 | AL72: =SUM(Gosforth:Ermelo!AL72) -> 0.00 | AM72: =SUM(Gosforth:Ermelo!AM72) -> 0.00 | AN72: =SUM(Gosforth:Ermelo!AN72) -> 0.00 | AO72: =SUM(Gosforth:Ermelo!AO72) -> 0.00 | AP72: =SUM(Gosforth:Ermelo!AP72) -> 0.00 | AQ72: =SUM(Gosforth:Ermelo!AQ72) -> 0.00 | AR72: =SUM(Gosforth:Ermelo!AR72) -> 0.00 | AS72: =SUM(Gosforth:Ermelo!AS72) -> 0.00 | AT72: =SUM(Gosforth:Ermelo!AT72) -> 0.00 | AU72: =SUM(Gosforth:Ermelo!AU72) -> 0.00 | AV72: =SUM(Gosforth:Ermelo!AV72) -> 0.00 | AW72: =SUM(Gosforth:Ermelo!AW72) -> 0.00 | AX72: =SUM(Gosforth:Ermelo!AX72) -> 0.00 | AY72: =SUM(Gosforth:Ermelo!AY72) -> 0.00 | AZ72: =SUM(Gosforth:Ermelo!AZ72) -> 0.00 | BA72: =SUM(Gosforth:Ermelo!BA72) -> 0.00 | BB72: =SUM(Gosforth:Ermelo!BB72) -> 0.00 | BC72: =SUM(Gosforth:Ermelo!BC72) -> 0.00 | BD72: =SUM(Gosforth:Ermelo!BD72) -> 0.00 | BE72: =SUM(Gosforth:Ermelo!BE72) -> 0.00 | BF72: =SUM(Gosforth:Ermelo!BF72) -> 0.00 | BG72: =SUM(Gosforth:Ermelo!BG72) -> 0.00 | BH72: =SUM(Gosforth:Ermelo!BH72) -> 0.00 | BI72: =SUM(Gosforth:Ermelo!BI72) -> 0.00 | BJ72: =SUM(Gosforth:Ermelo!BJ72) -> 0.00 | BK72: =SUM(Gosforth:Ermelo!BK72) -> 0.00 | BL72: =SUM(Gosforth:Ermelo!BL72) -> 0.00 | BM72: =SUM(Gosforth:Ermelo!BM72) -> 0.00 | BN72: =SUM(Gosforth:Ermelo!BN72) -> 0.00 | BO72: =SUM(Gosforth:Ermelo!BO72) -> 0.00 | BP72: =SUM(Gosforth:Ermelo!BP72) -> 0.00 | BQ72: =SUM(Gosforth:Ermelo!BQ72) -> 0.00 | BR72: =SUM(Gosforth:Ermelo!BR72) -> 0.00 | BS72: =SUM(Gosforth:Ermelo!BS72) -> 0.00 | BT72: =SUM(Gosforth:Ermelo!BT72) -> 0.00 | BU72: =SUM(Gosforth:Ermelo!BU72) -> 0.00 | BV72: =SUM(Gosforth:Ermelo!BV72) -> 0.00 | BW72: =SUM(Gosforth:Ermelo!BW72) -> 0.00 | BX72: =SUM(Gosforth:Ermelo!BX72) -> 0.00 | BY72: =SUM(Gosforth:Ermelo!BY72) -> 0.00 | BZ72: =SUM(Gosforth:Ermelo!BZ72) -> 0.00 | CA72: =SUM(Gosforth:Ermelo!CA72) -> 0.00 | CB72: =SUM(Gosforth:Ermelo!CB72) -> 0.00 | CC72: =SUM(Gosforth:Ermelo!CC72) -> 0.00 | CD72: .
B73: A-2013b | C73: Extra Over for the Operation of an additional Customer Service Counter | D73: Month | E73: =SUM(Gosforth:Ermelo!E73) -> 360 | F73: =(Gosforth!G73+Dalpark!G73+Leandra!G73+Trichardt!G73+Ermelo!G73)=G73 -> TRUE | G73: 0.00 | H73: =SUM(Gosforth:Ermelo!H73) -> 0.00 | I73: =SUM(Gosforth:Ermelo!I73) -> 0.00 | J73: =SUM(Gosforth:Ermelo!J73) -> 0.00 | K73: =SUM(Gosforth:Ermelo!K73) -> 0.00 | L73: =SUM(Gosforth:Ermelo!L73) -> 0.00 | M73: =SUM(Gosforth:Ermelo!M73) -> 0.00 | N73: =SUM(Gosforth:Ermelo!N73) -> 0.00 | O73: =SUM(Gosforth:Ermelo!O73) -> 0.00 | P73: =SUM(Gosforth:Ermelo!P73) -> 0.00 | Q73: =SUM(Gosforth:Ermelo!Q73) -> 0.00 | R73: =SUM(Gosforth:Ermelo!R73) -> 0.00 | S73: =SUM(Gosforth:Ermelo!S73) -> 0.00 | T73: =SUM(Gosforth:Ermelo!T73) -> 0.00 | U73: =SUM(Gosforth:Ermelo!U73) -> 0.00 | V73: =SUM(Gosforth:Ermelo!V73) -> 0.00 | W73: =SUM(Gosforth:Ermelo!W73) -> 0.00 | X73: =SUM(Gosforth:Ermelo!X73) -> 0.00 | Y73: =SUM(Gosforth:Ermelo!Y73) -> 0.00 | Z73: =SUM(Gosforth:Ermelo!Z73) -> 0.00 | AA73: =SUM(Gosforth:Ermelo!AA73) -> 0.00 | AB73: =SUM(Gosforth:Ermelo!AB73) -> 0.00 | AC73: =SUM(Gosforth:Ermelo!AC73) -> 0.00 | AD73: =SUM(Gosforth:Ermelo!AD73) -> 0.00 | AE73: =SUM(Gosforth:Ermelo!AE73) -> 0.00 | AF73: =SUM(Gosforth:Ermelo!AF73) -> 0.00 | AG73: =SUM(Gosforth:Ermelo!AG73) -> 0.00 | AH73: =SUM(Gosforth:Ermelo!AH73) -> 0.00 | AI73: =SUM(Gosforth:Ermelo!AI73) -> 0.00 | AJ73: =SUM(Gosforth:Ermelo!AJ73) -> 0.00 | AK73: =SUM(Gosforth:Ermelo!AK73) -> 0.00 | AL73: =SUM(Gosforth:Ermelo!AL73) -> 0.00 | AM73: =SUM(Gosforth:Ermelo!AM73) -> 0.00 | AN73: =SUM(Gosforth:Ermelo!AN73) -> 0.00 | AO73: =SUM(Gosforth:Ermelo!AO73) -> 0.00 | AP73: =SUM(Gosforth:Ermelo!AP73) -> 0.00 | AQ73: =SUM(Gosforth:Ermelo!AQ73) -> 0.00 | AR73: =SUM(Gosforth:Ermelo!AR73) -> 0.00 | AS73: =SUM(Gosforth:Ermelo!AS73) -> 0.00 | AT73: =SUM(Gosforth:Ermelo!AT73) -> 0.00 | AU73: =SUM(Gosforth:Ermelo!AU73) -> 0.00 | AV73: =SUM(Gosforth:Ermelo!AV73) -> 0.00 | AW73: =SUM(Gosforth:Ermelo!AW73) -> 0.00 | AX73: =SUM(Gosforth:Ermelo!AX73) -> 0.00 | AY73: =SUM(Gosforth:Ermelo!AY73) -> 0.00 | AZ73: =SUM(Gosforth:Ermelo!AZ73) -> 0.00 | BA73: =SUM(Gosforth:Ermelo!BA73) -> 0.00 | BB73: =SUM(Gosforth:Ermelo!BB73) -> 0.00 | BC73: =SUM(Gosforth:Ermelo!BC73) -> 0.00 | BD73: =SUM(Gosforth:Ermelo!BD73) -> 0.00 | BE73: =SUM(Gosforth:Ermelo!BE73) -> 0.00 | BF73: =SUM(Gosforth:Ermelo!BF73) -> 0.00 | BG73: =SUM(Gosforth:Ermelo!BG73) -> 0.00 | BH73: =SUM(Gosforth:Ermelo!BH73) -> 0.00 | BI73: =SUM(Gosforth:Ermelo!BI73) -> 0.00 | BJ73: =SUM(Gosforth:Ermelo!BJ73) -> 0.00 | BK73: =SUM(Gosforth:Ermelo!BK73) -> 0.00 | BL73: =SUM(Gosforth:Ermelo!BL73) -> 0.00 | BM73: =SUM(Gosforth:Ermelo!BM73) -> 0.00 | BN73: =SUM(Gosforth:Ermelo!BN73) -> 0.00 | BO73: =SUM(Gosforth:Ermelo!BO73) -> 0.00 | BP73: =SUM(Gosforth:Ermelo!BP73) -> 0.00 | BQ73: =SUM(Gosforth:Ermelo!BQ73) -> 0.00 | BR73: =SUM(Gosforth:Ermelo!BR73) -> 0.00 | BS73: =SUM(Gosforth:Ermelo!BS73) -> 0.00 | BT73: =SUM(Gosforth:Ermelo!BT73) -> 0.00 | BU73: =SUM(Gosforth:Ermelo!BU73) -> 0.00 | BV73: =SUM(Gosforth:Ermelo!BV73) -> 0.00 | BW73: =SUM(Gosforth:Ermelo!BW73) -> 0.00 | BX73: =SUM(Gosforth:Ermelo!BX73) -> 0.00 | BY73: =SUM(Gosforth:Ermelo!BY73) -> 0.00 | BZ73: =SUM(Gosforth:Ermelo!BZ73) -> 0.00 | CA73: =SUM(Gosforth:Ermelo!CA73) -> 0.00 | CB73: =SUM(Gosforth:Ermelo!CB73) -> 0.00 | CC73: =SUM(Gosforth:Ermelo!CC73) -> 0.00 | CD73: .
B74: A-2014 | C74: Operation of different work-station configurations at Customer Service (CS) Kiosks at locations remote from Control Centres, including for Account Registration, Tag Distribution, Account Top-up and Revenue Collection and Administration Services (if triggered) | CD74: .
B75: A-2014a | C75: Operation of 1 work station configuration (if triggered) | D75: Month | E75: =SUM(Gosforth:Ermelo!E75) -> 360 | F75: =(Gosforth!G75+Dalpark!G75+Leandra!G75+Trichardt!G75+Ermelo!G75)=G75 -> TRUE | G75: 0.00 | H75: =SUM(Gosforth:Ermelo!H75) -> 0.00 | I75: =SUM(Gosforth:Ermelo!I75) -> 0.00 | J75: =SUM(Gosforth:Ermelo!J75) -> 0.00 | K75: =SUM(Gosforth:Ermelo!K75) -> 0.00 | L75: =SUM(Gosforth:Ermelo!L75) -> 0.00 | M75: =SUM(Gosforth:Ermelo!M75) -> 0.00 | N75: =SUM(Gosforth:Ermelo!N75) -> 0.00 | O75: =SUM(Gosforth:Ermelo!O75) -> 0.00 | P75: =SUM(Gosforth:Ermelo!P75) -> 0.00 | Q75: =SUM(Gosforth:Ermelo!Q75) -> 0.00 | R75: =SUM(Gosforth:Ermelo!R75) -> 0.00 | S75: =SUM(Gosforth:Ermelo!S75) -> 0.00 | T75: =SUM(Gosforth:Ermelo!T75) -> 0.00 | U75: =SUM(Gosforth:Ermelo!U75) -> 0.00 | V75: =SUM(Gosforth:Ermelo!V75) -> 0.00 | W75: =SUM(Gosforth:Ermelo!W75) -> 0.00 | X75: =SUM(Gosforth:Ermelo!X75) -> 0.00 | Y75: =SUM(Gosforth:Ermelo!Y75) -> 0.00 | Z75: =SUM(Gosforth:Ermelo!Z75) -> 0.00 | AA75: =SUM(Gosforth:Ermelo!AA75) -> 0.00 | AB75: =SUM(Gosforth:Ermelo!AB75) -> 0.00 | AC75: =SUM(Gosforth:Ermelo!AC75) -> 0.00 | AD75: =SUM(Gosforth:Ermelo!AD75) -> 0.00 | AE75: =SUM(Gosforth:Ermelo!AE75) -> 0.00 | AF75: =SUM(Gosforth:Ermelo!AF75) -> 0.00 | AG75: =SUM(Gosforth:Ermelo!AG75) -> 0.00 | AH75: =SUM(Gosforth:Ermelo!AH75) -> 0.00 | AI75: =SUM(Gosforth:Ermelo!AI75) -> 0.00 | AJ75: =SUM(Gosforth:Ermelo!AJ75) -> 0.00 | AK75: =SUM(Gosforth:Ermelo!AK75) -> 0.00 | AL75: =SUM(Gosforth:Ermelo!AL75) -> 0.00 | AM75: =SUM(Gosforth:Ermelo!AM75) -> 0.00 | AN75: =SUM(Gosforth:Ermelo!AN75) -> 0.00 | AO75: =SUM(Gosforth:Ermelo!AO75) -> 0.00 | AP75: =SUM(Gosforth:Ermelo!AP75) -> 0.00 | AQ75: =SUM(Gosforth:Ermelo!AQ75) -> 0.00 | AR75: =SUM(Gosforth:Ermelo!AR75) -> 0.00 | AS75: =SUM(Gosforth:Ermelo!AS75) -> 0.00 | AT75: =SUM(Gosforth:Ermelo!AT75) -> 0.00 | AU75: =SUM(Gosforth:Ermelo!AU75) -> 0.00 | AV75: =SUM(Gosforth:Ermelo!AV75) -> 0.00 | AW75: =SUM(Gosforth:Ermelo!AW75) -> 0.00 | AX75: =SUM(Gosforth:Ermelo!AX75) -> 0.00 | AY75: =SUM(Gosforth:Ermelo!AY75) -> 0.00 | AZ75: =SUM(Gosforth:Ermelo!AZ75) -> 0.00 | BA75: =SUM(Gosforth:Ermelo!BA75) -> 0.00 | BB75: =SUM(Gosforth:Ermelo!BB75) -> 0.00 | BC75: =SUM(Gosforth:Ermelo!BC75) -> 0.00 | BD75: =SUM(Gosforth:Ermelo!BD75) -> 0.00 | BE75: =SUM(Gosforth:Ermelo!BE75) -> 0.00 | BF75: =SUM(Gosforth:Ermelo!BF75) -> 0.00 | BG75: =SUM(Gosforth:Ermelo!BG75) -> 0.00 | BH75: =SUM(Gosforth:Ermelo!BH75) -> 0.00 | BI75: =SUM(Gosforth:Ermelo!BI75) -> 0.00 | BJ75: =SUM(Gosforth:Ermelo!BJ75) -> 0.00 | BK75: =SUM(Gosforth:Ermelo!BK75) -> 0.00 | BL75: =SUM(Gosforth:Ermelo!BL75) -> 0.00 | BM75: =SUM(Gosforth:Ermelo!BM75) -> 0.00 | BN75: =SUM(Gosforth:Ermelo!BN75) -> 0.00 | BO75: =SUM(Gosforth:Ermelo!BO75) -> 0.00 | BP75: =SUM(Gosforth:Ermelo!BP75) -> 0.00 | BQ75: =SUM(Gosforth:Ermelo!BQ75) -> 0.00 | BR75: =SUM(Gosforth:Ermelo!BR75) -> 0.00 | BS75: =SUM(Gosforth:Ermelo!BS75) -> 0.00 | BT75: =SUM(Gosforth:Ermelo!BT75) -> 0.00 | BU75: =SUM(Gosforth:Ermelo!BU75) -> 0.00 | BV75: =SUM(Gosforth:Ermelo!BV75) -> 0.00 | BW75: =SUM(Gosforth:Ermelo!BW75) -> 0.00 | BX75: =SUM(Gosforth:Ermelo!BX75) -> 0.00 | BY75: =SUM(Gosforth:Ermelo!BY75) -> 0.00 | BZ75: =SUM(Gosforth:Ermelo!BZ75) -> 0.00 | CA75: =SUM(Gosforth:Ermelo!CA75) -> 0.00 | CB75: =SUM(Gosforth:Ermelo!CB75) -> 0.00 | CC75: =SUM(Gosforth:Ermelo!CC75) -> 0.00 | CD75: .
